Workbook

Sheet ED70P
A1: ED70P
A2: Power (kW) | B2: Engine LS | C2: Power take-off (rpm) | D2: (Nm)
A3: 50 | B3: 800 | C3: =B3*1.2 -> 960 | D3: =A3*9550/C3 -> 497.3958333
A4: 50 | B4: 900 | C4: 1080 | D4: 442.1296296
A5: 50 | B5: =B4+100 -> 1000 | C5: 1200 | D5: 397.9166667
A6: 50 | B6: 1100 | C6: 1320 | D6: 361.7424242
A7: 50 | B7: 1200 | C7: 1440 | D7: 331.5972222
A8: 50 | B8: 1300 | C8: 1560 | D8: 306.0897436
A9: 50 | B9: 1400 | C9: 1680 | D9: 284.2261905
A10: 50 | B10: 1500 | C10: 1800 | D10: 265.2777778
A11: 50 | B11: 1600 | C11: 1920 | D11: 248.6979167
A12: 50 | B12: 1700 | C12: 2040 | D12: 234.0686275
A13: 50 | B13: 1800 | C13: 2160 | D13: 221.0648148
A14: 50 | B14: 1900 | C14: 2280 | D14: 209.4298246
A15: Power (kW) | B15: Engine LS | C15: Power take-off (rpm) | D15: (Nm)
A16: 50 | B16: 800 | C16: =B16*1.2 -> 960 | D16: =A16*9550/C16 -> 497.3958333
A17: 50 | B17: 900 | C17: 1080 | D17: 442.1296296
A18: 50 | B18: =B17+100 -> 1000 | C18: 1200 | D18: 397.9166667
A19: 50 | B19: 1100 | C19: 1320 | D19: 361.7424242
A20: 50 | B20: 1200 | C20: 1440 | D20: 331.5972222
A21: 50 | B21: 1300 | C21: 1560 | D21: 306.0897436
A22: 50 | B22: 1400 | C22: 1680 | D22: 284.2261905
A23: 50 | B23: 1500 | C23: 1800 | D23: 265.2777778
A24: 50 | B24: 1600 | C24: 1920 | D24: 248.6979167
A25: 50 | B25: 1700 | C25: 2040 | D25: 234.0686275
A26: 50 | B26: 1800 | C26: 2160 | D26: 221.0648148
A27: 50 | B27: 1900 | C27: 2280 | D27: 209.4298246
A28: Power (kW) | B28: Engine LS | C28: Power take-off (rpm) | D28: (Nm)
A29: 113 | B29: 1700 | C29: =B29*1.2 -> 2040 | D29: =A29*9550/C29 -> 528.995098
A30: 113 | B30: =B29+100 -> 1800 | C30: 2160 | D30: 499.6064815
A31: 113 | B31: 1900 | C31: =B31*1.2 -> 2280 | D31: 473.3114035
A32: Power (kW) | B32: Engine HS | C32: Power take-off (rpm) | D32: (Nm)
A33: 113 | B33: 1700 | C33: =B33*1.2 -> 2040 | D33: =A33*9550/C33 -> 528.995098
A34: 113 | B34: =B33+100 -> 1800 | C34: 2160 | D34: 499.6064815
A35: 113 | B35: 1900 | C35: =B35*1.2 -> 2280 | D35: 473.3114035

Sheet ED120P
A1: ED120P
A2: Power (kW) | B2: Engine HS | C2: Power take-off (rpm) | D2: (Nm)
A3: 75 | B3: 1000 | C3: =B3*1.19 -> 1190 | D3: =A3*9550/C3 -> 601.8907563
A4: 75 | B4: =B3+100 -> 1100 | C4: 1309 | D4: 547.1734148
A5: 75 | B5: 1200 | C5: 1428 | D5: 501.5756303
A6: 75 | B6: 1300 | C6: 1547 | D6: 462.9928895
A7: 75 | B7: 1400 | C7: 1666 | D7: 429.9219688
A8: 75 | B8: 1500 | C8: 1785 | D8: 401.2605042
A9: 75 | B9: 1600 | C9: 1904 | D9: 376.1817227
A10: 75 | B10: 1700 | C10: 2023 | D10: 354.0533861
A11: 75 | B11: 1800 | C11: 2142 | D11: 334.3837535
A12: 75 | B12: 1900 | C12: 2261 | D12: 316.7846086
A13: Power (kW) | B13: Engine LS | C13: Power take-off (rpm) | D13: (Nm)
A14: 75 | B14: 1000 | C14: =B14*1.19 -> 1190 | D14: =A14*9550/C14 -> 601.8907563
A15: 75 | B15: =B14+100 -> 1100 | C15: 1309 | D15: 547.1734148
A16: 75 | B16: 1200 | C16: 1428 | D16: 501.5756303
A17: 75 | B17: 1300 | C17: 1547 | D17: 462.9928895
A18: 75 | B18: 1400 | C18: 1666 | D18: 429.9219688
A19: 75 | B19: 1500 | C19: 1785 | D19: 401.2605042
A20: 75 | B20: 1600 | C20: 1904 | D20: 376.1817227
A21: 75 | B21: 1700 | C21: 2023 | D21: 354.0533861
A22: 75 | B22: 1800 | C22: 2142 | D22: 334.3837535
A23: 75 | B23: 1900 | C23: 2261 | D23: 316.7846086
A24: Power (kW) | B24: Engine LS | C24: Power take-off (rpm) | D24: (Nm)
A25: 142 | B25: 1800 | C25: =B25*1.19 -> 2142 | D25: =A25*9550/C25 -> 633.0999066
A26: 142 | B26: =B25+100 -> 1900 | C26: 2261 | D26: 599.7788589
A27: Power (kW) | B27: Engine HS | C27: Power take-off (rpm) | D27: (Nm)
A28: 142 | B28: 1800 | C28: =B28*1.19 -> 2142 | D28: =A28*9550/C28 -> 633.0999066
A29: 142 | B29: =B28+100 -> 1900 | C29: 2261 | D29: 599.7788589

Sheet ED160P
A1: ED160P
A2: Power (kW) | B2: Engine LS | C2: Power take-off (rpm) | D2: (Nm)
A3: 85 | B3: 800 | C3: =B3*1.19 -> 952 | D3: =A3*9550/C3 -> 852.6785714
A4: 85 | B4: 900 | C4: 1071 | D4: 757.9365079
A5: 85 | B5: =B4+100 -> 1000 | C5: 1190 | D5: 682.1428571
A6: 85 | B6: 1100 | C6: 1309 | D6: 620.1298701
A7: 85 | B7: 1200 | C7: 1428 | D7: 568.452381
A8: 85 | B8: 1300 | C8: 1547 | D8: 524.7252747
A9: 85 | B9: 1400 | C9: 1666 | D9: 487.244898
A10: 85 | B10: 1500 | C10: 1785 | D10: 454.7619048
A11: 85 | B11: 1600 | C11: 1904 | D11: 426.3392857
A12: 85 | B12: 1700 | C12: 2023 | D12: 401.2605042
A13: 85 | B13: 1800 | C13: 2142 | D13: 378.968254
A14: 85 | B14: 1900 | C14: 2261 | D14: 359.0225564
A15: Power (kW) | B15: Engine HS | C15: Power take-off (rpm) | D15: (Nm)
A16: 85 | B16: 800 | C16: =B16*1.19 -> 952 | D16: =A16*9550/C16 -> 852.6785714
A17: 85 | B17: 900 | C17: 1071 | D17: 757.9365079
A18: 85 | B18: =B17+100 -> 1000 | C18: 1190 | D18: 682.1428571
A19: 85 | B19: 1100 | C19: 1309 | D19: 620.1298701
A20: 85 | B20: 1200 | C20: 1428 | D20: 568.452381
A21: 85 | B21: 1300 | C21: 1547 | D21: 524.7252747
A22: 85 | B22: 1400 | C22: 1666 | D22: 487.244898
A23: 85 | B23: 1500 | C23: 1785 | D23: 454.7619048
A24: 85 | B24: 1600 | C24: 1904 | D24: 426.3392857
A25: 85 | B25: 1700 | C25: 2023 | D25: 401.2605042
A26: 85 | B26: 1800 | C26: 2142 | D26: 378.968254
A27: 85 | B27: 1900 | C27: 2261 | D27: 359.0225564
A28: Power (kW) | B28: Engine LS | C28: Power take-off (rpm) | D28: (Nm)
A29: 189 | B29: 1800 | C29: =B29*1.19 -> 2142 | D29: =A29*9550/C29 -> 842.6470588
A30: 189 | B30: =B29+100 -> 1900 | C30: 2261 | D30: 798.2972136
A31: Power (kW) | B31: Engine HS | C31: Power take-off (rpm) | D31: (Nm)
A32: 189 | B32: 1800 | C32: 2142 | D32: =A32*9550/C32 -> 842.6470588
A33: 189 | B33: =B32+100 -> 1900 | C33: 2261 | D33: 798.2972136

Sheet ED10R WBP1
A1: ED10R WBP1
A2: Power (kW) | B2: Engine LS | C2: Power take-off (rpm) | D2: (Nm)
A3: 238 | B3: 1800 | C3: =B3*1.2 -> 2160 | D3: =A3*9550/C3 -> 1052.268519
A4: 238 | B4: =B3+100 -> 1900 | C4: 2280 | D4: 996.8859649
A5: Power (kW) | B5: Engine HS | C5: Power take-off (rpm) | D5: (Nm)
A6: 238 | B6: 1800 | C6: =B6*1.2 -> 2160 | D6: =A6*9550/C6 -> 1052.268519
A7: 238 | B7: =B6+100 -> 1900 | C7: 2280 | D7: 996.8859649

Sheet ED10R WBF4
A1: ED10R WBF4
A2: Power (kW) | B2: Engine LS | C2: Power take-off (rpm) | D2: (Nm)
A3: 238 | B3: 1800 | C3: =B3*1.2 -> 2160 | D3: =A3*9550/C3 -> 1052.268519
A4: 238 | B4: =B3+100 -> 1900 | C4: 2280 | D4: 996.8859649
A5: Power (kW) | B5: Engine HS | C5: Power take-off (rpm) | D5: (Nm)
A6: 238 | B6: 1800 | C6: =B6*1.2 -> 2160 | D6: =A6*9550/C6 -> 1052.268519
A7: 238 | B7: =B6+100 -> 1900 | C7: 2280 | D7: 996.8859649

Sheet ED7R WBF3
A1: ED7R WBF3
A2: Power (kW) | B2: Engine LS | C2: Power take-off (rpm) | D2: (Nm)
A3: 167 | B3: 1800 | C3: =B3*1.2 -> 2160 | D3: =A3*9550/C3 -> 738.3564815
A4: 167 | B4: =B3+100 -> 1900 | C4: =B4*1.2 -> 2280 | D4: 699.495614
A5: Power (kW) | B5: Engine HS | C5: Power take-off (rpm) | D5: (Nm)
A6: 167 | B6: 1800 | C6: =B6*1.2 -> 2160 | D6: =A6*9550/C6 -> 738.3564815
A7: 167 | B7: =B6+100 -> 1900 | C7: 2280 | D7: 699.495614

Sheet EK730P
A1: EK730P
A2: Power (kW) | B2: Engine LS | C2: Power take-off (rpm) | D2: (Nm)
A3: 120 | B3: 800 | C3: =B3*1 -> 800 | D3: =A3*9550/C3 -> 1432.5
A4: 120 | B4: =B3+100 -> 900 | C4: 900 | D4: 1273.333333
A5: 120 | B5: 1000 | C5: 1000 | D5: 1146
A6: 120 | B6: 1100 | C6: 1100 | D6: 1041.818182
A7: 120 | B7: 1200 | C7: 1200 | D7: 955
A8: 120 | B8: 1300 | C8: 1300 | D8: 881.5384615
A9: 120 | B9: 1400 | C9: 1400 | D9: 818.5714286
A10: 120 | B10: 1500 | C10: 1500 | D10: 764
A11: 120 | B11: 1600 | C11: 1600 | D11: 716.25
A12: 120 | B12: 1700 | C12: 1700 | D12: 674.1176471
A13: 120 | B13: 1800 | C13: 1800 | D13: 636.6666667
A14: 120 | B14: 1900 | C14: =B14*1 -> 1900 | D14: 603.1578947
A15: Power (kW) | B15: Engine HS | C15: Power take-off (rpm) | D15: (Nm)
A16: 120 | B16: 800 | C16: =B16*1 -> 800 | D16: =A16*9550/C16 -> 1432.5
A17: 120 | B17: =B16+100 -> 900 | C17: 900 | D17: 1273.333333
A18: 120 | B18: 1000 | C18: 1000 | D18: 1146
A19: 120 | B19: 1100 | C19: 1100 | D19: 1041.818182
A20: 120 | B20: 1200 | C20: 1200 | D20: 955
A21: 120 | B21: 1300 | C21: 1300 | D21: 881.5384615
A22: 120 | B22: 1400 | C22: 1400 | D22: 818.5714286
A23: 120 | B23: 1500 | C23: 1500 | D23: 764
A24: 120 | B24: 1600 | C24: 1600 | D24: 716.25
A25: 120 | B25: 1700 | C25: 1700 | D25: 674.1176471
A26: 120 | B26: 1800 | C26: 1800 | D26: 636.6666667
A27: 120 | B27: 1900 | C27: =B27*1 -> 1900 | D27: 603.1578947
A28: Power (kW) | B28: Engine LS | C28: Power take-off (rpm) | D28: (Nm)
A29: 170 | B29: 800 | C29: =B29*1 -> 800 | D29: =A29*9550/C29 -> 2029.375
A30: 170 | B30: =B29+100 -> 900 | C30: 900 | D30: 1803.888889
A31: 170 | B31: 1000 | C31: 1000 | D31: 1623.5
A32: 170 | B32: 1100 | C32: 1100 | D32: 1475.909091
A33: 170 | B33: 1200 | C33: 1200 | D33: 1352.916667
A34: 170 | B34: 1300 | C34: 1300 | D34: 1248.846154
A35: 170 | B35: 1400 | C35: 1400 | D35: 1159.642857
A36: 170 | B36: 1500 | C36: 1500 | D36: 1082.333333
A37: 170 | B37: 1600 | C37: 1600 | D37: 1014.6875
A38: 170 | B38: 1700 | C38: 1700 | D38: 955
A39: 170 | B39: 1800 | C39: 1800 | D39: 901.9444444
A40: 170 | B40: 1900 | C40: 1900 | D40: 854.4736842
A41: Power (kW) | B41: Engine HS | C41: Power take-off (rpm) | D41: (Nm)
A42: 170 | B42: 800 | C42: =B42*1 -> 800 | D42: =A42*9550/C42 -> 2029.375
A43: 170 | B43: =B42+100 -> 900 | C43: 900 | D43: 1803.888889
A44: 170 | B44: 1000 | C44: 1000 | D44: 1623.5
A45: 170 | B45: 1100 | C45: 1100 | D45: 1475.909091
A46: 170 | B46: 1200 | C46: 1200 | D46: 1352.916667
A47: 170 | B47: 1300 | C47: 1300 | D47: 1248.846154
A48: 170 | B48: 1400 | C48: 1400 | D48: 1159.642857
A49: 170 | B49: 1500 | C49: 1500 | D49: 1082.333333
A50: 170 | B50: 1600 | C50: 1600 | D50: 1014.6875
A51: 170 | B51: 1700 | C51: 1700 | D51: 955
A52: 170 | B52: 1800 | C52: 1800 | D52: 901.9444444
A53: 170 | B53: 1900 | C53: 1900 | D53: 854.4736842
A54: Power (kW) | B54: Engine LS | C54: Power take-off (rpm) | D54: (Nm)
A55: 200 | B55: 900 | C55: =B55*1 -> 900 | D55: =A55*9550/C55 -> 2122.222222
A56: 200 | B56: =B55+100 -> 1000 | C56: 1000 | D56: 1910
A57: 200 | B57: 1100 | C57: 1100 | D57: 1736.363636
A58: 200 | B58: 1200 | C58: 1200 | D58: 1591.666667
A59: 200 | B59: 1300 | C59: 1300 | D59: 1469.230769
A60: 200 | B60: 1400 | C60: 1400 | D60: 1364.285714
A61: 200 | B61: 1500 | C61: 1500 | D61: 1273.333333
A62: 200 | B62: 1600 | C62: 1600 | D62: 1193.75
A63: 200 | B63: 1700 | C63: 1700 | D63: 1123.529412
A64: 200 | B64: 1800 | C64: 1800 | D64: 1061.111111
A65: 200 | B65: 1900 | C65: 1900 | D65: 1005.263158
A66: Power (kW) | B66: Engine HS | C66: Power take-off (rpm) | D66: (Nm)
A67: 200 | B67: 900 | C67: =B67*1 -> 900 | D67: =A67*9550/C67 -> 2122.222222
A68: 200 | B68: =B67+100 -> 1000 | C68: 1000 | D68: 1910
A69: 200 | B69: 1100 | C69: 1100 | D69: 1736.363636
A70: 200 | B70: 1200 | C70: 1200 | D70: 1591.666667
A71: 200 | B71: 1300 | C71: 1300 | D71: 1469.230769
A72: 200 | B72: 1400 | C72: 1400 | D72: 1364.285714
A73: 200 | B73: 1500 | C73: 1500 | D73: 1273.333333
A74: 200 | B74: 1600 | C74: 1600 | D74: 1193.75
A75: 200 | B75: 1700 | C75: 1700 | D75: 1123.529412
A76: 200 | B76: 1800 | C76: 1800 | D76: 1061.111111
A77: 200 | B77: 1900 | C77: 1900 | D77: 1005.263158
A78: Power (kW) | B78: Engine LS | C78: Power take-off (rpm) | D78: (Nm)
A79: 250 | B79: 1100 | C79: =B79*1 -> 1100 | D79: =A79*9550/C79 -> 2170.454545
A80: 250 | B80: =B79+100 -> 1200 | C80: 1200 | D80: 1989.583333
A81: 250 | B81: 1300 | C81: 1300 | D81: 1836.538462
A82: 250 | B82: 1400 | C82: 1400 | D82: 1705.357143
A83: 250 | B83: 1500 | C83: 1500 | D83: 1591.666667
A84: 250 | B84: 1600 | C84: 1600 | D84: 1492.1875
A85: 250 | B85: 1700 | C85: 1700 | D85: 1404.411765
A86: 250 | B86: 1800 | C86: 1800 | D86: 1326.388889
A87: 250 | B87: 1900 | C87: 1900 | D87: 1256.578947
A88: Power (kW) | B88: Engine HS | C88: Power take-off (rpm) | D88: (Nm)
A89: 250 | B89: 1100 | C89: 1100 | D89: =A89*9550/C89 -> 2170.454545
A90: 250 | B90: =B89+100 -> 1200 | C90: 1200 | D90: 1989.583333
A91: 250 | B91: 1300 | C91: 1300 | D91: 1836.538462
A92: 250 | B92: 1400 | C92: 1400 | D92: 1705.357143
A93: 250 | B93: 1500 | C93: 1500 | D93: 1591.666667
A94: 250 | B94: 1600 | C94: 1600 | D94: 1492.1875
A95: 250 | B95: 1700 | C95: 1700 | D95: 1404.411765
A96: 250 | B96: 1800 | C96: 1800 | D96: 1326.388889
A97: 250 | B97: 1900 | C97: 1900 | D97: 1256.578947

Sheet EK740F
A1: EK740F
A2: Power (kW) | B2: Engine LS | C2: Power take-off (rpm) | D2: (Nm)
A3: 120 | B3: 800 | C3: =B3*1 -> 800 | D3: =A3*9550/C3 -> 1432.5
A4: 120 | B4: =B3+100 -> 900 | C4: 900 | D4: 1273.333333
A5: 120 | B5: 1000 | C5: 1000 | D5: 1146
A6: 120 | B6: 1100 | C6: 1100 | D6: 1041.818182
A7: 120 | B7: 1200 | C7: 1200 | D7: 955
A8: 120 | B8: 1300 | C8: 1300 | D8: 881.5384615
A9: 120 | B9: 1400 | C9: 1400 | D9: 818.5714286
A10: 120 | B10: 1500 | C10: 1500 | D10: 764
A11: 120 | B11: 1600 | C11: 1600 | D11: 716.25
A12: 120 | B12: 1700 | C12: 1700 | D12: 674.1176471
A13: 120 | B13: 1800 | C13: 1800 | D13: 636.6666667
A14: 120 | B14: 1900 | C14: =B14*1 -> 1900 | D14: 603.1578947
A15: Power (kW) | B15: Engine HS | C15: Power take-off (rpm) | D15: (Nm)
A16: 120 | B16: 800 | C16: =B16*1 -> 800 | D16: =A16*9550/C16 -> 1432.5
A17: 120 | B17: =B16+100 -> 900 | C17: 900 | D17: 1273.333333
A18: 120 | B18: 1000 | C18: 1000 | D18: 1146
A19: 120 | B19: 1100 | C19: 1100 | D19: 1041.818182
A20: 120 | B20: 1200 | C20: 1200 | D20: 955
A21: 120 | B21: 1300 | C21: 1300 | D21: 881.5384615
A22: 120 | B22: 1400 | C22: 1400 | D22: 818.5714286
A23: 120 | B23: 1500 | C23: 1500 | D23: 764
A24: 120 | B24: 1600 | C24: 1600 | D24: 716.25
A25: 120 | B25: 1700 | C25: 1700 | D25: 674.1176471
A26: 120 | B26: 1800 | C26: 1800 | D26: 636.6666667
A27: 120 | B27: 1900 | C27: =B27*1 -> 1900 | D27: 603.1578947
A28: Power (kW) | B28: Engine LS | C28: Power take-off (rpm) | D28: (Nm)
A29: 170 | B29: 800 | C29: =B29*1 -> 800 | D29: =A29*9550/C29 -> 2029.375
A30: 170 | B30: =B29+100 -> 900 | C30: 900 | D30: 1803.888889
A31: 170 | B31: 1000 | C31: 1000 | D31: 1623.5
A32: 170 | B32: 1100 | C32: 1100 | D32: 1475.909091
A33: 170 | B33: 1200 | C33: 1200 | D33: 1352.916667
A34: 170 | B34: 1300 | C34: 1300 | D34: 1248.846154
A35: 170 | B35: 1400 | C35: 1400 | D35: 1159.642857
A36: 170 | B36: 1500 | C36: 1500 | D36: 1082.333333
A37: 170 | B37: 1600 | C37: 1600 | D37: 1014.6875
A38: 170 | B38: 1700 | C38: 1700 | D38: 955
A39: 170 | B39: 1800 | C39: 1800 | D39: 901.9444444
A40: 170 | B40: 1900 | C40: 1900 | D40: 854.4736842
A41: Power (kW) | B41: Engine HS | C41: Power take-off (rpm) | D41: (Nm)
A42: 170 | B42: 800 | C42: =B42*1 -> 800 | D42: =A42*9550/C42 -> 2029.375
A43: 170 | B43: =B42+100 -> 900 | C43: 900 | D43: 1803.888889
A44: 170 | B44: 1000 | C44: 1000 | D44: 1623.5
A45: 170 | B45: 1100 | C45: 1100 | D45: 1475.909091
A46: 170 | B46: 1200 | C46: 1200 | D46: 1352.916667
A47: 170 | B47: 1300 | C47: 1300 | D47: 1248.846154
A48: 170 | B48: 1400 | C48: 1400 | D48: 1159.642857
A49: 170 | B49: 1500 | C49: 1500 | D49: 1082.333333
A50: 170 | B50: 1600 | C50: 1600 | D50: 1014.6875
A51: 170 | B51: 1700 | C51: 1700 | D51: 955
A52: 170 | B52: 1800 | C52: 1800 | D52: 901.9444444
A53: 170 | B53: 1900 | C53: 1900 | D53: 854.4736842
A54: Power (kW) | B54: Engine LS | C54: Power take-off (rpm) | D54: (Nm)
A55: 200 | B55: 900 | C55: =B55*1 -> 900 | D55: =A55*9550/C55 -> 2122.222222
A56: 200 | B56: =B55+100 -> 1000 | C56: 1000 | D56: 1910
A57: 200 | B57: 1100 | C57: 1100 | D57: 1736.363636
A58: 200 | B58: 1200 | C58: 1200 | D58: 1591.666667
A59: 200 | B59: 1300 | C59: 1300 | D59: 1469.230769
A60: 200 | B60: 1400 | C60: 1400 | D60: 1364.285714
A61: 200 | B61: 1500 | C61: 1500 | D61: 1273.333333
A62: 200 | B62: 1600 | C62: 1600 | D62: 1193.75
A63: 200 | B63: 1700 | C63: 1700 | D63: 1123.529412
A64: 200 | B64: 1800 | C64: 1800 | D64: 1061.111111
A65: 200 | B65: 1900 | C65: 1900 | D65: 1005.263158
A66: Power (kW) | B66: Engine HS | C66: Power take-off (rpm) | D66: (Nm)
A67: 200 | B67: 900 | C67: =B67*1 -> 900 | D67: =A67*9550/C67 -> 2122.222222
A68: 200 | B68: =B67+100 -> 1000 | C68: 1000 | D68: 1910
A69: 200 | B69: 1100 | C69: 1100 | D69: 1736.363636
A70: 200 | B70: 1200 | C70: 1200 | D70: 1591.666667
A71: 200 | B71: 1300 | C71: 1300 | D71: 1469.230769
A72: 200 | B72: 1400 | C72: 1400 | D72: 1364.285714
A73: 200 | B73: 1500 | C73: 1500 | D73: 1273.333333
A74: 200 | B74: 1600 | C74: 1600 | D74: 1193.75
A75: 200 | B75: 1700 | C75: 1700 | D75: 1123.529412
A76: 200 | B76: 1800 | C76: 1800 | D76: 1061.111111
A77: 200 | B77: 1900 | C77: 1900 | D77: 1005.263158
A78: Power (kW) | B78: Engine LS | C78: Power take-off (rpm) | D78: (Nm)
A79: 250 | B79: 1100 | C79: =B79*1 -> 1100 | D79: =A79*9550/C79 -> 2170.454545
A80: 250 | B80: =B79+100 -> 1200 | C80: 1200 | D80: 1989.583333
A81: 250 | B81: 1300 | C81: 1300 | D81: 1836.538462
A82: 250 | B82: 1400 | C82: 1400 | D82: 1705.357143
A83: 250 | B83: 1500 | C83: 1500 | D83: 1591.666667
A84: 250 | B84: 1600 | C84: 1600 | D84: 1492.1875
A85: 250 | B85: 1700 | C85: 1700 | D85: 1404.411765
A86: 250 | B86: 1800 | C86: 1800 | D86: 1326.388889
A87: 250 | B87: 1900 | C87: 1900 | D87: 1256.578947
A88: Power (kW) | B88: Engine HS | C88: Power take-off (rpm) | D88: (Nm)
A89: 250 | B89: 1100 | C89: 1100 | D89: =A89*9550/C89 -> 2170.454545
A90: 250 | B90: =B89+100 -> 1200 | C90: 1200 | D90: 1989.583333
A91: 250 | B91: 1300 | C91: 1300 | D91: 1836.538462
A92: 250 | B92: 1400 | C92: 1400 | D92: 1705.357143
A93: 250 | B93: 1500 | C93: 1500 | D93: 1591.666667
A94: 250 | B94: 1600 | C94: 1600 | D94: 1492.1875
A95: 250 | B95: 1700 | C95: 1700 | D95: 1404.411765
A96: 250 | B96: 1800 | C96: 1800 | D96: 1326.388889
A97: 250 | B97: 1900 | C97: 1900 | D97: 1256.578947

Sheet EK750F
A1: EK750F
A2: Power (kW) | B2: Engine LS | C2: Power take-off (rpm) | D2: (Nm)
A3: 120 | B3: 1100 | C3: =B3*1 -> 1100 | D3: =A3*9550/C3 -> 1041.818182
A4: 120 | B4: =B3+100 -> 1200 | C4: 1200 | D4: 955
A5: 120 | B5: 1300 | C5: 1300 | D5: 881.5384615
A6: 120 | B6: 1400 | C6: 1400 | D6: 818.5714286
A7: 120 | B7: 1500 | C7: 1500 | D7: 764
A8: 120 | B8: 1600 | C8: 1600 | D8: 716.25
A9: 120 | B9: 1700 | C9: 1700 | D9: 674.1176471
A10: 120 | B10: 1800 | C10: 1800 | D10: 636.6666667
A11: 120 | B11: 1900 | C11: =B11*1 -> 1900 | D11: 603.1578947
A12: Power (kW) | B12: Engine HS | C12: Power take-off (rpm) | D12: (Nm)
A13: 120 | B13: 1100 | C13: =B13*1 -> 1100 | D13: =A13*9550/C13 -> 1041.818182
A14: 120 | B14: =B13+100 -> 1200 | C14: 1200 | D14: 955
A15: 120 | B15: 1300 | C15: 1300 | D15: 881.5384615
A16: 120 | B16: 1400 | C16: 1400 | D16: 818.5714286
A17: 120 | B17: 1500 | C17: 1500 | D17: 764
A18: 120 | B18: 1600 | C18: 1600 | D18: 716.25
A19: 120 | B19: 1700 | C19: 1700 | D19: 674.1176471
A20: 120 | B20: 1800 | C20: 1800 | D20: 636.6666667
A21: 120 | B21: 1900 | C21: =B21*1 -> 1900 | D21: 603.1578947
A22: Power (kW) | B22: Engine LS | C22: Power take-off (rpm) | D22: (Nm)
A23: 170 | B23: 1600 | C23: =B23*1 -> 1600 | D23: =A23*9550/C23 -> 1014.6875
A24: 170 | B24: =B23+100 -> 1700 | C24: 1700 | D24: 955
A25: 170 | B25: 1800 | C25: 1800 | D25: 901.9444444
A26: 170 | B26: 1900 | C26: 1900 | D26: 854.4736842
A27: Power (kW) | B27: Engine HS | C27: Power take-off (rpm) | D27: (Nm)
A28: 170 | B28: 1600 | C28: =B28*1 -> 1600 | D28: =A28*9550/C28 -> 1014.6875
A29: 170 | B29: =B28+100 -> 1700 | C29: 1700 | D29: 955
A30: 170 | B30: 1800 | C30: 1800 | D30: 901.9444444
A31: 170 | B31: 1900 | C31: 1900 | D31: 854.4736842

Sheet EG730P
A1: EG730P
A2: Power (kW) | B2: Engine LS | C2: Power take-off (rpm) | D2: (Nm)
A3: 120 | B3: 800 | C3: =B3*1 -> 800 | D3: =A3*9550/C3 -> 1432.5
A4: 120 | B4: =B3+100 -> 900 | C4: 900 | D4: 1273.333333
A5: 120 | B5: 1000 | C5: 1000 | D5: 1146
A6: 120 | B6: 1100 | C6: 1100 | D6: 1041.818182
A7: 120 | B7: 1200 | C7: 1200 | D7: 955
A8: 120 | B8: 1300 | C8: 1300 | D8: 881.5384615
A9: 120 | B9: 1400 | C9: 1400 | D9: 818.5714286
A10: 120 | B10: 1500 | C10: 1500 | D10: 764
A11: 120 | B11: 1600 | C11: 1600 | D11: 716.25
A12: 120 | B12: 1700 | C12: 1700 | D12: 674.1176471
A13: 120 | B13: 1800 | C13: 1800 | D13: 636.6666667
A14: 120 | B14: 1900 | C14: =B14*1 -> 1900 | D14: 603.1578947
A15: Power (kW) | B15: Engine HS | C15: Power take-off (rpm) | D15: (Nm)
A16: 120 | B16: 800 | C16: =B16*1 -> 800 | D16: =A16*9550/C16 -> 1432.5
A17: 120 | B17: =B16+100 -> 900 | C17: 900 | D17: 1273.333333
A18: 120 | B18: 1000 | C18: 1000 | D18: 1146
A19: 120 | B19: 1100 | C19: 1100 | D19: 1041.818182
A20: 120 | B20: 1200 | C20: 1200 | D20: 955
A21: 120 | B21: 1300 | C21: 1300 | D21: 881.5384615
A22: 120 | B22: 1400 | C22: 1400 | D22: 818.5714286
A23: 120 | B23: 1500 | C23: 1500 | D23: 764
A24: 120 | B24: 1600 | C24: 1600 | D24: 716.25
A25: 120 | B25: 1700 | C25: 1700 | D25: 674.1176471
A26: 120 | B26: 1800 | C26: 1800 | D26: 636.6666667
A27: 120 | B27: 1900 | C27: =B27*1 -> 1900 | D27: 603.1578947
A28: Power (kW) | B28: Engine LS | C28: Power take-off (rpm) | D28: (Nm)
A29: 170 | B29: 800 | C29: =B29*1 -> 800 | D29: =A29*9550/C29 -> 2029.375
A30: 170 | B30: =B29+100 -> 900 | C30: 900 | D30: 1803.888889
A31: 170 | B31: 1000 | C31: 1000 | D31: 1623.5
A32: 170 | B32: 1100 | C32: 1100 | D32: 1475.909091
A33: 170 | B33: 1200 | C33: 1200 | D33: 1352.916667
A34: 170 | B34: 1300 | C34: 1300 | D34: 1248.846154
A35: 170 | B35: 1400 | C35: 1400 | D35: 1159.642857
A36: 170 | B36: 1500 | C36: 1500 | D36: 1082.333333
A37: 170 | B37: 1600 | C37: 1600 | D37: 1014.6875
A38: 170 | B38: 1700 | C38: 1700 | D38: 955
A39: 170 | B39: 1800 | C39: 1800 | D39: 901.9444444
A40: 170 | B40: 1900 | C40: 1900 | D40: 854.4736842
A41: Power (kW) | B41: Engine HS | C41: Power take-off (rpm) | D41: (Nm)
A42: 170 | B42: 800 | C42: =B42*1 -> 800 | D42: =A42*9550/C42 -> 2029.375
A43: 170 | B43: =B42+100 -> 900 | C43: 900 | D43: 1803.888889
A44: 170 | B44: 1000 | C44: 1000 | D44: 1623.5
A45: 170 | B45: 1100 | C45: 1100 | D45: 1475.909091
A46: 170 | B46: 1200 | C46: 1200 | D46: 1352.916667
A47: 170 | B47: 1300 | C47: 1300 | D47: 1248.846154
A48: 170 | B48: 1400 | C48: 1400 | D48: 1159.642857
A49: 170 | B49: 1500 | C49: 1500 | D49: 1082.333333
A50: 170 | B50: 1600 | C50: 1600 | D50: 1014.6875
A51: 170 | B51: 1700 | C51: 1700 | D51: 955
A52: 170 | B52: 1800 | C52: 1800 | D52: 901.9444444
A53: 170 | B53: 1900 | C53: 1900 | D53: 854.4736842
A54: Power (kW) | B54: Engine LS | C54: Power take-off (rpm) | D54: (Nm)
A55: 200 | B55: 900 | C55: =B55*1 -> 900 | D55: =A55*9550/C55 -> 2122.222222
A56: 200 | B56: =B55+100 -> 1000 | C56: 1000 | D56: 1910
A57: 200 | B57: 1100 | C57: 1100 | D57: 1736.363636
A58: 200 | B58: 1200 | C58: 1200 | D58: 1591.666667
A59: 200 | B59: 1300 | C59: 1300 | D59: 1469.230769
A60: 200 | B60: 1400 | C60: 1400 | D60: 1364.285714
A61: 200 | B61: 1500 | C61: 1500 | D61: 1273.333333
A62: 200 | B62: 1600 | C62: 1600 | D62: 1193.75
A63: 200 | B63: 1700 | C63: 1700 | D63: 1123.529412
A64: 200 | B64: 1800 | C64: 1800 | D64: 1061.111111
A65: 200 | B65: 1900 | C65: 1900 | D65: 1005.263158
A66: Power (kW) | B66: Engine HS | C66: Power take-off (rpm) | D66: (Nm)
A67: 200 | B67: 900 | C67: =B67*1 -> 900 | D67: =A67*9550/C67 -> 2122.222222
A68: 200 | B68: =B67+100 -> 1000 | C68: 1000 | D68: 1910
A69: 200 | B69: 1100 | C69: 1100 | D69: 1736.363636
A70: 200 | B70: 1200 | C70: 1200 | D70: 1591.666667
A71: 200 | B71: 1300 | C71: 1300 | D71: 1469.230769
A72: 200 | B72: 1400 | C72: 1400 | D72: 1364.285714
A73: 200 | B73: 1500 | C73: 1500 | D73: 1273.333333
A74: 200 | B74: 1600 | C74: 1600 | D74: 1193.75
A75: 200 | B75: 1700 | C75: 1700 | D75: 1123.529412
A76: 200 | B76: 1800 | C76: 1800 | D76: 1061.111111
A77: 200 | B77: 1900 | C77: 1900 | D77: 1005.263158
A78: Power (kW) | B78: Engine LS | C78: Power take-off (rpm) | D78: (Nm)
A79: 250 | B79: 1100 | C79: =B79*1 -> 1100 | D79: =A79*9550/C79 -> 2170.454545
A80: 250 | B80: =B79+100 -> 1200 | C80: 1200 | D80: 1989.583333
A81: 250 | B81: 1300 | C81: 1300 | D81: 1836.538462
A82: 250 | B82: 1400 | C82: 1400 | D82: 1705.357143
A83: 250 | B83: 1500 | C83: 1500 | D83: 1591.666667
A84: 250 | B84: 1600 | C84: 1600 | D84: 1492.1875
A85: 250 | B85: 1700 | C85: 1700 | D85: 1404.411765
A86: 250 | B86: 1800 | C86: 1800 | D86: 1326.388889
A87: 250 | B87: 1900 | C87: 1900 | D87: 1256.578947
A88: Power (kW) | B88: Engine HS | C88: Power take-off (rpm) | D88: (Nm)
A89: 250 | B89: 1100 | C89: 1100 | D89: =A89*9550/C89 -> 2170.454545
A90: 250 | B90: =B89+100 -> 1200 | C90: 1200 | D90: 1989.583333
A91: 250 | B91: 1300 | C91: 1300 | D91: 1836.538462
A92: 250 | B92: 1400 | C92: 1400 | D92: 1705.357143
A93: 250 | B93: 1500 | C93: 1500 | D93: 1591.666667
A94: 250 | B94: 1600 | C94: 1600 | D94: 1492.1875
A95: 250 | B95: 1700 | C95: 1700 | D95: 1404.411765
A96: 250 | B96: 1800 | C96: 1800 | D96: 1326.388889
A97: 250 | B97: 1900 | C97: 1900 | D97: 1256.578947

Sheet EG740F
A1: EG740F
A2: Power (kW) | B2: Engine LS | C2: Power take-off (rpm) | D2: (Nm)
A3: 120 | B3: 800 | C3: =B3*1 -> 800 | D3: =A3*9550/C3 -> 1432.5
A4: 120 | B4: =B3+100 -> 900 | C4: 900 | D4: 1273.333333
A5: 120 | B5: 1000 | C5: 1000 | D5: 1146
A6: 120 | B6: 1100 | C6: 1100 | D6: 1041.818182
A7: 120 | B7: 1200 | C7: 1200 | D7: 955
A8: 120 | B8: 1300 | C8: 1300 | D8: =A8*9550/C8 -> 881.5384615
A9: 120 | B9: 1400 | C9: 1400 | D9: 818.5714286
A10: 120 | B10: 1500 | C10: 1500 | D10: 764
A11: 120 | B11: 1600 | C11: 1600 | D11: 716.25
A12: 120 | B12: 1700 | C12: 1700 | D12: 674.1176471
A13: 120 | B13: 1800 | C13: 1800 | D13: 636.6666667
A14: 120 | B14: 1900 | C14: =B14*1 -> 1900 | D14: 603.1578947
A15: Power (kW) | B15: Engine HS | C15: Power take-off (rpm) | D15: (Nm)
A16: 120 | B16: 800 | C16: =B16*1 -> 800 | D16: =A16*9550/C16 -> 1432.5
A17: 120 | B17: =B16+100 -> 900 | C17: 900 | D17: 1273.333333
A18: 120 | B18: 1000 | C18: 1000 | D18: 1146
A19: 120 | B19: 1100 | C19: 1100 | D19: 1041.818182
A20: 120 | B20: 1200 | C20: 1200 | D20: 955
A21: 120 | B21: 1300 | C21: 1300 | D21: 881.5384615
A22: 120 | B22: 1400 | C22: 1400 | D22: 818.5714286
A23: 120 | B23: 1500 | C23: 1500 | D23: 764
A24: 120 | B24: 1600 | C24: 1600 | D24: 716.25
A25: 120 | B25: 1700 | C25: 1700 | D25: 674.1176471
A26: 120 | B26: 1800 | C26: 1800 | D26: 636.6666667
A27: 120 | B27: 1900 | C27: =B27*1 -> 1900 | D27: 603.1578947
A28: Power (kW) | B28: Engine LS | C28: Power take-off (rpm) | D28: (Nm)
A29: 170 | B29: 800 | C29: =B29*1 -> 800 | D29: =A29*9550/C29 -> 2029.375
A30: 170 | B30: =B29+100 -> 900 | C30: 900 | D30: 1803.888889
A31: 170 | B31: 1000 | C31: 1000 | D31: 1623.5
A32: 170 | B32: 1100 | C32: 1100 | D32: 1475.909091
A33: 170 | B33: 1200 | C33: 1200 | D33: 1352.916667
A34: 170 | B34: 1300 | C34: 1300 | D34: 1248.846154
A35: 170 | B35: 1400 | C35: 1400 | D35: 1159.642857
A36: 170 | B36: 1500 | C36: 1500 | D36: 1082.333333
A37: 170 | B37: 1600 | C37: 1600 | D37: 1014.6875
A38: 170 | B38: 1700 | C38: 1700 | D38: 955
A39: 170 | B39: 1800 | C39: 1800 | D39: 901.9444444
A40: 170 | B40: 1900 | C40: 1900 | D40: 854.4736842
A41: Power (kW) | B41: Engine HS | C41: Power take-off (rpm) | D41: (Nm)
A42: 170 | B42: 800 | C42: =B42*1 -> 800 | D42: =A42*9550/C42 -> 2029.375
A43: 170 | B43: =B42+100 -> 900 | C43: 900 | D43: 1803.888889
A44: 170 | B44: 1000 | C44: 1000 | D44: 1623.5
A45: 170 | B45: 1100 | C45: 1100 | D45: 1475.909091
A46: 170 | B46: 1200 | C46: 1200 | D46: 1352.916667
A47: 170 | B47: 1300 | C47: 1300 | D47: 1248.846154
A48: 170 | B48: 1400 | C48: 1400 | D48: 1159.642857
A49: 170 | B49: 1500 | C49: 1500 | D49: 1082.333333
A50: 170 | B50: 1600 | C50: 1600 | D50: 1014.6875
A51: 170 | B51: 1700 | C51: 1700 | D51: 955
A52: 170 | B52: 1800 | C52: 1800 | D52: 901.9444444
A53: 170 | B53: 1900 | C53: 1900 | D53: 854.4736842
A54: Power (kW) | B54: Engine LS | C54: Power take-off (rpm) | D54: (Nm)
A55: 200 | B55: 900 | C55: =B55*1 -> 900 | D55: =A55*9550/C55 -> 2122.222222
A56: 200 | B56: =B55+100 -> 1000 | C56: 1000 | D56: 1910
A57: 200 | B57: 1100 | C57: 1100 | D57: 1736.363636
A58: 200 | B58: 1200 | C58: 1200 | D58: 1591.666667
A59: 200 | B59: 1300 | C59: 1300 | D59: 1469.230769
A60: 200 | B60: 1400 | C60: 1400 | D60: 1364.285714
A61: 200 | B61: 1500 | C61: 1500 | D61: 1273.333333
A62: 200 | B62: 1600 | C62: 1600 | D62: 1193.75
A63: 200 | B63: 1700 | C63: 1700 | D63: 1123.529412
A64: 200 | B64: 1800 | C64: 1800 | D64: 1061.111111
A65: 200 | B65: 1900 | C65: 1900 | D65: 1005.263158
A66: Power (kW) | B66: Engine HS | C66: Power take-off (rpm) | D66: (Nm)
A67: 200 | B67: 900 | C67: =B67*1 -> 900 | D67: =A67*9550/C67 -> 2122.222222
A68: 200 | B68: =B67+100 -> 1000 | C68: 1000 | D68: 1910
A69: 200 | B69: 1100 | C69: 1100 | D69: 1736.363636
A70: 200 | B70: 1200 | C70: 1200 | D70: 1591.666667
A71: 200 | B71: 1300 | C71: 1300 | D71: 1469.230769
A72: 200 | B72: 1400 | C72: 1400 | D72: 1364.285714
A73: 200 | B73: 1500 | C73: 1500 | D73: 1273.333333
A74: 200 | B74: 1600 | C74: 1600 | D74: 1193.75
A75: 200 | B75: 1700 | C75: 1700 | D75: 1123.529412
A76: 200 | B76: 1800 | C76: 1800 | D76: 1061.111111
A77: 200 | B77: 1900 | C77: 1900 | D77: 1005.263158
A78: Power (kW) | B78: Engine LS | C78: Power take-off (rpm) | D78: (Nm)
A79: 250 | B79: 1100 | C79: =B79*1 -> 1100 | D79: =A79*9550/C79 -> 2170.454545
A80: 250 | B80: =B79+100 -> 1200 | C80: 1200 | D80: 1989.583333
A81: 250 | B81: 1300 | C81: 1300 | D81: 1836.538462
A82: 250 | B82: 1400 | C82: 1400 | D82: 1705.357143
A83: 250 | B83: 1500 | C83: 1500 | D83: 1591.666667
A84: 250 | B84: 1600 | C84: 1600 | D84: 1492.1875
A85: 250 | B85: 1700 | C85: 1700 | D85: 1404.411765
A86: 250 | B86: 1800 | C86: 1800 | D86: 1326.388889
A87: 250 | B87: 1900 | C87: 1900 | D87: 1256.578947
A88: Power (kW) | B88: Engine HS | C88: Power take-off (rpm) | D88: (Nm)
A89: 250 | B89: 1100 | C89: 1100 | D89: =A89*9550/C89 -> 2170.454545
A90: 250 | B90: =B89+100 -> 1200 | C90: 1200 | D90: 1989.583333
A91: 250 | B91: 1300 | C91: 1300 | D91: 1836.538462
A92: 250 | B92: 1400 | C92: 1400 | D92: 1705.357143
A93: 250 | B93: 1500 | C93: 1500 | D93: 1591.666667
A94: 250 | B94: 1600 | C94: 1600 | D94: 1492.1875
A95: 250 | B95: 1700 | C95: 1700 | D95: 1404.411765
A96: 250 | B96: 1800 | C96: 1800 | D96: 1326.388889
A97: 250 | B97: 1900 | C97: 1900 | D97: 1256.578947

Sheet EG500P
A1: EG500P
A2: Power (kW) | B2: Engine LS | C2: Power take-off (rpm) | D2: (Nm)
A3: 60 | B3: 1000 | C3: =B3*1.33 -> 1330 | D3: =A3*9550/C3 -> 430.8270677
A4: 60 | B4: =B3+100 -> 1100 | C4: 1463 | D4: 391.6609706
A5: 60 | B5: 1200 | C5: 1596 | D5: 359.0225564
A6: 60 | B6: 1300 | C6: 1729 | D6: 331.4054367
A7: 60 | B7: 1400 | C7: 1862 | D7: 307.7336198
A8: 60 | B8: 1500 | C8: 1995 | D8: 287.2180451
A9: 60 | B9: 1600 | C9: 2128 | D9: 269.2669173
A10: 60 | B10: 1700 | C10: 2261 | D10: 253.4276869
A11: 60 | B11: 1800 | C11: =B11*1.33 -> 2394 | D11: 239.3483709
A12: 60 | B12: 1900 | C12: 2527 | D12: 226.7510882
A13: Power (kW) | B13: Engine HS | C13: Power take-off (rpm) | D13: (Nm)
A14: 60 | B14: 800 | C14: =B14*1.65 -> 1320 | D14: =A14*9550/C14 -> 434.0909091
A15: 60 | B15: =B14+100 -> 900 | C15: 1485 | D15: 385.8585859
A16: 60 | B16: 1000 | C16: 1650 | D16: 347.2727273
A17: 60 | B17: 1100 | C17: 1815 | D17: 315.7024793
A18: 60 | B18: 1200 | C18: 1980 | D18: 289.3939394
A19: 60 | B19: 1300 | C19: 2145 | D19: 267.1328671
A20: 60 | B20: 1400 | C20: 2310 | D20: 248.0519481
A21: 60 | B21: 1500 | C21: 2475 | D21: 231.5151515
A22: 60 | B22: 1600 | C22: 2640 | D22: 217.0454545
A23: 60 | B23: 1700 | C23: 2805 | D23: 204.2780749
A24: 60 | B24: 1800 | C24: 2970 | D24: 192.9292929
A25: 60 | B25: 1900 | C25: 3135 | D25: 182.7751196
A26: Power (kW) | B26: Engine LS | C26: Power take-off (rpm) | D26: (Nm)
A27: 90 | B27: 1600 | C27: =B27*1.33 -> 2128 | D27: =A27*9550/C27 -> 403.9003759
A28: 90 | B28: =B27+100 -> 1700 | C28: 2261 | D28: 380.1415303
A29: 90 | B29: 1800 | C29: 2394 | D29: 359.0225564
A30: 90 | B30: 1900 | C30: 2527 | D30: 340.1266324
A31: Power (kW) | B31: Engine HS | C31: Power take-off (rpm) | D31: (Nm)
A32: 90 | B32: 1300 | C32: =B32*1.65 -> 2145 | D32: =A32*9550/C32 -> 400.6993007
A33: 90 | B33: =B32+100 -> 1400 | C33: =B33*1.65 -> 2310 | D33: 372.0779221
A34: 90 | B34: 1500 | C34: 2475 | D34: 347.2727273
A35: 90 | B35: 1600 | C35: 2640 | D35: 325.5681818
A36: 90 | B36: 1700 | C36: 2805 | D36: 306.4171123
A37: 90 | B37: 1800 | C37: 2970 | D37: 289.3939394
A38: 90 | B38: 1900 | C38: 3135 | D38: 274.1626794

Sheet EG500F
A1: EG500F
A2: Power (kW) | B2: Engine LS | C2: Power take-off (rpm) | D2: (Nm)
A3: 60 | B3: 1000 | C3: =B3*1.33 -> 1330 | D3: =A3*9550/C3 -> 430.8270677
A4: 60 | B4: =B3+100 -> 1100 | C4: 1463 | D4: 391.6609706
A5: 60 | B5: 1200 | C5: 1596 | D5: 359.0225564
A6: 60 | B6: 1300 | C6: 1729 | D6: 331.4054367
A7: 60 | B7: 1400 | C7: 1862 | D7: 307.7336198
A8: 60 | B8: 1500 | C8: 1995 | D8: 287.2180451
A9: 60 | B9: 1600 | C9: 2128 | D9: 269.2669173
A10: 60 | B10: 1700 | C10: 2261 | D10: 253.4276869
A11: 60 | B11: 1800 | C11: =B11*1.33 -> 2394 | D11: 239.3483709
A12: 60 | B12: 1900 | C12: 2527 | D12: 226.7510882
A13: Power (kW) | B13: Engine HS | C13: Power take-off (rpm) | D13: (Nm)
A14: 60 | B14: 800 | C14: =B14*1.65 -> 1320 | D14: =A14*9550/C14 -> 434.0909091
A15: 60 | B15: =B14+100 -> 900 | C15: 1485 | D15: 385.8585859
A16: 60 | B16: 1000 | C16: 1650 | D16: 347.2727273
A17: 60 | B17: 1100 | C17: 1815 | D17: 315.7024793
A18: 60 | B18: 1200 | C18: 1980 | D18: 289.3939394
A19: 60 | B19: 1300 | C19: 2145 | D19: 267.1328671
A20: 60 | B20: 1400 | C20: 2310 | D20: 248.0519481
A21: 60 | B21: 1500 | C21: 2475 | D21: 231.5151515
A22: 60 | B22: 1600 | C22: 2640 | D22: 217.0454545
A23: 60 | B23: 1700 | C23: 2805 | D23: 204.2780749
A24: 60 | B24: 1800 | C24: 2970 | D24: 192.9292929
A25: 60 | B25: 1900 | C25: 3135 | D25: 182.7751196
A26: Power (kW) | B26: Engine LS | C26: Power take-off (rpm) | D26: (Nm)
A27: 90 | B27: 1600 | C27: =B27*1.33 -> 2128 | D27: =A27*9550/C27 -> 403.9003759
A28: 90 | B28: =B27+100 -> 1700 | C28: 2261 | D28: 380.1415303
A29: 90 | B29: 1800 | C29: 2394 | D29: 359.0225564
A30: 90 | B30: 1900 | C30: 2527 | D30: 340.1266324
A31: Power (kW) | B31: Engine HS | C31: Power take-off (rpm) | D31: (Nm)
A32: 90 | B32: 1300 | C32: =B32*1.65 -> 2145 | D32: =A32*9550/C32 -> 400.6993007
A33: 90 | B33: =B32+100 -> 1400 | C33: =B33*1.65 -> 2310 | D33: 372.0779221
A34: 90 | B34: 1500 | C34: 2475 | D34: 347.2727273
A35: 90 | B35: 1600 | C35: 2640 | D35: 325.5681818
A36: 90 | B36: 1700 | C36: 2805 | D36: 306.4171123
A37: 90 | B37: 1800 | C37: 2970 | D37: 289.3939394
A38: 90 | B38: 1900 | C38: 3135 | D38: 274.1626794

Sheet EG502P
A1: EG502P
A2: Power (kW) | B2: Engine LS | C2: Power take-off (rpm) | D2: (Nm)
A3: 60 | B3: 1000 | C3: =B3*1.33 -> 1330 | D3: =A3*9550/C3 -> 430.8270677
A4: 60 | B4: =B3+100 -> 1100 | C4: 1463 | D4: 391.6609706
A5: 60 | B5: 1200 | C5: 1596 | D5: 359.0225564
A6: 60 | B6: 1300 | C6: 1729 | D6: 331.4054367
A7: 60 | B7: 1400 | C7: 1862 | D7: 307.7336198
A8: 60 | B8: 1500 | C8: 1995 | D8: 287.2180451
A9: 60 | B9: 1600 | C9: 2128 | D9: 269.2669173
A10: 60 | B10: 1700 | C10: 2261 | D10: 253.4276869
A11: 60 | B11: 1800 | C11: =B11*1.33 -> 2394 | D11: 239.3483709
A12: 60 | B12: 1900 | C12: 2527 | D12: 226.7510882
A13: Power (kW) | B13: Engine HS | C13: Power take-off (rpm) | D13: (Nm)
A14: 60 | B14: 800 | C14: =B14*1.65 -> 1320 | D14: =A14*9550/C14 -> 434.0909091
A15: 60 | B15: =B14+100 -> 900 | C15: 1485 | D15: 385.8585859
A16: 60 | B16: 1000 | C16: 1650 | D16: 347.2727273
A17: 60 | B17: 1100 | C17: 1815 | D17: 315.7024793
A18: 60 | B18: 1200 | C18: 1980 | D18: 289.3939394
A19: 60 | B19: 1300 | C19: 2145 | D19: 267.1328671
A20: 60 | B20: 1400 | C20: 2310 | D20: 248.0519481
A21: 60 | B21: 1500 | C21: 2475 | D21: 231.5151515
A22: 60 | B22: 1600 | C22: 2640 | D22: 217.0454545
A23: 60 | B23: 1700 | C23: 2805 | D23: 204.2780749
A24: 60 | B24: 1800 | C24: 2970 | D24: 192.9292929
A25: 60 | B25: 1900 | C25: 3135 | D25: 182.7751196
A26: Power (kW) | B26: Engine LS | C26: Power take-off (rpm) | D26: (Nm)
A27: 90 | B27: 1600 | C27: =B27*1.33 -> 2128 | D27: =A27*9550/C27 -> 403.9003759
A28: 90 | B28: =B27+100 -> 1700 | C28: 2261 | D28: 380.1415303
A29: 90 | B29: 1800 | C29: 2394 | D29: 359.0225564
A30: 90 | B30: 1900 | C30: 2527 | D30: 340.1266324
A31: Power (kW) | B31: Engine HS | C31: Power take-off (rpm) | D31: (Nm)
A32: 90 | B32: 1300 | C32: =B32*1.65 -> 2145 | D32: =A32*9550/C32 -> 400.6993007
A33: 90 | B33: =B32+100 -> 1400 | C33: =B33*1.65 -> 2310 | D33: 372.0779221
A34: 90 | B34: 1500 | C34: 2475 | D34: 347.2727273
A35: 90 | B35: 1600 | C35: 2640 | D35: 325.5681818
A36: 90 | B36: 1700 | C36: 2805 | D36: 306.4171123
A37: 90 | B37: 1800 | C37: 2970 | D37: 289.3939394
A38: 90 | B38: 1900 | C38: 3135 | D38: 274.1626794

Sheet EG502F
A1: EG500F
A2: Power (kW) | B2: Engine LS | C2: Power take-off (rpm) | D2: (Nm)
A3: 60 | B3: 1000 | C3: =B3*1.33 -> 1330 | D3: =A3*9550/C3 -> 430.8270677
A4: 60 | B4: =B3+100 -> 1100 | C4: 1463 | D4: 391.6609706
A5: 60 | B5: 1200 | C5: 1596 | D5: 359.0225564
A6: 60 | B6: 1300 | C6: 1729 | D6: 331.4054367
A7: 60 | B7: 1400 | C7: 1862 | D7: 307.7336198
A8: 60 | B8: 1500 | C8: 1995 | D8: 287.2180451
A9: 60 | B9: 1600 | C9: 2128 | D9: 269.2669173
A10: 60 | B10: 1700 | C10: 2261 | D10: 253.4276869
A11: 60 | B11: 1800 | C11: =B11*1.33 -> 2394 | D11: 239.3483709
A12: 60 | B12: 1900 | C12: 2527 | D12: 226.7510882
A13: Power (kW) | B13: Engine HS | C13: Power take-off (rpm) | D13: (Nm)
A14: 60 | B14: 800 | C14: =B14*1.65 -> 1320 | D14: =A14*9550/C14 -> 434.0909091
A15: 60 | B15: =B14+100 -> 900 | C15: 1485 | D15: 385.8585859
A16: 60 | B16: 1000 | C16: 1650 | D16: 347.2727273
A17: 60 | B17: 1100 | C17: 1815 | D17: 315.7024793
A18: 60 | B18: 1200 | C18: 1980 | D18: 289.3939394
A19: 60 | B19: 1300 | C19: 2145 | D19: 267.1328671
A20: 60 | B20: 1400 | C20: 2310 | D20: 248.0519481
A21: 60 | B21: 1500 | C21: 2475 | D21: 231.5151515
A22: 60 | B22: 1600 | C22: 2640 | D22: 217.0454545
A23: 60 | B23: 1700 | C23: 2805 | D23: 204.2780749
A24: 60 | B24: 1800 | C24: 2970 | D24: 192.9292929
A25: 60 | B25: 1900 | C25: 3135 | D25: 182.7751196
A26: Power (kW) | B26: Engine LS | C26: Power take-off (rpm) | D26: (Nm)
A27: 90 | B27: 1600 | C27: =B27*1.33 -> 2128 | D27: =A27*9550/C27 -> 403.9003759
A28: 90 | B28: =B27+100 -> 1700 | C28: 2261 | D28: 380.1415303
A29: 90 | B29: 1800 | C29: 2394 | D29: 359.0225564
A30: 90 | B30: 1900 | C30: 2527 | D30: 340.1266324
A31: Power (kW) | B31: Engine HS | C31: Power take-off (rpm) | D31: (Nm)
A32: 90 | B32: 1300 | C32: =B32*1.65 -> 2145 | D32: =A32*9550/C32 -> 400.6993007
A33: 90 | B33: =B32+100 -> 1400 | C33: =B33*1.65 -> 2310 | D33: 372.0779221
A34: 90 | B34: 1500 | C34: 2475 | D34: 347.2727273
A35: 90 | B35: 1600 | C35: 2640 | D35: 325.5681818
A36: 90 | B36: 1700 | C36: 2805 | D36: 306.4171123
A37: 90 | B37: 1800 | C37: 2970 | D37: 289.3939394
A38: 90 | B38: 1900 | C38: 3135 | D38: 274.1626794

Sheet EG501P
A1: EG501P
A2: Power (kW) | B2: Engine LS | C2: Power take-off (rpm) | D2: (Nm)
A3: 60 | B3: 800 | C3: =B3*1.78 -> 1424 | D3: =A3*9550/C3 -> 402.3876404
A4: 60 | B4: 900 | C4: =B4*1.78 -> 1602 | D4: 357.6779026
A5: 60 | B5: =B4+100 -> 1000 | C5: =B5*1.78 -> 1780 | D5: 321.9101124
A6: 60 | B6: 1100 | C6: 1958 | D6: 292.6455567
A7: 60 | B7: 1200 | C7: 2136 | D7: 268.258427
A8: 60 | B8: 1300 | C8: 2314 | D8: 247.6231634
A9: 60 | B9: 1400 | C9: 2492 | D9: 229.9357945
A10: 60 | B10: 1500 | C10: 2670 | D10: 214.6067416
A11: 60 | B11: 1600 | C11: 2848 | D11: 201.1938202
A12: 60 | B12: 1700 | C12: 3026 | D12: 189.3588896
A13: 60 | B13: 1800 | C13: 3204 | D13: 178.8389513
A14: 60 | B14: 1900 | C14: =B14*1.78 -> 3382 | D14: 169.4263749
A15: Power (kW) | B15: Engine HS | C15: Power take-off (rpm) | D15: (Nm)
A16: 60 | B16: 800 | C16: =B16*2.22 -> 1776 | D16: =A16*9550/C16 -> 322.6351351
A17: 60 | B17: =B16+100 -> 900 | C17: 1998 | D17: 286.7867868
A18: 60 | B18: 1000 | C18: 2220 | D18: 258.1081081
A19: 60 | B19: 1100 | C19: 2442 | D19: 234.6437346
A20: 60 | B20: 1200 | C20: 2664 | D20: 215.0900901
A21: 60 | B21: 1300 | C21: 2886 | D21: 198.5446985
A22: 60 | B22: 1400 | C22: 3108 | D22: 184.3629344
A23: 60 | B23: 1500 | C23: 3330 | D23: 172.0720721
A24: 60 | B24: 1600 | C24: 3552 | D24: 161.3175676
A25: 60 | B25: 1700 | C25: 3774 | D25: 151.8282989
A26: 60 | B26: 1800 | C26: 3996 | D26: 143.3933934
A27: 60 | B27: 1900 | C27: 4218 | D27: 135.8463727
A28: Power (kW) | B28: Engine LS | C28: Power take-off (rpm) | D28: (Nm)
A29: 90 | B29: 1200 | C29: =B29*1.78 -> 2136 | D29: =A29*9550/C29 -> 402.3876404
A30: 90 | B30: 1300 | C30: =B30*1.78 -> 2314 | D30: 371.434745
A31: 90 | B31: =B30+100 -> 1400 | C31: =B31*1.78 -> 2492 | D31: 344.9036918
A32: 90 | B32: 1500 | C32: 2670 | D32: 321.9101124
A33: 90 | B33: 1600 | C33: 2848 | D33: 301.7907303
A34: 90 | B34: 1700 | C34: 3026 | D34: 284.0383344
A35: 90 | B35: 1800 | C35: 3204 | D35: 268.258427
A36: 90 | B36: 1900 | C36: =B36*1.78 -> 3382 | D36: 254.1395624
A37: Power (kW) | B37: Engine HS | C37: Power take-off (rpm) | D37: (Nm)
A38: 90 | B38: 900 | C38: =B38*2.22 -> 1998 | D38: =A38*9550/C38 -> 430.1801802
A39: 90 | B39: 1000 | C39: =B39*2.22 -> 2220 | D39: 387.1621622
A40: 90 | B40: 1100 | C40: =B40*2.22 -> 2442 | D40: 351.965602
A41: 90 | B41: 1100 | C41: =B41*2.22 -> 2442 | D41: 351.965602
A42: 90 | B42: 1200 | C42: =B42*2.22 -> 2664 | D42: 322.6351351
A43: 90 | B43: 1300 | C43: 2886 | D43: 297.8170478
A44: 90 | B44: =B43+100 -> 1400 | C44: 3108 | D44: 276.5444015
A45: 90 | B45: 1500 | C45: 3330 | D45: 258.1081081
A46: 90 | B46: 1600 | C46: 3552 | D46: 241.9763514
A47: 90 | B47: 1700 | C47: 3774 | D47: 227.7424483
A48: 90 | B48: 1800 | C48: 3996 | D48: 215.0900901
A49: 90 | B49: 1900 | C49: 4218 | D49: 203.769559

Sheet EG501F
A1: EG501F
A2: Power (kW) | B2: Engine LS | C2: Power take-off (rpm) | D2: (Nm)
A3: 60 | B3: 800 | C3: =B3*1.78 -> 1424 | D3: =A3*9550/C3 -> 402.3876404
A4: 60 | B4: 900 | C4: =B4*1.78 -> 1602 | D4: 357.6779026
A5: 60 | B5: =B4+100 -> 1000 | C5: =B5*1.78 -> 1780 | D5: 321.9101124
A6: 60 | B6: 1100 | C6: 1958 | D6: 292.6455567
A7: 60 | B7: 1200 | C7: 2136 | D7: 268.258427
A8: 60 | B8: 1300 | C8: 2314 | D8: 247.6231634
A9: 60 | B9: 1400 | C9: 2492 | D9: 229.9357945
A10: 60 | B10: 1500 | C10: 2670 | D10: 214.6067416
A11: 60 | B11: 1600 | C11: 2848 | D11: 201.1938202
A12: 60 | B12: 1700 | C12: 3026 | D12: 189.3588896
A13: 60 | B13: 1800 | C13: 3204 | D13: 178.8389513
A14: 60 | B14: 1900 | C14: =B14*1.78 -> 3382 | D14: 169.4263749
A15: Power (kW) | B15: Engine HS | C15: Power take-off (rpm) | D15: (Nm)
A16: 60 | B16: 800 | C16: =B16*2.22 -> 1776 | D16: =A16*9550/C16 -> 322.6351351
A17: 60 | B17: =B16+100 -> 900 | C17: 1998 | D17: 286.7867868
A18: 60 | B18: 1000 | C18: 2220 | D18: 258.1081081
A19: 60 | B19: 1100 | C19: 2442 | D19: 234.6437346
A20: 60 | B20: 1200 | C20: 2664 | D20: 215.0900901
A21: 60 | B21: 1300 | C21: 2886 | D21: 198.5446985
A22: 60 | B22: 1400 | C22: 3108 | D22: 184.3629344
A23: 60 | B23: 1500 | C23: 3330 | D23: 172.0720721
A24: 60 | B24: 1600 | C24: 3552 | D24: 161.3175676
A25: 60 | B25: 1700 | C25: 3774 | D25: 151.8282989
A26: 60 | B26: 1800 | C26: 3996 | D26: 143.3933934
A27: 60 | B27: 1900 | C27: 4218 | D27: 135.8463727
A28: Power (kW) | B28: Engine LS | C28: Power take-off (rpm) | D28: (Nm)
A29: 90 | B29: 1200 | C29: =B29*1.78 -> 2136 | D29: =A29*9550/C29 -> 402.3876404
A30: 90 | B30: 1300 | C30: =B30*1.78 -> 2314 | D30: 371.434745
A31: 90 | B31: =B30+100 -> 1400 | C31: =B31*1.78 -> 2492 | D31: 344.9036918
A32: 90 | B32: 1500 | C32: 2670 | D32: 321.9101124
A33: 90 | B33: 1600 | C33: 2848 | D33: 301.7907303
A34: 90 | B34: 1700 | C34: 3026 | D34: 284.0383344
A35: 90 | B35: 1800 | C35: 3204 | D35: 268.258427
A36: 90 | B36: 1900 | C36: =B36*1.78 -> 3382 | D36: 254.1395624
A37: Power (kW) | B37: Engine HS | C37: Power take-off (rpm) | D37: (Nm)
A38: 90 | B38: 900 | C38: =B38*2.22 -> 1998 | D38: =A38*9550/C38 -> 430.1801802
A39: 90 | B39: 1000 | C39: =B39*2.22 -> 2220 | D39: 387.1621622
A40: 90 | B40: 1100 | C40: =B40*2.22 -> 2442 | D40: 351.965602
A41: 90 | B41: 1100 | C41: =B41*2.22 -> 2442 | D41: 351.965602
A42: 90 | B42: 1200 | C42: =B42*2.22 -> 2664 | D42: 322.6351351
A43: 90 | B43: 1300 | C43: 2886 | D43: 297.8170478
A44: 90 | B44: =B43+100 -> 1400 | C44: 3108 | D44: 276.5444015
A45: 90 | B45: 1500 | C45: 3330 | D45: 258.1081081
A46: 90 | B46: 1600 | C46: 3552 | D46: 241.9763514
A47: 90 | B47: 1700 | C47: 3774 | D47: 227.7424483
A48: 90 | B48: 1800 | C48: 3996 | D48: 215.0900901
A49: 90 | B49: 1900 | C49: 4218 | D49: 203.769559

Sheet EG503P
A1: EG503P
A2: Power (kW) | B2: Engine LS | C2: Power take-off (rpm) | D2: (Nm)
A3: 60 | B3: 800 | C3: =B3*1.78 -> 1424 | D3: =A3*9550/C3 -> 402.3876404
A4: 60 | B4: 900 | C4: =B4*1.78 -> 1602 | D4: 357.6779026
A5: 60 | B5: =B4+100 -> 1000 | C5: =B5*1.78 -> 1780 | D5: 321.9101124
A6: 60 | B6: 1100 | C6: 1958 | D6: 292.6455567
A7: 60 | B7: 1200 | C7: 2136 | D7: 268.258427
A8: 60 | B8: 1300 | C8: 2314 | D8: 247.6231634
A9: 60 | B9: 1400 | C9: 2492 | D9: 229.9357945
A10: 60 | B10: 1500 | C10: 2670 | D10: 214.6067416
A11: 60 | B11: 1600 | C11: 2848 | D11: 201.1938202
A12: 60 | B12: 1700 | C12: 3026 | D12: 189.3588896
A13: 60 | B13: 1800 | C13: 3204 | D13: 178.8389513
A14: 60 | B14: 1900 | C14: =B14*1.78 -> 3382 | D14: 169.4263749
A15: Power (kW) | B15: Engine HS | C15: Power take-off (rpm) | D15: (Nm)
A16: 60 | B16: 800 | C16: =B16*2.22 -> 1776 | D16: =A16*9550/C16 -> 322.6351351
A17: 60 | B17: =B16+100 -> 900 | C17: 1998 | D17: 286.7867868
A18: 60 | B18: 1000 | C18: 2220 | D18: 258.1081081
A19: 60 | B19: 1100 | C19: 2442 | D19: 234.6437346
A20: 60 | B20: 1200 | C20: 2664 | D20: 215.0900901
A21: 60 | B21: 1300 | C21: 2886 | D21: 198.5446985
A22: 60 | B22: 1400 | C22: 3108 | D22: 184.3629344
A23: 60 | B23: 1500 | C23: 3330 | D23: 172.0720721
A24: 60 | B24: 1600 | C24: 3552 | D24: 161.3175676
A25: 60 | B25: 1700 | C25: 3774 | D25: 151.8282989
A26: 60 | B26: 1800 | C26: 3996 | D26: 143.3933934
A27: 60 | B27: 1900 | C27: 4218 | D27: 135.8463727
A28: Power (kW) | B28: Engine LS | C28: Power take-off (rpm) | D28: (Nm)
A29: 90 | B29: 1200 | C29: =B29*1.78 -> 2136 | D29: =A29*9550/C29 -> 402.3876404
A30: 90 | B30: 1300 | C30: =B30*1.78 -> 2314 | D30: 371.434745
A31: 90 | B31: =B30+100 -> 1400 | C31: =B31*1.78 -> 2492 | D31: 344.9036918
A32: 90 | B32: 1500 | C32: 2670 | D32: 321.9101124
A33: 90 | B33: 1600 | C33: 2848 | D33: 301.7907303
A34: 90 | B34: 1700 | C34: 3026 | D34: 284.0383344
A35: 90 | B35: 1800 | C35: 3204 | D35: 268.258427
A36: 90 | B36: 1900 | C36: =B36*1.78 -> 3382 | D36: 254.1395624
A37: Power (kW) | B37: Engine HS | C37: Power take-off (rpm) | D37: (Nm)
A38: 90 | B38: 900 | C38: =B38*2.22 -> 1998 | D38: =A38*9550/C38 -> 430.1801802
A39: 90 | B39: 1000 | C39: =B39*2.22 -> 2220 | D39: 387.1621622
A40: 90 | B40: 1100 | C40: =B40*2.22 -> 2442 | D40: 351.965602
A41: 90 | B41: 1100 | C41: =B41*2.22 -> 2442 | D41: 351.965602
A42: 90 | B42: 1200 | C42: =B42*2.22 -> 2664 | D42: 322.6351351
A43: 90 | B43: 1300 | C43: 2886 | D43: 297.8170478
A44: 90 | B44: =B43+100 -> 1400 | C44: 3108 | D44: 276.5444015
A45: 90 | B45: 1500 | C45: 3330 | D45: 258.1081081
A46: 90 | B46: 1600 | C46: 3552 | D46: 241.9763514
A47: 90 | B47: 1700 | C47: 3774 | D47: 227.7424483
A48: 90 | B48: 1800 | C48: 3996 | D48: 215.0900901
A49: 90 | B49: 1900 | C49: 4218 | D49: 203.769559

Sheet EG503F
A1: EG503F
A2: Power (kW) | B2: Engine LS | C2: Power take-off (rpm) | D2: (Nm)
A3: 60 | B3: 800 | C3: =B3*1.78 -> 1424 | D3: =A3*9550/C3 -> 402.3876404
A4: 60 | B4: 900 | C4: =B4*1.78 -> 1602 | D4: 357.6779026
A5: 60 | B5: =B4+100 -> 1000 | C5: =B5*1.78 -> 1780 | D5: 321.9101124
A6: 60 | B6: 1100 | C6: 1958 | D6: 292.6455567
A7: 60 | B7: 1200 | C7: 2136 | D7: 268.258427
A8: 60 | B8: 1300 | C8: 2314 | D8: 247.6231634
A9: 60 | B9: 1400 | C9: 2492 | D9: 229.9357945
A10: 60 | B10: 1500 | C10: 2670 | D10: 214.6067416
A11: 60 | B11: 1600 | C11: 2848 | D11: 201.1938202
A12: 60 | B12: 1700 | C12: 3026 | D12: 189.3588896
A13: 60 | B13: 1800 | C13: 3204 | D13: 178.8389513
A14: 60 | B14: 1900 | C14: =B14*1.78 -> 3382 | D14: 169.4263749
A15: Power (kW) | B15: Engine HS | C15: Power take-off (rpm) | D15: (Nm)
A16: 60 | B16: 800 | C16: =B16*2.22 -> 1776 | D16: =A16*9550/C16 -> 322.6351351
A17: 60 | B17: =B16+100 -> 900 | C17: 1998 | D17: 286.7867868
A18: 60 | B18: 1000 | C18: 2220 | D18: 258.1081081
A19: 60 | B19: 1100 | C19: 2442 | D19: 234.6437346
A20: 60 | B20: 1200 | C20: 2664 | D20: 215.0900901
A21: 60 | B21: 1300 | C21: 2886 | D21: 198.5446985
A22: 60 | B22: 1400 | C22: 3108 | D22: 184.3629344
A23: 60 | B23: 1500 | C23: 3330 | D23: 172.0720721
A24: 60 | B24: 1600 | C24: 3552 | D24: 161.3175676
A25: 60 | B25: 1700 | C25: 3774 | D25: 151.8282989
A26: 60 | B26: 1800 | C26: 3996 | D26: 143.3933934
A27: 60 | B27: 1900 | C27: 4218 | D27: 135.8463727
A28: Power (kW) | B28: Engine LS | C28: Power take-off (rpm) | D28: (Nm)
A29: 90 | B29: 1200 | C29: =B29*1.78 -> 2136 | D29: =A29*9550/C29 -> 402.3876404
A30: 90 | B30: 1300 | C30: =B30*1.78 -> 2314 | D30: 371.434745
A31: 90 | B31: =B30+100 -> 1400 | C31: =B31*1.78 -> 2492 | D31: 344.9036918
A32: 90 | B32: 1500 | C32: 2670 | D32: 321.9101124
A33: 90 | B33: 1600 | C33: 2848 | D33: 301.7907303
A34: 90 | B34: 1700 | C34: 3026 | D34: 284.0383344
A35: 90 | B35: 1800 | C35: 3204 | D35: 268.258427
A36: 90 | B36: 1900 | C36: =B36*1.78 -> 3382 | D36: 254.1395624
A37: Power (kW) | B37: Engine HS | C37: Power take-off (rpm) | D37: (Nm)
A38: 90 | B38: 900 | C38: =B38*2.22 -> 1998 | D38: =A38*9550/C38 -> 430.1801802
A39: 90 | B39: 1000 | C39: =B39*2.22 -> 2220 | D39: 387.1621622
A40: 90 | B40: 1100 | C40: =B40*2.22 -> 2442 | D40: 351.965602
A41: 90 | B41: 1100 | C41: =B41*2.22 -> 2442 | D41: 351.965602
A42: 90 | B42: 1200 | C42: =B42*2.22 -> 2664 | D42: 322.6351351
A43: 90 | B43: 1300 | C43: 2886 | D43: 297.8170478
A44: 90 | B44: =B43+100 -> 1400 | C44: 3108 | D44: 276.5444015
A45: 90 | B45: 1500 | C45: 3330 | D45: 258.1081081
A46: 90 | B46: 1600 | C46: 3552 | D46: 241.9763514
A47: 90 | B47: 1700 | C47: 3774 | D47: 227.7424483
A48: 90 | B48: 1800 | C48: 3996 | D48: 215.0900901
A49: 90 | B49: 1900 | C49: 4218 | D49: 203.769559

Sheet EG640F
A1: EG640F
A2: Power (kW) | B2: Engine LS | C2: Power take-off (rpm) | D2: (Nm)
A3: 70 | B3: 900 | C3: =B3*1.65 -> 1485 | D3: =A3*9550/C3 -> 450.1683502
A4: 70 | B4: =B3+100 -> 1000 | C4: 1650 | D4: 405.1515152
A5: 70 | B5: =B4+100 -> 1100 | C5: 1815 | D5: 368.3195592
A6: 70 | B6: 1200 | C6: 1980 | D6: 337.6262626
A7: 70 | B7: 1300 | C7: 2145 | D7: 311.6550117
A8: 70 | B8: 1400 | C8: 2310 | D8: 289.3939394
A9: 70 | B9: 1500 | C9: 2475 | D9: 270.1010101
A10: 70 | B10: 1600 | C10: 2640 | D10: 253.219697
A11: 70 | B11: 1700 | C11: 2805 | D11: 238.3244207
A12: 70 | B12: 1800 | C12: =B12*1.65 -> 2970 | D12: 225.0841751
A13: 70 | B13: 1900 | C13: 3135 | D13: 213.2376396
A14: Power (kW) | B14: Engine HS | C14: Power take-off (rpm) | D14: (Nm)
A15: 70 | B15: 800 | C15: =B15*2.04 -> 1632 | D15: =A15*9550/C15 -> 409.620098
A16: 70 | B16: =B15+100 -> 900 | C16: 1836 | D16: 364.1067538
A17: 70 | B17: 1000 | C17: 2040 | D17: 327.6960784
A18: 70 | B18: 1100 | C18: 2244 | D18: 297.9055258
A19: 70 | B19: 1200 | C19: 2448 | D19: 273.0800654
A20: 70 | B20: 1300 | C20: 2652 | D20: 252.0739065
A21: 70 | B21: 1400 | C21: 2856 | D21: 234.0686275
A22: 70 | B22: 1500 | C22: 3060 | D22: 218.4640523
A23: 70 | B23: 1600 | C23: 3264 | D23: 204.810049
A24: 70 | B24: 1700 | C24: 3468 | D24: 192.7623991
A25: 70 | B25: 1800 | C25: 3672 | D25: 182.0533769
A26: 70 | B26: 1900 | C26: 3876 | D26: 172.4716202
A27: Power (kW) | B27: Engine LS | C27: Power take-off (rpm) | D27: (Nm)
A28: 100 | B28: 1300 | C28: =B28*1.65 -> 2145 | D28: =A28*9550/C28 -> 445.2214452
A29: 100 | B29: =B28+100 -> 1400 | C29: 2310 | D29: 413.4199134
A30: 100 | B30: =B29+100 -> 1500 | C30: 2475 | D30: 385.8585859
A31: 100 | B31: 1600 | C31: 2640 | D31: 361.7424242
A32: 100 | B32: 1700 | C32: 2805 | D32: 340.4634581
A33: 100 | B33: 1800 | C33: 2970 | D33: 321.5488215
A34: 100 | B34: 1900 | C34: 3135 | D34: 304.6251994
A35: Power (kW) | B35: Engine HS | C35: Power take-off (rpm) | D35: (Nm)
A36: 100 | B36: 1400 | C36: =B36*1.58 -> 2212 | D36: =A36*9550/C36 -> 431.7359855
A37: 100 | B37: =B36+100 -> 1500 | C37: 2370 | D37: 402.9535865
A38: 100 | B38: =B37+100 -> 1600 | C38: 2528 | D38: 377.7689873
A39: 100 | B39: 1700 | C39: 2686 | D39: 355.5472822
A40: 100 | B40: 1800 | C40: 2844 | D40: 335.7946554
A41: 100 | B41: 1900 | C41: 3002 | D41: 318.1212525

Sheet EG640P
A1: EG640P
A2: Power (kW) | B2: Engine LS | C2: Power take-off (rpm) | D2: (Nm)
A3: 70 | B3: 900 | C3: =B3*1.65 -> 1485 | D3: =A3*9550/C3 -> 450.1683502
A4: 70 | B4: =B3+100 -> 1000 | C4: 1650 | D4: 405.1515152
A5: 70 | B5: 1100 | C5: 1815 | D5: 368.3195592
A6: 70 | B6: 1200 | C6: 1980 | D6: 337.6262626
A7: 70 | B7: 1300 | C7: 2145 | D7: 311.6550117
A8: 70 | B8: 1400 | C8: 2310 | D8: 289.3939394
A9: 70 | B9: 1500 | C9: 2475 | D9: 270.1010101
A10: 70 | B10: 1600 | C10: 2640 | D10: 253.219697
A11: 70 | B11: 1700 | C11: 2805 | D11: 238.3244207
A12: 70 | B12: 1800 | C12: =B12*1.65 -> 2970 | D12: 225.0841751
A13: 70 | B13: 1900 | C13: 3135 | D13: 213.2376396
A14: Power (kW) | B14: Engine HS | C14: Power take-off (rpm) | D14: (Nm)
A15: 70 | B15: 800 | C15: =B15*2.04 -> 1632 | D15: =A15*9550/C15 -> 409.620098
A16: 70 | B16: =B15+100 -> 900 | C16: 1836 | D16: 364.1067538
A17: 70 | B17: 1000 | C17: 2040 | D17: 327.6960784
A18: 70 | B18: 1100 | C18: 2244 | D18: 297.9055258
A19: 70 | B19: 1200 | C19: 2448 | D19: 273.0800654
A20: 70 | B20: 1300 | C20: 2652 | D20: 252.0739065
A21: 70 | B21: 1400 | C21: 2856 | D21: 234.0686275
A22: 70 | B22: 1500 | C22: 3060 | D22: 218.4640523
A23: 70 | B23: 1600 | C23: 3264 | D23: 204.810049
A24: 70 | B24: 1700 | C24: 3468 | D24: 192.7623991
A25: 70 | B25: 1800 | C25: 3672 | D25: 182.0533769
A26: 70 | B26: 1900 | C26: 3876 | D26: 172.4716202
A27: Power (kW) | B27: Engine LS | C27: Power take-off (rpm) | D27: (Nm)
A28: 100 | B28: 1300 | C28: =B28*1.65 -> 2145 | D28: =A28*9550/C28 -> 445.2214452
A29: 100 | B29: =B28+100 -> 1400 | C29: 2310 | D29: 413.4199134
A30: 100 | B30: 1500 | C30: 2475 | D30: 385.8585859
A31: 100 | B31: 1600 | C31: 2640 | D31: 361.7424242
A32: 100 | B32: 1700 | C32: 2805 | D32: 340.4634581
A33: 100 | B33: 1800 | C33: 2970 | D33: 321.5488215
A34: 100 | B34: 1900 | C34: 3135 | D34: 304.6251994
A35: Power (kW) | B35: Engine HS | C35: Power take-off (rpm) | D35: (Nm)
A36: 100 | B36: 1400 | C36: =B36*1.58 -> 2212 | D36: =A36*9550/C36 -> 431.7359855
A37: 100 | B37: =B36+100 -> 1500 | C37: 2370 | D37: 402.9535865
A38: 100 | B38: 1600 | C38: 2528 | D38: 377.7689873
A39: 100 | B39: 1700 | C39: 2686 | D39: 355.5472822
A40: 100 | B40: 1800 | C40: 2844 | D40: 335.7946554
A41: 100 | B41: 1900 | C41: 3002 | D41: 318.1212525

Sheet EG641P
A1: EG641P
A2: Power (kW) | B2: Engine LS | C2: Power take-off (rpm) | D2: (Nm)
A3: 70 | B3: 1100 | C3: =B3*1.33 -> 1463 | D3: =A3*9550/C3 -> 456.937799
A4: 70 | B4: =B3+100 -> 1200 | C4: =B4*1.33 -> 1596 | D4: 418.8596491
A5: 70 | B5: =B4+100 -> 1300 | C5: 1729 | D5: 386.6396761
A6: 70 | B6: 1400 | C6: 1862 | D6: 359.0225564
A7: 70 | B7: 1500 | C7: 1995 | D7: 335.0877193
A8: 70 | B8: 1600 | C8: 2128 | D8: 314.1447368
A9: 70 | B9: 1700 | C9: 2261 | D9: 295.6656347
A10: 70 | B10: 1800 | C10: 2394 | D10: 279.2397661
A11: 70 | B11: 1900 | C11: 2527 | D11: 264.5429363
A12: Power (kW) | B12: Engine HS | C12: Power take-off (rpm) | D12: (Nm)
A13: 70 | B13: 900 | C13: =B13*1.67 -> 1503 | D13: =A13*9550/C13 -> 444.7771124
A14: 70 | B14: =B13+100 -> 1000 | C14: 1670 | D14: 400.2994012
A15: 70 | B15: =B14+100 -> 1100 | C15: 1837 | D15: 363.9085465
A16: 70 | B16: 1200 | C16: 2004 | D16: 333.5828343
A17: 70 | B17: 1300 | C17: =B17*1.67 -> 2171 | D17: 307.9226163
A18: 70 | B18: 1400 | C18: 2338 | D18: 285.9281437
A19: 70 | B19: 1500 | C19: 2505 | D19: 266.8662675
A20: 70 | B20: 1600 | C20: 2672 | D20: 250.1871257
A21: 70 | B21: 1700 | C21: =B21*1.67 -> 2839 | D21: 235.470236
A22: 70 | B22: 1800 | C22: =B22*1.67 -> 3006 | D22: 222.3885562
A23: 70 | B23: 1900 | C23: =B23*1.67 -> 3173 | D23: 210.6838954
A24: Power (kW) | B24: Engine LS | C24: Power take-off (rpm) | D24: (Nm)
A25: 100 | B25: 1600 | C25: =B25*1.33 -> 2128 | D25: =A25*9550/C25 -> 448.7781955
A26: 100 | B26: =B25+100 -> 1700 | C26: 2261 | D26: 422.3794781
A27: 100 | B27: =B26+100 -> 1800 | C27: 2394 | D27: 398.9139515
A28: 100 | B28: 1900 | C28: =B28*1.33 -> 2527 | D28: 377.9184804
A29: Power (kW) | B29: Engine HS | C29: Power take-off (rpm) | D29: (Nm)
A30: 100 | B30: 1300 | C30: =B30*1.67 -> 2171 | D30: =A30*9550/C30 -> 439.8894519
A31: 100 | B31: =B30+100 -> 1400 | C31: =B31*1.67 -> 2338 | D31: 408.4687767
A32: 100 | B32: 1500 | C32: 2505 | D32: 381.237525
A33: 100 | B33: 1600 | C33: 2672 | D33: 357.4101796
A34: 100 | B34: 1700 | C34: 2839 | D34: 336.3860514
A35: 100 | B35: 1800 | C35: 3006 | D35: 317.6979375
A36: 100 | B36: 1900 | C36: =B36*1.67 -> 3173 | D36: 300.9769934

Sheet EG641F
A1: EG641F
A2: Power (kW) | B2: Engine LS | C2: Power take-off (rpm) | D2: (Nm)
A3: 70 | B3: 1100 | C3: =B3*1.33 -> 1463 | D3: =A3*9550/C3 -> 456.937799
A4: 70 | B4: =B3+100 -> 1200 | C4: =B4*1.33 -> 1596 | D4: 418.8596491
A5: 70 | B5: =B4+100 -> 1300 | C5: 1729 | D5: 386.6396761
A6: 70 | B6: 1400 | C6: 1862 | D6: 359.0225564
A7: 70 | B7: 1500 | C7: 1995 | D7: 335.0877193
A8: 70 | B8: 1600 | C8: 2128 | D8: 314.1447368
A9: 70 | B9: 1700 | C9: 2261 | D9: 295.6656347
A10: 70 | B10: 1800 | C10: =B10*1.33 -> 2394 | D10: 279.2397661
A11: 70 | B11: 1900 | C11: 2527 | D11: 264.5429363
A12: Power (kW) | B12: Engine HS | C12: Power take-off (rpm) | D12: (Nm)
A13: 70 | B13: 900 | C13: =B13*1.67 -> 1503 | D13: =A13*9550/C13 -> 444.7771124
A14: 70 | B14: =B13+100 -> 1000 | C14: =B14*1.67 -> 1670 | D14: 400.2994012
A15: 70 | B15: =B14+100 -> 1100 | C15: 1837 | D15: 363.9085465
A16: 70 | B16: 1200 | C16: 2004 | D16: 333.5828343
A17: 70 | B17: 1300 | C17: =B17*1.67 -> 2171 | D17: 307.9226163
A18: 70 | B18: 1400 | C18: 2338 | D18: 285.9281437
A19: 70 | B19: 1500 | C19: 2505 | D19: 266.8662675
A20: 70 | B20: 1600 | C20: 2672 | D20: 250.1871257
A21: 70 | B21: 1700 | C21: =B21*1.67 -> 2839 | D21: 235.470236
A22: 70 | B22: 1800 | C22: =B22*1.67 -> 3006 | D22: 222.3885562
A23: 70 | B23: 1900 | C23: =B23*1.67 -> 3173 | D23: 210.6838954
A24: Power (kW) | B24: Engine LS | C24: Power take-off (rpm) | D24: (Nm)
A25: 100 | B25: 1600 | C25: =B25*1.33 -> 2128 | D25: =A25*9550/C25 -> 448.7781955
A26: 100 | B26: =B25+100 -> 1700 | C26: 2261 | D26: 422.3794781
A27: 100 | B27: =B26+100 -> 1800 | C27: 2394 | D27: 398.9139515
A28: 100 | B28: 1900 | C28: =B28*1.33 -> 2527 | D28: 377.9184804
A29: Power (kW) | B29: Engine HS | C29: Power take-off (rpm) | D29: (Nm)
A30: 100 | B30: 1300 | C30: =B30*1.67 -> 2171 | D30: =A30*9550/C30 -> 439.8894519
A31: 100 | B31: =B30+100 -> 1400 | C31: =B31*1.67 -> 2338 | D31: 408.4687767
A32: 100 | B32: 1500 | C32: 2505 | D32: 381.237525
A33: 100 | B33: 1600 | C33: 2672 | D33: 357.4101796
A34: 100 | B34: 1700 | C34: 2839 | D34: 336.3860514
A35: 100 | B35: 1800 | C35: 3006 | D35: 317.6979375
A36: 100 | B36: 1900 | C36: =B36*1.67 -> 3173 | D36: 300.9769934

Sheet EG642P
A1: EG642P
A2: Power (kW) | B2: Engine LS | C2: Power take-off (rpm) | D2: (Nm)
A3: 70 | B3: 1200 | C3: =B3*1.29 -> 1548 | D3: =A3*9550/C3 -> 431.8475452
A4: 70 | B4: =B3+100 -> 1300 | C4: =B4*1.29 -> 1677 | D4: 398.6285033
A5: 70 | B5: 1400 | C5: 1806 | D5: 370.1550388
A6: 70 | B6: 1500 | C6: 1935 | D6: 345.4780362
A7: 70 | B7: 1600 | C7: 2064 | D7: 323.8856589
A8: 70 | B8: 1700 | C8: 2193 | D8: 304.8335613
A9: 70 | B9: 1800 | C9: 2322 | D9: 287.8983635
A10: 70 | B10: 1900 | C10: =B10*1.29 -> 2451 | D10: 272.745818
A11: Power (kW) | B11: Engine HS | C11: Power take-off (rpm) | D11: (Nm)
A12: 70 | B12: 900 | C12: =B12*1.6 -> 1440 | D12: =A12*9550/C12 -> 464.2361111
A13: 70 | B13: =B12+100 -> 1000 | C13: =B13*1.6 -> 1600 | D13: 417.8125
A14: 70 | B14: =B13+100 -> 1100 | C14: 1760 | D14: 379.8295455
A15: 70 | B15: 1200 | C15: 1920 | D15: 348.1770833
A16: 70 | B16: 1300 | C16: 2080 | D16: 321.3942308
A17: 70 | B17: 1400 | C17: 2240 | D17: 298.4375
A18: 70 | B18: 1500 | C18: 2400 | D18: 278.5416667
A19: 70 | B19: 1600 | C19: 2560 | D19: 261.1328125
A20: 70 | B20: 1700 | C20: 2720 | D20: 245.7720588
A21: 70 | B21: 1800 | C21: =B21*1.6 -> 2880 | D21: 232.1180556
A22: 70 | B22: 1900 | C22: 3040 | D22: 219.9013158
A23: Power (kW) | B23: Engine LS | C23: Power take-off (rpm) | D23: (Nm)
A24: 100 | B24: 1700 | C24: =B24*1.29 -> 2193 | D24: =A24*9550/C24 -> 435.4765162
A25: 100 | B25: =B24+100 -> 1800 | C25: 2322 | D25: 411.2833764
A26: 100 | B26: 1900 | C26: =B26*1.29 -> 2451 | D26: 389.6368829
A27: Power (kW) | B27: Engine HS | C27: Power take-off (rpm) | D27: (Nm)
A28: 100 | B28: 1300 | C28: =B28*1.6 -> 2080 | D28: =A28*9550/C28 -> 459.1346154
A29: 100 | B29: =B28+100 -> 1400 | C29: =B29*1.6 -> 2240 | D29: 426.3392857
A30: 100 | B30: 1500 | C30: 2400 | D30: 397.9166667
A31: 100 | B31: 1600 | C31: =B31*1.6 -> 2560 | D31: 373.046875
A32: 100 | B32: 1700 | C32: 2720 | D32: 351.1029412
A33: 100 | B33: 1800 | C33: 2880 | D33: 331.5972222
A34: 100 | B34: 1900 | C34: 3040 | D34: 314.1447368

Sheet EG642F
A1: EG642F
A2: Power (kW) | B2: Engine LS | C2: Power take-off (rpm) | D2: (Nm)
A3: 70 | B3: 1200 | C3: =B3*1.29 -> 1548 | D3: =A3*9550/C3 -> 431.8475452
A4: 70 | B4: =B3+100 -> 1300 | C4: =B4*1.29 -> 1677 | D4: 398.6285033
A5: 70 | B5: 1400 | C5: 1806 | D5: 370.1550388
A6: 70 | B6: 1500 | C6: 1935 | D6: 345.4780362
A7: 70 | B7: 1600 | C7: 2064 | D7: 323.8856589
A8: 70 | B8: 1700 | C8: 2193 | D8: 304.8335613
A9: 70 | B9: 1800 | C9: 2322 | D9: 287.8983635
A10: 70 | B10: 1900 | C10: =B10*1.29 -> 2451 | D10: 272.745818
A11: Power (kW) | B11: Engine HS | C11: Power take-off (rpm) | D11: (Nm)
A12: 70 | B12: 900 | C12: =B12*1.6 -> 1440 | D12: =A12*9550/C12 -> 464.2361111
A13: 70 | B13: =B12+100 -> 1000 | C13: =B13*1.6 -> 1600 | D13: 417.8125
A14: 70 | B14: =B13+100 -> 1100 | C14: 1760 | D14: 379.8295455
A15: 70 | B15: 1200 | C15: 1920 | D15: 348.1770833
A16: 70 | B16: 1300 | C16: 2080 | D16: 321.3942308
A17: 70 | B17: 1400 | C17: 2240 | D17: 298.4375
A18: 70 | B18: 1500 | C18: 2400 | D18: 278.5416667
A19: 70 | B19: 1600 | C19: 2560 | D19: 261.1328125
A20: 70 | B20: 1700 | C20: 2720 | D20: 245.7720588
A21: 70 | B21: 1800 | C21: =B21*1.6 -> 2880 | D21: 232.1180556
A22: 70 | B22: 1900 | C22: 3040 | D22: 219.9013158
A23: Power (kW) | B23: Engine LS | C23: Power take-off (rpm) | D23: (Nm)
A24: 100 | B24: 1700 | C24: =B24*1.29 -> 2193 | D24: =A24*9550/C24 -> 435.4765162
A25: 100 | B25: =B24+100 -> 1800 | C25: 2322 | D25: 411.2833764
A26: 100 | B26: 1900 | C26: =B26*1.29 -> 2451 | D26: 389.6368829
A27: Power (kW) | B27: Engine HS | C27: Power take-off (rpm) | D27: (Nm)
A28: 100 | B28: 1300 | C28: =B28*1.6 -> 2080 | D28: =A28*9550/C28 -> 459.1346154
A29: 100 | B29: =B28+100 -> 1400 | C29: =B29*1.6 -> 2240 | D29: 426.3392857
A30: 100 | B30: 1500 | C30: 2400 | D30: 397.9166667
A31: 100 | B31: 1600 | C31: =B31*1.6 -> 2560 | D31: 373.046875
A32: 100 | B32: 1700 | C32: 2720 | D32: 351.1029412
A33: 100 | B33: 1800 | C33: 2880 | D33: 331.5972222
A34: 100 | B34: 1900 | C34: 3040 | D34: 314.1447368

Sheet EG643P
A1: EG643P
A2: Power (kW) | B2: Engine LS | C2: Power take-off (rpm) | D2: (Nm)
A3: 70 | B3: 1400 | C3: =B3*1.06 -> 1484 | D3: =A3*9550/C3 -> 450.4716981
A4: 70 | B4: =B3+100 -> 1500 | C4: 1590 | D4: 420.4402516
A5: 70 | B5: 1600 | C5: 1696 | D5: 394.1627358
A6: 70 | B6: 1700 | C6: 1802 | D6: 370.9766926
A7: 70 | B7: 1800 | C7: 1908 | D7: 350.3668763
A8: 70 | B8: 1900 | C8: =B8*1.06 -> 2014 | D8: 331.9265144
A9: Power (kW) | B9: Engine HS | C9: Power take-off (rpm) | D9: (Nm)
A10: 70 | B10: 1100 | C10: =B10*1.33 -> 1463 | D10: =A10*9550/C10 -> 456.937799
A11: 70 | B11: =B10+100 -> 1200 | C11: 1596 | D11: 418.8596491
A12: 70 | B12: 1300 | C12: 1729 | D12: 386.6396761
A13: 70 | B13: 1400 | C13: 1862 | D13: 359.0225564
A14: 70 | B14: 1500 | C14: 1995 | D14: 335.0877193
A15: 70 | B15: 1600 | C15: =B15*1.33 -> 2128 | D15: 314.1447368
A16: 70 | B16: 1700 | C16: 2261 | D16: 295.6656347
A17: 70 | B17: 1800 | C17: 2394 | D17: 279.2397661
A18: 70 | B18: 1900 | C18: 2527 | D18: 264.5429363
A19: Power (kW) | B19: Engine LS | C19: Power take-off (rpm) | D19: (Nm) | E19: No power line with LS
A20: Power (kW) | B20: Engine HS | C20: Power take-off (rpm) | D20: (Nm)
A21: 100 | B21: 1600 | C21: =B21*1.33 -> 2128 | D21: =A21*9550/C21 -> 448.7781955
A22: 100 | B22: =B21+100 -> 1700 | C22: 2261 | D22: 422.3794781
A23: 100 | B23: 1800 | C23: 2394 | D23: 398.9139515
A24: 100 | B24: 1900 | C24: =B24*1.33 -> 2527 | D24: 377.9184804

Sheet EG643F
A1: EG643F
A2: Power (kW) | B2: Engine LS | C2: Power take-off (rpm) | D2: (Nm)
A3: 70 | B3: 1400 | C3: =B3*1.06 -> 1484 | D3: =A3*9550/C3 -> 450.4716981
A4: 70 | B4: =B3+100 -> 1500 | C4: =B4*1.06 -> 1590 | D4: 420.4402516
A5: 70 | B5: 1600 | C5: 1696 | D5: 394.1627358
A6: 70 | B6: 1700 | C6: 1802 | D6: 370.9766926
A7: 70 | B7: 1800 | C7: 1908 | D7: 350.3668763
A8: 70 | B8: 1900 | C8: =B8*1.06 -> 2014 | D8: 331.9265144
A9: Power (kW) | B9: Engine HS | C9: Power take-off (rpm) | D9: (Nm)
A10: 70 | B10: 1100 | C10: =B10*1.33 -> 1463 | D10: =A10*9550/C10 -> 456.937799
A11: 70 | B11: =B10+100 -> 1200 | C11: =B11*1.33 -> 1596 | D11: 418.8596491
A12: 70 | B12: 1300 | C12: 1729 | D12: 386.6396761
A13: 70 | B13: 1400 | C13: 1862 | D13: 359.0225564
A14: 70 | B14: 1500 | C14: 1995 | D14: 335.0877193
A15: 70 | B15: 1600 | C15: =B15*1.33 -> 2128 | D15: 314.1447368
A16: 70 | B16: 1700 | C16: 2261 | D16: 295.6656347
A17: 70 | B17: 1800 | C17: 2394 | D17: 279.2397661
A18: 70 | B18: 1900 | C18: 2527 | D18: 264.5429363
A19: Power (kW) | B19: Engine LS | C19: Power take-off (rpm) | D19: (Nm) | E19: No power line with LS
A20: Power (kW) | B20: Engine HS | C20: Power take-off (rpm) | D20: (Nm)
A21: 100 | B21: 1600 | C21: =B21*1.33 -> 2128 | D21: =A21*9550/C21 -> 448.7781955
A22: 100 | B22: =B21+100 -> 1700 | C22: 2261 | D22: 422.3794781
A23: 100 | B23: 1800 | C23: 2394 | D23: 398.9139515
A24: 100 | B24: 1900 | C24: =B24*1.33 -> 2527 | D24: 377.9184804

Sheet EG644P
A1: EG644P
A2: Power (kW) | B2: Engine LS | C2: Power take-off (rpm) | D2: (Nm)
A3: 120 | B3: 900 | C3: =B3*1.48 -> 1332 | D3: =A3*9550/C3 -> 860.3603604
A4: 120 | B4: 1000 | C4: =B4*1.48 -> 1480 | D4: 774.3243243
A5: 120 | B5: 1100 | C5: 1628 | D5: 703.9312039
A6: 120 | B6: 1200 | C6: =B6*1.48 -> 1776 | D6: 645.2702703
A7: 120 | B7: =B6+100 -> 1300 | C7: =B7*1.48 -> 1924 | D7: 595.6340956
A8: 120 | B8: 1400 | C8: 2072 | D8: 553.0888031
A9: 120 | B9: 1500 | C9: 2220 | D9: 516.2162162
A10: 120 | B10: 1600 | C10: 2368 | D10: 483.9527027
A11: 120 | B11: 1700 | C11: 2516 | D11: 455.4848967
A12: 120 | B12: 1800 | C12: 2664 | D12: 430.1801802
A13: 120 | B13: 1900 | C13: 2812 | D13: 407.5391181
A14: Power (kW) | B14: Engine HS | C14: Power take-off (rpm) | D14: (Nm)
A15: 120 | B15: 800 | C15: =B15*1.83 -> 1464 | D15: =A15*9550/C15 -> 782.7868852
A16: 120 | B16: 900 | C16: =B16*1.83 -> 1647 | D16: 695.8105647
A17: 120 | B17: =B16+100 -> 1000 | C17: =B17*1.83 -> 1830 | D17: 626.2295082
A18: 120 | B18: =B17+100 -> 1100 | C18: 2013 | D18: 569.2995529
A19: 120 | B19: 1200 | C19: 2196 | D19: 521.8579235
A20: 120 | B20: 1300 | C20: 2379 | D20: 481.7150063
A21: 120 | B21: 1400 | C21: 2562 | D21: 447.3067916
A22: 120 | B22: 1500 | C22: 2745 | D22: 417.4863388
A23: 120 | B23: 1600 | C23: 2928 | D23: 391.3934426
A24: 120 | B24: 1700 | C24: 3111 | D24: 368.3702989
A25: 120 | B25: 1800 | C25: 3294 | D25: 347.9052823
A26: 120 | B26: 1900 | C26: =B26*1.83 -> 3477 | D26: 329.594478

Sheet EG644F
A1: EG644F
A2: Power (kW) | B2: Engine LS | C2: Power take-off (rpm) | D2: (Nm)
A3: 120 | B3: 900 | C3: =B3*1.48 -> 1332 | D3: =A3*9550/C3 -> 860.3603604
A4: 120 | B4: 1000 | C4: =B4*1.48 -> 1480 | D4: 774.3243243
A5: 120 | B5: 1100 | C5: 1628 | D5: 703.9312039
A6: 120 | B6: 1200 | C6: =B6*1.48 -> 1776 | D6: 645.2702703
A7: 120 | B7: =B6+100 -> 1300 | C7: =B7*1.48 -> 1924 | D7: 595.6340956
A8: 120 | B8: 1400 | C8: 2072 | D8: 553.0888031
A9: 120 | B9: 1500 | C9: 2220 | D9: 516.2162162
A10: 120 | B10: 1600 | C10: 2368 | D10: 483.9527027
A11: 120 | B11: 1700 | C11: 2516 | D11: 455.4848967
A12: 120 | B12: 1800 | C12: 2664 | D12: 430.1801802
A13: 120 | B13: 1900 | C13: 2812 | D13: 407.5391181
A14: Power (kW) | B14: Engine HS | C14: Power take-off (rpm) | D14: (Nm)
A15: 120 | B15: 800 | C15: =B15*1.83 -> 1464 | D15: =A15*9550/C15 -> 782.7868852
A16: 120 | B16: 900 | C16: =B16*1.83 -> 1647 | D16: 695.8105647
A17: 120 | B17: =B16+100 -> 1000 | C17: =B17*1.83 -> 1830 | D17: 626.2295082
A18: 120 | B18: =B17+100 -> 1100 | C18: 2013 | D18: 569.2995529
A19: 120 | B19: 1200 | C19: 2196 | D19: 521.8579235
A20: 120 | B20: 1300 | C20: 2379 | D20: 481.7150063
A21: 120 | B21: 1400 | C21: 2562 | D21: 447.3067916
A22: 120 | B22: 1500 | C22: 2745 | D22: 417.4863388
A23: 120 | B23: 1600 | C23: 2928 | D23: 391.3934426
A24: 120 | B24: 1700 | C24: 3111 | D24: 368.3702989
A25: 120 | B25: 1800 | C25: 3294 | D25: 347.9052823
A26: 120 | B26: 1900 | C26: =B26*1.83 -> 3477 | D26: 329.594478

Sheet EG645P
A1: EG645P
A2: Power (kW) | B2: Engine LS | C2: Power take-off (rpm) | D2: (Nm)
A3: 120 | B3: 1000 | C3: =B3*1.89 -> 1890 | D3: =A3*9550/C3 -> 606.3492063
A4: 120 | B4: 1100 | C4: 2079 | D4: 551.2265512
A5: 120 | B5: 1200 | C5: 2268 | D5: 505.2910053
A6: 120 | B6: =B5+100 -> 1300 | C6: 2457 | D6: 466.4224664
A7: 120 | B7: 1400 | C7: 2646 | D7: 433.106576
A8: 120 | B8: 1500 | C8: 2835 | D8: 404.2328042
A9: 120 | B9: 1600 | C9: 3024 | D9: 378.968254
A10: 120 | B10: 1700 | C10: 3213 | D10: 356.6760037
A11: 120 | B11: 1800 | C11: 3402 | D11: 336.8606702
A12: 120 | B12: 1900 | C12: =B12*1.89 -> 3591 | D12: 319.1311612
A13: Power (kW) | B13: Engine HS | C13: Power take-off (rpm) | D13: (Nm)
A14: 120 | B14: 800 | C14: =B14*2.34 -> 1872 | D14: =A14*9550/C14 -> 612.1794872
A15: 120 | B15: 900 | C15: =B15*2.34 -> 2106 | D15: 544.1595442
A16: 120 | B16: =B15+100 -> 1000 | C16: 2340 | D16: 489.7435897
A17: 120 | B17: =B16+100 -> 1100 | C17: 2574 | D17: 445.2214452
A18: 120 | B18: 1200 | C18: 2808 | D18: 408.1196581
A19: 120 | B19: 1300 | C19: 3042 | D19: 376.7258383
A20: 120 | B20: 1400 | C20: 3276 | D20: 349.8168498
A21: 120 | B21: 1500 | C21: 3510 | D21: 326.4957265
A22: 120 | B22: 1600 | C22: 3744 | D22: 306.0897436
A23: 120 | B23: 1700 | C23: 3978 | D23: 288.0844646
A24: 120 | B24: 1800 | C24: 4212 | D24: 272.0797721
A25: 120 | B25: 1900 | C25: 4446 | D25: 257.7597841

Sheet EG645F
A1: EG645F
A2: Power (kW) | B2: Engine LS | C2: Power take-off (rpm) | D2: (Nm)
A3: 120 | B3: 1000 | C3: =B3*1.89 -> 1890 | D3: =A3*9550/C3 -> 606.3492063
A4: 120 | B4: 1100 | C4: 2079 | D4: 551.2265512
A5: 120 | B5: 1200 | C5: 2268 | D5: 505.2910053
A6: 120 | B6: =B5+100 -> 1300 | C6: 2457 | D6: 466.4224664
A7: 120 | B7: 1400 | C7: 2646 | D7: 433.106576
A8: 120 | B8: 1500 | C8: 2835 | D8: 404.2328042
A9: 120 | B9: 1600 | C9: 3024 | D9: 378.968254
A10: 120 | B10: 1700 | C10: 3213 | D10: 356.6760037
A11: 120 | B11: 1800 | C11: 3402 | D11: 336.8606702
A12: 120 | B12: 1900 | C12: =B12*1.89 -> 3591 | D12: 319.1311612
A13: Power (kW) | B13: Engine HS | C13: Power take-off (rpm) | D13: (Nm)
A14: 120 | B14: 800 | C14: =B14*2.34 -> 1872 | D14: =A14*9550/C14 -> 612.1794872
A15: 120 | B15: 900 | C15: =B15*2.34 -> 2106 | D15: 544.1595442
A16: 120 | B16: =B15+100 -> 1000 | C16: 2340 | D16: 489.7435897
A17: 120 | B17: =B16+100 -> 1100 | C17: =B17*2.34 -> 2574 | D17: 445.2214452
A18: 120 | B18: 1200 | C18: 2808 | D18: 408.1196581
A19: 120 | B19: 1300 | C19: 3042 | D19: 376.7258383
A20: 120 | B20: 1400 | C20: 3276 | D20: 349.8168498
A21: 120 | B21: 1500 | C21: 3510 | D21: 326.4957265
A22: 120 | B22: 1600 | C22: 3744 | D22: 306.0897436
A23: 120 | B23: 1700 | C23: 3978 | D23: 288.0844646
A24: 120 | B24: 1800 | C24: 4212 | D24: 272.0797721
A25: 120 | B25: 1900 | C25: 4446 | D25: 257.7597841

Sheet EG646P
A1: EG646P
A2: Power (kW) | B2: Engine LS | C2: Power take-off (rpm) | D2: (Nm)
A3: 120 | B3: 1100 | C3: =B3*1.21 -> 1331 | D3: =A3*9550/C3 -> 861.0067618
A4: 120 | B4: 1200 | C4: =B4*1.21 -> 1452 | D4: 789.2561983
A5: 120 | B5: =B4+100 -> 1300 | C5: 1573 | D5: 728.5441831
A6: 120 | B6: 1400 | C6: 1694 | D6: 676.5053129
A7: 120 | B7: 1500 | C7: 1815 | D7: 631.4049587
A8: 120 | B8: 1600 | C8: 1936 | D8: 591.9421488
A9: 120 | B9: 1700 | C9: 2057 | D9: 557.1220224
A10: 120 | B10: 1800 | C10: 2178 | D10: 526.1707989
A11: 120 | B11: 1900 | C11: =B11*1.21 -> 2299 | D11: 498.477599
A12: Power (kW) | B12: Engine HS | C12: Power take-off (rpm) | D12: (Nm)
A13: 120 | B13: 900 | C13: =B13*1.52 -> 1368 | D13: =A13*9550/C13 -> 837.7192982
A14: 120 | B14: =B13+100 -> 1000 | C14: 1520 | D14: 753.9473684
A15: 120 | B15: =B14+100 -> 1100 | C15: 1672 | D15: 685.4066986
A16: 120 | B16: 1200 | C16: 1824 | D16: 628.2894737
A17: 120 | B17: 1300 | C17: 1976 | D17: 579.9595142
A18: 120 | B18: 1400 | C18: 2128 | D18: 538.5338346
A19: 120 | B19: 1500 | C19: 2280 | D19: 502.6315789
A20: 120 | B20: 1600 | C20: 2432 | D20: 471.2171053
A21: 120 | B21: 1700 | C21: 2584 | D21: 443.498452
A22: 120 | B22: 1800 | C22: 2736 | D22: 418.8596491
A23: 120 | B23: 1900 | C23: =B23*1.52 -> 2888 | D23: 396.8144044

Sheet EG646F
A1: EG646F
A2: Power (kW) | B2: Engine LS | C2: Power take-off (rpm) | D2: (Nm)
A3: 120 | B3: 1100 | C3: =B3*1.21 -> 1331 | D3: =A3*9550/C3 -> 861.0067618
A4: 120 | B4: 1200 | C4: =B4*1.21 -> 1452 | D4: 789.2561983
A5: 120 | B5: =B4+100 -> 1300 | C5: 1573 | D5: 728.5441831
A6: 120 | B6: 1400 | C6: 1694 | D6: 676.5053129
A7: 120 | B7: 1500 | C7: 1815 | D7: 631.4049587
A8: 120 | B8: 1600 | C8: 1936 | D8: 591.9421488
A9: 120 | B9: 1700 | C9: 2057 | D9: 557.1220224
A10: 120 | B10: 1800 | C10: 2178 | D10: 526.1707989
A11: 120 | B11: 1900 | C11: =B11*1.21 -> 2299 | D11: 498.477599
A12: Power (kW) | B12: Engine HS | C12: Power take-off (rpm) | D12: (Nm)
A13: 120 | B13: 900 | C13: =B13*1.52 -> 1368 | D13: =A13*9550/C13 -> 837.7192982
A14: 120 | B14: =B13+100 -> 1000 | C14: 1520 | D14: 753.9473684
A15: 120 | B15: =B14+100 -> 1100 | C15: 1672 | D15: 685.4066986
A16: 120 | B16: 1200 | C16: 1824 | D16: 628.2894737
A17: 120 | B17: 1300 | C17: =B17*1.52 -> 1976 | D17: 579.9595142
A18: 120 | B18: 1400 | C18: 2128 | D18: 538.5338346
A19: 120 | B19: 1500 | C19: 2280 | D19: 502.6315789
A20: 120 | B20: 1600 | C20: 2432 | D20: 471.2171053
A21: 120 | B21: 1700 | C21: 2584 | D21: 443.498452
A22: 120 | B22: 1800 | C22: 2736 | D22: 418.8596491
A23: 120 | B23: 1900 | C23: =B23*1.52 -> 2888 | D23: 396.8144044

Sheet EG647P
A1: EG647P
A2: Power (kW) | B2: Engine LS | C2: Power take-off (rpm) | D2: (Nm)
A3: 120 | B3: 1200 | C3: =B3*1.53 -> 1836 | D3: =A3*9550/C3 -> 624.1830065
A4: 120 | B4: =B3+100 -> 1300 | C4: 1989 | D4: 576.1689291
A5: 120 | B5: 1400 | C5: 2142 | D5: 535.0140056
A6: 120 | B6: 1500 | C6: 2295 | D6: 499.3464052
A7: 120 | B7: 1600 | C7: 2448 | D7: 468.1372549
A8: 120 | B8: 1700 | C8: 2601 | D8: 440.5997693
A9: 120 | B9: 1800 | C9: =B9*1.53 -> 2754 | D9: 416.1220044
A10: 120 | B10: 1900 | C10: 2907 | D10: 394.2208462
A11: Power (kW) | B11: Engine HS | C11: Power take-off (rpm) | D11: (Nm)
A12: 120 | B12: 1000 | C12: =B12*1.91 -> 1910 | D12: =A12*9550/C12 -> 600
A13: 120 | B13: =B12+100 -> 1100 | C13: =B13*1.91 -> 2101 | D13: 545.4545455
A14: 120 | B14: 1200 | C14: 2292 | D14: 500
A15: 120 | B15: 1300 | C15: 2483 | D15: 461.5384615
A16: 120 | B16: 1400 | C16: 2674 | D16: 428.5714286
A17: 120 | B17: 1500 | C17: 2865 | D17: 400
A18: 120 | B18: 1600 | C18: 3056 | D18: 375
A19: 120 | B19: 1700 | C19: 3247 | D19: 352.9411765
A20: 120 | B20: 1800 | C20: 3438 | D20: 333.3333333
A21: 120 | B21: 1900 | C21: 3629 | D21: 315.7894737

Sheet EG647F
A1: EG647F
A2: Power (kW) | B2: Engine LS | C2: Power take-off (rpm) | D2: (Nm)
A3: 120 | B3: 1200 | C3: =B3*1.53 -> 1836 | D3: =A3*9550/C3 -> 624.1830065
A4: 120 | B4: =B3+100 -> 1300 | C4: 1989 | D4: 576.1689291
A5: 120 | B5: 1400 | C5: 2142 | D5: 535.0140056
A6: 120 | B6: 1500 | C6: 2295 | D6: 499.3464052
A7: 120 | B7: 1600 | C7: 2448 | D7: 468.1372549
A8: 120 | B8: 1700 | C8: 2601 | D8: 440.5997693
A9: 120 | B9: 1800 | C9: =B9*1.53 -> 2754 | D9: 416.1220044
A10: 120 | B10: 1900 | C10: 2907 | D10: 394.2208462
A11: Power (kW) | B11: Engine HS | C11: Power take-off (rpm) | D11: (Nm)
A12: 120 | B12: 1000 | C12: =B12*1.91 -> 1910 | D12: =A12*9550/C12 -> 600
A13: 120 | B13: =B12+100 -> 1100 | C13: =B13*1.91 -> 2101 | D13: 545.4545455
A14: 120 | B14: 1200 | C14: 2292 | D14: 500
A15: 120 | B15: 1300 | C15: 2483 | D15: 461.5384615
A16: 120 | B16: 1400 | C16: 2674 | D16: 428.5714286
A17: 120 | B17: 1500 | C17: 2865 | D17: 400
A18: 120 | B18: 1600 | C18: 3056 | D18: 375
A19: 120 | B19: 1700 | C19: 3247 | D19: 352.9411765
A20: 120 | B20: 1800 | C20: 3438 | D20: 333.3333333
A21: 120 | B21: 1900 | C21: 3629 | D21: 315.7894737

Sheet EG650P
A1: EG650P
A2: Power (kW) | B2: Engine LS | C2: Power take-off (rpm) | D2: (Nm)
A3: 80 | B3: 800 | C3: =B3*1 -> 800 | D3: =A3*9550/C3 -> 955
A4: 80 | B4: 900 | C4: 900 | D4: 848.8888889
A5: 80 | B5: =B4+100 -> 1000 | C5: 1000 | D5: 764
A6: 80 | B6: 1100 | C6: 1100 | D6: 694.5454545
A7: 80 | B7: 1200 | C7: 1200 | D7: 636.6666667
A8: 80 | B8: 1300 | C8: 1300 | D8: 587.6923077
A9: 80 | B9: 1400 | C9: 1400 | D9: 545.7142857
A10: 80 | B10: 1500 | C10: 1500 | D10: 509.3333333
A11: 80 | B11: 1600 | C11: 1600 | D11: 477.5
A12: 80 | B12: 1700 | C12: 1700 | D12: 449.4117647
A13: 80 | B13: 1800 | C13: 1800 | D13: 424.4444444
A14: 80 | B14: 1900 | C14: 1900 | D14: 402.1052632
A15: Power (kW) | B15: Engine HS | C15: Power take-off (rpm) | D15: (Nm)
A16: 80 | B16: 800 | C16: =B16*1.24 -> 992 | D16: =A16*9550/C16 -> 770.1612903
A17: 80 | B17: =B16+100 -> 900 | C17: 1116 | D17: 684.5878136
A18: 80 | B18: 1000 | C18: 1240 | D18: 616.1290323
A19: 80 | B19: 1100 | C19: 1364 | D19: 560.1173021
A20: 80 | B20: 1200 | C20: 1488 | D20: 513.4408602
A21: 80 | B21: 1300 | C21: 1612 | D21: 473.9454094
A22: 80 | B22: 1400 | C22: =B22*1.24 -> 1736 | D22: 440.0921659
A23: 80 | B23: 1500 | C23: 1860 | D23: 410.7526882
A24: 80 | B24: 1600 | C24: =B24*1.24 -> 1984 | D24: 385.0806452
A25: 80 | B25: 1700 | C25: 2108 | D25: 362.4288425
A26: 80 | B26: 1800 | C26: 2232 | D26: 342.2939068
A27: 80 | B27: 1900 | C27: 2356 | D27: 324.278438
A28: Power (kW) | B28: Engine LS | C28: Power take-off (rpm) | D28: (Nm)
A29: 120 | B29: 800 | C29: =B29*1 -> 800 | D29: =A29*9550/C29 -> 1432.5
A30: 120 | B30: 900 | C30: 900 | D30: 1273.333333
A31: 120 | B31: 1000 | C31: 1000 | D31: 1146
A32: 120 | B32: 1100 | C32: 1100 | D32: 1041.818182
A33: 120 | B33: 1200 | C33: 1200 | D33: 955
A34: 120 | B34: 1300 | C34: =B34*1 -> 1300 | D34: 881.5384615
A35: 120 | B35: =B34+100 -> 1400 | C35: =B35*1 -> 1400 | D35: 818.5714286
A36: 120 | B36: 1500 | C36: 1500 | D36: 764
A37: 120 | B37: 1600 | C37: 1600 | D37: 716.25
A38: 120 | B38: 1700 | C38: 1700 | D38: 674.1176471
A39: 120 | B39: 1800 | C39: 1800 | D39: 636.6666667
A40: 120 | B40: 1900 | C40: 1900 | D40: 603.1578947
A41: Power (kW) | B41: Engine HS | C41: Power take-off (rpm) | D41: (Nm)
A42: 120 | B42: 800 | C42: =B42*1.24 -> 992 | D42: =A42*9550/C42 -> 1155.241935
A43: 120 | B43: 900 | C43: =B43*1.24 -> 1116 | D43: 1026.88172
A44: 120 | B44: 1000 | C44: 1240 | D44: 924.1935484
A45: 120 | B45: 1100 | C45: =B45*1.24 -> 1364 | D45: 840.1759531
A46: 120 | B46: =B45+100 -> 1200 | C46: =B46*1.24 -> 1488 | D46: 770.1612903
A47: 120 | B47: 1300 | C47: 1612 | D47: 710.9181141
A48: 120 | B48: 1400 | C48: 1736 | D48: 660.1382488
A49: 120 | B49: 1500 | C49: 1860 | D49: 616.1290323
A50: 120 | B50: 1600 | C50: 1984 | D50: 577.6209677
A51: 120 | B51: 1700 | C51: 2108 | D51: 543.6432638
A52: 120 | B52: 1800 | C52: 2232 | D52: 513.4408602
A53: 120 | B53: 1900 | C53: 2356 | D53: 486.417657

Sheet EG660F
A1: EG660F
A2: Power (kW) | B2: Engine LS | C2: Power take-off (rpm) | D2: (Nm)
A3: 80 | B3: 800 | C3: =B3*1 -> 800 | D3: =A3*9550/C3 -> 955
A4: 80 | B4: 900 | C4: 900 | D4: 848.8888889
A5: 80 | B5: =B4+100 -> 1000 | C5: 1000 | D5: 764
A6: 80 | B6: 1100 | C6: 1100 | D6: 694.5454545
A7: 80 | B7: 1200 | C7: 1200 | D7: 636.6666667
A8: 80 | B8: 1300 | C8: 1300 | D8: 587.6923077
A9: 80 | B9: 1400 | C9: 1400 | D9: 545.7142857
A10: 80 | B10: 1500 | C10: 1500 | D10: 509.3333333
A11: 80 | B11: 1600 | C11: 1600 | D11: 477.5
A12: 80 | B12: 1700 | C12: 1700 | D12: 449.4117647
A13: 80 | B13: 1800 | C13: 1800 | D13: 424.4444444
A14: 80 | B14: 1900 | C14: 1900 | D14: 402.1052632
A15: Power (kW) | B15: Engine HS | C15: Power take-off (rpm) | D15: (Nm)
A16: 80 | B16: 800 | C16: =B16*1.24 -> 992 | D16: =A16*9550/C16 -> 770.1612903
A17: 80 | B17: =B16+100 -> 900 | C17: 1116 | D17: 684.5878136
A18: 80 | B18: 1000 | C18: 1240 | D18: 616.1290323
A19: 80 | B19: 1100 | C19: 1364 | D19: 560.1173021
A20: 80 | B20: 1200 | C20: 1488 | D20: 513.4408602
A21: 80 | B21: 1300 | C21: 1612 | D21: 473.9454094
A22: 80 | B22: 1400 | C22: =B22*1.24 -> 1736 | D22: 440.0921659
A23: 80 | B23: 1500 | C23: 1860 | D23: 410.7526882
A24: 80 | B24: 1600 | C24: =B24*1.24 -> 1984 | D24: 385.0806452
A25: 80 | B25: 1700 | C25: 2108 | D25: 362.4288425
A26: 80 | B26: 1800 | C26: 2232 | D26: 342.2939068
A27: 80 | B27: 1900 | C27: 2356 | D27: 324.278438
A28: Power (kW) | B28: Engine LS | C28: Power take-off (rpm) | D28: (Nm)
A29: 120 | B29: 800 | C29: =B29*1 -> 800 | D29: =A29*9550/C29 -> 1432.5
A30: 120 | B30: 900 | C30: 900 | D30: 1273.333333
A31: 120 | B31: 1000 | C31: 1000 | D31: 1146
A32: 120 | B32: 1100 | C32: 1100 | D32: 1041.818182
A33: 120 | B33: 1200 | C33: 1200 | D33: 955
A34: 120 | B34: 1300 | C34: =B34*1 -> 1300 | D34: 881.5384615
A35: 120 | B35: =B34+100 -> 1400 | C35: =B35*1 -> 1400 | D35: 818.5714286
A36: 120 | B36: 1500 | C36: 1500 | D36: 764
A37: 120 | B37: 1600 | C37: 1600 | D37: 716.25
A38: 120 | B38: 1700 | C38: 1700 | D38: 674.1176471
A39: 120 | B39: 1800 | C39: 1800 | D39: 636.6666667
A40: 120 | B40: 1900 | C40: 1900 | D40: 603.1578947
A41: Power (kW) | B41: Engine HS | C41: Power take-off (rpm) | D41: (Nm)
A42: 120 | B42: 800 | C42: =B42*1.24 -> 992 | D42: =A42*9550/C42 -> 1155.241935
A43: 120 | B43: 900 | C43: =B43*1.24 -> 1116 | D43: 1026.88172
A44: 120 | B44: 1000 | C44: 1240 | D44: 924.1935484
A45: 120 | B45: 1100 | C45: =B45*1.24 -> 1364 | D45: 840.1759531
A46: 120 | B46: =B45+100 -> 1200 | C46: =B46*1.24 -> 1488 | D46: 770.1612903
A47: 120 | B47: 1300 | C47: 1612 | D47: 710.9181141
A48: 120 | B48: 1400 | C48: 1736 | D48: 660.1382488
A49: 120 | B49: 1500 | C49: 1860 | D49: 616.1290323
A50: 120 | B50: 1600 | C50: 1984 | D50: 577.6209677
A51: 120 | B51: 1700 | C51: 2108 | D51: 543.6432638
A52: 120 | B52: 1800 | C52: 2232 | D52: 513.4408602
A53: 120 | B53: 1900 | C53: 2356 | D53: 486.417657

Sheet EG651P
A1: EG651P
A2: Power (kW) | B2: Engine LS | C2: Power take-off (rpm) | D2: (Nm)
A3: 80 | B3: 800 | C3: =B3*1.28 -> 1024 | D3: =A3*9550/C3 -> 746.09375
A4: 80 | B4: 900 | C4: 1152 | D4: 663.1944444
A5: 80 | B5: =B4+100 -> 1000 | C5: 1280 | D5: 596.875
A6: 80 | B6: 1100 | C6: 1408 | D6: 542.6136364
A7: 80 | B7: 1200 | C7: 1536 | D7: 497.3958333
A8: 80 | B8: 1300 | C8: 1664 | D8: 459.1346154
A9: 80 | B9: 1400 | C9: 1792 | D9: 426.3392857
A10: 80 | B10: 1500 | C10: 1920 | D10: 397.9166667
A11: 80 | B11: 1600 | C11: 2048 | D11: 373.046875
A12: 80 | B12: 1700 | C12: 2176 | D12: 351.1029412
A13: 80 | B13: 1800 | C13: 2304 | D13: 331.5972222
A14: 80 | B14: 1900 | C14: =B14*1.28 -> 2432 | D14: 314.1447368
A15: Power (kW) | B15: Engine HS | C15: Power take-off (rpm) | D15: (Nm)
A16: 80 | B16: 800 | C16: =B16*1.58 -> 1264 | D16: =A16*9550/C16 -> 604.4303797
A17: 80 | B17: =B16+100 -> 900 | C17: 1422 | D17: 537.2714487
A18: 80 | B18: 1000 | C18: 1580 | D18: 483.5443038
A19: 80 | B19: 1100 | C19: 1738 | D19: 439.5857307
A20: 80 | B20: 1200 | C20: 1896 | D20: 402.9535865
A21: 80 | B21: 1300 | C21: 2054 | D21: 371.9571568
A22: 80 | B22: 1400 | C22: 2212 | D22: 345.3887884
A23: 80 | B23: 1500 | C23: 2370 | D23: 322.3628692
A24: 80 | B24: 1600 | C24: 2528 | D24: 302.2151899
A25: 80 | B25: 1700 | C25: 2686 | D25: 284.4378258
A26: 80 | B26: 1800 | C26: 2844 | D26: 268.6357243
A27: 80 | B27: 1900 | C27: 3002 | D27: 254.497002
A28: Power (kW) | B28: Engine LS | C28: Power take-off (rpm) | D28: (Nm)
A29: 120 | B29: 1100 | C29: =B29*1.28 -> 1408 | D29: =A29*9550/C29 -> 813.9204545
A30: 120 | B30: 1200 | C30: 1536 | D30: 746.09375
A31: 120 | B31: 1300 | C31: 1664 | D31: 688.7019231
A32: 120 | B32: =B31+100 -> 1400 | C32: 1792 | D32: 639.5089286
A33: 120 | B33: 1500 | C33: 1920 | D33: 596.875
A34: 120 | B34: 1600 | C34: 2048 | D34: 559.5703125
A35: 120 | B35: 1700 | C35: 2176 | D35: 526.6544118
A36: 120 | B36: 1800 | C36: 2304 | D36: 497.3958333
A37: 120 | B37: 1900 | C37: 2432 | D37: 471.2171053
A38: Power (kW) | B38: Engine HS | C38: Power take-off (rpm) | D38: (Nm)
A39: 120 | B39: 900 | C39: =B39*1.58 -> 1422 | D39: =A39*9550/C39 -> 805.907173
A40: 120 | B40: 1000 | C40: 1580 | D40: 725.3164557
A41: 120 | B41: 1100 | C41: 1738 | D41: 659.3785961
A42: 120 | B42: =B41+100 -> 1200 | C42: 1896 | D42: 604.4303797
A43: 120 | B43: 1300 | C43: 2054 | D43: 557.9357352
A44: 120 | B44: 1400 | C44: 2212 | D44: 518.0831826
A45: 120 | B45: 1500 | C45: 2370 | D45: 483.5443038
A46: 120 | B46: 1600 | C46: 2528 | D46: 453.3227848
A47: 120 | B47: 1700 | C47: 2686 | D47: 426.6567386
A48: 120 | B48: 1800 | C48: 2844 | D48: 402.9535865
A49: 120 | B49: 1900 | C49: =B49*1.58 -> 3002 | D49: 381.745503

Sheet EG661F
A1: EG661F
A2: Power (kW) | B2: Engine LS | C2: Power take-off (rpm) | D2: (Nm)
A3: 80 | B3: 800 | C3: =B3*1.28 -> 1024 | D3: =A3*9550/C3 -> 746.09375
A4: 80 | B4: =B3+100 -> 900 | C4: 1152 | D4: 663.1944444
A5: 80 | B5: 1000 | C5: 1280 | D5: 596.875
A6: 80 | B6: 1100 | C6: 1408 | D6: 542.6136364
A7: 80 | B7: 1200 | C7: 1536 | D7: 497.3958333
A8: 80 | B8: 1300 | C8: 1664 | D8: 459.1346154
A9: 80 | B9: 1400 | C9: 1792 | D9: 426.3392857
A10: 80 | B10: 1500 | C10: 1920 | D10: 397.9166667
A11: 80 | B11: 1600 | C11: 2048 | D11: 373.046875
A12: 80 | B12: 1700 | C12: 2176 | D12: 351.1029412
A13: 80 | B13: 1800 | C13: 2304 | D13: 331.5972222
A14: 80 | B14: 1900 | C14: 2432 | D14: 314.1447368
A15: Power (kW) | B15: Engine HS | C15: Power take-off (rpm) | D15: (Nm)
A16: 80 | B16: 800 | C16: =B16*1.58 -> 1264 | D16: =A16*9550/C16 -> 604.4303797
A17: 80 | B17: =B16+100 -> 900 | C17: 1422 | D17: 537.2714487
A18: 80 | B18: 1000 | C18: 1580 | D18: 483.5443038
A19: 80 | B19: 1100 | C19: 1738 | D19: 439.5857307
A20: 80 | B20: 1200 | C20: 1896 | D20: 402.9535865
A21: 80 | B21: 1300 | C21: 2054 | D21: 371.9571568
A22: 80 | B22: 1400 | C22: 2212 | D22: 345.3887884
A23: 80 | B23: 1500 | C23: 2370 | D23: 322.3628692
A24: 80 | B24: 1600 | C24: 2528 | D24: 302.2151899
A25: 80 | B25: 1700 | C25: 2686 | D25: 284.4378258
A26: 80 | B26: 1800 | C26: 2844 | D26: 268.6357243
A27: 80 | B27: 1900 | C27: 3002 | D27: 254.497002
A28: Power (kW) | B28: Engine LS | C28: Power take-off (rpm) | D28: (Nm)
A29: 120 | B29: 1100 | C29: =B29*1.28 -> 1408 | D29: =A29*9550/C29 -> 813.9204545
A30: 120 | B30: =B29+100 -> 1200 | C30: 1536 | D30: 746.09375
A31: 120 | B31: 1300 | C31: 1664 | D31: 688.7019231
A32: 120 | B32: 1400 | C32: 1792 | D32: 639.5089286
A33: 120 | B33: 1500 | C33: 1920 | D33: 596.875
A34: 120 | B34: 1600 | C34: 2048 | D34: 559.5703125
A35: 120 | B35: 1700 | C35: 2176 | D35: 526.6544118
A36: 120 | B36: 1800 | C36: 2304 | D36: 497.3958333
A37: 120 | B37: 1900 | C37: 2432 | D37: 471.2171053
A38: Power (kW) | B38: Engine HS | C38: Power take-off (rpm) | D38: (Nm)
A39: 120 | B39: 900 | C39: =B39*1.58 -> 1422 | D39: =A39*9550/C39 -> 805.907173
A40: 120 | B40: =B39+100 -> 1000 | C40: 1580 | D40: 725.3164557
A41: 120 | B41: 1100 | C41: 1738 | D41: 659.3785961
A42: 120 | B42: 1200 | C42: 1896 | D42: =A42*9550/C42 -> 604.4303797
A43: 120 | B43: 1300 | C43: 2054 | D43: 557.9357352
A44: 120 | B44: 1400 | C44: 2212 | D44: 518.0831826
A45: 120 | B45: 1500 | C45: 2370 | D45: 483.5443038
A46: 120 | B46: 1600 | C46: 2528 | D46: 453.3227848
A47: 120 | B47: 1700 | C47: 2686 | D47: 426.6567386
A48: 120 | B48: 1800 | C48: 2844 | D48: 402.9535865
A49: 120 | B49: 1900 | C49: 3002 | D49: 381.745503

Sheet EG652P
A1: EG652P
A2: Power (kW) | B2: Engine LS | C2: Power take-off (rpm) | D2: (Nm)
A3: 80 | B3: 800 | C3: =B3*0.82 -> 656 | D3: =A3*9550/C3 -> 1164.634146
A4: 80 | B4: 900 | C4: 738 | D4: 1035.230352
A5: 80 | B5: =B4+100 -> 1000 | C5: 820 | D5: 931.7073171
A6: 80 | B6: 1100 | C6: 902 | D6: 847.0066519
A7: 80 | B7: 1200 | C7: 984 | D7: 776.4227642
A8: 80 | B8: 1300 | C8: 1066 | D8: 716.6979362
A9: 80 | B9: 1400 | C9: 1148 | D9: 665.5052265
A10: 80 | B10: 1500 | C10: 1230 | D10: 621.1382114
A11: 80 | B11: 1600 | C11: 1312 | D11: 582.3170732
A12: 80 | B12: 1700 | C12: 1394 | D12: 548.0631277
A13: 80 | B13: 1800 | C13: 1476 | D13: 517.6151762
A14: 80 | B14: 1900 | C14: 1558 | D14: 490.3722721
A15: Power (kW) | B15: Engine HS | C15: Power take-off (rpm) | D15: (Nm)
A16: 80 | B16: 800 | C16: =B16*1.03 -> 824 | D16: =A16*9550/C16 -> 927.184466
A17: 80 | B17: =B16+100 -> 900 | C17: 927 | D17: 824.1639698
A18: 80 | B18: 1000 | C18: 1030 | D18: 741.7475728
A19: 80 | B19: 1100 | C19: 1133 | D19: 674.3159753
A20: 80 | B20: 1200 | C20: 1236 | D20: 618.1229773
A21: 80 | B21: 1300 | C21: 1339 | D21: 570.575056
A22: 80 | B22: 1400 | C22: 1442 | D22: 529.8196949
A23: 80 | B23: 1500 | C23: 1545 | D23: 494.4983819
A24: 80 | B24: 1600 | C24: 1648 | D24: 463.592233
A25: 80 | B25: 1700 | C25: 1751 | D25: 436.3221017
A26: 80 | B26: 1800 | C26: 1854 | D26: 412.0819849
A27: 80 | B27: 1900 | C27: 1957 | D27: 390.3934594
A28: Power (kW) | B28: Engine LS | C28: Power take-off (rpm) | D28: (Nm)
A29: 120 | B29: 1000 | C29: =B29*0.82 -> 820 | D29: =A29*9550/C29 -> 1397.560976
A30: 120 | B30: 1100 | C30: =B30*0.82 -> 902 | D30: 1270.509978
A31: 120 | B31: 1200 | C31: =B31*0.82 -> 984 | D31: 1164.634146
A32: 120 | B32: 1300 | C32: =B32*0.82 -> 1066 | D32: 1075.046904
A33: 120 | B33: =B32+100 -> 1400 | C33: 1148 | D33: 998.2578397
A34: 120 | B34: 1500 | C34: 1230 | D34: 931.7073171
A35: 120 | B35: 1600 | C35: 1312 | D35: 873.4756098
A36: 120 | B36: 1700 | C36: 1394 | D36: 822.0946915
A37: 120 | B37: 1800 | C37: 1476 | D37: 776.4227642
A38: 120 | B38: 1900 | C38: 1558 | D38: 735.5584082
A39: Power (kW) | B39: Engine HS | C39: Power take-off (rpm) | D39: (Nm)
A40: 120 | B40: 800 | C40: =B40*1.03 -> 824 | D40: =A40*9550/C40 -> 1390.776699
A41: 120 | B41: 900 | C41: =B41*1.03 -> 927 | D41: =A41*9550/C41 -> 1236.245955
A42: 120 | B42: 1000 | C42: =B42*1.03 -> 1030 | D42: =A42*9550/C42 -> 1112.621359
A43: 120 | B43: 1100 | C43: 1133 | D43: 1011.473963
A44: 120 | B44: =B43+100 -> 1200 | C44: 1236 | D44: 927.184466
A45: 120 | B45: 1300 | C45: 1339 | D45: 855.862584
A46: 120 | B46: 1400 | C46: 1442 | D46: 794.7295423
A47: 120 | B47: 1500 | C47: 1545 | D47: 741.7475728
A48: 120 | B48: 1600 | C48: 1648 | D48: 695.3883495
A49: 120 | B49: 1700 | C49: 1751 | D49: 654.4831525
A50: 120 | B50: 1800 | C50: 1854 | D50: 618.1229773
A51: 120 | B51: 1900 | C51: 1957 | D51: 585.5901891

Sheet EG662F
A1: EG662F
A2: Power (kW) | B2: Engine LS | C2: Power take-off (rpm) | D2: (Nm)
A3: 80 | B3: 800 | C3: =B3*0.82 -> 656 | D3: =A3*9550/C3 -> 1164.634146
A4: 80 | B4: 900 | C4: 738 | D4: 1035.230352
A5: 80 | B5: =B4+100 -> 1000 | C5: 820 | D5: 931.7073171
A6: 80 | B6: 1100 | C6: 902 | D6: 847.0066519
A7: 80 | B7: 1200 | C7: 984 | D7: 776.4227642
A8: 80 | B8: 1300 | C8: 1066 | D8: 716.6979362
A9: 80 | B9: 1400 | C9: 1148 | D9: 665.5052265
A10: 80 | B10: 1500 | C10: 1230 | D10: 621.1382114
A11: 80 | B11: 1600 | C11: 1312 | D11: 582.3170732
A12: 80 | B12: 1700 | C12: 1394 | D12: 548.0631277
A13: 80 | B13: 1800 | C13: 1476 | D13: 517.6151762
A14: 80 | B14: 1900 | C14: 1558 | D14: 490.3722721
A15: Power (kW) | B15: Engine HS | C15: Power take-off (rpm) | D15: (Nm)
A16: 80 | B16: 800 | C16: =B16*1.03 -> 824 | D16: =A16*9550/C16 -> 927.184466
A17: 80 | B17: =B16+100 -> 900 | C17: 927 | D17: 824.1639698
A18: 80 | B18: 1000 | C18: 1030 | D18: 741.7475728
A19: 80 | B19: 1100 | C19: 1133 | D19: 674.3159753
A20: 80 | B20: 1200 | C20: 1236 | D20: 618.1229773
A21: 80 | B21: 1300 | C21: 1339 | D21: 570.575056
A22: 80 | B22: 1400 | C22: 1442 | D22: 529.8196949
A23: 80 | B23: 1500 | C23: 1545 | D23: 494.4983819
A24: 80 | B24: 1600 | C24: 1648 | D24: 463.592233
A25: 80 | B25: 1700 | C25: 1751 | D25: 436.3221017
A26: 80 | B26: 1800 | C26: 1854 | D26: 412.0819849
A27: 80 | B27: 1900 | C27: 1957 | D27: 390.3934594
A28: Power (kW) | B28: Engine LS | C28: Power take-off (rpm) | D28: (Nm)
A29: 120 | B29: 1000 | C29: =B29*0.82 -> 820 | D29: =A29*9550/C29 -> 1397.560976
A30: 120 | B30: 1100 | C30: =B30*0.82 -> 902 | D30: 1270.509978
A31: 120 | B31: 1200 | C31: =B31*0.82 -> 984 | D31: 1164.634146
A32: 120 | B32: 1300 | C32: =B32*0.82 -> 1066 | D32: 1075.046904
A33: 120 | B33: =B32+100 -> 1400 | C33: 1148 | D33: 998.2578397
A34: 120 | B34: 1500 | C34: 1230 | D34: 931.7073171
A35: 120 | B35: 1600 | C35: 1312 | D35: 873.4756098
A36: 120 | B36: 1700 | C36: 1394 | D36: 822.0946915
A37: 120 | B37: 1800 | C37: 1476 | D37: 776.4227642
A38: 120 | B38: 1900 | C38: 1558 | D38: 735.5584082
A39: Power (kW) | B39: Engine HS | C39: Power take-off (rpm) | D39: (Nm)
A40: 120 | B40: 800 | C40: =B40*1.03 -> 824 | D40: =A40*9550/C40 -> 1390.776699
A41: 120 | B41: 900 | C41: =B41*1.03 -> 927 | D41: =A41*9550/C41 -> 1236.245955
A42: 120 | B42: 1000 | C42: =B42*1.03 -> 1030 | D42: =A42*9550/C42 -> 1112.621359
A43: 120 | B43: 1100 | C43: 1133 | D43: 1011.473963
A44: 120 | B44: =B43+100 -> 1200 | C44: 1236 | D44: 927.184466
A45: 120 | B45: 1300 | C45: 1339 | D45: 855.862584
A46: 120 | B46: 1400 | C46: 1442 | D46: 794.7295423
A47: 120 | B47: 1500 | C47: 1545 | D47: 741.7475728
A48: 120 | B48: 1600 | C48: 1648 | D48: 695.3883495
A49: 120 | B49: 1700 | C49: 1751 | D49: 654.4831525
A50: 120 | B50: 1800 | C50: 1854 | D50: 618.1229773
A51: 120 | B51: 1900 | C51: 1957 | D51: 585.5901891

Sheet EG653P
A1: EG653P
A2: Power (kW) | B2: Engine LS | C2: Power take-off (rpm) | D2: (Nm)
A3: 80 | B3: 900 | C3: =B3*1.03 -> 927 | D3: =A3*9550/C3 -> 824.1639698
A4: 80 | B4: =B3+100 -> 1000 | C4: 1030 | D4: 741.7475728
A5: 80 | B5: 1100 | C5: 1133 | D5: 674.3159753
A6: 80 | B6: 1200 | C6: 1236 | D6: 618.1229773
A7: 80 | B7: 1300 | C7: 1339 | D7: 570.575056
A8: 80 | B8: 1400 | C8: 1442 | D8: 529.8196949
A9: 80 | B9: 1500 | C9: 1545 | D9: 494.4983819
A10: 80 | B10: 1600 | C10: 1648 | D10: 463.592233
A11: 80 | B11: 1700 | C11: 1751 | D11: 436.3221017
A12: 80 | B12: 1800 | C12: 1854 | D12: 412.0819849
A13: 80 | B13: 1900 | C13: =B13*1.03 -> 1957 | D13: 390.3934594
A14: Power (kW) | B14: Engine HS | C14: Power take-off (rpm) | D14: (Nm)
A15: 80 | B15: 800 | C15: =B15*1.29 -> 1032 | D15: =A15*9550/C15 -> 740.3100775
A16: 80 | B16: =B15+100 -> 900 | C16: 1161 | D16: 658.0534022
A17: 80 | B17: 1000 | C17: 1290 | D17: 592.248062
A18: 80 | B18: 1100 | C18: 1419 | D18: 538.4073291
A19: 80 | B19: 1200 | C19: 1548 | D19: 493.5400517
A20: 80 | B20: 1300 | C20: 1677 | D20: 455.5754323
A21: 80 | B21: 1400 | C21: 1806 | D21: 423.03433
A22: 80 | B22: 1500 | C22: 1935 | D22: 394.8320413
A23: 80 | B23: 1600 | C23: 2064 | D23: 370.1550388
A24: 80 | B24: 1700 | C24: 2193 | D24: 348.381213
A25: 80 | B25: 1800 | C25: 2322 | D25: 329.0267011
A26: 80 | B26: 1900 | C26: =B26*1.29 -> 2451 | D26: 311.7095063
A27: Power (kW) | B27: Engine LS | C27: Power take-off (rpm) | D27: (Nm)
A28: 120 | B28: 1300 | C28: =B28*1.03 -> 1339 | D28: =A28*9550/C28 -> 855.862584
A29: 120 | B29: =B28+100 -> 1400 | C29: 1442 | D29: 794.7295423
A30: 120 | B30: 1500 | C30: 1545 | D30: 741.7475728
A31: 120 | B31: 1600 | C31: 1648 | D31: 695.3883495
A32: 120 | B32: 1700 | C32: 1751 | D32: 654.4831525
A33: 120 | B33: 1800 | C33: =B33*1.03 -> 1854 | D33: 618.1229773
A34: 120 | B34: 1900 | C34: 1957 | D34: 585.5901891
A35: Power (kW) | B35: Engine HS | C35: Power take-off (rpm) | D35: (Nm)
A36: 120 | B36: 1100 | C36: =B36*1.29 -> 1419 | D36: =A36*9550/C36 -> 807.6109937
A37: 120 | B37: =B36+100 -> 1200 | C37: 1548 | D37: 740.3100775
A38: 120 | B38: 1300 | C38: 1677 | D38: 683.3631485
A39: 120 | B39: 1400 | C39: 1806 | D39: 634.551495
A40: 120 | B40: 1500 | C40: 1935 | D40: 592.248062
A41: 120 | B41: 1600 | C41: 2064 | D41: 555.2325581
A42: 120 | B42: 1700 | C42: 2193 | D42: 522.5718194
A43: 120 | B43: 1800 | C43: 2322 | D43: 493.5400517
A44: 120 | B44: 1900 | C44: 2451 | D44: 467.5642595

Sheet EG663F
A1: EG663F
A2: Power (kW) | B2: Engine LS | C2: Power take-off (rpm) | D2: (Nm)
A3: 80 | B3: 900 | C3: =B3*1.03 -> 927 | D3: =A3*9550/C3 -> 824.1639698
A4: 80 | B4: =B3+100 -> 1000 | C4: 1030 | D4: 741.7475728
A5: 80 | B5: 1100 | C5: 1133 | D5: 674.3159753
A6: 80 | B6: 1200 | C6: 1236 | D6: 618.1229773
A7: 80 | B7: 1300 | C7: 1339 | D7: 570.575056
A8: 80 | B8: 1400 | C8: 1442 | D8: 529.8196949
A9: 80 | B9: 1500 | C9: 1545 | D9: 494.4983819
A10: 80 | B10: 1600 | C10: 1648 | D10: 463.592233
A11: 80 | B11: 1700 | C11: 1751 | D11: 436.3221017
A12: 80 | B12: 1800 | C12: 1854 | D12: 412.0819849
A13: 80 | B13: 1900 | C13: 1957 | D13: 390.3934594
A14: Power (kW) | B14: Engine HS | C14: Power take-off (rpm) | D14: (Nm)
A15: 80 | B15: 800 | C15: =B15*1.29 -> 1032 | D15: =A15*9550/C15 -> 740.3100775
A16: 80 | B16: =B15+100 -> 900 | C16: 1161 | D16: 658.0534022
A17: 80 | B17: 1000 | C17: 1290 | D17: 592.248062
A18: 80 | B18: 1100 | C18: 1419 | D18: 538.4073291
A19: 80 | B19: 1200 | C19: 1548 | D19: 493.5400517
A20: 80 | B20: 1300 | C20: 1677 | D20: 455.5754323
A21: 80 | B21: 1400 | C21: 1806 | D21: 423.03433
A22: 80 | B22: 1500 | C22: 1935 | D22: 394.8320413
A23: 80 | B23: 1600 | C23: 2064 | D23: 370.1550388
A24: 80 | B24: 1700 | C24: 2193 | D24: 348.381213
A25: 80 | B25: 1800 | C25: 2322 | D25: 329.0267011
A26: 80 | B26: 1900 | C26: 2451 | D26: 311.7095063
A27: Power (kW) | B27: Engine LS | C27: Power take-off (rpm) | D27: (Nm)
A28: 120 | B28: 1300 | C28: =B28*1.03 -> 1339 | D28: =A28*9550/C28 -> 855.862584
A29: 120 | B29: =B28+100 -> 1400 | C29: 1442 | D29: 794.7295423
A30: 120 | B30: 1500 | C30: 1545 | D30: 741.7475728
A31: 120 | B31: 1600 | C31: 1648 | D31: 695.3883495
A32: 120 | B32: 1700 | C32: 1751 | D32: 654.4831525
A33: 120 | B33: 1800 | C33: 1854 | D33: 618.1229773
A34: 120 | B34: 1900 | C34: 1957 | D34: 585.5901891
A35: Power (kW) | B35: Engine HS | C35: Power take-off (rpm) | D35: (Nm)
A36: 120 | B36: 1100 | C36: =B36*1.29 -> 1419 | D36: =A36*9550/C36 -> 807.6109937
A37: 120 | B37: =B36+100 -> 1200 | C37: 1548 | D37: 740.3100775
A38: 120 | B38: 1300 | C38: 1677 | D38: 683.3631485
A39: 120 | B39: 1400 | C39: 1806 | D39: 634.551495
A40: 120 | B40: 1500 | C40: 1935 | D40: 592.248062
A41: 120 | B41: 1600 | C41: 2064 | D41: 555.2325581
A42: 120 | B42: 1700 | C42: 2193 | D42: 522.5718194
A43: 120 | B43: 1800 | C43: 2322 | D43: 493.5400517
A44: 120 | B44: 1900 | C44: 2451 | D44: 467.5642595

Sheet EG670F
A1: EG670F
A2: Power (kW) | B2: Engine LS | C2: Power take-off (rpm) | D2: (Nm)
A3: 110 | B3: 1300 | C3: =B3*1.61 -> 2093 | D3: =A3*9550/C3 -> 501.9111323
A4: 110 | B4: =B3+100 -> 1400 | C4: 2254 | D4: 466.0603372
A5: 110 | B5: 1500 | C5: 2415 | D5: 434.989648
A6: 110 | B6: 1600 | C6: 2576 | D6: 407.802795
A7: 110 | B7: 1700 | C7: 2737 | D7: 383.8143953
A8: 110 | B8: 1800 | C8: 2898 | D8: 362.4913734
A9: 110 | B9: 1900 | C9: 3059 | D9: 343.41288
A10: Power (kW) | B10: Engine HS | C10: Power take-off (rpm) | D10: (Nm)
A11: 110 | B11: 1000 | C11: =B11*1.99 -> 1990 | D11: =A11*9550/C11 -> 527.8894472
A12: 110 | B12: =B11+100 -> 1100 | C12: 2189 | D12: 479.8994975
A13: 110 | B13: 1200 | C13: 2388 | D13: 439.9078727
A14: 110 | B14: 1300 | C14: 2587 | D14: 406.0688056
A15: 110 | B15: 1400 | C15: 2786 | D15: 377.0638909
A16: 110 | B16: 1500 | C16: 2985 | D16: 351.9262982
A17: 110 | B17: 1600 | C17: 3184 | D17: 329.9309045
A18: 110 | B18: 1700 | C18: 3383 | D18: 310.5232043
A19: 110 | B19: 1800 | C19: 3582 | D19: 293.2719151
A20: 110 | B20: 1900 | C20: 3781 | D20: 277.8365512

Sheet EG671F
A1: EG671F
A2: Power (kW) | B2: Engine LS | C2: Power take-off (rpm) | D2: (Nm)
A3: 110 | B3: 1000 | C3: =B3*2.06 -> 2060 | D3: =A3*9550/C3 -> 509.9514563
A4: 110 | B4: 1100 | C4: =B4*2.06 -> 2266 | D4: 463.592233
A5: 110 | B5: 1200 | C5: 2472 | D5: 424.9595469
A6: 110 | B6: 1300 | C6: =B6*2.06 -> 2678 | D6: 392.270351
A7: 110 | B7: =B6+100 -> 1400 | C7: =B7*2.06 -> 2884 | D7: 364.2510402
A8: 110 | B8: 1500 | C8: 3090 | D8: 339.9676375
A9: 110 | B9: 1600 | C9: 3296 | D9: 318.7196602
A10: 110 | B10: 1700 | C10: 3502 | D10: 299.9714449
A11: 110 | B11: 1800 | C11: =B11*2.06 -> 3708 | D11: 283.3063646
A12: 110 | B12: 1900 | C12: 3914 | D12: 268.3955033
A13: Power (kW) | B13: Engine HS | C13: Power take-off (rpm) | D13: (Nm)
A14: 110 | B14: 800 | C14: =B14*2.55 -> 2040 | D14: =A14*9550/C14 -> 514.9509804
A15: 110 | B15: 900 | C15: 2295 | D15: 457.7342048
A16: 110 | B16: 1000 | C16: =B16*2.55 -> 2550 | D16: 411.9607843
A17: 110 | B17: =B16+100 -> 1100 | C17: =B17*2.55 -> 2805 | D17: 374.5098039
A18: 110 | B18: 1200 | C18: 3060 | D18: 343.3006536
A19: 110 | B19: 1300 | C19: 3315 | D19: 316.892911
A20: 110 | B20: 1400 | C20: 3570 | D20: 294.2577031
A21: 110 | B21: 1500 | C21: 3825 | D21: 274.6405229
A22: 110 | B22: 1600 | C22: 4080 | D22: 257.4754902
A23: 110 | B23: 1700 | C23: 4335 | D23: 242.3298731
A24: 110 | B24: 1800 | C24: 4590 | D24: 228.8671024
A25: 110 | B25: 1900 | C25: 4845 | D25: 216.8214654

Sheet EG672F
A1: EG672F
A2: Power (kW) | B2: Engine LS | C2: Power take-off (rpm) | D2: (Nm)
A3: 110 | B3: 1200 | C3: =B3*1.66 -> 1992 | D3: =A3*9550/C3 -> 527.3594378
A4: 110 | B4: 1300 | C4: 2158 | D4: 486.7933272
A5: 110 | B5: =B4+100 -> 1400 | C5: 2324 | D5: 452.0223752
A6: 110 | B6: 1500 | C6: 2490 | D6: 421.8875502
A7: 110 | B7: 1600 | C7: 2656 | D7: 395.5195783
A8: 110 | B8: 1700 | C8: 2822 | D8: 372.2537208
A9: 110 | B9: 1800 | C9: 2988 | D9: 351.5729585
A10: 110 | B10: 1900 | C10: 3154 | D10: 333.0691186
A11: Power (kW) | B11: Engine HS | C11: Power take-off (rpm) | D11: (Nm)
A12: 110 | B12: 1000 | C12: =B12*2.08 -> 2080 | D12: =A12*9550/C12 -> 505.0480769
A13: 110 | B13: =B12+100 -> 1100 | C13: 2288 | D13: 459.1346154
A14: 110 | B14: 1200 | C14: 2496 | D14: 420.8733974
A15: 110 | B15: 1300 | C15: 2704 | D15: 388.4985207
A16: 110 | B16: 1400 | C16: 2912 | D16: 360.7486264
A17: 110 | B17: 1500 | C17: 3120 | D17: 336.6987179
A18: 110 | B18: 1600 | C18: 3328 | D18: 315.6550481
A19: 110 | B19: 1700 | C19: 3536 | D19: 297.0871041
A20: 110 | B20: 1800 | C20: 3744 | D20: 280.582265
A21: 110 | B21: 1900 | C21: 3952 | D21: 265.8147773

Sheet EG670PF U
A1: EG670PF U
A2: Power (kW) | B2: Engine LS | C2: Power take-off (rpm) | D2: (Nm)
A3: 110 | B3: 1000 | C3: =B3*1.21 -> 1210 | D3: =A3*9550/C3 -> 868.1818182
A4: 110 | B4: 1100 | C4: 1331 | D4: 789.2561983
A5: 110 | B5: 1200 | C5: =B5*1.21 -> 1452 | D5: 723.4848485
A6: 110 | B6: 1300 | C6: =B6*1.21 -> 1573 | D6: 667.8321678
A7: 110 | B7: =B6+100 -> 1400 | C7: =B7*1.21 -> 1694 | D7: 620.1298701
A8: 110 | B8: 1500 | C8: 1815 | D8: 578.7878788
A9: 110 | B9: 1600 | C9: 1936 | D9: 542.6136364
A10: 110 | B10: 1700 | C10: 2057 | D10: 510.6951872
A11: 110 | B11: 1800 | C11: =B11*1.21 -> 2178 | D11: 482.3232323
A12: 110 | B12: 1900 | C12: 2299 | D12: 456.937799
A13: Power (kW) | B13: Engine HS | C13: Power take-off (rpm) | D13: (Nm)
A14: 110 | B14: 800 | C14: =B14*1.49 -> 1192 | D14: =A14*9550/C14 -> 881.2919463
A15: 110 | B15: 900 | C15: =B15*1.49 -> 1341 | D15: 783.3706189
A16: 110 | B16: 1000 | C16: =B16*1.49 -> 1490 | D16: 705.033557
A17: 110 | B17: =B16+100 -> 1100 | C17: =B17*1.49 -> 1639 | D17: 640.9395973
A18: 110 | B18: 1200 | C18: 1788 | D18: 587.5279642
A19: 110 | B19: 1300 | C19: 1937 | D19: 542.3335054
A20: 110 | B20: 1400 | C20: 2086 | D20: 503.5953979
A21: 110 | B21: 1500 | C21: 2235 | D21: 470.0223714
A22: 110 | B22: 1600 | C22: 2384 | D22: 440.6459732
A23: 110 | B23: 1700 | C23: 2533 | D23: 414.7256218
A24: 110 | B24: 1800 | C24: 2682 | D24: 391.6853095
A25: 110 | B25: 1900 | C25: =B25*1.49 -> 2831 | D25: 371.0702932

Sheet EG670PF L
A1: EG670PF L
A2: Power (kW) | B2: Engine LS | C2: Power take-off (rpm) | D2: (Nm)
A3: 110 | B3: 1300 | C3: =B3*1.61 -> 2093 | D3: =A3*9550/C3 -> 501.9111323
A4: 110 | B4: =B3+100 -> 1400 | C4: 2254 | D4: 466.0603372
A5: 110 | B5: 1500 | C5: 2415 | D5: 434.989648
A6: 110 | B6: 1600 | C6: 2576 | D6: 407.802795
A7: 110 | B7: 1700 | C7: 2737 | D7: 383.8143953
A8: 110 | B8: 1800 | C8: 2898 | D8: 362.4913734
A9: 110 | B9: 1900 | C9: 3059 | D9: 343.41288
A10: Power (kW) | B10: Engine HS | C10: Power take-off (rpm) | D10: (Nm)
A11: 110 | B11: 1000 | C11: =B11*1.99 -> 1990 | D11: =A11*9550/C11 -> 527.8894472
A12: 110 | B12: =B11+100 -> 1100 | C12: 2189 | D12: 479.8994975
A13: 110 | B13: 1200 | C13: 2388 | D13: 439.9078727
A14: 110 | B14: 1300 | C14: 2587 | D14: 406.0688056
A15: 110 | B15: 1400 | C15: 2786 | D15: 377.0638909
A16: 110 | B16: 1500 | C16: 2985 | D16: 351.9262982
A17: 110 | B17: 1600 | C17: 3184 | D17: 329.9309045
A18: 110 | B18: 1700 | C18: 3383 | D18: 310.5232043
A19: 110 | B19: 1800 | C19: 3582 | D19: 293.2719151
A20: 110 | B20: 1900 | C20: =B20*1.99 -> 3781 | D20: 277.8365512

Sheet EG671PF U
A1: EG671PF U
A2: Power (kW) | B2: Engine LS | C2: Power take-off (rpm) | D2: (Nm)
A3: 110 | B3: 1100 | C3: =B3*1.55 -> 1705 | D3: =A3*9550/C3 -> 616.1290323
A4: 110 | B4: 1200 | C4: =B4*1.55 -> 1860 | D4: 564.7849462
A5: 110 | B5: 1300 | C5: =B5*1.55 -> 2015 | D5: 521.3399504
A6: 110 | B6: =B5+100 -> 1400 | C6: =B6*1.55 -> 2170 | D6: 484.1013825
A7: 110 | B7: 1500 | C7: 2325 | D7: 451.827957
A8: 110 | B8: 1600 | C8: =B8*1.55 -> 2480 | D8: 423.5887097
A9: 110 | B9: 1700 | C9: =B9*1.55 -> 2635 | D9: 398.6717268
A10: 110 | B10: 1800 | C10: =B10*1.55 -> 2790 | D10: 376.5232975
A11: 110 | B11: 1900 | C11: 2945 | D11: 356.7062818
A12: Power (kW) | B12: Engine HS | C12: Power take-off (rpm) | D12: (Nm)
A13: 110 | B13: 900 | C13: =B13*1.91 -> 1719 | D13: =A13*9550/C13 -> 611.1111111
A14: 110 | B14: 1000 | C14: =B14*1.91 -> 1910 | D14: 550
A15: 110 | B15: =B14+100 -> 1100 | C15: =B15*1.91 -> 2101 | D15: 500
A16: 110 | B16: 1200 | C16: 2292 | D16: 458.3333333
A17: 110 | B17: 1300 | C17: 2483 | D17: 423.0769231
A18: 110 | B18: 1400 | C18: 2674 | D18: 392.8571429
A19: 110 | B19: 1500 | C19: 2865 | D19: 366.6666667
A20: 110 | B20: 1600 | C20: 3056 | D20: 343.75
A21: 110 | B21: 1700 | C21: 3247 | D21: 323.5294118
A22: 110 | B22: 1800 | C22: =B22*1.91 -> 3438 | D22: 305.5555556
A23: 110 | B23: 1900 | C23: 3629 | D23: 289.4736842

Sheet EG671PF L
A1: EG671PF L
A2: Power (kW) | B2: Engine LS | C2: Power take-off (rpm) | D2: (Nm)
A3: 110 | B3: 1000 | C3: =B3*2.06 -> 2060 | D3: =A3*9550/C3 -> 509.9514563
A4: 110 | B4: 1100 | C4: =B4*2.06 -> 2266 | D4: 463.592233
A5: 110 | B5: 1200 | C5: =B5*2.06 -> 2472 | D5: 424.9595469
A6: 110 | B6: 1300 | C6: 2678 | D6: 392.270351
A7: 110 | B7: =B6+100 -> 1400 | C7: 2884 | D7: 364.2510402
A8: 110 | B8: 1500 | C8: 3090 | D8: 339.9676375
A9: 110 | B9: 1600 | C9: 3296 | D9: 318.7196602
A10: 110 | B10: 1700 | C10: 3502 | D10: 299.9714449
A11: 110 | B11: 1800 | C11: =B11*2.06 -> 3708 | D11: 283.3063646
A12: 110 | B12: 1900 | C12: 3914 | D12: 268.3955033
A13: Power (kW) | B13: Engine HS | C13: Power take-off (rpm) | D13: (Nm)
A14: 110 | B14: 800 | C14: =B14*2.55 -> 2040 | D14: =A14*9550/C14 -> 514.9509804
A15: 110 | B15: 900 | C15: =B15*2.55 -> 2295 | D15: 457.7342048
A16: 110 | B16: 1000 | C16: =B16*2.55 -> 2550 | D16: 411.9607843
A17: 110 | B17: =B16+100 -> 1100 | C17: 2805 | D17: 374.5098039
A18: 110 | B18: 1200 | C18: =B18*2.55 -> 3060 | D18: 343.3006536
A19: 110 | B19: 1300 | C19: 3315 | D19: 316.892911
A20: 110 | B20: 1400 | C20: 3570 | D20: 294.2577031
A21: 110 | B21: 1500 | C21: 3825 | D21: 274.6405229
A22: 110 | B22: 1600 | C22: 4080 | D22: 257.4754902
A23: 110 | B23: 1700 | C23: 4335 | D23: 242.3298731
A24: 110 | B24: 1800 | C24: 4590 | D24: 228.8671024
A25: 110 | B25: 1900 | C25: =B25*2.55 -> 4845 | D25: 216.8214654

Sheet EG672PF U
A1: EG672PF U
A2: Power (kW) | B2: Engine LS | C2: Power take-off (rpm) | D2: (Nm)
A3: 110 | B3: 1400 | C3: =B3*1.25 -> 1750 | D3: =A3*9550/C3 -> 600.2857143
A4: 110 | B4: =B3+100 -> 1500 | C4: =B4*1.25 -> 1875 | D4: 560.2666667
A5: 110 | B5: 1600 | C5: =B5*1.25 -> 2000 | D5: 525.25
A6: 110 | B6: 1700 | C6: 2125 | D6: 494.3529412
A7: 110 | B7: 1800 | C7: 2250 | D7: 466.8888889
A8: 110 | B8: 1900 | C8: 2375 | D8: 442.3157895
A9: Power (kW) | B9: Engine HS | C9: Power take-off (rpm) | D9: (Nm)
A10: 110 | B10: 1100 | C10: =B10*1.56 -> 1716 | D10: =A10*9550/C10 -> 612.1794872
A11: 110 | B11: =B10+100 -> 1200 | C11: 1872 | D11: 561.1645299
A12: 110 | B12: 1300 | C12: 2028 | D12: 517.9980276
A13: 110 | B13: 1400 | C13: 2184 | D13: 480.9981685
A14: 110 | B14: 1500 | C14: 2340 | D14: 448.9316239
A15: 110 | B15: 1600 | C15: 2496 | D15: 420.8733974
A16: 110 | B16: 1700 | C16: 2652 | D16: 396.1161388
A17: 110 | B17: 1800 | C17: 2808 | D17: 374.1096866
A18: 110 | B18: 1900 | C18: 2964 | D18: 354.4197031

Sheet EG672PF L
A1: EG672PF L
A2: Power (kW) | B2: Engine LS | C2: Power take-off (rpm) | D2: (Nm)
A3: 110 | B3: 1200 | C3: =B3*1.66 -> 1992 | D3: =A3*9550/C3 -> 527.3594378
A4: 110 | B4: 1300 | C4: =B4*1.66 -> 2158 | D4: 486.7933272
A5: 110 | B5: 1400 | C5: =B5*1.66 -> 2324 | D5: 452.0223752
A6: 110 | B6: =B5+100 -> 1500 | C6: =B6*1.66 -> 2490 | D6: 421.8875502
A7: 110 | B7: 1600 | C7: 2656 | D7: 395.5195783
A8: 110 | B8: 1700 | C8: 2822 | D8: 372.2537208
A9: 110 | B9: 1800 | C9: 2988 | D9: 351.5729585
A10: 110 | B10: 1900 | C10: 3154 | D10: 333.0691186
A11: Power (kW) | B11: Engine HS | C11: Power take-off (rpm) | D11: (Nm)
A12: 110 | B12: 1000 | C12: =B12*2.08 -> 2080 | D12: =A12*9550/C12 -> 505.0480769
A13: 110 | B13: 1100 | C13: =B13*2.08 -> 2288 | D13: 459.1346154
A14: 110 | B14: =B13+100 -> 1200 | C14: =B14*2.08 -> 2496 | D14: 420.8733974
A15: 110 | B15: 1300 | C15: 2704 | D15: 388.4985207
A16: 110 | B16: 1400 | C16: 2912 | D16: 360.7486264
A17: 110 | B17: 1500 | C17: 3120 | D17: 336.6987179
A18: 110 | B18: 1600 | C18: 3328 | D18: 315.6550481
A19: 110 | B19: 1700 | C19: =B19*2.08 -> 3536 | D19: 297.0871041
A20: 110 | B20: 1800 | C20: 3744 | D20: 280.582265
A21: 110 | B21: 1900 | C21: =B21*2.08 -> 3952 | D21: 265.8147773

Sheet EG670PP U
A1: EG670PP U
A2: Power (kW) | B2: Engine LS | C2: Power take-off (rpm) | D2: (Nm)
A3: 110 | B3: 1100 | C3: =B3*1.55 -> 1705 | D3: =A3*9550/C3 -> 616.1290323
A4: 110 | B4: 1200 | C4: 1860 | D4: 564.7849462
A5: 110 | B5: 1300 | C5: 2015 | D5: 521.3399504
A6: 110 | B6: =B5+100 -> 1400 | C6: 2170 | D6: 484.1013825
A7: 110 | B7: 1500 | C7: 2325 | D7: 451.827957
A8: 110 | B8: 1600 | C8: 2480 | D8: 423.5887097
A9: 110 | B9: 1700 | C9: =B9*1.55 -> 2635 | D9: 398.6717268
A10: 110 | B10: 1800 | C10: 2790 | D10: 376.5232975
A11: 110 | B11: 1900 | C11: 2945 | D11: 356.7062818
A12: Power (kW) | B12: Engine HS | C12: Power take-off (rpm) | D12: (Nm)
A13: 110 | B13: 900 | C13: =B13*1.91 -> 1719 | D13: =A13*9550/C13 -> 611.1111111
A14: 110 | B14: 1000 | C14: =B14*1.91 -> 1910 | D14: 550
A15: 110 | B15: =B14+100 -> 1100 | C15: 2101 | D15: 500
A16: 110 | B16: 1200 | C16: 2292 | D16: 458.3333333
A17: 110 | B17: 1300 | C17: 2483 | D17: 423.0769231
A18: 110 | B18: 1400 | C18: 2674 | D18: 392.8571429
A19: 110 | B19: 1500 | C19: 2865 | D19: 366.6666667
A20: 110 | B20: 1600 | C20: 3056 | D20: 343.75
A21: 110 | B21: 1700 | C21: 3247 | D21: 323.5294118
A22: 110 | B22: 1800 | C22: =B22*1.91 -> 3438 | D22: 305.5555556
A23: 110 | B23: 1900 | C23: 3629 | D23: 289.4736842

Sheet EG671PP U
A1: EG671PP U
A2: Power (kW) | B2: Engine LS | C2: Power take-off (rpm) | D2: (Nm)
A3: 110 | B3: 1100 | C3: =B3*1.55 -> 1705 | D3: =A3*9550/C3 -> 616.1290323
A4: 110 | B4: 1200 | C4: =B4*1.55 -> 1860 | D4: 564.7849462
A5: 110 | B5: 1300 | C5: 2015 | D5: 521.3399504
A6: 110 | B6: =B5+100 -> 1400 | C6: 2170 | D6: 484.1013825
A7: 110 | B7: 1500 | C7: 2325 | D7: 451.827957
A8: 110 | B8: 1600 | C8: 2480 | D8: 423.5887097
A9: 110 | B9: 1700 | C9: =B9*1.55 -> 2635 | D9: 398.6717268
A10: 110 | B10: 1800 | C10: 2790 | D10: 376.5232975
A11: 110 | B11: 1900 | C11: 2945 | D11: 356.7062818
A12: Power (kW) | B12: Engine HS | C12: Power take-off (rpm) | D12: (Nm)
A13: 110 | B13: 900 | C13: =B13*1.91 -> 1719 | D13: =A13*9550/C13 -> 611.1111111
A14: 110 | B14: 1000 | C14: =B14*1.91 -> 1910 | D14: 550
A15: 110 | B15: =B14+100 -> 1100 | C15: 2101 | D15: 500
A16: 110 | B16: 1200 | C16: 2292 | D16: 458.3333333
A17: 110 | B17: 1300 | C17: 2483 | D17: 423.0769231
A18: 110 | B18: 1400 | C18: 2674 | D18: 392.8571429
A19: 110 | B19: 1500 | C19: 2865 | D19: 366.6666667
A20: 110 | B20: 1600 | C20: 3056 | D20: 343.75
A21: 110 | B21: 1700 | C21: 3247 | D21: 323.5294118
A22: 110 | B22: 1800 | C22: =B22*1.91 -> 3438 | D22: 305.5555556
A23: 110 | B23: 1900 | C23: 3629 | D23: 289.4736842

Sheet EG670PP L
A1: EG670PP L
A2: Power (kW) | B2: Engine LS | C2: Power take-off (rpm) | D2: (Nm)
A3: 110 | B3: 1000 | C3: =B3*1.24 -> 1240 | D3: =A3*9550/C3 -> 847.1774194
A4: 110 | B4: 1100 | C4: =B4*1.24 -> 1364 | D4: 770.1612903
A5: 110 | B5: 1200 | C5: =B5*1.24 -> 1488 | D5: 705.9811828
A6: 110 | B6: 1300 | C6: 1612 | D6: 651.674938
A7: 110 | B7: =B6+100 -> 1400 | C7: 1736 | D7: 605.1267281
A8: 110 | B8: 1500 | C8: 1860 | D8: 564.7849462
A9: 110 | B9: 1600 | C9: 1984 | D9: 529.4858871
A10: 110 | B10: 1700 | C10: 2108 | D10: 498.3396584
A11: 110 | B11: 1800 | C11: 2232 | D11: 470.6541219
A12: 110 | B12: 1900 | C12: 2356 | D12: 445.8828523
A13: Power (kW) | B13: Engine HS | C13: Power take-off (rpm) | D13: (Nm)
A14: 110 | B14: 800 | C14: =B14*1.53 -> 1224 | D14: =A14*9550/C14 -> 858.251634
A15: 110 | B15: 900 | C15: =B15*1.53 -> 1377 | D15: 762.8903413
A16: 110 | B16: 1000 | C16: =B16*1.53 -> 1530 | D16: 686.6013072
A17: 110 | B17: =B16+100 -> 1100 | C17: =B17*1.53 -> 1683 | D17: 624.1830065
A18: 110 | B18: 1200 | C18: 1836 | D18: 572.167756
A19: 110 | B19: 1300 | C19: 1989 | D19: 528.1548517
A20: 110 | B20: 1400 | C20: 2142 | D20: 490.4295051
A21: 110 | B21: 1500 | C21: 2295 | D21: 457.7342048
A22: 110 | B22: 1600 | C22: 2448 | D22: 429.125817
A23: 110 | B23: 1700 | C23: 2601 | D23: 403.8831219
A24: 110 | B24: 1800 | C24: 2754 | D24: 381.4451707
A25: 110 | B25: 1900 | C25: 2907 | D25: 361.369109

Sheet EG671PP L
A1: EG671PP L
A2: Power (kW) | B2: Engine LS | C2: Power take-off (rpm) | D2: (Nm)
A3: 110 | B3: 1000 | C3: =B3*1.24 -> 1240 | D3: =A3*9550/C3 -> 847.1774194
A4: 110 | B4: 1100 | C4: =B4*1.24 -> 1364 | D4: 770.1612903
A5: 110 | B5: 1200 | C5: =B5*1.24 -> 1488 | D5: 705.9811828
A6: 110 | B6: 1300 | C6: 1612 | D6: 651.674938
A7: 110 | B7: =B6+100 -> 1400 | C7: 1736 | D7: 605.1267281
A8: 110 | B8: 1500 | C8: 1860 | D8: 564.7849462
A9: 110 | B9: 1600 | C9: 1984 | D9: 529.4858871
A10: 110 | B10: 1700 | C10: 2108 | D10: 498.3396584
A11: 110 | B11: 1800 | C11: 2232 | D11: 470.6541219
A12: 110 | B12: 1900 | C12: 2356 | D12: 445.8828523
A13: Power (kW) | B13: Engine HS | C13: Power take-off (rpm) | D13: (Nm)
A14: 110 | B14: 800 | C14: =B14*1.53 -> 1224 | D14: =A14*9550/C14 -> 858.251634
A15: 110 | B15: 900 | C15: =B15*1.53 -> 1377 | D15: 762.8903413
A16: 110 | B16: 1000 | C16: =B16*1.53 -> 1530 | D16: 686.6013072
A17: 110 | B17: =B16+100 -> 1100 | C17: =B17*1.53 -> 1683 | D17: 624.1830065
A18: 110 | B18: 1200 | C18: 1836 | D18: 572.167756
A19: 110 | B19: 1300 | C19: 1989 | D19: 528.1548517
A20: 110 | B20: 1400 | C20: 2142 | D20: 490.4295051
A21: 110 | B21: 1500 | C21: 2295 | D21: 457.7342048
A22: 110 | B22: 1600 | C22: 2448 | D22: 429.125817
A23: 110 | B23: 1700 | C23: 2601 | D23: 403.8831219
A24: 110 | B24: 1800 | C24: 2754 | D24: 381.4451707
A25: 110 | B25: 1900 | C25: 2907 | D25: 361.369109

Sheet EG672PP U
A1: EG672PP U
A2: Power (kW) | B2: Engine LS | C2: Power take-off (rpm) | D2: (Nm)
A3: 110 | B3: 1400 | C3: =B3*1.25 -> 1750 | D3: =A3*9550/C3 -> 600.2857143
A4: 110 | B4: =B3+100 -> 1500 | C4: 1875 | D4: 560.2666667
A5: 110 | B5: 1600 | C5: 2000 | D5: 525.25
A6: 110 | B6: 1700 | C6: 2125 | D6: 494.3529412
A7: 110 | B7: 1800 | C7: 2250 | D7: 466.8888889
A8: 110 | B8: 1900 | C8: 2375 | D8: 442.3157895
A9: Power (kW) | B9: Engine HS | C9: Power take-off (rpm) | D9: (Nm)
A10: 110 | B10: 1100 | C10: =B10*1.56 -> 1716 | D10: =A10*9550/C10 -> 612.1794872
A11: 110 | B11: =B10+100 -> 1200 | C11: 1872 | D11: 561.1645299
A12: 110 | B12: 1300 | C12: 2028 | D12: 517.9980276
A13: 110 | B13: 1400 | C13: 2184 | D13: 480.9981685
A14: 110 | B14: 1500 | C14: 2340 | D14: 448.9316239
A15: 110 | B15: 1600 | C15: =B15*1.56 -> 2496 | D15: 420.8733974
A16: 110 | B16: 1700 | C16: 2652 | D16: 396.1161388
A17: 110 | B17: 1800 | C17: =B17*1.56 -> 2808 | D17: 374.1096866
A18: 110 | B18: 1900 | C18: 2964 | D18: 354.4197031

Sheet EG673PP U
A1: EG673PP U
A2: Power (kW) | B2: Engine LS | C2: Power take-off (rpm) | D2: (Nm)
A3: 110 | B3: 1400 | C3: =B3*1.25 -> 1750 | D3: =A3*9550/C3 -> 600.2857143
A4: 110 | B4: =B3+100 -> 1500 | C4: =B4*1.25 -> 1875 | D4: 560.2666667
A5: 110 | B5: 1600 | C5: 2000 | D5: 525.25
A6: 110 | B6: 1700 | C6: 2125 | D6: 494.3529412
A7: 110 | B7: 1800 | C7: 2250 | D7: 466.8888889
A8: 110 | B8: 1900 | C8: 2375 | D8: 442.3157895
A9: Power (kW) | B9: Engine HS | C9: Power take-off (rpm) | D9: (Nm)
A10: 110 | B10: 1100 | C10: =B10*1.56 -> 1716 | D10: =A10*9550/C10 -> 612.1794872
A11: 110 | B11: =B10+100 -> 1200 | C11: =B11*1.56 -> 1872 | D11: 561.1645299
A12: 110 | B12: 1300 | C12: 2028 | D12: 517.9980276
A13: 110 | B13: 1400 | C13: 2184 | D13: 480.9981685
A14: 110 | B14: 1500 | C14: 2340 | D14: 448.9316239
A15: 110 | B15: 1600 | C15: =B15*1.56 -> 2496 | D15: 420.8733974
A16: 110 | B16: 1700 | C16: 2652 | D16: 396.1161388
A17: 110 | B17: 1800 | C17: =B17*1.56 -> 2808 | D17: 374.1096866
A18: 110 | B18: 1900 | C18: 2964 | D18: 354.4197031

Sheet EG672PP L
A1: EG672PP L
A2: Power (kW) | B2: Engine LS | C2: Power take-off (rpm) | D2: (Nm)
A3: 110 | B3: 1300 | C3: =B3*1 -> 1300 | D3: =A3*9550/C3 -> 808.0769231
A4: 110 | B4: 1400 | C4: =B4*1 -> 1400 | D4: 750.3571429
A5: 110 | B5: =B4+100 -> 1500 | C5: =B5*1 -> 1500 | D5: 700.3333333
A6: 110 | B6: 1600 | C6: 1600 | D6: 656.5625
A7: 110 | B7: 1700 | C7: 1700 | D7: 617.9411765
A8: 110 | B8: 1800 | C8: 1800 | D8: 583.6111111
A9: 110 | B9: 1900 | C9: 1900 | D9: 552.8947368
A10: Power (kW) | B10: Engine HS | C10: Power take-off (rpm) | D10: (Nm)
A11: 110 | B11: 1000 | C11: =B11*1.25 -> 1250 | D11: =A11*9550/C11 -> 840.4
A12: 110 | B12: 1100 | C12: =B12*1.25 -> 1375 | D12: 764
A13: 110 | B13: =B12+100 -> 1200 | C13: =B13*1.25 -> 1500 | D13: 700.3333333
A14: 110 | B14: 1300 | C14: =B14*1.25 -> 1625 | D14: 646.4615385
A15: 110 | B15: 1400 | C15: =B15*1.25 -> 1750 | D15: 600.2857143
A16: 110 | B16: 1500 | C16: 1875 | D16: 560.2666667
A17: 110 | B17: 1600 | C17: 2000 | D17: 525.25
A18: 110 | B18: 1700 | C18: 2125 | D18: 494.3529412
A19: 110 | B19: 1800 | C19: 2250 | D19: 466.8888889
A20: 110 | B20: 1900 | C20: 2375 | D20: 442.3157895

Sheet EG673PP L
A1: EG672PP L
A2: Power (kW) | B2: Engine LS | C2: Power take-off (rpm) | D2: (Nm)
A3: 110 | B3: 1300 | C3: =B3*1 -> 1300 | D3: =A3*9550/C3 -> 808.0769231
A4: 110 | B4: 1400 | C4: =B4*1 -> 1400 | D4: 750.3571429
A5: 110 | B5: =B4+100 -> 1500 | C5: =B5*1 -> 1500 | D5: 700.3333333
A6: 110 | B6: 1600 | C6: 1600 | D6: 656.5625
A7: 110 | B7: 1700 | C7: 1700 | D7: 617.9411765
A8: 110 | B8: 1800 | C8: 1800 | D8: 583.6111111
A9: 110 | B9: 1900 | C9: 1900 | D9: 552.8947368
A10: Power (kW) | B10: Engine HS | C10: Power take-off (rpm) | D10: (Nm)
A11: 110 | B11: 1000 | C11: =B11*1.25 -> 1250 | D11: =A11*9550/C11 -> 840.4
A12: 110 | B12: 1100 | C12: =B12*1.25 -> 1375 | D12: 764
A13: 110 | B13: =B12+100 -> 1200 | C13: =B13*1.25 -> 1500 | D13: 700.3333333
A14: 110 | B14: 1300 | C14: =B14*1.25 -> 1625 | D14: 646.4615385
A15: 110 | B15: 1400 | C15: =B15*1.25 -> 1750 | D15: 600.2857143
A16: 110 | B16: 1500 | C16: 1875 | D16: 560.2666667
A17: 110 | B17: 1600 | C17: 2000 | D17: 525.25
A18: 110 | B18: 1700 | C18: 2125 | D18: 494.3529412
A19: 110 | B19: 1800 | C19: 2250 | D19: 466.8888889
A20: 110 | B20: 1900 | C20: 2375 | D20: 442.3157895

Sheet EG6R DDP1B-xx
A1: EG6R DDxxB
A2: Power (kW) | B2: Engine LS | C2: Power take-off (rpm) | D2: (Nm)
A3: 100 | B3: 900 | C3: =B3*1.63 -> 1467 | D3: =A3*9550/C3 -> 650.9884117
A4: 100 | B4: =B3+100 -> 1000 | C4: 1630 | D4: =A4*9550/C4 -> 585.8895706
A5: 100 | B5: 1100 | C5: 1793 | D5: 532.6268823
A6: 100 | B6: 1200 | C6: 1956 | D6: 488.2413088
A7: 100 | B7: 1300 | C7: =B7*1.63 -> 2119 | D7: 450.684285
A8: 100 | B8: 1400 | C8: 2282 | D8: 418.4925504
A9: 100 | B9: 1500 | C9: 2445 | D9: 390.593047
A10: 100 | B10: 1600 | C10: 2608 | D10: 366.1809816
A11: 100 | B11: 1700 | C11: 2771 | D11: 344.6409239
A12: 100 | B12: 1800 | C12: 2934 | D12: 325.4942059
A13: 100 | B13: 1900 | C13: =B13*1.63 -> 3097 | D13: 308.3629319
A14: Power (kW) | B14: Engine HS | C14: Power take-off (rpm) | D14: (Nm)
A15: 100 | B15: 800 | C15: =B15*2.09 -> 1672 | D15: =A15*9550/C15 -> 571.1722488
A16: 100 | B16: =B15+100 -> 900 | C16: 1881 | D16: 507.7086656
A17: 100 | B17: 1000 | C17: 2090 | D17: 456.937799
A18: 100 | B18: 1100 | C18: 2299 | D18: 415.3979991
A19: 100 | B19: 1200 | C19: 2508 | D19: 380.7814992
A20: 100 | B20: 1300 | C20: 2717 | D20: 351.4906146
A21: 100 | B21: 1400 | C21: 2926 | D21: 326.3841422
A22: 100 | B22: 1500 | C22: =B22*2.09 -> 3135 | D22: 304.6251994
A23: 100 | B23: 1600 | C23: 3344 | D23: 285.5861244
A24: 100 | B24: 1700 | C24: 3553 | D24: 268.7869406
A25: 100 | B25: 1800 | C25: 3762 | D25: 253.8543328
A26: 100 | B26: 1900 | C26: 3971 | D26: 240.4935784
A27: Power (kW) | B27: Engine LS | C27: Power take-off (rpm) | D27: (Nm)
A28: 160 | B28: 1500 | C28: =B28*1.63 -> 2445 | D28: =A28*9550/C28 -> 624.9488753
A29: 160 | B29: =B28+100 -> 1600 | C29: =B29*1.63 -> 2608 | D29: 585.8895706
A30: 160 | B30: 1700 | C30: 2771 | D30: 551.4254782
A31: 160 | B31: 1800 | C31: =B31*1.63 -> 2934 | D31: 520.7907294
A32: 160 | B32: 1900 | C32: 3097 | D32: 493.380691
A33: Power (kW) | B33: Engine HS | C33: Power take-off (rpm) | D33: (Nm)
A34: 160 | B34: 1200 | C34: =B34*2.09 -> 2508 | D34: =A34*9550/C34 -> 609.2503987
A35: 160 | B35: =B34+100 -> 1300 | C35: 2717 | D35: 562.3849834
A36: 160 | B36: 1400 | C36: 2926 | D36: 522.2146275
A37: 160 | B37: 1500 | C37: 3135 | D37: 487.400319
A38: 160 | B38: 1600 | C38: =B38*2.09 -> 3344 | D38: 456.937799
A39: 160 | B39: 1700 | C39: 3553 | D39: 430.059105
A40: 160 | B40: 1800 | C40: 3762 | D40: 406.1669325
A41: 160 | B41: 1900 | C41: 3971 | D41: 384.7897255

Sheet EG8R DCP1B-xx
A1: EG8R DCxxB
A2: Power (kW) | B2: Engine LS | C2: Power take-off (rpm) | D2: (Nm)
A3: 100 | B3: 800 | C3: =B3*1.51 -> 1208 | D3: =A3*9550/C3 -> 790.5629139
A4: 100 | B4: =B3+100 -> 900 | C4: =B4*1.51 -> 1359 | D4: =A4*9550/C4 -> 702.7225901
A5: 100 | B5: 1000 | C5: 1510 | D5: 632.4503311
A6: 100 | B6: 1100 | C6: 1661 | D6: 574.9548465
A7: 100 | B7: 1200 | C7: 1812 | D7: 527.0419426
A8: 100 | B8: 1300 | C8: 1963 | D8: 486.5002547
A9: 100 | B9: 1400 | C9: 2114 | D9: 451.7502365
A10: 100 | B10: 1500 | C10: 2265 | D10: 421.6335541
A11: 100 | B11: 1600 | C11: 2416 | D11: 395.281457
A12: 100 | B12: 1700 | C12: 2567 | D12: 372.0296065
A13: 100 | B13: 1800 | C13: =B13*1.51 -> 2718 | D13: 351.3612951
A14: 100 | B14: 1900 | C14: 2869 | D14: 332.8685953
A15: Power (kW) | B15: Engine HS | C15: Power take-off (rpm) | D15: (Nm)
A16: 100 | B16: 800 | C16: =B16*1.95 -> 1560 | D16: =A16*9550/C16 -> 612.1794872
A17: 100 | B17: =B16+100 -> 900 | C17: 1755 | D17: 544.1595442
A18: 100 | B18: 1000 | C18: 1950 | D18: 489.7435897
A19: 100 | B19: 1100 | C19: 2145 | D19: 445.2214452
A20: 100 | B20: 1200 | C20: 2340 | D20: 408.1196581
A21: 100 | B21: 1300 | C21: 2535 | D21: 376.7258383
A22: 100 | B22: 1400 | C22: 2730 | D22: 349.8168498
A23: 100 | B23: 1500 | C23: 2925 | D23: 326.4957265
A24: 100 | B24: 1600 | C24: 3120 | D24: 306.0897436
A25: 100 | B25: 1700 | C25: 3315 | D25: 288.0844646
A26: 100 | B26: 1800 | C26: =B26*1.95 -> 3510 | D26: 272.0797721
A27: 100 | B27: 1900 | C27: =B27*1.95 -> 3705 | D27: 257.7597841
A28: Power (kW) | B28: Engine LS | C28: Power take-off (rpm) | D28: (Nm)
A29: 160 | B29: 1200 | C29: =B29*1.51 -> 1812 | D29: =A29*9550/C29 -> 843.2671082
A30: 160 | B30: =B29+100 -> 1300 | C30: =B30*1.51 -> 1963 | D30: 778.4004075
A31: 160 | B31: 1400 | C31: 2114 | D31: 722.8003784
A32: 160 | B32: 1500 | C32: 2265 | D32: 674.6136865
A33: 160 | B33: 1600 | C33: 2416 | D33: 632.4503311
A34: 160 | B34: 1700 | C34: 2567 | D34: 595.2473705
A35: 160 | B35: 1800 | C35: 2718 | D35: 562.1780721
A36: 160 | B36: 1900 | C36: 2869 | D36: 532.5897525
A37: Power (kW) | B37: Engine HS | C37: Power take-off (rpm) | D37: (Nm)
A38: 160 | B38: 900 | C38: =B38*1.95 -> 1755 | D38: =A38*9550/C38 -> 870.6552707
A39: 160 | B39: =B38+100 -> 1000 | C39: =B39*1.95 -> 1950 | D39: 783.5897436
A40: 160 | B40: 1100 | C40: 2145 | D40: 712.3543124
A41: 160 | B41: 1200 | C41: 2340 | D41: 652.991453
A42: 160 | B42: 1300 | C42: 2535 | D42: 602.7613412
A43: 160 | B43: 1400 | C43: 2730 | D43: 559.7069597
A44: 160 | B44: 1500 | C44: 2925 | D44: 522.3931624
A45: 160 | B45: 1600 | C45: =B45*1.95 -> 3120 | D45: 489.7435897
A46: 160 | B46: 1700 | C46: 3315 | D46: 460.9351433
A47: 160 | B47: 1800 | C47: 3510 | D47: 435.3276353
A48: 160 | B48: 1900 | C48: 3705 | D48: 412.4156545

Sheet EG9R DCP1B-xx
A1: EG9R DCxxB
A2: Power (kW) | B2: Engine LS | C2: Power take-off (rpm) | D2: (Nm)
A3: 100 | B3: 800 | C3: =B3*1.39 -> 1112 | D3: =A3*9550/C3 -> 858.8129496
A4: 100 | B4: =B3+100 -> 900 | C4: =B4*1.39 -> 1251 | D4: =A4*9550/C4 -> 763.3892886
A5: 100 | B5: 1000 | C5: 1390 | D5: 687.0503597
A6: 100 | B6: 1100 | C6: =B6*1.39 -> 1529 | D6: 624.5912361
A7: 100 | B7: 1200 | C7: 1668 | D7: 572.5419664
A8: 100 | B8: 1300 | C8: 1807 | D8: 528.5002767
A9: 100 | B9: 1400 | C9: 1946 | D9: 490.7502569
A10: 100 | B10: 1500 | C10: 2085 | D10: 458.0335731
A11: 100 | B11: 1600 | C11: 2224 | D11: 429.4064748
A12: 100 | B12: 1700 | C12: 2363 | D12: 404.1472704
A13: 100 | B13: 1800 | C13: 2502 | D13: 381.6946443
A14: 100 | B14: 1900 | C14: =B14*1.39 -> 2641 | D14: 361.6054525
A15: Power (kW) | B15: Engine HS | C15: Power take-off (rpm) | D15: (Nm)
A16: 100 | B16: 800 | C16: =B16*1.79 -> 1432 | D16: =A16*9550/C16 -> 666.8994413
A17: 100 | B17: =B16+100 -> 900 | C17: 1611 | D17: 592.7995034
A18: 100 | B18: 1000 | C18: 1790 | D18: 533.5195531
A19: 100 | B19: 1100 | C19: 1969 | D19: 485.0177755
A20: 100 | B20: 1200 | C20: 2148 | D20: 444.5996276
A21: 100 | B21: 1300 | C21: 2327 | D21: 410.3996562
A22: 100 | B22: 1400 | C22: 2506 | D22: 381.0853951
A23: 100 | B23: 1500 | C23: 2685 | D23: 355.679702
A24: 100 | B24: 1600 | C24: 2864 | D24: 333.4497207
A25: 100 | B25: 1700 | C25: 3043 | D25: 313.8350312
A26: 100 | B26: 1800 | C26: 3222 | D26: 296.3997517
A27: 100 | B27: 1900 | C27: =B27*1.79 -> 3401 | D27: 280.7997648
A28: Power (kW) | B28: Engine LS | C28: Power take-off (rpm) | D28: (Nm)
A29: 160 | B29: 1200 | C29: =B29*1.39 -> 1668 | D29: =A29*9550/C29 -> 916.0671463
A30: 160 | B30: =B29+100 -> 1300 | C30: =B30*1.39 -> 1807 | D30: 845.6004427
A31: 160 | B31: 1400 | C31: 1946 | D31: 785.2004111
A32: 160 | B32: 1500 | C32: 2085 | D32: 732.853717
A33: 160 | B33: 1600 | C33: =B33*1.39 -> 2224 | D33: 687.0503597
A34: 160 | B34: 1700 | C34: =B34*1.39 -> 2363 | D34: 646.6356327
A35: 160 | B35: 1800 | C35: 2502 | D35: 610.7114309
A36: 160 | B36: 1900 | C36: 2641 | D36: 578.568724
A37: Power (kW) | B37: Engine HS | C37: Power take-off (rpm) | D37: (Nm)
A38: 160 | B38: 900 | C38: =B38*1.79 -> 1611 | D38: =A38*9550/C38 -> 948.4792055
A39: 160 | B39: =B38+100 -> 1000 | C39: =B39*1.79 -> 1790 | D39: 853.6312849
A40: 160 | B40: 1100 | C40: 1969 | D40: 776.0284408
A41: 160 | B41: 1200 | C41: 2148 | D41: 711.3594041
A42: 160 | B42: 1300 | C42: 2327 | D42: 656.6394499
A43: 160 | B43: 1400 | C43: 2506 | D43: 609.7366321
A44: 160 | B44: 1500 | C44: 2685 | D44: 569.0875233
A45: 160 | B45: 1600 | C45: 2864 | D45: 533.5195531
A46: 160 | B46: 1700 | C46: 3043 | D46: 502.13605
A47: 160 | B47: 1800 | C47: =B47*1.79 -> 3222 | D47: 474.2396027
A48: 160 | B48: 1900 | C48: 3401 | D48: 449.2796236

Sheet EG10R DCP1B-xx
A1: EG10R DCxxB
A2: Power (kW) | B2: Engine LS | C2: Power take-off (rpm) | D2: (Nm)
A3: 100 | B3: 800 | C3: =B3*1.19 -> 952 | D3: =A3*9550/C3 -> 1003.151261
A4: 100 | B4: =B3+100 -> 900 | C4: 1071 | D4: =A4*9550/C4 -> 891.6900093
A5: 100 | B5: 1000 | C5: 1190 | D5: 802.5210084
A6: 100 | B6: 1100 | C6: 1309 | D6: 729.5645531
A7: 100 | B7: 1200 | C7: 1428 | D7: 668.767507
A8: 100 | B8: 1300 | C8: 1547 | D8: 617.3238526
A9: 100 | B9: 1400 | C9: 1666 | D9: 573.2292917
A10: 100 | B10: 1500 | C10: 1785 | D10: 535.0140056
A11: 100 | B11: 1600 | C11: 1904 | D11: 501.5756303
A12: 100 | B12: 1700 | C12: 2023 | D12: 472.0711814
A13: 100 | B13: 1800 | C13: 2142 | D13: 445.8450047
A14: 100 | B14: 1900 | C14: =B14*1.19 -> 2261 | D14: 422.3794781
A15: Power (kW) | B15: Engine HS | C15: Power take-off (rpm) | D15: (Nm)
A16: 100 | B16: 800 | C16: =B16*1.53 -> 1224 | D16: =A16*9550/C16 -> 780.2287582
A17: 100 | B17: =B16+100 -> 900 | C17: 1377 | D17: 693.5366739
A18: 100 | B18: 1000 | C18: 1530 | D18: 624.1830065
A19: 100 | B19: 1100 | C19: 1683 | D19: 567.4390969
A20: 100 | B20: 1200 | C20: 1836 | D20: 520.1525054
A21: 100 | B21: 1300 | C21: 1989 | D21: 480.1407743
A22: 100 | B22: 1400 | C22: 2142 | D22: 445.8450047
A23: 100 | B23: 1500 | C23: 2295 | D23: 416.1220044
A24: 100 | B24: 1600 | C24: 2448 | D24: 390.1143791
A25: 100 | B25: 1700 | C25: 2601 | D25: 367.1664744
A26: 100 | B26: 1800 | C26: 2754 | D26: 346.768337
A27: 100 | B27: 1900 | C27: 2907 | D27: 328.5173719
A28: Power (kW) | B28: Engine LS | C28: Power take-off (rpm) | D28: (Nm)
A29: 160 | B29: 1200 | C29: =B29*1.19 -> 1428 | D29: =A29*9550/C29 -> 1070.028011
A30: 160 | B30: =B29+100 -> 1300 | C30: 1547 | D30: 987.7181642
A31: 160 | B31: 1400 | C31: 1666 | D31: 917.1668667
A32: 160 | B32: 1500 | C32: 1785 | D32: 856.022409
A33: 160 | B33: 1600 | C33: 1904 | D33: 802.5210084
A34: 160 | B34: 1700 | C34: 2023 | D34: 755.3138903
A35: 160 | B35: 1800 | C35: 2142 | D35: 713.3520075
A36: 160 | B36: 1900 | C36: 2261 | D36: 675.807165
A37: Power (kW) | B37: Engine HS | C37: Power take-off (rpm) | D37: (Nm)
A38: 160 | B38: 900 | C38: =B38*1.53 -> 1377 | D38: =A38*9550/C38 -> 1109.658678
A39: 160 | B39: =B38+100 -> 1000 | C39: 1530 | D39: 998.6928105
A40: 160 | B40: 1100 | C40: 1683 | D40: 907.902555
A41: 160 | B41: 1200 | C41: 1836 | D41: 832.2440087
A42: 160 | B42: 1300 | C42: 1989 | D42: 768.2252388
A43: 160 | B43: 1400 | C43: 2142 | D43: 713.3520075
A44: 160 | B44: 1500 | C44: 2295 | D44: 665.795207
A45: 160 | B45: 1600 | C45: 2448 | D45: 624.1830065
A46: 160 | B46: 1700 | C46: =B46*1.53 -> 2601 | D46: 587.4663591
A47: 160 | B47: 1800 | C47: 2754 | D47: 554.8293391
A48: 160 | B48: 1900 | C48: 2907 | D48: 525.627795

Sheet EG25R DAP1-xx
A1: EG25R Daxx
A2: Power (kW) | B2: Engine LS | C2: Power take-off (rpm) | D2: (Nm)
A3: 250 | B3: 1300 | C3: =B3*0.76 -> 988 | D3: =A3*9550/C3 -> 2416.497976
A4: 250 | B4: =B3+100 -> 1400 | C4: 1064 | D4: 2243.890977
A5: 250 | B5: 1500 | C5: 1140 | D5: 2094.298246
A6: 250 | B6: 1600 | C6: 1216 | D6: 1963.404605
A7: 250 | B7: 1700 | C7: 1292 | D7: 1847.910217
A8: 250 | B8: 1800 | C8: 1368 | D8: 1745.248538
A9: 250 | B9: 1900 | C9: 1444 | D9: 1653.393352
A10: Power (kW) | B10: Engine HS | C10: Power take-off (rpm) | D10: (Nm)
A11: 250 | B11: 1000 | C11: =B11*0.97 -> 970 | D11: =A11*9550/C11 -> 2461.340206
A12: 250 | B12: =B11+100 -> 1100 | C12: 1067 | D12: 2237.582006
A13: 250 | B13: 1200 | C13: 1164 | D13: 2051.116838
A14: 250 | B14: 1300 | C14: 1261 | D14: 1893.33862
A15: 250 | B15: 1400 | C15: 1358 | D15: 1758.100147
A16: 250 | B16: 1500 | C16: 1455 | D16: 1640.893471
A17: 250 | B17: 1600 | C17: 1552 | D17: 1538.337629
A18: 250 | B18: 1700 | C18: 1649 | D18: 1447.84718
A19: 250 | B19: 1800 | C19: 1746 | D19: 1367.411226
A20: 250 | B20: 1900 | C20: 1843 | D20: 1295.442214

Sheet EG11R DDP1P1-xxyy U
A1: EG11R DDxxyy U
A2: Power (kW) | B2: Engine LS | C2: Power take-off (rpm) | D2: (Nm)
A3: 100 | B3: 950 | C3: =B3*1.63 -> 1548.5 | D3: =A3*9550/C3 -> 616.7258637
A4: 100 | B4: 1000 | C4: =B4*1.63 -> 1630 | D4: =A4*9550/C4 -> 585.8895706
A5: 100 | B5: 1100 | C5: =B5*1.63 -> 1793 | D5: 532.6268823
A6: 100 | B6: 1200 | C6: 1956 | D6: 488.2413088
A7: 100 | B7: 1300 | C7: 2119 | D7: 450.684285
A8: 100 | B8: 1400 | C8: =B8*1.63 -> 2282 | D8: =A8*9550/C8 -> 418.4925504
A9: 100 | B9: 1500 | C9: 2445 | D9: 390.593047
A10: 100 | B10: =B9+100 -> 1600 | C10: =B10*1.63 -> 2608 | D10: 366.1809816
A11: 100 | B11: 1700 | C11: =B11*1.63 -> 2771 | D11: =A11*9550/C11 -> 344.6409239
A12: 100 | B12: 1800 | C12: =B12*1.63 -> 2934 | D12: 325.4942059
A13: 100 | B13: 1900 | C13: 3097 | D13: 308.3629319
A14: Power (kW) | B14: Engine HS | C14: Power take-off (rpm) | D14: (Nm)
A15: 100 | B15: 800 | C15: =B15*2.09 -> 1672 | D15: =A15*9550/C15 -> 571.1722488
A16: 100 | B16: 900 | C16: =B16*2.09 -> 1881 | D16: =A16*9550/C16 -> 507.7086656
A17: 100 | B17: =B16+100 -> 1000 | C17: 2090 | D17: =A17*9550/C17 -> 456.937799
A18: 100 | B18: 1100 | C18: 2299 | D18: 415.3979991
A19: 100 | B19: 1200 | C19: =B19*2.09 -> 2508 | D19: =A19*9550/C19 -> 380.7814992
A20: 100 | B20: =B19+100 -> 1300 | C20: =B20*2.09 -> 2717 | D20: 351.4906146
A21: 100 | B21: 1400 | C21: 2926 | D21: 326.3841422
A22: 100 | B22: 1500 | C22: =B22*2.09 -> 3135 | D22: 304.6251994
A23: 100 | B23: 1600 | C23: 3344 | D23: 285.5861244
A24: 100 | B24: 1700 | C24: 3553 | D24: 268.7869406
A25: 100 | B25: 1800 | C25: 3762 | D25: 253.8543328
A26: 100 | B26: 1900 | C26: =B26*2.09 -> 3971 | D26: 240.4935784
A27: Power (kW) | B27: Engine LS | C27: Power take-off (rpm) | D27: (Nm)
A28: 160 | B28: 1500 | C28: =B28*1.63 -> 2445 | D28: =A28*9550/C28 -> 624.9488753
A29: 160 | B29: 1600 | C29: 2608 | D29: =A29*9550/C29 -> 585.8895706
A30: 160 | B30: 1700 | C30: 2771 | D30: =A30*9550/C30 -> 551.4254782
A31: 160 | B31: 1800 | C31: 2934 | D31: =A31*9550/C31 -> 520.7907294
A32: 160 | B32: 1900 | C32: =B32*1.63 -> 3097 | D32: =A32*9550/C32 -> 493.380691
A33: Power (kW) | B33: Engine HS | C33: Power take-off (rpm) | D33: (Nm)
A34: 160 | B34: 1200 | C34: =B34*2.09 -> 2508 | D34: =A34*9550/C34 -> 609.2503987
A35: 160 | B35: 1300 | C35: 2717 | D35: 562.3849834
A36: 160 | B36: 1400 | C36: 2926 | D36: 522.2146275
A37: 160 | B37: 1500 | C37: 3135 | D37: 487.400319
A38: 160 | B38: 1600 | C38: 3344 | D38: 456.937799
A39: 160 | B39: 1700 | C39: 3553 | D39: 430.059105
A40: 160 | B40: 1800 | C40: 3762 | D40: 406.1669325
A41: 160 | B41: 1900 | C41: =B41*2.09 -> 3971 | D41: =A41*9550/C41 -> 384.7897255

Sheet EG11R DDP1P1-xxyy L
A1: EG11R DDxxyy L
A2: Power (kW) | B2: Engine LS | C2: Power take-off (rpm) | D2: (Nm)
A3: 100 | B3: 900 | C3: =B3*1.63 -> 1467 | D3: =A3*9550/C3 -> 650.9884117
A4: 100 | B4: 1000 | C4: =B4*1.63 -> 1630 | D4: 585.8895706
A5: 100 | B5: 1100 | C5: 1793 | D5: 532.6268823
A6: 100 | B6: 1200 | C6: =B6*1.63 -> 1956 | D6: 488.2413088
A7: 100 | B7: 1300 | C7: =B7*1.63 -> 2119 | D7: 450.684285
A8: 100 | B8: 1400 | C8: 2282 | D8: 418.4925504
A9: 100 | B9: 1500 | C9: 2445 | D9: 390.593047
A10: 100 | B10: 1600 | C10: =B10*1.63 -> 2608 | D10: 366.1809816
A11: 100 | B11: =B10+100 -> 1700 | C11: =B11*1.63 -> 2771 | D11: 344.6409239
A12: 100 | B12: 1800 | C12: =B12*1.63 -> 2934 | D12: 325.4942059
A13: 100 | B13: 1900 | C13: 3097 | D13: 308.3629319
A14: Power (kW) | B14: Engine HS | C14: Power take-off (rpm) | D14: (Nm)
A15: 100 | B15: 800 | C15: =B15*2.09 -> 1672 | D15: =A15*9550/C15 -> 571.1722488
A16: 100 | B16: 900 | C16: 1881 | D16: 507.7086656
A17: 100 | B17: 1000 | C17: 2090 | D17: 456.937799
A18: 100 | B18: 1100 | C18: 2299 | D18: 415.3979991
A19: 100 | B19: 1200 | C19: =B19*2.09 -> 2508 | D19: 380.7814992
A20: 100 | B20: =B19+100 -> 1300 | C20: =B20*2.09 -> 2717 | D20: 351.4906146
A21: 100 | B21: 1400 | C21: 2926 | D21: 326.3841422
A22: 100 | B22: 1500 | C22: =B22*2.09 -> 3135 | D22: 304.6251994
A23: 100 | B23: 1600 | C23: 3344 | D23: 285.5861244
A24: 100 | B24: 1700 | C24: 3553 | D24: 268.7869406
A25: 100 | B25: 1800 | C25: 3762 | D25: 253.8543328
A26: 100 | B26: 1900 | C26: =B26*2.09 -> 3971 | D26: 240.4935784
A27: Power (kW) | B27: Engine LS | C27: Power take-off (rpm) | D27: (Nm)
A28: 160 | B28: 1500 | C28: =B28*1.63 -> 2445 | D28: =A28*9550/C28 -> 624.9488753
A29: 160 | B29: =B28+100 -> 1600 | C29: 2608 | D29: 585.8895706
A30: 160 | B30: 1700 | C30: 2771 | D30: 551.4254782
A31: 160 | B31: 1800 | C31: 2934 | D31: 520.7907294
A32: 160 | B32: 1900 | C32: =B32*1.63 -> 3097 | D32: 493.380691
A33: Power (kW) | B33: Engine HS | C33: Power take-off (rpm) | D33: (Nm)
A34: 160 | B34: 1200 | C34: =B34*2.09 -> 2508 | D34: =A34*9550/C34 -> 609.2503987
A35: 160 | B35: =B34+100 -> 1300 | C35: =B35*2.09 -> 2717 | D35: 562.3849834
A36: 160 | B36: 1400 | C36: 2926 | D36: 522.2146275
A37: 160 | B37: 1500 | C37: =B37*2.09 -> 3135 | D37: 487.400319
A38: 160 | B38: 1600 | C38: 3344 | D38: 456.937799
A39: 160 | B39: 1700 | C39: 3553 | D39: 430.059105
A40: 160 | B40: 1800 | C40: 3762 | D40: 406.1669325
A41: 160 | B41: 1900 | C41: =B41*2.09 -> 3971 | D41: 384.7897255

Sheet EG11R DDP1P1-xxyy L&U
A1: EG11R DDxxyy L&U
A2: Power (kW) | B2: Engine LS | C2: Power take-off (rpm) | D2: (Nm)
A3: 100 | B3: 800 | C3: =B3*1.63 -> 1304 | D3: =A3*9550/C3 -> 732.3619632
A4: 100 | B4: 900 | C4: =B4*1.63 -> 1467 | D4: 650.9884117
A5: 100 | B5: 1000 | C5: =B5*1.63 -> 1630 | D5: 585.8895706
A6: 100 | B6: 1100 | C6: 1793 | D6: 532.6268823
A7: 100 | B7: 1200 | C7: =B7*1.63 -> 1956 | D7: 488.2413088
A8: 100 | B8: 1300 | C8: =B8*1.63 -> 2119 | D8: 450.684285
A9: 100 | B9: 1400 | C9: 2282 | D9: 418.4925504
A10: 100 | B10: 1500 | C10: 2445 | D10: 390.593047
A11: 100 | B11: 1600 | C11: =B11*1.63 -> 2608 | D11: 366.1809816
A12: 100 | B12: =B11+100 -> 1700 | C12: =B12*1.63 -> 2771 | D12: 344.6409239
A13: 100 | B13: 1800 | C13: =B13*1.63 -> 2934 | D13: 325.4942059
A14: 100 | B14: 1900 | C14: 3097 | D14: 308.3629319
A15: Power (kW) | B15: Engine HS | C15: Power take-off (rpm) | D15: (Nm)
A16: 100 | B16: 800 | C16: =B16*2.09 -> 1672 | D16: =A16*9550/C16 -> 571.1722488
A17: 100 | B17: 900 | C17: 1881 | D17: 507.7086656
A18: 100 | B18: 1000 | C18: 2090 | D18: 456.937799
A19: 100 | B19: 1100 | C19: 2299 | D19: 415.3979991
A20: 100 | B20: 1200 | C20: 2508 | D20: 380.7814992
A21: 100 | B21: =B20+100 -> 1300 | C21: 2717 | D21: 351.4906146
A22: 100 | B22: 1400 | C22: 2926 | D22: 326.3841422
A23: 100 | B23: 1500 | C23: 3135 | D23: 304.6251994
A24: 100 | B24: 1600 | C24: 3344 | D24: 285.5861244
A25: 100 | B25: 1700 | C25: 3553 | D25: 268.7869406
A26: 100 | B26: 1800 | C26: 3762 | D26: 253.8543328
A27: 100 | B27: 1900 | C27: 3971 | D27: 240.4935784
A28: Power (kW) | B28: Engine LS | C28: Power take-off (rpm) | D28: (Nm)
A29: 160 | B29: 900 | C29: =B29*1.63 -> 1467 | D29: =A29*9550/C29 -> 1041.581459
A30: 160 | B30: 1000 | C30: 1630 | D30: 937.4233129
A31: 160 | B31: 1100 | C31: 1793 | D31: 852.2030117
A32: 160 | B32: 1200 | C32: 1956 | D32: 781.1860941
A33: 160 | B33: 1300 | C33: 2119 | D33: 721.0948561
A34: 160 | B34: 1400 | C34: 2282 | D34: 669.5880806
A35: 160 | B35: 1500 | C35: 2445 | D35: 624.9488753
A36: 160 | B36: =B35+100 -> 1600 | C36: 2608 | D36: 585.8895706
A37: 160 | B37: 1700 | C37: 2771 | D37: 551.4254782
A38: 160 | B38: 1800 | C38: 2934 | D38: 520.7907294
A39: 160 | B39: 1900 | C39: =B39*1.63 -> 3097 | D39: 493.380691
A40: Power (kW) | B40: Engine HS | C40: Power take-off (rpm) | D40: (Nm)
A41: 160 | B41: 800 | C41: =B41*2.09 -> 1672 | D41: =A41*9550/C41 -> 913.8755981
A42: 160 | B42: 900 | C42: =B42*2.09 -> 1881 | D42: =A42*9550/C42 -> 812.333865
A43: 160 | B43: 1000 | C43: =B43*2.09 -> 2090 | D43: 731.1004785
A44: 160 | B44: 1100 | C44: 2299 | D44: 664.6367986
A45: 160 | B45: 1200 | C45: =B45*2.09 -> 2508 | D45: 609.2503987
A46: 160 | B46: =B45+100 -> 1300 | C46: =B46*2.09 -> 2717 | D46: 562.3849834
A47: 160 | B47: 1400 | C47: 2926 | D47: 522.2146275
A48: 160 | B48: 1500 | C48: =B48*2.09 -> 3135 | D48: 487.400319
A49: 160 | B49: 1600 | C49: 3344 | D49: 456.937799
A50: 160 | B50: 1700 | C50: 3553 | D50: 430.059105
A51: 160 | B51: 1800 | C51: 3762 | D51: 406.1669325
A52: 160 | B52: 1900 | C52: =B52*2.09 -> 3971 | D52: 384.7897255

Sheet EG12R DCP1P1-xxyy U
A1: EG12R DCxxyy U
A2: Power (kW) | B2: Engine LS | C2: Power take-off (rpm) | D2: (Nm)
A3: 100 | B3: 800 | C3: =B3*1.51 -> 1208 | D3: =A3*9550/C3 -> 790.5629139
A4: 100 | B4: 900 | C4: =B4*1.51 -> 1359 | D4: =A4*9550/C4 -> 702.7225901
A5: 100 | B5: 1000 | C5: 1510 | D5: =A5*9550/C5 -> 632.4503311
A6: 100 | B6: 1100 | C6: 1661 | D6: 574.9548465
A7: 100 | B7: 1200 | C7: 1812 | D7: 527.0419426
A8: 100 | B8: 1300 | C8: =B8*1.51 -> 1963 | D8: =A8*9550/C8 -> 486.5002547
A9: 100 | B9: 1400 | C9: =B9*1.51 -> 2114 | D9: 451.7502365
A10: 100 | B10: 1500 | C10: 2265 | D10: 421.6335541
A11: 100 | B11: 1600 | C11: 2416 | D11: 395.281457
A12: 100 | B12: =B11+100 -> 1700 | C12: 2567 | D12: 372.0296065
A13: 100 | B13: 1800 | C13: 2718 | D13: 351.3612951
A14: 100 | B14: 1900 | C14: =B14*1.51 -> 2869 | D14: 332.8685953
A15: Power (kW) | B15: Engine HS | C15: Power take-off (rpm) | D15: (Nm)
A16: 100 | B16: 800 | C16: =B16*1.95 -> 1560 | D16: =A16*9550/C16 -> 612.1794872
A17: 100 | B17: 900 | C17: =B17*1.95 -> 1755 | D17: =A17*9550/C17 -> 544.1595442
A18: 100 | B18: 1000 | C18: =B18*1.95 -> 1950 | D18: =A18*9550/C18 -> 489.7435897
A19: 100 | B19: 1100 | C19: =B19*1.95 -> 2145 | D19: 445.2214452
A20: 100 | B20: 1200 | C20: 2340 | D20: 408.1196581
A21: 100 | B21: =B20+100 -> 1300 | C21: 2535 | D21: 376.7258383
A22: 100 | B22: 1400 | C22: 2730 | D22: 349.8168498
A23: 100 | B23: 1500 | C23: 2925 | D23: 326.4957265
A24: 100 | B24: 1600 | C24: 3120 | D24: 306.0897436
A25: 100 | B25: 1700 | C25: 3315 | D25: 288.0844646
A26: 100 | B26: 1800 | C26: 3510 | D26: 272.0797721
A27: 100 | B27: 1900 | C27: 3705 | D27: 257.7597841
A28: Power (kW) | B28: Engine LS | C28: Power take-off (rpm) | D28: (Nm)
A29: 160 | B29: 1250 | C29: =B29*1.51 -> 1887.5 | D29: =A29*9550/C29 -> 809.5364238
A30: 160 | B30: 1300 | C30: =B30*1.51 -> 1963 | D30: 778.4004075
A31: 160 | B31: 1400 | C31: 2114 | D31: 722.8003784
A32: 160 | B32: 1500 | C32: 2265 | D32: 674.6136865
A33: 160 | B33: 1600 | C33: =B33*1.51 -> 2416 | D33: =A33*9550/C33 -> 632.4503311
A34: 160 | B34: =B33+100 -> 1700 | C34: =B34*1.51 -> 2567 | D34: 595.2473705
A35: 160 | B35: 1800 | C35: 2718 | D35: 562.1780721
A36: 160 | B36: 1900 | C36: 2869 | D36: 532.5897525
A37: Power (kW) | B37: Engine HS | C37: Power take-off (rpm) | D37: (Nm)
A38: 160 | B38: 950 | C38: =B38*1.95 -> 1852.5 | D38: =A38*9550/C38 -> 824.831309
A39: 160 | B39: 1000 | C39: =B39*1.95 -> 1950 | D39: =A39*9550/C39 -> 783.5897436
A40: 160 | B40: 1100 | C40: 2145 | D40: 712.3543124
A41: 160 | B41: 1200 | C41: =B41*1.95 -> 2340 | D41: =A41*9550/C41 -> 652.991453
A42: 160 | B42: 1300 | C42: 2535 | D42: 602.7613412
A43: 160 | B43: 1400 | C43: 2730 | D43: 559.7069597
A44: 160 | B44: 1500 | C44: 2925 | D44: 522.3931624
A45: 160 | B45: 1600 | C45: =B45*1.95 -> 3120 | D45: =A45*9550/C45 -> 489.7435897
A46: 160 | B46: =B45+100 -> 1700 | C46: 3315 | D46: 460.9351433
A47: 160 | B47: 1800 | C47: 3510 | D47: 435.3276353
A48: 160 | B48: 1900 | C48: 3705 | D48: 412.4156545

Sheet EG12R DCP1P1-xxyy L
A1: EG12R DCxxyy L
A2: Power (kW) | B2: Engine LS | C2: Power take-off (rpm) | D2: (Nm)
A3: 100 | B3: 800 | C3: =B3*1.51 -> 1208 | D3: =A3*9550/C3 -> 790.5629139
A4: 100 | B4: 900 | C4: 1359 | D4: 702.7225901
A5: 100 | B5: 1000 | C5: 1510 | D5: 632.4503311
A6: 100 | B6: 1100 | C6: 1661 | D6: 574.9548465
A7: 100 | B7: 1200 | C7: 1812 | D7: 527.0419426
A8: 100 | B8: 1300 | C8: 1963 | D8: 486.5002547
A9: 100 | B9: 1400 | C9: 2114 | D9: 451.7502365
A10: 100 | B10: 1500 | C10: 2265 | D10: 421.6335541
A11: 100 | B11: 1600 | C11: 2416 | D11: 395.281457
A12: 100 | B12: =B11+100 -> 1700 | C12: 2567 | D12: 372.0296065
A13: 100 | B13: 1800 | C13: 2718 | D13: 351.3612951
A14: 100 | B14: 1900 | C14: =B14*1.51 -> 2869 | D14: 332.8685953
A15: Power (kW) | B15: Engine HS | C15: Power take-off (rpm) | D15: (Nm)
A16: 100 | B16: 800 | C16: =B16*1.95 -> 1560 | D16: =A16*9550/C16 -> 612.1794872
A17: 100 | B17: 900 | C17: 1755 | D17: 544.1595442
A18: 100 | B18: 1000 | C18: 1950 | D18: 489.7435897
A19: 100 | B19: 1100 | C19: 2145 | D19: 445.2214452
A20: 100 | B20: 1200 | C20: 2340 | D20: 408.1196581
A21: 100 | B21: =B20+100 -> 1300 | C21: 2535 | D21: 376.7258383
A22: 100 | B22: 1400 | C22: 2730 | D22: 349.8168498
A23: 100 | B23: 1500 | C23: 2925 | D23: 326.4957265
A24: 100 | B24: 1600 | C24: 3120 | D24: 306.0897436
A25: 100 | B25: 1700 | C25: 3315 | D25: 288.0844646
A26: 100 | B26: 1800 | C26: 3510 | D26: 272.0797721
A27: 100 | B27: 1900 | C27: 3705 | D27: 257.7597841
A28: Power (kW) | B28: Engine LS | C28: Power take-off (rpm) | D28: (Nm)
A29: 160 | B29: 1200 | C29: =B29*1.51 -> 1812 | D29: =A29*9550/C29 -> 843.2671082
A30: 160 | B30: =B29+100 -> 1300 | C30: 1963 | D30: 778.4004075
A31: 160 | B31: 1400 | C31: 2114 | D31: 722.8003784
A32: 160 | B32: 1500 | C32: 2265 | D32: 674.6136865
A33: 160 | B33: 1600 | C33: 2416 | D33: 632.4503311
A34: 160 | B34: 1700 | C34: =B34*1.51 -> 2567 | D34: 595.2473705
A35: 160 | B35: 1800 | C35: =B35*1.51 -> 2718 | D35: 562.1780721
A36: 160 | B36: 1900 | C36: =B36*1.51 -> 2869 | D36: 532.5897525
A37: Power (kW) | B37: Engine HS | C37: Power take-off (rpm) | D37: (Nm)
A38: 160 | B38: 900 | C38: =B38*1.95 -> 1755 | D38: =A38*9550/C38 -> 870.6552707
A39: 160 | B39: 1000 | C39: 1950 | D39: 783.5897436
A40: 160 | B40: 1100 | C40: 2145 | D40: 712.3543124
A41: 160 | B41: 1200 | C41: =B41*1.95 -> 2340 | D41: =A41*9550/C41 -> 652.991453
A42: 160 | B42: 1300 | C42: =B42*1.95 -> 2535 | D42: =A42*9550/C42 -> 602.7613412
A43: 160 | B43: 1400 | C43: 2730 | D43: 559.7069597
A44: 160 | B44: 1500 | C44: 2925 | D44: 522.3931624
A45: 160 | B45: 1600 | C45: =B45*1.95 -> 3120 | D45: 489.7435897
A46: 160 | B46: =B45+100 -> 1700 | C46: =B46*1.95 -> 3315 | D46: 460.9351433
A47: 160 | B47: 1800 | C47: 3510 | D47: 435.3276353
A48: 160 | B48: 1900 | C48: 3705 | D48: 412.4156545

Sheet EG12R DCP1P1-xxyy L&U
A1: EG12R DCxxyy L&U
A2: Power (kW) | B2: Engine LS | C2: Power take-off (rpm) | D2: (Nm)
A3: 100 | B3: 800 | C3: =B3*1.51 -> 1208 | D3: =A3*9550/C3 -> 790.5629139
A4: 100 | B4: 900 | C4: 1359 | D4: 702.7225901
A5: 100 | B5: 1000 | C5: 1510 | D5: 632.4503311
A6: 100 | B6: 1100 | C6: 1661 | D6: 574.9548465
A7: 100 | B7: 1200 | C7: 1812 | D7: 527.0419426
A8: 100 | B8: 1300 | C8: 1963 | D8: 486.5002547
A9: 100 | B9: 1400 | C9: 2114 | D9: 451.7502365
A10: 100 | B10: 1500 | C10: 2265 | D10: 421.6335541
A11: 100 | B11: 1600 | C11: 2416 | D11: 395.281457
A12: 100 | B12: =B11+100 -> 1700 | C12: 2567 | D12: 372.0296065
A13: 100 | B13: 1800 | C13: =B13*1.51 -> 2718 | D13: 351.3612951
A14: 100 | B14: 1900 | C14: 2869 | D14: 332.8685953
A15: Power (kW) | B15: Engine HS | C15: Power take-off (rpm) | D15: (Nm)
A16: 100 | B16: 800 | C16: =B16*1.95 -> 1560 | D16: =A16*9550/C16 -> 612.1794872
A17: 100 | B17: 900 | C17: 1755 | D17: 544.1595442
A18: 100 | B18: 1000 | C18: 1950 | D18: 489.7435897
A19: 100 | B19: 1100 | C19: 2145 | D19: 445.2214452
A20: 100 | B20: 1200 | C20: 2340 | D20: 408.1196581
A21: 100 | B21: =B20+100 -> 1300 | C21: 2535 | D21: 376.7258383
A22: 100 | B22: 1400 | C22: =B22*1.95 -> 2730 | D22: 349.8168498
A23: 100 | B23: 1500 | C23: 2925 | D23: 326.4957265
A24: 100 | B24: 1600 | C24: 3120 | D24: 306.0897436
A25: 100 | B25: 1700 | C25: 3315 | D25: 288.0844646
A26: 100 | B26: 1800 | C26: 3510 | D26: 272.0797721
A27: 100 | B27: 1900 | C27: =B27*1.95 -> 3705 | D27: 257.7597841
A28: Power (kW) | B28: Engine LS | C28: Power take-off (rpm) | D28: (Nm)
A29: 160 | B29: 800 | C29: =B29*1.51 -> 1208 | D29: =A29*9550/C29 -> 1264.900662
A30: 160 | B30: 900 | C30: =B30*1.51 -> 1359 | D30: 1124.356144
A31: 160 | B31: 1000 | C31: =B31*1.51 -> 1510 | D31: 1011.92053
A32: 160 | B32: 1100 | C32: =B32*1.51 -> 1661 | D32: 919.9277544
A33: 160 | B33: 1200 | C33: =B33*1.51 -> 1812 | D33: 843.2671082
A34: 160 | B34: 1300 | C34: 1963 | D34: 778.4004075
A35: 160 | B35: 1400 | C35: 2114 | D35: 722.8003784
A36: 160 | B36: 1500 | C36: 2265 | D36: 674.6136865
A37: 160 | B37: =B36+100 -> 1600 | C37: 2416 | D37: 632.4503311
A38: 160 | B38: 1700 | C38: 2567 | D38: 595.2473705
A39: 160 | B39: 1800 | C39: 2718 | D39: 562.1780721
A40: 160 | B40: 1900 | C40: =B40*1.51 -> 2869 | D40: 532.5897525
A41: Power (kW) | B41: Engine HS | C41: Power take-off (rpm) | D41: (Nm)
A42: 160 | B42: 800 | C42: =B42*1.95 -> 1560 | D42: =A42*9550/C42 -> 979.4871795
A43: 160 | B43: 900 | C43: 1755 | D43: =A43*9550/C43 -> 870.6552707
A44: 160 | B44: 1000 | C44: 1950 | D44: 783.5897436
A45: 160 | B45: 1100 | C45: 2145 | D45: 712.3543124
A46: 160 | B46: 1200 | C46: 2340 | D46: 652.991453
A47: 160 | B47: =B46+100 -> 1300 | C47: 2535 | D47: 602.7613412
A48: 160 | B48: 1400 | C48: =B48*1.95 -> 2730 | D48: 559.7069597
A49: 160 | B49: 1500 | C49: 2925 | D49: 522.3931624
A50: 160 | B50: 1600 | C50: =B50*1.95 -> 3120 | D50: 489.7435897
A51: 160 | B51: 1700 | C51: 3315 | D51: 460.9351433
A52: 160 | B52: 1800 | C52: 3510 | D52: 435.3276353
A53: 160 | B53: 1900 | C53: 3705 | D53: 412.4156545

Sheet EG13R DCP1P1-xxyy U
A1: EG13R DCxxyy U
A2: Power (kW) | B2: Engine LS | C2: Power take-off (rpm) | D2: (Nm)
A3: 100 | B3: 800 | C3: =B3*1.39 -> 1112 | D3: =A3*9550/C3 -> 858.8129496
A4: 100 | B4: 900 | C4: =B4*1.39 -> 1251 | D4: =A4*9550/C4 -> 763.3892886
A5: 100 | B5: 1000 | C5: =B5*1.39 -> 1390 | D5: =A5*9550/C5 -> 687.0503597
A6: 100 | B6: 1100 | C6: 1529 | D6: =A6*9550/C6 -> 624.5912361
A7: 100 | B7: 1200 | C7: =B7*1.39 -> 1668 | D7: =A7*9550/C7 -> 572.5419664
A8: 100 | B8: 1300 | C8: =B8*1.39 -> 1807 | D8: =A8*9550/C8 -> 528.5002767
A9: 100 | B9: 1400 | C9: =B9*1.39 -> 1946 | D9: 490.7502569
A10: 100 | B10: 1500 | C10: 2085 | D10: 458.0335731
A11: 100 | B11: 1600 | C11: 2224 | D11: 429.4064748
A12: 100 | B12: =B11+100 -> 1700 | C12: 2363 | D12: 404.1472704
A13: 100 | B13: 1800 | C13: =B13*1.39 -> 2502 | D13: 381.6946443
A14: 100 | B14: 1900 | C14: 2641 | D14: 361.6054525
A15: Power (kW) | B15: Engine HS | C15: Power take-off (rpm) | D15: (Nm)
A16: 100 | B16: 800 | C16: =B16*1.79 -> 1432 | D16: =A16*9550/C16 -> 666.8994413
A17: 100 | B17: 900 | C17: 1611 | D17: 592.7995034
A18: 100 | B18: 1000 | C18: =B18*1.79 -> 1790 | D18: =A18*9550/C18 -> 533.5195531
A19: 100 | B19: 1100 | C19: 1969 | D19: 485.0177755
A20: 100 | B20: 1200 | C20: 2148 | D20: 444.5996276
A21: 100 | B21: =B20+100 -> 1300 | C21: =B21*1.79 -> 2327 | D21: 410.3996562
A22: 100 | B22: 1400 | C22: 2506 | D22: 381.0853951
A23: 100 | B23: 1500 | C23: 2685 | D23: 355.679702
A24: 100 | B24: 1600 | C24: 2864 | D24: 333.4497207
A25: 100 | B25: 1700 | C25: 3043 | D25: 313.8350312
A26: 100 | B26: 1800 | C26: 3222 | D26: 296.3997517
A27: 100 | B27: 1900 | C27: =B27*1.79 -> 3401 | D27: 280.7997648
A28: Power (kW) | B28: Engine LS | C28: Power take-off (rpm) | D28: (Nm)
A29: 160 | B29: 1300 | C29: =B29*1.39 -> 1807 | D29: =A29*9550/C29 -> 845.6004427
A30: 160 | B30: 1400 | C30: =B30*1.39 -> 1946 | D30: =A30*9550/C30 -> 785.2004111
A31: 160 | B31: 1500 | C31: =B31*1.39 -> 2085 | D31: 732.853717
A32: 160 | B32: 1600 | C32: 2224 | D32: 687.0503597
A33: 160 | B33: 1700 | C33: 2363 | D33: 646.6356327
A34: 160 | B34: 1800 | C34: =B34*1.39 -> 2502 | D34: =A34*9550/C34 -> 610.7114309
A35: 160 | B35: 1900 | C35: =B35*1.39 -> 2641 | D35: =A35*9550/C35 -> 578.568724
A36: Power (kW) | B36: Engine HS | C36: Power take-off (rpm) | D36: (Nm)
A37: 160 | B37: 980 | C37: =B37*1.79 -> 1754.2 | D37: =A37*9550/C37 -> 871.0523315
A38: 160 | B38: 1000 | C38: =B38*1.79 -> 1790 | D38: =A38*9550/C38 -> 853.6312849
A39: 160 | B39: 1100 | C39: =B39*1.79 -> 1969 | D39: =A39*9550/C39 -> 776.0284408
A40: 160 | B40: 1200 | C40: =B40*1.79 -> 2148 | D40: =A40*9550/C40 -> 711.3594041
A41: 160 | B41: 1300 | C41: 2327 | D41: =A41*9550/C41 -> 656.6394499
A42: 160 | B42: 1400 | C42: =B42*1.79 -> 2506 | D42: =A42*9550/C42 -> 609.7366321
A43: 160 | B43: 1500 | C43: 2685 | D43: 569.0875233
A44: 160 | B44: 1600 | C44: =B44*1.79 -> 2864 | D44: =A44*9550/C44 -> 533.5195531
A45: 160 | B45: =B44+100 -> 1700 | C45: 3043 | D45: 502.13605
A46: 160 | B46: 1800 | C46: 3222 | D46: 474.2396027
A47: 160 | B47: 1900 | C47: =B47*1.79 -> 3401 | D47: 449.2796236

Sheet EG13R DCP1P1-xxyy L
A1: EG13R DCxxyy L
A2: Power (kW) | B2: Engine LS | C2: Power take-off (rpm) | D2: (Nm)
A3: 100 | B3: 800 | C3: =B3*1.39 -> 1112 | D3: =A3*9550/C3 -> 858.8129496
A4: 100 | B4: 900 | C4: 1251 | D4: 763.3892886
A5: 100 | B5: 1000 | C5: 1390 | D5: 687.0503597
A6: 100 | B6: 1100 | C6: 1529 | D6: 624.5912361
A7: 100 | B7: 1200 | C7: 1668 | D7: 572.5419664
A8: 100 | B8: 1300 | C8: 1807 | D8: 528.5002767
A9: 100 | B9: 1400 | C9: 1946 | D9: 490.7502569
A10: 100 | B10: 1500 | C10: 2085 | D10: 458.0335731
A11: 100 | B11: 1600 | C11: 2224 | D11: 429.4064748
A12: 100 | B12: =B11+100 -> 1700 | C12: 2363 | D12: 404.1472704
A13: 100 | B13: 1800 | C13: 2502 | D13: 381.6946443
A14: 100 | B14: 1900 | C14: 2641 | D14: 361.6054525
A15: Power (kW) | B15: Engine HS | C15: Power take-off (rpm) | D15: (Nm)
A16: 100 | B16: 800 | C16: =B16*1.79 -> 1432 | D16: =A16*9550/C16 -> 666.8994413
A17: 100 | B17: 900 | C17: 1611 | D17: 592.7995034
A18: 100 | B18: 1000 | C18: 1790 | D18: 533.5195531
A19: 100 | B19: 1100 | C19: 1969 | D19: 485.0177755
A20: 100 | B20: 1200 | C20: 2148 | D20: 444.5996276
A21: 100 | B21: =B20+100 -> 1300 | C21: 2327 | D21: 410.3996562
A22: 100 | B22: 1400 | C22: 2506 | D22: 381.0853951
A23: 100 | B23: 1500 | C23: 2685 | D23: 355.679702
A24: 100 | B24: 1600 | C24: 2864 | D24: 333.4497207
A25: 100 | B25: 1700 | C25: 3043 | D25: 313.8350312
A26: 100 | B26: 1800 | C26: 3222 | D26: 296.3997517
A27: 100 | B27: 1900 | C27: =B27*1.79 -> 3401 | D27: 280.7997648
A28: Power (kW) | B28: Engine LS | C28: Power take-off (rpm) | D28: (Nm)
A29: 160 | B29: 1200 | C29: =B29*1.39 -> 1668 | D29: =A29*9550/C29 -> 916.0671463
A30: 160 | B30: =B29+100 -> 1300 | C30: =B30*1.39 -> 1807 | D30: 845.6004427
A31: 160 | B31: 1400 | C31: 1946 | D31: 785.2004111
A32: 160 | B32: 1500 | C32: 2085 | D32: 732.853717
A33: 160 | B33: 1600 | C33: 2224 | D33: 687.0503597
A34: 160 | B34: 1700 | C34: 2363 | D34: 646.6356327
A35: 160 | B35: 1800 | C35: 2502 | D35: 610.7114309
A36: 160 | B36: 1900 | C36: =B36*1.39 -> 2641 | D36: 578.568724
A37: Power (kW) | B37: Engine HS | C37: Power take-off (rpm) | D37: (Nm)
A38: 160 | B38: 900 | C38: =B38*1.79 -> 1611 | D38: =A38*9550/C38 -> 948.4792055
A39: 160 | B39: 1000 | C39: =B39*1.79 -> 1790 | D39: 853.6312849
A40: 160 | B40: 1100 | C40: 1969 | D40: 776.0284408
A41: 160 | B41: 1200 | C41: 2148 | D41: =A41*9550/C41 -> 711.3594041
A42: 160 | B42: 1300 | C42: 2327 | D42: =A42*9550/C42 -> 656.6394499
A43: 160 | B43: 1400 | C43: 2506 | D43: 609.7366321
A44: 160 | B44: 1500 | C44: 2685 | D44: 569.0875233
A45: 160 | B45: 1600 | C45: 2864 | D45: 533.5195531
A46: 160 | B46: =B45+100 -> 1700 | C46: 3043 | D46: 502.13605
A47: 160 | B47: 1800 | C47: 3222 | D47: 474.2396027
A48: 160 | B48: 1900 | C48: =B48*1.79 -> 3401 | D48: 449.2796236

Sheet EG13R DCP1P1-xxyy U&L
A1: EG13R DCxxyy U&L
A2: Power (kW) | B2: Engine LS | C2: Power take-off (rpm) | D2: (Nm)
A3: 100 | B3: 800 | C3: =B3*1.39 -> 1112 | D3: =A3*9550/C3 -> 858.8129496
A4: 100 | B4: 900 | C4: 1251 | D4: 763.3892886
A5: 100 | B5: 1000 | C5: 1390 | D5: 687.0503597
A6: 100 | B6: 1100 | C6: 1529 | D6: 624.5912361
A7: 100 | B7: 1200 | C7: 1668 | D7: 572.5419664
A8: 100 | B8: 1300 | C8: 1807 | D8: 528.5002767
A9: 100 | B9: 1400 | C9: 1946 | D9: 490.7502569
A10: 100 | B10: 1500 | C10: 2085 | D10: 458.0335731
A11: 100 | B11: 1600 | C11: 2224 | D11: 429.4064748
A12: 100 | B12: =B11+100 -> 1700 | C12: 2363 | D12: 404.1472704
A13: 100 | B13: 1800 | C13: 2502 | D13: 381.6946443
A14: 100 | B14: 1900 | C14: 2641 | D14: 361.6054525
A15: Power (kW) | B15: Engine HS | C15: Power take-off (rpm) | D15: (Nm)
A16: 100 | B16: 800 | C16: =B16*1.79 -> 1432 | D16: =A16*9550/C16 -> 666.8994413
A17: 100 | B17: 900 | C17: 1611 | D17: 592.7995034
A18: 100 | B18: 1000 | C18: 1790 | D18: 533.5195531
A19: 100 | B19: 1100 | C19: 1969 | D19: 485.0177755
A20: 100 | B20: 1200 | C20: 2148 | D20: 444.5996276
A21: 100 | B21: =B20+100 -> 1300 | C21: 2327 | D21: 410.3996562
A22: 100 | B22: 1400 | C22: 2506 | D22: 381.0853951
A23: 100 | B23: 1500 | C23: 2685 | D23: 355.679702
A24: 100 | B24: 1600 | C24: 2864 | D24: 333.4497207
A25: 100 | B25: 1700 | C25: 3043 | D25: 313.8350312
A26: 100 | B26: 1800 | C26: 3222 | D26: 296.3997517
A27: 100 | B27: 1900 | C27: =B27*1.79 -> 3401 | D27: 280.7997648
A28: Power (kW) | B28: Engine LS | C28: Power take-off (rpm) | D28: (Nm)
A29: 160 | B29: 800 | C29: =B29*1.39 -> 1112 | D29: =A29*9550/C29 -> 1374.100719
A30: 160 | B30: 900 | C30: 1251 | D30: 1221.422862
A31: 160 | B31: 1000 | C31: 1390 | D31: 1099.280576
A32: 160 | B32: 1100 | C32: 1529 | D32: 999.3459778
A33: 160 | B33: 1200 | C33: =B33*1.39 -> 1668 | D33: 916.0671463
A34: 160 | B34: =B33+100 -> 1300 | C34: =B34*1.39 -> 1807 | D34: 845.6004427
A35: 160 | B35: 1400 | C35: 1946 | D35: 785.2004111
A36: 160 | B36: 1500 | C36: 2085 | D36: 732.853717
A37: 160 | B37: 1600 | C37: 2224 | D37: 687.0503597
A38: 160 | B38: 1700 | C38: 2363 | D38: 646.6356327
A39: 160 | B39: 1800 | C39: 2502 | D39: 610.7114309
A40: 160 | B40: 1900 | C40: =B40*1.39 -> 2641 | D40: 578.568724
A41: Power (kW) | B41: Engine HS | C41: Power take-off (rpm) | D41: (Nm)
A42: 160 | B42: 800 | C42: =B42*1.79 -> 1432 | D42: =A42*9550/C42 -> 1067.039106
A43: 160 | B43: 900 | C43: =B43*1.79 -> 1611 | D43: 948.4792055
A44: 160 | B44: 1000 | C44: =B44*1.79 -> 1790 | D44: 853.6312849
A45: 160 | B45: 1100 | C45: 1969 | D45: 776.0284408
A46: 160 | B46: 1200 | C46: 2148 | D46: =A46*9550/C46 -> 711.3594041
A47: 160 | B47: 1300 | C47: 2327 | D47: =A47*9550/C47 -> 656.6394499
A48: 160 | B48: 1400 | C48: 2506 | D48: 609.7366321
A49: 160 | B49: 1500 | C49: 2685 | D49: 569.0875233
A50: 160 | B50: 1600 | C50: 2864 | D50: 533.5195531
A51: 160 | B51: =B50+100 -> 1700 | C51: 3043 | D51: 502.13605
A52: 160 | B52: 1800 | C52: 3222 | D52: 474.2396027
A53: 160 | B53: 1900 | C53: =B53*1.79 -> 3401 | D53: 449.2796236

Sheet EG16R DCP1P1-xxyy U
A1: EG16R DCxxyy U
A2: Power (kW) | B2: Engine LS | C2: Power take-off (rpm) | D2: (Nm)
A3: 100 | B3: 960 | C3: =B3*1.19 -> 1142.4 | D3: =A3*9550/C3 -> 835.9593838
A4: 100 | B4: 1000 | C4: =B4*1.19 -> 1190 | D4: =A4*9550/C4 -> 802.5210084
A5: 100 | B5: 1100 | C5: =B5*1.19 -> 1309 | D5: 729.5645531
A6: 100 | B6: 1200 | C6: 1428 | D6: 668.767507
A7: 100 | B7: 1300 | C7: =B7*1.19 -> 1547 | D7: =A7*9550/C7 -> 617.3238526
A8: 100 | B8: 1400 | C8: 1666 | D8: 573.2292917
A9: 100 | B9: 1500 | C9: 1785 | D9: 535.0140056
A10: 100 | B10: 1600 | C10: 1904 | D10: 501.5756303
A11: 100 | B11: =B10+100 -> 1700 | C11: =B11*1.19 -> 2023 | D11: 472.0711814
A12: 100 | B12: 1800 | C12: 2142 | D12: 445.8450047
A13: 100 | B13: 1900 | C13: 2261 | D13: 422.3794781
A14: Power (kW) | B14: Engine HS | C14: Power take-off (rpm) | D14: (Nm)
A15: 100 | B15: 800 | C15: =B15*1.53 -> 1224 | D15: =A15*9550/C15 -> 780.2287582
A16: 100 | B16: 900 | C16: 1377 | D16: 693.5366739
A17: 100 | B17: 1000 | C17: =B17*1.53 -> 1530 | D17: 624.1830065
A18: 100 | B18: 1100 | C18: =B18*1.53 -> 1683 | D18: 567.4390969
A19: 100 | B19: 1200 | C19: =B19*1.53 -> 1836 | D19: 520.1525054
A20: 100 | B20: =B19+100 -> 1300 | C20: 1989 | D20: 480.1407743
A21: 100 | B21: 1400 | C21: =B21*1.53 -> 2142 | D21: 445.8450047
A22: 100 | B22: 1500 | C22: 2295 | D22: 416.1220044
A23: 100 | B23: 1600 | C23: 2448 | D23: 390.1143791
A24: 100 | B24: 1700 | C24: 2601 | D24: 367.1664744
A25: 100 | B25: 1800 | C25: =B25*1.53 -> 2754 | D25: 346.768337
A26: 100 | B26: 1900 | C26: =B26*1.53 -> 2907 | D26: 328.5173719
A27: Power (kW) | B27: Engine LS | C27: Power take-off (rpm) | D27: (Nm)
A28: 160 | B28: 1500 | C28: =B28*1.19 -> 1785 | D28: =A28*9550/C28 -> 856.022409
A29: 160 | B29: 1600 | C29: =B29*1.19 -> 1904 | D29: =A29*9550/C29 -> 802.5210084
A30: 160 | B30: 1700 | C30: =B30*1.19 -> 2023 | D30: =A30*9550/C30 -> 755.3138903
A31: 160 | B31: 1800 | C31: =B31*1.19 -> 2142 | D31: 713.3520075
A32: 160 | B32: 1900 | C32: =B32*1.19 -> 2261 | D32: 675.807165
A33: Power (kW) | B33: Engine HS | C33: Power take-off (rpm) | D33: (Nm)
A34: 160 | B34: 1150 | C34: =B34*1.53 -> 1759.5 | D34: =A34*9550/C34 -> 868.4285308
A35: 160 | B35: 1200 | C35: =B35*1.53 -> 1836 | D35: =A35*9550/C35 -> 832.2440087
A36: 160 | B36: 1300 | C36: =B36*1.53 -> 1989 | D36: =A36*9550/C36 -> 768.2252388
A37: 160 | B37: 1400 | C37: =B37*1.53 -> 2142 | D37: 713.3520075
A38: 160 | B38: 1500 | C38: =B38*1.53 -> 2295 | D38: 665.795207
A39: 160 | B39: 1600 | C39: =B39*1.53 -> 2448 | D39: 624.1830065
A40: 160 | B40: =B39+100 -> 1700 | C40: =B40*1.53 -> 2601 | D40: 587.4663591
A41: 160 | B41: 1800 | C41: =B41*1.53 -> 2754 | D41: 554.8293391
A42: 160 | B42: 1900 | C42: =B42*1.53 -> 2907 | D42: 525.627795

Sheet EG16R DCP1P1-xxyy L
A1: EG16R DCxxyy L
A2: Power (kW) | B2: Engine LS | C2: Power take-off (rpm) | D2: (Nm)
A3: 100 | B3: 800 | C3: =B3*1.19 -> 952 | D3: =A3*9550/C3 -> 1003.151261
A4: 100 | B4: 900 | C4: 1071 | D4: 891.6900093
A5: 100 | B5: 1000 | C5: 1190 | D5: 802.5210084
A6: 100 | B6: 1100 | C6: 1309 | D6: 729.5645531
A7: 100 | B7: 1200 | C7: 1428 | D7: 668.767507
A8: 100 | B8: 1300 | C8: 1547 | D8: 617.3238526
A9: 100 | B9: 1400 | C9: 1666 | D9: 573.2292917
A10: 100 | B10: 1500 | C10: 1785 | D10: 535.0140056
A11: 100 | B11: 1600 | C11: 1904 | D11: 501.5756303
A12: 100 | B12: =B11+100 -> 1700 | C12: 2023 | D12: 472.0711814
A13: 100 | B13: 1800 | C13: 2142 | D13: 445.8450047
A14: 100 | B14: 1900 | C14: =B14*1.19 -> 2261 | D14: 422.3794781
A15: Power (kW) | B15: Engine HS | C15: Power take-off (rpm) | D15: (Nm)
A16: 100 | B16: 800 | C16: =B16*1.53 -> 1224 | D16: =A16*9550/C16 -> 780.2287582
A17: 100 | B17: 900 | C17: =B17*1.53 -> 1377 | D17: 693.5366739
A18: 100 | B18: 1000 | C18: 1530 | D18: 624.1830065
A19: 100 | B19: 1100 | C19: 1683 | D19: 567.4390969
A20: 100 | B20: 1200 | C20: 1836 | D20: 520.1525054
A21: 100 | B21: =B20+100 -> 1300 | C21: 1989 | D21: 480.1407743
A22: 100 | B22: 1400 | C22: 2142 | D22: 445.8450047
A23: 100 | B23: 1500 | C23: 2295 | D23: 416.1220044
A24: 100 | B24: 1600 | C24: =B24*1.53 -> 2448 | D24: 390.1143791
A25: 100 | B25: 1700 | C25: 2601 | D25: 367.1664744
A26: 100 | B26: 1800 | C26: 2754 | D26: 346.768337
A27: 100 | B27: 1900 | C27: =B27*1.53 -> 2907 | D27: 328.5173719
A28: Power (kW) | B28: Engine LS | C28: Power take-off (rpm) | D28: (Nm)
A29: 160 | B29: 1200 | C29: =B29*1.19 -> 1428 | D29: =A29*9550/C29 -> 1070.028011
A30: 160 | B30: =B29+100 -> 1300 | C30: =B30*1.19 -> 1547 | D30: 987.7181642
A31: 160 | B31: 1400 | C31: 1666 | D31: 917.1668667
A32: 160 | B32: 1500 | C32: 1785 | D32: 856.022409
A33: 160 | B33: 1600 | C33: 1904 | D33: 802.5210084
A34: 160 | B34: 1700 | C34: 2023 | D34: 755.3138903
A35: 160 | B35: 1800 | C35: 2142 | D35: 713.3520075
A36: 160 | B36: 1900 | C36: =B36*1.19 -> 2261 | D36: 675.807165
A37: Power (kW) | B37: Engine HS | C37: Power take-off (rpm) | D37: (Nm)
A38: 160 | B38: 900 | C38: =B38*1.53 -> 1377 | D38: =A38*9550/C38 -> 1109.658678
A39: 160 | B39: 1000 | C39: =B39*1.53 -> 1530 | D39: 998.6928105
A40: 160 | B40: 1100 | C40: =B40*1.53 -> 1683 | D40: 907.902555
A41: 160 | B41: 1200 | C41: 1836 | D41: =A41*9550/C41 -> 832.2440087
A42: 160 | B42: 1300 | C42: 1989 | D42: =A42*9550/C42 -> 768.2252388
A43: 160 | B43: 1400 | C43: 2142 | D43: 713.3520075
A44: 160 | B44: 1500 | C44: 2295 | D44: 665.795207
A45: 160 | B45: 1600 | C45: 2448 | D45: 624.1830065
A46: 160 | B46: =B45+100 -> 1700 | C46: 2601 | D46: 587.4663591
A47: 160 | B47: 1800 | C47: =B47*1.53 -> 2754 | D47: 554.8293391
A48: 160 | B48: 1900 | C48: 2907 | D48: 525.627795

Sheet EG16R DCP1P1-xxyy U&L
A1: EG16R DCxxyy U&L
A2: Power (kW) | B2: Engine LS | C2: Power take-off (rpm) | D2: (Nm)
A3: 100 | B3: 800 | C3: =B3*1.19 -> 952 | D3: =A3*9550/C3 -> 1003.151261
A4: 100 | B4: 900 | C4: =B4*1.19 -> 1071 | D4: 891.6900093
A5: 100 | B5: 1000 | C5: 1190 | D5: 802.5210084
A6: 100 | B6: 1100 | C6: 1309 | D6: 729.5645531
A7: 100 | B7: 1200 | C7: 1428 | D7: 668.767507
A8: 100 | B8: 1300 | C8: 1547 | D8: 617.3238526
A9: 100 | B9: 1400 | C9: 1666 | D9: 573.2292917
A10: 100 | B10: 1500 | C10: =B10*1.19 -> 1785 | D10: 535.0140056
A11: 100 | B11: 1600 | C11: 1904 | D11: 501.5756303
A12: 100 | B12: =B11+100 -> 1700 | C12: 2023 | D12: 472.0711814
A13: 100 | B13: 1800 | C13: 2142 | D13: 445.8450047
A14: 100 | B14: 1900 | C14: =B14*1.19 -> 2261 | D14: 422.3794781
A15: Power (kW) | B15: Engine HS | C15: Power take-off (rpm) | D15: (Nm)
A16: 100 | B16: 800 | C16: =B16*1.53 -> 1224 | D16: =A16*9550/C16 -> 780.2287582
A17: 100 | B17: 900 | C17: =B17*1.53 -> 1377 | D17: 693.5366739
A18: 100 | B18: 1000 | C18: 1530 | D18: 624.1830065
A19: 100 | B19: 1100 | C19: 1683 | D19: 567.4390969
A20: 100 | B20: 1200 | C20: 1836 | D20: 520.1525054
A21: 100 | B21: =B20+100 -> 1300 | C21: 1989 | D21: 480.1407743
A22: 100 | B22: 1400 | C22: 2142 | D22: 445.8450047
A23: 100 | B23: 1500 | C23: 2295 | D23: 416.1220044
A24: 100 | B24: 1600 | C24: =B24*1.53 -> 2448 | D24: 390.1143791
A25: 100 | B25: 1700 | C25: 2601 | D25: 367.1664744
A26: 100 | B26: 1800 | C26: 2754 | D26: 346.768337
A27: 100 | B27: 1900 | C27: =B27*1.53 -> 2907 | D27: 328.5173719
A28: Power (kW) | B28: Engine LS | C28: Power take-off (rpm) | D28: (Nm)
A29: 160 | B29: 800 | C29: =B29*1.19 -> 952 | D29: =A29*9550/C29 -> 1605.042017
A30: 160 | B30: 900 | C30: 1071 | D30: 1426.704015
A31: 160 | B31: 1000 | C31: 1190 | D31: 1284.033613
A32: 160 | B32: 1100 | C32: 1309 | D32: 1167.303285
A33: 160 | B33: 1200 | C33: 1428 | D33: 1070.028011
A34: 160 | B34: =B33+100 -> 1300 | C34: 1547 | D34: 987.7181642
A35: 160 | B35: 1400 | C35: 1666 | D35: 917.1668667
A36: 160 | B36: 1500 | C36: 1785 | D36: 856.022409
A37: 160 | B37: 1600 | C37: 1904 | D37: 802.5210084
A38: 160 | B38: 1700 | C38: 2023 | D38: 755.3138903
A39: 160 | B39: 1800 | C39: 2142 | D39: 713.3520075
A40: 160 | B40: 1900 | C40: =B40*1.19 -> 2261 | D40: 675.807165
A41: Power (kW) | B41: Engine HS | C41: Power take-off (rpm) | D41: (Nm)
A42: 160 | B42: 800 | C42: =B42*1.53 -> 1224 | D42: =A42*9550/C42 -> 1248.366013
A43: 160 | B43: 900 | C43: =B43*1.53 -> 1377 | D43: 1109.658678
A44: 160 | B44: 1000 | C44: =B44*1.53 -> 1530 | D44: 998.6928105
A45: 160 | B45: 1100 | C45: 1683 | D45: 907.902555
A46: 160 | B46: 1200 | C46: 1836 | D46: =A46*9550/C46 -> 832.2440087
A47: 160 | B47: 1300 | C47: 1989 | D47: =A47*9550/C47 -> 768.2252388
A48: 160 | B48: 1400 | C48: 2142 | D48: 713.3520075
A49: 160 | B49: 1500 | C49: 2295 | D49: 665.795207
A50: 160 | B50: 1600 | C50: 2448 | D50: 624.1830065
A51: 160 | B51: =B50+100 -> 1700 | C51: 2601 | D51: 587.4663591
A52: 160 | B52: 1800 | C52: =B52*1.53 -> 2754 | D52: 554.8293391
A53: 160 | B53: 1900 | C53: 2907 | D53: 525.627795

Sheet None (hidden)

Sheet REF
A1: ref | B1: Sheetname | D1: Pro1PowerList | E1: Pro2PowerList | F1: Pro3PowerList | H1: CH
A2: =ROW()-1 -> 1 | B2: =IF(OR(IFERROR(INDEX(listsheets,$A2),"")="REF",IFERROR(INDEX(listsheets,$A2),"")="CHART",$A2="",IFERROR(INDEX(listsheets,$A2),"")="Gearbox oil cooler",IFERROR(INDEX(listsheets,$A2),"")="GEM Startblad",IFERROR(INDEX(listsheets,$A2),"")="PTO lathund 3",IFERROR(INDEX(listsheets,$A2),"")="PTO Technical data",IFERROR(INDEX(listsheets,$A2),"")="Hydraulic pumpdata",IFERROR(INDEX(listsheets,$A2),"")="Cranes",IFERROR(INDEX(listsheets,$A2),"")="PTO GZ",IFERROR(INDEX(listsheets,$A2),"")="EG PTO GW",IFERROR(INDEX(listsheets,$A2),"")="EG PTO GW adaption"),"",IFERROR(INDEX(listsheets,$A2),"")) -> ED70P | D2: =IFERROR(INDEX(Pro_1, MATCH(0,COUNTIF($D$1:D1,Pro_1&"")+IF(ISTEXT(Pro_1)=TRUE,1,0), 0)), "") -> 100 | E2: =IFERROR(INDEX(Pro_2, MATCH(0,COUNTIF($D$1:E1,Pro_2&"")+IF(ISTEXT(Pro_2)=TRUE,1,0), 0)), "") -> 250 | F2: =IFERROR(INDEX(Pro_3, MATCH(0,COUNTIF($D$1:F1,Pro_3&"")+IF(ISTEXT(Pro_3)=TRUE,1,0), 0)), "") -> 238 | H2: =IFERROR(INDEX(Pro_x, MATCH(0,COUNTIF($H$1:H1,Pro_x&"")+IF(ISTEXT(Pro_x)=TRUE,1,0), 0)), "") ->  | K2: =IF(CHART!$B$2="None","",IF(SUM(--(CHART!$B$3=Power__kW_1))=0,"Choose output power","")) -> 
A3: =ROW()-1 -> 2 | B3: =IF(OR(IFERROR(INDEX(listsheets,$A3),"")="REF",IFERROR(INDEX(listsheets,$A3),"")="CHART",$A3="",IFERROR(INDEX(listsheets,$A3),"")="Gearbox oil cooler",IFERROR(INDEX(listsheets,$A3),"")="GEM Startblad",IFERROR(INDEX(listsheets,$A3),"")="PTO lathund 3",IFERROR(INDEX(listsheets,$A3),"")="PTO Technical data",IFERROR(INDEX(listsheets,$A3),"")="Hydraulic pumpdata",IFERROR(INDEX(listsheets,$A3),"")="Cranes",IFERROR(INDEX(listsheets,$A3),"")="PTO GZ",IFERROR(INDEX(listsheets,$A3),"")="EG PTO GW",IFERROR(INDEX(listsheets,$A3),"")="EG PTO GW adaption"),"",IFERROR(INDEX(listsheets,$A3),"")) -> ED120P | D3: =IFERROR(INDEX(Pro_1, MATCH(0,COUNTIF($D$1:D2,Pro_1&"")+IF(ISTEXT(Pro_1)=TRUE,1,0), 0)), "") -> 160 | E3: =IFERROR(INDEX(Pro_2, MATCH(0,COUNTIF($D$1:E2,Pro_2&"")+IF(ISTEXT(Pro_2)=TRUE,1,0), 0)), "") ->  | F3: =IFERROR(INDEX(Pro_3, MATCH(0,COUNTIF($D$1:F2,Pro_3&"")+IF(ISTEXT(Pro_3)=TRUE,1,0), 0)), "") ->  | H3: =IFERROR(INDEX(Pro_x, MATCH(0,COUNTIF($H$1:H2,Pro_x&"")+IF(ISTEXT(Pro_x)=TRUE,1,0), 0)), "") ->  | K3: =IF(CHART!$D$2="None","",IF(SUM(--(CHART!$D$3=Power__kW_2))=0,"Choose output power","")) -> 
A4: 3 | B4: =IF(OR(IFERROR(INDEX(listsheets,$A4),"")="REF",IFERROR(INDEX(listsheets,$A4),"")="CHART",$A4="",IFERROR(INDEX(listsheets,$A4),"")="Gearbox oil cooler",IFERROR(INDEX(listsheets,$A4),"")="GEM Startblad",IFERROR(INDEX(listsheets,$A4),"")="PTO lathund 3",IFERROR(INDEX(listsheets,$A4),"")="PTO Technical data",IFERROR(INDEX(listsheets,$A4),"")="Hydraulic pumpdata",IFERROR(INDEX(listsheets,$A4),"")="Cranes",IFERROR(INDEX(listsheets,$A4),"")="PTO GZ",IFERROR(INDEX(listsheets,$A4),"")="EG PTO GW",IFERROR(INDEX(listsheets,$A4),"")="EG PTO GW adaption"),"",IFERROR(INDEX(listsheets,$A4),"")) -> ED160P | D4: =IFERROR(INDEX(Pro_1, MATCH(0,COUNTIF($D$1:D3,Pro_1&"")+IF(ISTEXT(Pro_1)=TRUE,1,0), 0)), "") ->  | E4: =IFERROR(INDEX(Pro_2, MATCH(0,COUNTIF($D$1:E3,Pro_2&"")+IF(ISTEXT(Pro_2)=TRUE,1,0), 0)), "") ->  | F4: =IFERROR(INDEX(Pro_3, MATCH(0,COUNTIF($D$1:F3,Pro_3&"")+IF(ISTEXT(Pro_3)=TRUE,1,0), 0)), "") ->  | H4: =IFERROR(INDEX(Pro_x, MATCH(0,COUNTIF($H$1:H3,Pro_x&"")+IF(ISTEXT(Pro_x)=TRUE,1,0), 0)), "") ->  | K4: =IF(CHART!$F$2="None","",IF(SUM(--(CHART!$F$3=Power__kW_3))=0,"Choose output power","")) -> 
A5: 4 | B5: =IF(OR(IFERROR(INDEX(listsheets,$A5),"")="REF",IFERROR(INDEX(listsheets,$A5),"")="CHART",$A5="",IFERROR(INDEX(listsheets,$A5),"")="Gearbox oil cooler",IFERROR(INDEX(listsheets,$A5),"")="GEM Startblad",IFERROR(INDEX(listsheets,$A5),"")="PTO lathund 3",IFERROR(INDEX(listsheets,$A5),"")="PTO Technical data",IFERROR(INDEX(listsheets,$A5),"")="Hydraulic pumpdata",IFERROR(INDEX(listsheets,$A5),"")="Cranes",IFERROR(INDEX(listsheets,$A5),"")="PTO GZ",IFERROR(INDEX(listsheets,$A5),"")="EG PTO GW",IFERROR(INDEX(listsheets,$A5),"")="EG PTO GW adaption"),"",IFERROR(INDEX(listsheets,$A5),"")) -> ED10R WBP1 | D5: =IFERROR(INDEX(Pro_1, MATCH(0,COUNTIF($D$1:D4,Pro_1&"")+IF(ISTEXT(Pro_1)=TRUE,1,0), 0)), "") ->  | E5: =IFERROR(INDEX(Pro_2, MATCH(0,COUNTIF($D$1:E4,Pro_2&"")+IF(ISTEXT(Pro_2)=TRUE,1,0), 0)), "") ->  | F5: =IFERROR(INDEX(Pro_3, MATCH(0,COUNTIF($D$1:F4,Pro_3&"")+IF(ISTEXT(Pro_3)=TRUE,1,0), 0)), "") ->  | H5: =IFERROR(INDEX(Pro_x, MATCH(0,COUNTIF($H$1:H4,Pro_x&"")+IF(ISTEXT(Pro_x)=TRUE,1,0), 0)), "") -> 
A6: 5 | B6: =IF(OR(IFERROR(INDEX(listsheets,$A6),"")="REF",IFERROR(INDEX(listsheets,$A6),"")="CHART",$A6="",IFERROR(INDEX(listsheets,$A6),"")="Gearbox oil cooler",IFERROR(INDEX(listsheets,$A6),"")="GEM Startblad",IFERROR(INDEX(listsheets,$A6),"")="PTO lathund 3",IFERROR(INDEX(listsheets,$A6),"")="PTO Technical data",IFERROR(INDEX(listsheets,$A6),"")="Hydraulic pumpdata",IFERROR(INDEX(listsheets,$A6),"")="Cranes",IFERROR(INDEX(listsheets,$A6),"")="PTO GZ",IFERROR(INDEX(listsheets,$A6),"")="EG PTO GW",IFERROR(INDEX(listsheets,$A6),"")="EG PTO GW adaption"),"",IFERROR(INDEX(listsheets,$A6),"")) -> ED10R WBF4 | C6: GEM Startblad | D6: =IFERROR(INDEX(Pro_1, MATCH(0,COUNTIF($D$1:D5,Pro_1&"")+IF(ISTEXT(Pro_1)=TRUE,1,0), 0)), "") ->  | E6: =IFERROR(INDEX(Pro_2, MATCH(0,COUNTIF($D$1:E5,Pro_2&"")+IF(ISTEXT(Pro_2)=TRUE,1,0), 0)), "") ->  | F6: =IFERROR(INDEX(Pro_3, MATCH(0,COUNTIF($D$1:F5,Pro_3&"")+IF(ISTEXT(Pro_3)=TRUE,1,0), 0)), "") ->  | H6: =IFERROR(INDEX(Pro_x, MATCH(0,COUNTIF($H$1:H5,Pro_x&"")+IF(ISTEXT(Pro_x)=TRUE,1,0), 0)), "") -> 
A7: 6 | B7: =IF(OR(IFERROR(INDEX(listsheets,$A7),"")="REF",IFERROR(INDEX(listsheets,$A7),"")="CHART",$A7="",IFERROR(INDEX(listsheets,$A7),"")="Gearbox oil cooler",IFERROR(INDEX(listsheets,$A7),"")="GEM Startblad",IFERROR(INDEX(listsheets,$A7),"")="PTO lathund 3",IFERROR(INDEX(listsheets,$A7),"")="PTO Technical data",IFERROR(INDEX(listsheets,$A7),"")="Hydraulic pumpdata",IFERROR(INDEX(listsheets,$A7),"")="Cranes",IFERROR(INDEX(listsheets,$A7),"")="PTO GZ",IFERROR(INDEX(listsheets,$A7),"")="EG PTO GW",IFERROR(INDEX(listsheets,$A7),"")="EG PTO GW adaption"),"",IFERROR(INDEX(listsheets,$A7),"")) -> ED7R WBF3 | C7: PTO lathund 3 | D7: =IFERROR(INDEX(Pro_1, MATCH(0,COUNTIF($D$1:D6,Pro_1&"")+IF(ISTEXT(Pro_1)=TRUE,1,0), 0)), "") ->  | E7: =IFERROR(INDEX(Pro_2, MATCH(0,COUNTIF($D$1:E6,Pro_2&"")+IF(ISTEXT(Pro_2)=TRUE,1,0), 0)), "") ->  | F7: =IFERROR(INDEX(Pro_3, MATCH(0,COUNTIF($D$1:F6,Pro_3&"")+IF(ISTEXT(Pro_3)=TRUE,1,0), 0)), "") ->  | H7: =IFERROR(INDEX(Pro_x, MATCH(0,COUNTIF($H$1:H6,Pro_x&"")+IF(ISTEXT(Pro_x)=TRUE,1,0), 0)), "") -> 
A8: 7 | B8: EK730P | C8: PTO Technical data | D8: =IFERROR(INDEX(Pro_1, MATCH(0,COUNTIF($D$1:D7,Pro_1&"")+IF(ISTEXT(Pro_1)=TRUE,1,0), 0)), "") ->  | E8: =IFERROR(INDEX(Pro_2, MATCH(0,COUNTIF($D$1:E7,Pro_2&"")+IF(ISTEXT(Pro_2)=TRUE,1,0), 0)), "") ->  | F8: =IFERROR(INDEX(Pro_3, MATCH(0,COUNTIF($D$1:F7,Pro_3&"")+IF(ISTEXT(Pro_3)=TRUE,1,0), 0)), "") ->  | H8: =IFERROR(INDEX(Pro_x, MATCH(0,COUNTIF($H$1:H7,Pro_x&"")+IF(ISTEXT(Pro_x)=TRUE,1,0), 0)), "") -> 
A9: 8 | B9: EK740F | C9: Hydraulic pumpdata
A10: 9 | B10: EK750F | C10: Cranes
A11: 10 | B11: EG730P | C11: PTO GZ
A12: 11 | B12: EG740F | C12: EG PTO GW
A13: 12 | B13: EG500P | C13: EG PTO GW adaption
A14: 13 | B14: EG500F
A15: 14 | B15: EG502P
A16: 15 | B16: EG502F
A17: 16 | B17: EG501P
A18: 17 | B18: EG501F
A19: 18 | B19: EG503P
A20: 19 | B20: EG503F
A21: 20 | B21: EG640F
A22: 21 | B22: EG640P
A23: 22 | B23: EG641P
A24: 23 | B24: EG641F
A25: 24 | B25: EG642P
A26: 25 | B26: EG642F
A27: 26 | B27: EG643P
A28: 27 | B28: EG643F
A29: 28 | B29: EG644P
A30: 29 | B30: EG644F
A31: 30 | B31: EG645P
A32: 31 | B32: EG645F
A33: 32 | B33: EG646P
A34: 33 | B34: =IF(OR(IFERROR(INDEX(listsheets,$A34),"")="REF",IFERROR(INDEX(listsheets,$A34),"")="CHART",$A34="",IFERROR(INDEX(listsheets,$A34),"")="Gearbox oil cooler",IFERROR(INDEX(listsheets,$A34),"")="GEM Startblad",IFERROR(INDEX(listsheets,$A34),"")="PTO lathund 3",IFERROR(INDEX(listsheets,$A34),"")="PTO Technical data",IFERROR(INDEX(listsheets,$A34),"")="Hydraulic pumpdata",IFERROR(INDEX(listsheets,$A34),"")="Cranes",IFERROR(INDEX(listsheets,$A34),"")="PTO GZ",IFERROR(INDEX(listsheets,$A34),"")="EG PTO GW",IFERROR(INDEX(listsheets,$A34),"")="EG PTO GW adaption"),"",IFERROR(INDEX(listsheets,$A34),"")) -> EG646F
A35: 34 | B35: EG647P
A36: 35 | B36: EG647F
A37: 36 | B37: EG650P
A38: 37 | B38: EG660F
A39: 38 | B39: EG651P
A40: 39 | B40: EG661F
A41: 40 | B41: EG652P
A42: 41 | B42: EG662F
A43: 42 | B43: EG653P
A44: 43 | B44: EG663F
A45: 44 | B45: EG670F
A46: 45 | B46: EG671F
A47: 46 | B47: EG672F
A48: 47 | B48: EG670PF U
A49: 48 | B49: EG670PF L
A50: 49 | B50: EG671PF U
A51: 50 | B51: EG671PF L
A52: 51 | B52: EG672PF U
A53: 52 | B53: EG672PF L
A54: 53 | B54: EG670PP U
A55: 54 | B55: EG671PP U
A56: 55 | B56: EG670PP L
A57: 56 | B57: EG671PP L
A58: 57 | B58: EG672PP U
A59: 58 | B59: EG673PP U
A60: 59 | B60: EG672PP L
A61: 60 | B61: EG673PP L
A62: 61 | B62: EG6R DDP1B-xx
A63: 62 | B63: EG8R DCP1B-xx
A64: 63 | B64: EG9R DCP1B-xx
A65: 64 | B65: EG10R DCP1B-xx
A66: 65 | B66: =IF(OR(IFERROR(INDEX(listsheets,$A66),"")="REF",IFERROR(INDEX(listsheets,$A66),"")="CHART",$A66="",IFERROR(INDEX(listsheets,$A66),"")="Gearbox oil cooler",IFERROR(INDEX(listsheets,$A66),"")="GEM Startblad",IFERROR(INDEX(listsheets,$A66),"")="PTO lathund 3",IFERROR(INDEX(listsheets,$A66),"")="PTO Technical data",IFERROR(INDEX(listsheets,$A66),"")="Hydraulic pumpdata",IFERROR(INDEX(listsheets,$A66),"")="Cranes",IFERROR(INDEX(listsheets,$A66),"")="PTO GZ",IFERROR(INDEX(listsheets,$A66),"")="EG PTO GW",IFERROR(INDEX(listsheets,$A66),"")="EG PTO GW adaption"),"",IFERROR(INDEX(listsheets,$A66),"")) -> EG25R DAP1-xx
A67: =ROW()-1 -> 66 | B67: EG11R DDP1P1-xxyy U
A68: 67 | B68: EG11R DDP1P1-xxyy L
A69: 68 | B69: EG11R DDP1P1-xxyy L&U
A70: 69 | B70: EG12R DCP1P1-xxyy U
A71: 70 | B71: EG12R DCP1P1-xxyy L
A72: 71 | B72: EG12R DCP1P1-xxyy L&U
A73: 72 | B73: EG13R DCP1P1-xxyy U
A74: 73 | B74: EG13R DCP1P1-xxyy L
A75: 74 | B75: EG13R DCP1P1-xxyy U&L
A76: 75 | B76: EG16R DCP1P1-xxyy U
A77: 76 | B77: EG16R DCP1P1-xxyy L
A78: 77 | B78: EG16R DCP1P1-xxyy U&L
A79: 78 | B79: None
B82: =IF(OR(IFERROR(INDEX(listsheets,$A82),"")="REF",IFERROR(INDEX(listsheets,$A82),"")="CHART",$A82="",IFERROR(INDEX(listsheets,$A82),"")="Gearbox oil cooler",IFERROR(INDEX(listsheets,$A82),"")="GEM Startblad",IFERROR(INDEX(listsheets,$A82),"")="PTO lathund 3",IFERROR(INDEX(listsheets,$A82),"")="PTO Technical data",IFERROR(INDEX(listsheets,$A82),"")="Hydraulic pumpdata",IFERROR(INDEX(listsheets,$A82),"")="Cranes",IFERROR(INDEX(listsheets,$A82),"")="PTO GZ",IFERROR(INDEX(listsheets,$A82),"")="EG PTO GW",IFERROR(INDEX(listsheets,$A82),"")="EG PTO GW adaption"),"",IFERROR(INDEX(listsheets,$A82),"")) -> 
B83: =IF(OR(IFERROR(INDEX(listsheets,$A83),"")="REF",IFERROR(INDEX(listsheets,$A83),"")="CHART",$A83="",IFERROR(INDEX(listsheets,$A83),"")="Gearbox oil cooler",IFERROR(INDEX(listsheets,$A83),"")="GEM Startblad",IFERROR(INDEX(listsheets,$A83),"")="PTO lathund 3",IFERROR(INDEX(listsheets,$A83),"")="PTO Technical data",IFERROR(INDEX(listsheets,$A83),"")="Hydraulic pumpdata",IFERROR(INDEX(listsheets,$A83),"")="Cranes",IFERROR(INDEX(listsheets,$A83),"")="PTO GZ",IFERROR(INDEX(listsheets,$A83),"")="EG PTO GW",IFERROR(INDEX(listsheets,$A83),"")="EG PTO GW adaption"),"",IFERROR(INDEX(listsheets,$A83),"")) -> 

Sheet CHART
A1: PTO Comparison Tool | G1: 2 | I1: SS0
A2: PTO 1 | B2: EG16R DCP1P1-xxyy U | C2: PTO 2 | D2: EG25R DAP1-xx | E2: PTO 3 | F2: ED10R WBF4 | G2: =CHOOSE($G$1,"HS (rpm)","LS (rpm)","PTO_HS (rpm)","PTO_LS (rpm)","PTO_HS & LS (rpm)") -> LS (rpm)
A3: Power (kW) | B3: 100 | C3: Power (kW) | D3: 250 | E3: Power (kW) | F3: 238 | J3: =IF(ISNUMBER(P3),ROW(),"") ->  | N3: =IF(ISNUMBER($P3),ROW(),"") ->  | O3: =IF($P3=$C$3,ROW(),"") -> 3 | P3: =IFERROR(INDEX(INDEX(Pro_1,MATCH($B$3,Pro_1,0)-1):INDEX(Pro_1,MATCH(2,1/(Pro_1=$B$3),1)),ROWS(P$2:P2)),"") -> Power (kW) | Q3: =IFERROR(INDEX(INDEX(OFFSET(Pro_1,0,1),MATCH($B$3,Pro_1,0)-1):INDEX(OFFSET(Pro_1,0,1),MATCH(2,1/(Pro_1=$B$3),1)),ROWS(Q$2:Q2)),"") -> Engine LS | R3: =IFERROR(INDEX(INDEX(OFFSET(Pro_1,0,2),MATCH($B$3,Pro_1,0)-1):INDEX(OFFSET(Pro_1,0,2),MATCH(2,1/(Pro_1=$B$3),1)),ROWS(R$2:R2)),"") -> Power take-off (rpm) | S3: =IFERROR(INDEX(INDEX(OFFSET(Pro_1,0,3),MATCH($B$3,Pro_1,0)-1):INDEX(OFFSET(Pro_1,0,3),MATCH(2,1/(Pro_1=$B$3),1)),ROWS(S$2:S2)),"") -> (Nm) | X3: =IF(ISNUMBER($Z3),ROW(),"") ->  | Y3: =IF($Z3=$C$3,ROW(),"") -> 3 | Z3: =IFERROR(INDEX(INDEX(Pro_2,MATCH($D$3,Pro_2,0)-1):INDEX(Pro_2,MATCH(2,1/(Pro_2=$D$3),1)),ROWS(Z$2:Z2)),"") -> Power (kW) | AA3: =IFERROR(INDEX(INDEX(OFFSET(Pro_2,0,1),MATCH($D$3,Pro_2,0)-1):INDEX(OFFSET(Pro_2,0,1),MATCH(2,1/(Pro_2=$D$3),1)),ROWS(AA$2:AA2)),"") -> Engine LS | AB3: =IFERROR(INDEX(INDEX(OFFSET(Pro_2,0,2),MATCH($D$3,Pro_2,0)-1):INDEX(OFFSET(Pro_2,0,2),MATCH(2,1/(Pro_2=$D$3),1)),ROWS(AB$2:AB2)),"") -> Power take-off (rpm) | AC3: =IFERROR(INDEX(INDEX(OFFSET(Pro_2,0,3),MATCH($D$3,Pro_2,0)-1):INDEX(OFFSET(Pro_2,0,3),MATCH(2,1/(Pro_2=$D$3),1)),ROWS(AC$2:AC2)),"") -> (Nm) | AG3: =IF(ISNUMBER($AI3),ROW(),"") ->  | AH3: =IF($AI3=$C$3,ROW(),"") -> 3 | AI3: =IFERROR(INDEX(INDEX(Pro_3,MATCH($F$3,Pro_3,0)-1):INDEX(Pro_3,MATCH(2,1/(Pro_3=$F$3),1)),ROWS(AI$2:AI2)),"") -> Power (kW) | AJ3: =IFERROR(INDEX(INDEX(OFFSET(Pro_3,0,1),MATCH($F$3,Pro_3,0)-1):INDEX(OFFSET(Pro_3,0,1),MATCH(2,1/(Pro_3=$F$3),1)),ROWS(AJ$2:AJ2)),"") -> Engine LS | AK3: =IFERROR(INDEX(INDEX(OFFSET(Pro_3,0,2),MATCH($F$3,Pro_3,0)-1):INDEX(OFFSET(Pro_3,0,2),MATCH(2,1/(Pro_3=$F$3),1)),ROWS(AK$2:AK2)),"") -> Power take-off (rpm) | AL3: =IFERROR(INDEX(INDEX(OFFSET(Pro_3,0,3),MATCH($F$3,Pro_3,0)-1):INDEX(OFFSET(Pro_3,0,3),MATCH(2,1/(Pro_3=$F$3),1)),ROWS(AL$2:AL2)),"") -> (Nm)
A4: Operation type | B4: =IFERROR(INDEX(Table1[Operation Type],MATCH(CHART!$B$2&CHART!$B$3,Table1[PTO type]&Table1[Power line (kW)],0),1),"") -> Continuous | C4: Operation type | D4: =IFERROR(INDEX(Table1[Operation Type],MATCH(CHART!$D$2&CHART!$D$3,Table1[PTO type]&Table1[Power line (kW)],0),1),"") -> Continuous | E4: Operation type | F4: =IFERROR(INDEX(Table1[Operation Type],MATCH(CHART!$F$2&CHART!$F$3,Table1[PTO type]&Table1[Power line (kW)],0),1),"") -> Continuous | N4: =IF(ISNUMBER($P4),ROW(),"") -> 4 | P4: =IFERROR(INDEX(INDEX(Pro_1,MATCH($B$3,Pro_1,0)-1):INDEX(Pro_1,MATCH(2,1/(Pro_1=$B$3),1)),ROWS(P$2:P3)),"") -> 100 | Q4: =IFERROR(INDEX(INDEX(OFFSET(Pro_1,0,1),MATCH($B$3,Pro_1,0)-1):INDEX(OFFSET(Pro_1,0,1),MATCH(2,1/(Pro_1=$B$3),1)),ROWS(Q$2:Q3)),"") -> 960 | R4: =IFERROR(INDEX(INDEX(OFFSET(Pro_1,0,2),MATCH($B$3,Pro_1,0)-1):INDEX(OFFSET(Pro_1,0,2),MATCH(2,1/(Pro_1=$B$3),1)),ROWS(R$2:R3)),"") -> 1142.4 | S4: =IFERROR(INDEX(INDEX(OFFSET(Pro_1,0,3),MATCH($B$3,Pro_1,0)-1):INDEX(OFFSET(Pro_1,0,3),MATCH(2,1/(Pro_1=$B$3),1)),ROWS(S$2:S3)),"") -> 835.9593838 | X4: =IF(ISNUMBER($Z4),ROW(),"") -> 4 | Z4: =IFERROR(INDEX(INDEX(Pro_2,MATCH($D$3,Pro_2,0)-1):INDEX(Pro_2,MATCH(2,1/(Pro_2=$D$3),1)),ROWS(Z$2:Z3)),"") -> 250 | AA4: =IFERROR(INDEX(INDEX(OFFSET(Pro_2,0,1),MATCH($D$3,Pro_2,0)-1):INDEX(OFFSET(Pro_2,0,1),MATCH(2,1/(Pro_2=$D$3),1)),ROWS(AA$2:AA3)),"") -> 1300 | AB4: =IFERROR(INDEX(INDEX(OFFSET(Pro_2,0,2),MATCH($D$3,Pro_2,0)-1):INDEX(OFFSET(Pro_2,0,2),MATCH(2,1/(Pro_2=$D$3),1)),ROWS(AB$2:AB3)),"") -> 988 | AC4: =IFERROR(INDEX(INDEX(OFFSET(Pro_2,0,3),MATCH($D$3,Pro_2,0)-1):INDEX(OFFSET(Pro_2,0,3),MATCH(2,1/(Pro_2=$D$3),1)),ROWS(AC$2:AC3)),"") -> 2416.497976 | AG4: =IF(ISNUMBER($AI4),ROW(),"") -> 4 | AI4: =IFERROR(INDEX(INDEX(Pro_3,MATCH($F$3,Pro_3,0)-1):INDEX(Pro_3,MATCH(2,1/(Pro_3=$F$3),1)),ROWS(AI$2:AI3)),"") -> 238 | AJ4: =IFERROR(INDEX(INDEX(OFFSET(Pro_3,0,1),MATCH($F$3,Pro_3,0)-1):INDEX(OFFSET(Pro_3,0,1),MATCH(2,1/(Pro_3=$F$3),1)),ROWS(AJ$2:AJ3)),"") -> 1800 | AK4: =IFERROR(INDEX(INDEX(OFFSET(Pro_3,0,2),MATCH($F$3,Pro_3,0)-1):INDEX(OFFSET(Pro_3,0,2),MATCH(2,1/(Pro_3=$F$3),1)),ROWS(AK$2:AK3)),"") -> 2160 | AL4: =IFERROR(INDEX(INDEX(OFFSET(Pro_3,0,3),MATCH($F$3,Pro_3,0)-1):INDEX(OFFSET(Pro_3,0,3),MATCH(2,1/(Pro_3=$F$3),1)),ROWS(AL$2:AL3)),"") -> 1052.268519
B5: =REF!$K$2 ->  | D5: =REF!$K$3 ->  | F5: =REF!$K$4 ->  | N5: 5 | P5: =IFERROR(INDEX(INDEX(Pro_1,MATCH($B$3,Pro_1,0)-1):INDEX(Pro_1,MATCH(2,1/(Pro_1=$B$3),1)),ROWS(P$2:P4)),"") -> 100 | Q5: =IFERROR(INDEX(INDEX(OFFSET(Pro_1,0,1),MATCH($B$3,Pro_1,0)-1):INDEX(OFFSET(Pro_1,0,1),MATCH(2,1/(Pro_1=$B$3),1)),ROWS(Q$2:Q4)),"") -> 1000 | R5: =IFERROR(INDEX(INDEX(OFFSET(Pro_1,0,2),MATCH($B$3,Pro_1,0)-1):INDEX(OFFSET(Pro_1,0,2),MATCH(2,1/(Pro_1=$B$3),1)),ROWS(R$2:R4)),"") -> 1190 | S5: =IFERROR(INDEX(INDEX(OFFSET(Pro_1,0,3),MATCH($B$3,Pro_1,0)-1):INDEX(OFFSET(Pro_1,0,3),MATCH(2,1/(Pro_1=$B$3),1)),ROWS(S$2:S4)),"") -> 802.5210084 | X5: 5 | Z5: =IFERROR(INDEX(INDEX(Pro_2,MATCH($D$3,Pro_2,0)-1):INDEX(Pro_2,MATCH(2,1/(Pro_2=$D$3),1)),ROWS(Z$2:Z4)),"") -> 250 | AA5: =IFERROR(INDEX(INDEX(OFFSET(Pro_2,0,1),MATCH($D$3,Pro_2,0)-1):INDEX(OFFSET(Pro_2,0,1),MATCH(2,1/(Pro_2=$D$3),1)),ROWS(AA$2:AA4)),"") -> 1400 | AB5: =IFERROR(INDEX(INDEX(OFFSET(Pro_2,0,2),MATCH($D$3,Pro_2,0)-1):INDEX(OFFSET(Pro_2,0,2),MATCH(2,1/(Pro_2=$D$3),1)),ROWS(AB$2:AB4)),"") -> 1064 | AC5: =IFERROR(INDEX(INDEX(OFFSET(Pro_2,0,3),MATCH($D$3,Pro_2,0)-1):INDEX(OFFSET(Pro_2,0,3),MATCH(2,1/(Pro_2=$D$3),1)),ROWS(AC$2:AC4)),"") -> 2243.890977 | AG5: 5 | AI5: =IFERROR(INDEX(INDEX(Pro_3,MATCH($F$3,Pro_3,0)-1):INDEX(Pro_3,MATCH(2,1/(Pro_3=$F$3),1)),ROWS(AI$2:AI4)),"") -> 238 | AJ5: =IFERROR(INDEX(INDEX(OFFSET(Pro_3,0,1),MATCH($F$3,Pro_3,0)-1):INDEX(OFFSET(Pro_3,0,1),MATCH(2,1/(Pro_3=$F$3),1)),ROWS(AJ$2:AJ4)),"") -> 1900 | AK5: =IFERROR(INDEX(INDEX(OFFSET(Pro_3,0,2),MATCH($F$3,Pro_3,0)-1):INDEX(OFFSET(Pro_3,0,2),MATCH(2,1/(Pro_3=$F$3),1)),ROWS(AK$2:AK4)),"") -> 2280 | AL5: =IFERROR(INDEX(INDEX(OFFSET(Pro_3,0,3),MATCH($F$3,Pro_3,0)-1):INDEX(OFFSET(Pro_3,0,3),MATCH(2,1/(Pro_3=$F$3),1)),ROWS(AL$2:AL4)),"") -> 996.8859649
A6: Overview | C6: Overview | E6: Overview | N6: 6 | P6: =IFERROR(INDEX(INDEX(Pro_1,MATCH($B$3,Pro_1,0)-1):INDEX(Pro_1,MATCH(2,1/(Pro_1=$B$3),1)),ROWS(P$2:P5)),"") -> 100 | Q6: =IFERROR(INDEX(INDEX(OFFSET(Pro_1,0,1),MATCH($B$3,Pro_1,0)-1):INDEX(OFFSET(Pro_1,0,1),MATCH(2,1/(Pro_1=$B$3),1)),ROWS(Q$2:Q5)),"") -> 1100 | R6: =IFERROR(INDEX(INDEX(OFFSET(Pro_1,0,2),MATCH($B$3,Pro_1,0)-1):INDEX(OFFSET(Pro_1,0,2),MATCH(2,1/(Pro_1=$B$3),1)),ROWS(R$2:R5)),"") -> 1309 | S6: =IFERROR(INDEX(INDEX(OFFSET(Pro_1,0,3),MATCH($B$3,Pro_1,0)-1):INDEX(OFFSET(Pro_1,0,3),MATCH(2,1/(Pro_1=$B$3),1)),ROWS(S$2:S5)),"") -> 729.5645531 | X6: 6 | Z6: =IFERROR(INDEX(INDEX(Pro_2,MATCH($D$3,Pro_2,0)-1):INDEX(Pro_2,MATCH(2,1/(Pro_2=$D$3),1)),ROWS(Z$2:Z5)),"") -> 250 | AA6: =IFERROR(INDEX(INDEX(OFFSET(Pro_2,0,1),MATCH($D$3,Pro_2,0)-1):INDEX(OFFSET(Pro_2,0,1),MATCH(2,1/(Pro_2=$D$3),1)),ROWS(AA$2:AA5)),"") -> 1500 | AB6: =IFERROR(INDEX(INDEX(OFFSET(Pro_2,0,2),MATCH($D$3,Pro_2,0)-1):INDEX(OFFSET(Pro_2,0,2),MATCH(2,1/(Pro_2=$D$3),1)),ROWS(AB$2:AB5)),"") -> 1140 | AC6: =IFERROR(INDEX(INDEX(OFFSET(Pro_2,0,3),MATCH($D$3,Pro_2,0)-1):INDEX(OFFSET(Pro_2,0,3),MATCH(2,1/(Pro_2=$D$3),1)),ROWS(AC$2:AC5)),"") -> 2094.298246 | AH6: 6 | AI6: =IFERROR(INDEX(INDEX(Pro_3,MATCH($F$3,Pro_3,0)-1):INDEX(Pro_3,MATCH(2,1/(Pro_3=$F$3),1)),ROWS(AI$2:AI5)),"") -> Power (kW) | AJ6: =IFERROR(INDEX(INDEX(OFFSET(Pro_3,0,1),MATCH($F$3,Pro_3,0)-1):INDEX(OFFSET(Pro_3,0,1),MATCH(2,1/(Pro_3=$F$3),1)),ROWS(AJ$2:AJ5)),"") -> Engine HS | AK6: =IFERROR(INDEX(INDEX(OFFSET(Pro_3,0,2),MATCH($F$3,Pro_3,0)-1):INDEX(OFFSET(Pro_3,0,2),MATCH(2,1/(Pro_3=$F$3),1)),ROWS(AK$2:AK5)),"") -> Power take-off (rpm) | AL6: =IFERROR(INDEX(INDEX(OFFSET(Pro_3,0,3),MATCH($F$3,Pro_3,0)-1):INDEX(OFFSET(Pro_3,0,3),MATCH(2,1/(Pro_3=$F$3),1)),ROWS(AL$2:AL5)),"") -> (Nm)
N7: 7 | P7: =IFERROR(INDEX(INDEX(Pro_1,MATCH($B$3,Pro_1,0)-1):INDEX(Pro_1,MATCH(2,1/(Pro_1=$B$3),1)),ROWS(P$2:P6)),"") -> 100 | Q7: =IFERROR(INDEX(INDEX(OFFSET(Pro_1,0,1),MATCH($B$3,Pro_1,0)-1):INDEX(OFFSET(Pro_1,0,1),MATCH(2,1/(Pro_1=$B$3),1)),ROWS(Q$2:Q6)),"") -> 1200 | R7: =IFERROR(INDEX(INDEX(OFFSET(Pro_1,0,2),MATCH($B$3,Pro_1,0)-1):INDEX(OFFSET(Pro_1,0,2),MATCH(2,1/(Pro_1=$B$3),1)),ROWS(R$2:R6)),"") -> 1428 | S7: =IFERROR(INDEX(INDEX(OFFSET(Pro_1,0,3),MATCH($B$3,Pro_1,0)-1):INDEX(OFFSET(Pro_1,0,3),MATCH(2,1/(Pro_1=$B$3),1)),ROWS(S$2:S6)),"") -> 668.767507 | X7: 7 | Z7: =IFERROR(INDEX(INDEX(Pro_2,MATCH($D$3,Pro_2,0)-1):INDEX(Pro_2,MATCH(2,1/(Pro_2=$D$3),1)),ROWS(Z$2:Z6)),"") -> 250 | AA7: =IFERROR(INDEX(INDEX(OFFSET(Pro_2,0,1),MATCH($D$3,Pro_2,0)-1):INDEX(OFFSET(Pro_2,0,1),MATCH(2,1/(Pro_2=$D$3),1)),ROWS(AA$2:AA6)),"") -> 1600 | AB7: =IFERROR(INDEX(INDEX(OFFSET(Pro_2,0,2),MATCH($D$3,Pro_2,0)-1):INDEX(OFFSET(Pro_2,0,2),MATCH(2,1/(Pro_2=$D$3),1)),ROWS(AB$2:AB6)),"") -> 1216 | AC7: =IFERROR(INDEX(INDEX(OFFSET(Pro_2,0,3),MATCH($D$3,Pro_2,0)-1):INDEX(OFFSET(Pro_2,0,3),MATCH(2,1/(Pro_2=$D$3),1)),ROWS(AC$2:AC6)),"") -> 1963.404605 | AG7: 7 | AI7: =IFERROR(INDEX(INDEX(Pro_3,MATCH($F$3,Pro_3,0)-1):INDEX(Pro_3,MATCH(2,1/(Pro_3=$F$3),1)),ROWS(AI$2:AI6)),"") -> 238 | AJ7: =IFERROR(INDEX(INDEX(OFFSET(Pro_3,0,1),MATCH($F$3,Pro_3,0)-1):INDEX(OFFSET(Pro_3,0,1),MATCH(2,1/(Pro_3=$F$3),1)),ROWS(AJ$2:AJ6)),"") -> 1800 | AK7: =IFERROR(INDEX(INDEX(OFFSET(Pro_3,0,2),MATCH($F$3,Pro_3,0)-1):INDEX(OFFSET(Pro_3,0,2),MATCH(2,1/(Pro_3=$F$3),1)),ROWS(AK$2:AK6)),"") -> 2160 | AL7: =IFERROR(INDEX(INDEX(OFFSET(Pro_3,0,3),MATCH($F$3,Pro_3,0)-1):INDEX(OFFSET(Pro_3,0,3),MATCH(2,1/(Pro_3=$F$3),1)),ROWS(AL$2:AL6)),"") -> 1052.268519
N8: 8 | P8: =IFERROR(INDEX(INDEX(Pro_1,MATCH($B$3,Pro_1,0)-1):INDEX(Pro_1,MATCH(2,1/(Pro_1=$B$3),1)),ROWS(P$2:P7)),"") -> 100 | Q8: =IFERROR(INDEX(INDEX(OFFSET(Pro_1,0,1),MATCH($B$3,Pro_1,0)-1):INDEX(OFFSET(Pro_1,0,1),MATCH(2,1/(Pro_1=$B$3),1)),ROWS(Q$2:Q7)),"") -> 1300 | R8: =IFERROR(INDEX(INDEX(OFFSET(Pro_1,0,2),MATCH($B$3,Pro_1,0)-1):INDEX(OFFSET(Pro_1,0,2),MATCH(2,1/(Pro_1=$B$3),1)),ROWS(R$2:R7)),"") -> 1547 | S8: =IFERROR(INDEX(INDEX(OFFSET(Pro_1,0,3),MATCH($B$3,Pro_1,0)-1):INDEX(OFFSET(Pro_1,0,3),MATCH(2,1/(Pro_1=$B$3),1)),ROWS(S$2:S7)),"") -> 617.3238526 | X8: 8 | Z8: =IFERROR(INDEX(INDEX(Pro_2,MATCH($D$3,Pro_2,0)-1):INDEX(Pro_2,MATCH(2,1/(Pro_2=$D$3),1)),ROWS(Z$2:Z7)),"") -> 250 | AA8: =IFERROR(INDEX(INDEX(OFFSET(Pro_2,0,1),MATCH($D$3,Pro_2,0)-1):INDEX(OFFSET(Pro_2,0,1),MATCH(2,1/(Pro_2=$D$3),1)),ROWS(AA$2:AA7)),"") -> 1700 | AB8: =IFERROR(INDEX(INDEX(OFFSET(Pro_2,0,2),MATCH($D$3,Pro_2,0)-1):INDEX(OFFSET(Pro_2,0,2),MATCH(2,1/(Pro_2=$D$3),1)),ROWS(AB$2:AB7)),"") -> 1292 | AC8: =IFERROR(INDEX(INDEX(OFFSET(Pro_2,0,3),MATCH($D$3,Pro_2,0)-1):INDEX(OFFSET(Pro_2,0,3),MATCH(2,1/(Pro_2=$D$3),1)),ROWS(AC$2:AC7)),"") -> 1847.910217 | AG8: 8 | AI8: =IFERROR(INDEX(INDEX(Pro_3,MATCH($F$3,Pro_3,0)-1):INDEX(Pro_3,MATCH(2,1/(Pro_3=$F$3),1)),ROWS(AI$2:AI7)),"") -> 238 | AJ8: =IFERROR(INDEX(INDEX(OFFSET(Pro_3,0,1),MATCH($F$3,Pro_3,0)-1):INDEX(OFFSET(Pro_3,0,1),MATCH(2,1/(Pro_3=$F$3),1)),ROWS(AJ$2:AJ7)),"") -> 1900 | AK8: =IFERROR(INDEX(INDEX(OFFSET(Pro_3,0,2),MATCH($F$3,Pro_3,0)-1):INDEX(OFFSET(Pro_3,0,2),MATCH(2,1/(Pro_3=$F$3),1)),ROWS(AK$2:AK7)),"") -> 2280 | AL8: =IFERROR(INDEX(INDEX(OFFSET(Pro_3,0,3),MATCH($F$3,Pro_3,0)-1):INDEX(OFFSET(Pro_3,0,3),MATCH(2,1/(Pro_3=$F$3),1)),ROWS(AL$2:AL7)),"") -> 996.8859649
N9: 9 | P9: =IFERROR(INDEX(INDEX(Pro_1,MATCH($B$3,Pro_1,0)-1):INDEX(Pro_1,MATCH(2,1/(Pro_1=$B$3),1)),ROWS(P$2:P8)),"") -> 100 | Q9: =IFERROR(INDEX(INDEX(OFFSET(Pro_1,0,1),MATCH($B$3,Pro_1,0)-1):INDEX(OFFSET(Pro_1,0,1),MATCH(2,1/(Pro_1=$B$3),1)),ROWS(Q$2:Q8)),"") -> 1400 | R9: =IFERROR(INDEX(INDEX(OFFSET(Pro_1,0,2),MATCH($B$3,Pro_1,0)-1):INDEX(OFFSET(Pro_1,0,2),MATCH(2,1/(Pro_1=$B$3),1)),ROWS(R$2:R8)),"") -> 1666 | S9: =IFERROR(INDEX(INDEX(OFFSET(Pro_1,0,3),MATCH($B$3,Pro_1,0)-1):INDEX(OFFSET(Pro_1,0,3),MATCH(2,1/(Pro_1=$B$3),1)),ROWS(S$2:S8)),"") -> 573.2292917 | X9: 9 | Z9: =IFERROR(INDEX(INDEX(Pro_2,MATCH($D$3,Pro_2,0)-1):INDEX(Pro_2,MATCH(2,1/(Pro_2=$D$3),1)),ROWS(Z$2:Z8)),"") -> 250 | AA9: =IFERROR(INDEX(INDEX(OFFSET(Pro_2,0,1),MATCH($D$3,Pro_2,0)-1):INDEX(OFFSET(Pro_2,0,1),MATCH(2,1/(Pro_2=$D$3),1)),ROWS(AA$2:AA8)),"") -> 1800 | AB9: =IFERROR(INDEX(INDEX(OFFSET(Pro_2,0,2),MATCH($D$3,Pro_2,0)-1):INDEX(OFFSET(Pro_2,0,2),MATCH(2,1/(Pro_2=$D$3),1)),ROWS(AB$2:AB8)),"") -> 1368 | AC9: =IFERROR(INDEX(INDEX(OFFSET(Pro_2,0,3),MATCH($D$3,Pro_2,0)-1):INDEX(OFFSET(Pro_2,0,3),MATCH(2,1/(Pro_2=$D$3),1)),ROWS(AC$2:AC8)),"") -> 1745.248538 | AI9: =IFERROR(INDEX(INDEX(Pro_3,MATCH($F$3,Pro_3,0)-1):INDEX(Pro_3,MATCH(2,1/(Pro_3=$F$3),1)),ROWS(AI$2:AI8)),"") ->  | AJ9: =IFERROR(INDEX(INDEX(OFFSET(Pro_3,0,1),MATCH($F$3,Pro_3,0)-1):INDEX(OFFSET(Pro_3,0,1),MATCH(2,1/(Pro_3=$F$3),1)),ROWS(AJ$2:AJ8)),"") ->  | AK9: =IFERROR(INDEX(INDEX(OFFSET(Pro_3,0,2),MATCH($F$3,Pro_3,0)-1):INDEX(OFFSET(Pro_3,0,2),MATCH(2,1/(Pro_3=$F$3),1)),ROWS(AK$2:AK8)),"") ->  | AL9: =IFERROR(INDEX(INDEX(OFFSET(Pro_3,0,3),MATCH($F$3,Pro_3,0)-1):INDEX(OFFSET(Pro_3,0,3),MATCH(2,1/(Pro_3=$F$3),1)),ROWS(AL$2:AL8)),"") -> 
N10: 10 | P10: =IFERROR(INDEX(INDEX(Pro_1,MATCH($B$3,Pro_1,0)-1):INDEX(Pro_1,MATCH(2,1/(Pro_1=$B$3),1)),ROWS(P$2:P9)),"") -> 100 | Q10: =IFERROR(INDEX(INDEX(OFFSET(Pro_1,0,1),MATCH($B$3,Pro_1,0)-1):INDEX(OFFSET(Pro_1,0,1),MATCH(2,1/(Pro_1=$B$3),1)),ROWS(Q$2:Q9)),"") -> 1500 | R10: =IFERROR(INDEX(INDEX(OFFSET(Pro_1,0,2),MATCH($B$3,Pro_1,0)-1):INDEX(OFFSET(Pro_1,0,2),MATCH(2,1/(Pro_1=$B$3),1)),ROWS(R$2:R9)),"") -> 1785 | S10: =IFERROR(INDEX(INDEX(OFFSET(Pro_1,0,3),MATCH($B$3,Pro_1,0)-1):INDEX(OFFSET(Pro_1,0,3),MATCH(2,1/(Pro_1=$B$3),1)),ROWS(S$2:S9)),"") -> 535.0140056 | X10: 10 | Z10: =IFERROR(INDEX(INDEX(Pro_2,MATCH($D$3,Pro_2,0)-1):INDEX(Pro_2,MATCH(2,1/(Pro_2=$D$3),1)),ROWS(Z$2:Z9)),"") -> 250 | AA10: =IFERROR(INDEX(INDEX(OFFSET(Pro_2,0,1),MATCH($D$3,Pro_2,0)-1):INDEX(OFFSET(Pro_2,0,1),MATCH(2,1/(Pro_2=$D$3),1)),ROWS(AA$2:AA9)),"") -> 1900 | AB10: =IFERROR(INDEX(INDEX(OFFSET(Pro_2,0,2),MATCH($D$3,Pro_2,0)-1):INDEX(OFFSET(Pro_2,0,2),MATCH(2,1/(Pro_2=$D$3),1)),ROWS(AB$2:AB9)),"") -> 1444 | AC10: =IFERROR(INDEX(INDEX(OFFSET(Pro_2,0,3),MATCH($D$3,Pro_2,0)-1):INDEX(OFFSET(Pro_2,0,3),MATCH(2,1/(Pro_2=$D$3),1)),ROWS(AC$2:AC9)),"") -> 1653.393352 | AI10: =IFERROR(INDEX(INDEX(Pro_3,MATCH($F$3,Pro_3,0)-1):INDEX(Pro_3,MATCH(2,1/(Pro_3=$F$3),1)),ROWS(AI$2:AI9)),"") ->  | AJ10: =IFERROR(INDEX(INDEX(OFFSET(Pro_3,0,1),MATCH($F$3,Pro_3,0)-1):INDEX(OFFSET(Pro_3,0,1),MATCH(2,1/(Pro_3=$F$3),1)),ROWS(AJ$2:AJ9)),"") ->  | AK10: =IFERROR(INDEX(INDEX(OFFSET(Pro_3,0,2),MATCH($F$3,Pro_3,0)-1):INDEX(OFFSET(Pro_3,0,2),MATCH(2,1/(Pro_3=$F$3),1)),ROWS(AK$2:AK9)),"") ->  | AL10: =IFERROR(INDEX(INDEX(OFFSET(Pro_3,0,3),MATCH($F$3,Pro_3,0)-1):INDEX(OFFSET(Pro_3,0,3),MATCH(2,1/(Pro_3=$F$3),1)),ROWS(AL$2:AL9)),"") -> 
N11: 11 | P11: =IFERROR(INDEX(INDEX(Pro_1,MATCH($B$3,Pro_1,0)-1):INDEX(Pro_1,MATCH(2,1/(Pro_1=$B$3),1)),ROWS(P$2:P10)),"") -> 100 | Q11: =IFERROR(INDEX(INDEX(OFFSET(Pro_1,0,1),MATCH($B$3,Pro_1,0)-1):INDEX(OFFSET(Pro_1,0,1),MATCH(2,1/(Pro_1=$B$3),1)),ROWS(Q$2:Q10)),"") -> 1600 | R11: =IFERROR(INDEX(INDEX(OFFSET(Pro_1,0,2),MATCH($B$3,Pro_1,0)-1):INDEX(OFFSET(Pro_1,0,2),MATCH(2,1/(Pro_1=$B$3),1)),ROWS(R$2:R10)),"") -> 1904 | S11: =IFERROR(INDEX(INDEX(OFFSET(Pro_1,0,3),MATCH($B$3,Pro_1,0)-1):INDEX(OFFSET(Pro_1,0,3),MATCH(2,1/(Pro_1=$B$3),1)),ROWS(S$2:S10)),"") -> 501.5756303 | Y11: 11 | Z11: =IFERROR(INDEX(INDEX(Pro_2,MATCH($D$3,Pro_2,0)-1):INDEX(Pro_2,MATCH(2,1/(Pro_2=$D$3),1)),ROWS(Z$2:Z10)),"") -> Power (kW) | AA11: =IFERROR(INDEX(INDEX(OFFSET(Pro_2,0,1),MATCH($D$3,Pro_2,0)-1):INDEX(OFFSET(Pro_2,0,1),MATCH(2,1/(Pro_2=$D$3),1)),ROWS(AA$2:AA10)),"") -> Engine HS | AB11: =IFERROR(INDEX(INDEX(OFFSET(Pro_2,0,2),MATCH($D$3,Pro_2,0)-1):INDEX(OFFSET(Pro_2,0,2),MATCH(2,1/(Pro_2=$D$3),1)),ROWS(AB$2:AB10)),"") -> Power take-off (rpm) | AC11: =IFERROR(INDEX(INDEX(OFFSET(Pro_2,0,3),MATCH($D$3,Pro_2,0)-1):INDEX(OFFSET(Pro_2,0,3),MATCH(2,1/(Pro_2=$D$3),1)),ROWS(AC$2:AC10)),"") -> (Nm) | AI11: =IFERROR(INDEX(INDEX(Pro_3,MATCH($F$3,Pro_3,0)-1):INDEX(Pro_3,MATCH(2,1/(Pro_3=$F$3),1)),ROWS(AI$2:AI10)),"") ->  | AJ11: =IFERROR(INDEX(INDEX(OFFSET(Pro_3,0,1),MATCH($F$3,Pro_3,0)-1):INDEX(OFFSET(Pro_3,0,1),MATCH(2,1/(Pro_3=$F$3),1)),ROWS(AJ$2:AJ10)),"") ->  | AK11: =IFERROR(INDEX(INDEX(OFFSET(Pro_3,0,2),MATCH($F$3,Pro_3,0)-1):INDEX(OFFSET(Pro_3,0,2),MATCH(2,1/(Pro_3=$F$3),1)),ROWS(AK$2:AK10)),"") ->  | AL11: =IFERROR(INDEX(INDEX(OFFSET(Pro_3,0,3),MATCH($F$3,Pro_3,0)-1):INDEX(OFFSET(Pro_3,0,3),MATCH(2,1/(Pro_3=$F$3),1)),ROWS(AL$2:AL10)),"") -> 
N12: 12 | P12: =IFERROR(INDEX(INDEX(Pro_1,MATCH($B$3,Pro_1,0)-1):INDEX(Pro_1,MATCH(2,1/(Pro_1=$B$3),1)),ROWS(P$2:P11)),"") -> 100 | Q12: =IFERROR(INDEX(INDEX(OFFSET(Pro_1,0,1),MATCH($B$3,Pro_1,0)-1):INDEX(OFFSET(Pro_1,0,1),MATCH(2,1/(Pro_1=$B$3),1)),ROWS(Q$2:Q11)),"") -> 1700 | R12: =IFERROR(INDEX(INDEX(OFFSET(Pro_1,0,2),MATCH($B$3,Pro_1,0)-1):INDEX(OFFSET(Pro_1,0,2),MATCH(2,1/(Pro_1=$B$3),1)),ROWS(R$2:R11)),"") -> 2023 | S12: =IFERROR(INDEX(INDEX(OFFSET(Pro_1,0,3),MATCH($B$3,Pro_1,0)-1):INDEX(OFFSET(Pro_1,0,3),MATCH(2,1/(Pro_1=$B$3),1)),ROWS(S$2:S11)),"") -> 472.0711814 | X12: 12 | Z12: =IFERROR(INDEX(INDEX(Pro_2,MATCH($D$3,Pro_2,0)-1):INDEX(Pro_2,MATCH(2,1/(Pro_2=$D$3),1)),ROWS(Z$2:Z11)),"") -> 250 | AA12: =IFERROR(INDEX(INDEX(OFFSET(Pro_2,0,1),MATCH($D$3,Pro_2,0)-1):INDEX(OFFSET(Pro_2,0,1),MATCH(2,1/(Pro_2=$D$3),1)),ROWS(AA$2:AA11)),"") -> 1000 | AB12: =IFERROR(INDEX(INDEX(OFFSET(Pro_2,0,2),MATCH($D$3,Pro_2,0)-1):INDEX(OFFSET(Pro_2,0,2),MATCH(2,1/(Pro_2=$D$3),1)),ROWS(AB$2:AB11)),"") -> 970 | AC12: =IFERROR(INDEX(INDEX(OFFSET(Pro_2,0,3),MATCH($D$3,Pro_2,0)-1):INDEX(OFFSET(Pro_2,0,3),MATCH(2,1/(Pro_2=$D$3),1)),ROWS(AC$2:AC11)),"") -> 2461.340206 | AI12: =IFERROR(INDEX(INDEX(Pro_3,MATCH($F$3,Pro_3,0)-1):INDEX(Pro_3,MATCH(2,1/(Pro_3=$F$3),1)),ROWS(AI$2:AI11)),"") ->  | AJ12: =IFERROR(INDEX(INDEX(OFFSET(Pro_3,0,1),MATCH($F$3,Pro_3,0)-1):INDEX(OFFSET(Pro_3,0,1),MATCH(2,1/(Pro_3=$F$3),1)),ROWS(AJ$2:AJ11)),"") ->  | AK12: =IFERROR(INDEX(INDEX(OFFSET(Pro_3,0,2),MATCH($F$3,Pro_3,0)-1):INDEX(OFFSET(Pro_3,0,2),MATCH(2,1/(Pro_3=$F$3),1)),ROWS(AK$2:AK11)),"") ->  | AL12: =IFERROR(INDEX(INDEX(OFFSET(Pro_3,0,3),MATCH($F$3,Pro_3,0)-1):INDEX(OFFSET(Pro_3,0,3),MATCH(2,1/(Pro_3=$F$3),1)),ROWS(AL$2:AL11)),"") -> 
N13: 13 | P13: =IFERROR(INDEX(INDEX(Pro_1,MATCH($B$3,Pro_1,0)-1):INDEX(Pro_1,MATCH(2,1/(Pro_1=$B$3),1)),ROWS(P$2:P12)),"") -> 100 | Q13: =IFERROR(INDEX(INDEX(OFFSET(Pro_1,0,1),MATCH($B$3,Pro_1,0)-1):INDEX(OFFSET(Pro_1,0,1),MATCH(2,1/(Pro_1=$B$3),1)),ROWS(Q$2:Q12)),"") -> 1800 | R13: =IFERROR(INDEX(INDEX(OFFSET(Pro_1,0,2),MATCH($B$3,Pro_1,0)-1):INDEX(OFFSET(Pro_1,0,2),MATCH(2,1/(Pro_1=$B$3),1)),ROWS(R$2:R12)),"") -> 2142 | S13: =IFERROR(INDEX(INDEX(OFFSET(Pro_1,0,3),MATCH($B$3,Pro_1,0)-1):INDEX(OFFSET(Pro_1,0,3),MATCH(2,1/(Pro_1=$B$3),1)),ROWS(S$2:S12)),"") -> 445.8450047 | X13: 13 | Z13: =IFERROR(INDEX(INDEX(Pro_2,MATCH($D$3,Pro_2,0)-1):INDEX(Pro_2,MATCH(2,1/(Pro_2=$D$3),1)),ROWS(Z$2:Z12)),"") -> 250 | AA13: =IFERROR(INDEX(INDEX(OFFSET(Pro_2,0,1),MATCH($D$3,Pro_2,0)-1):INDEX(OFFSET(Pro_2,0,1),MATCH(2,1/(Pro_2=$D$3),1)),ROWS(AA$2:AA12)),"") -> 1100 | AB13: =IFERROR(INDEX(INDEX(OFFSET(Pro_2,0,2),MATCH($D$3,Pro_2,0)-1):INDEX(OFFSET(Pro_2,0,2),MATCH(2,1/(Pro_2=$D$3),1)),ROWS(AB$2:AB12)),"") -> 1067 | AC13: =IFERROR(INDEX(INDEX(OFFSET(Pro_2,0,3),MATCH($D$3,Pro_2,0)-1):INDEX(OFFSET(Pro_2,0,3),MATCH(2,1/(Pro_2=$D$3),1)),ROWS(AC$2:AC12)),"") -> 2237.582006 | AI13: =IFERROR(INDEX(INDEX(Pro_3,MATCH($F$3,Pro_3,0)-1):INDEX(Pro_3,MATCH(2,1/(Pro_3=$F$3),1)),ROWS(AI$2:AI12)),"") ->  | AJ13: =IFERROR(INDEX(INDEX(OFFSET(Pro_3,0,1),MATCH($F$3,Pro_3,0)-1):INDEX(OFFSET(Pro_3,0,1),MATCH(2,1/(Pro_3=$F$3),1)),ROWS(AJ$2:AJ12)),"") ->  | AK13: =IFERROR(INDEX(INDEX(OFFSET(Pro_3,0,2),MATCH($F$3,Pro_3,0)-1):INDEX(OFFSET(Pro_3,0,2),MATCH(2,1/(Pro_3=$F$3),1)),ROWS(AK$2:AK12)),"") ->  | AL13: =IFERROR(INDEX(INDEX(OFFSET(Pro_3,0,3),MATCH($F$3,Pro_3,0)-1):INDEX(OFFSET(Pro_3,0,3),MATCH(2,1/(Pro_3=$F$3),1)),ROWS(AL$2:AL12)),"") -> 
N14: 14 | P14: =IFERROR(INDEX(INDEX(Pro_1,MATCH($B$3,Pro_1,0)-1):INDEX(Pro_1,MATCH(2,1/(Pro_1=$B$3),1)),ROWS(P$2:P13)),"") -> 100 | Q14: =IFERROR(INDEX(INDEX(OFFSET(Pro_1,0,1),MATCH($B$3,Pro_1,0)-1):INDEX(OFFSET(Pro_1,0,1),MATCH(2,1/(Pro_1=$B$3),1)),ROWS(Q$2:Q13)),"") -> 1900 | R14: =IFERROR(INDEX(INDEX(OFFSET(Pro_1,0,2),MATCH($B$3,Pro_1,0)-1):INDEX(OFFSET(Pro_1,0,2),MATCH(2,1/(Pro_1=$B$3),1)),ROWS(R$2:R13)),"") -> 2261 | S14: =IFERROR(INDEX(INDEX(OFFSET(Pro_1,0,3),MATCH($B$3,Pro_1,0)-1):INDEX(OFFSET(Pro_1,0,3),MATCH(2,1/(Pro_1=$B$3),1)),ROWS(S$2:S13)),"") -> 422.3794781 | X14: 14 | Z14: =IFERROR(INDEX(INDEX(Pro_2,MATCH($D$3,Pro_2,0)-1):INDEX(Pro_2,MATCH(2,1/(Pro_2=$D$3),1)),ROWS(Z$2:Z13)),"") -> 250 | AA14: =IFERROR(INDEX(INDEX(OFFSET(Pro_2,0,1),MATCH($D$3,Pro_2,0)-1):INDEX(OFFSET(Pro_2,0,1),MATCH(2,1/(Pro_2=$D$3),1)),ROWS(AA$2:AA13)),"") -> 1200 | AB14: =IFERROR(INDEX(INDEX(OFFSET(Pro_2,0,2),MATCH($D$3,Pro_2,0)-1):INDEX(OFFSET(Pro_2,0,2),MATCH(2,1/(Pro_2=$D$3),1)),ROWS(AB$2:AB13)),"") -> 1164 | AC14: =IFERROR(INDEX(INDEX(OFFSET(Pro_2,0,3),MATCH($D$3,Pro_2,0)-1):INDEX(OFFSET(Pro_2,0,3),MATCH(2,1/(Pro_2=$D$3),1)),ROWS(AC$2:AC13)),"") -> 2051.116838 | AI14: =IFERROR(INDEX(INDEX(Pro_3,MATCH($F$3,Pro_3,0)-1):INDEX(Pro_3,MATCH(2,1/(Pro_3=$F$3),1)),ROWS(AI$2:AI13)),"") ->  | AJ14: =IFERROR(INDEX(INDEX(OFFSET(Pro_3,0,1),MATCH($F$3,Pro_3,0)-1):INDEX(OFFSET(Pro_3,0,1),MATCH(2,1/(Pro_3=$F$3),1)),ROWS(AJ$2:AJ13)),"") ->  | AK14: =IFERROR(INDEX(INDEX(OFFSET(Pro_3,0,2),MATCH($F$3,Pro_3,0)-1):INDEX(OFFSET(Pro_3,0,2),MATCH(2,1/(Pro_3=$F$3),1)),ROWS(AK$2:AK13)),"") ->  | AL14: =IFERROR(INDEX(INDEX(OFFSET(Pro_3,0,3),MATCH($F$3,Pro_3,0)-1):INDEX(OFFSET(Pro_3,0,3),MATCH(2,1/(Pro_3=$F$3),1)),ROWS(AL$2:AL13)),"") -> 
O15: 15 | P15: =IFERROR(INDEX(INDEX(Pro_1,MATCH($B$3,Pro_1,0)-1):INDEX(Pro_1,MATCH(2,1/(Pro_1=$B$3),1)),ROWS(P$2:P14)),"") -> Power (kW) | Q15: =IFERROR(INDEX(INDEX(OFFSET(Pro_1,0,1),MATCH($B$3,Pro_1,0)-1):INDEX(OFFSET(Pro_1,0,1),MATCH(2,1/(Pro_1=$B$3),1)),ROWS(Q$2:Q14)),"") -> Engine HS | R15: =IFERROR(INDEX(INDEX(OFFSET(Pro_1,0,2),MATCH($B$3,Pro_1,0)-1):INDEX(OFFSET(Pro_1,0,2),MATCH(2,1/(Pro_1=$B$3),1)),ROWS(R$2:R14)),"") -> Power take-off (rpm) | S15: =IFERROR(INDEX(INDEX(OFFSET(Pro_1,0,3),MATCH($B$3,Pro_1,0)-1):INDEX(OFFSET(Pro_1,0,3),MATCH(2,1/(Pro_1=$B$3),1)),ROWS(S$2:S14)),"") -> (Nm) | X15: 15 | Z15: =IFERROR(INDEX(INDEX(Pro_2,MATCH($D$3,Pro_2,0)-1):INDEX(Pro_2,MATCH(2,1/(Pro_2=$D$3),1)),ROWS(Z$2:Z14)),"") -> 250 | AA15: =IFERROR(INDEX(INDEX(OFFSET(Pro_2,0,1),MATCH($D$3,Pro_2,0)-1):INDEX(OFFSET(Pro_2,0,1),MATCH(2,1/(Pro_2=$D$3),1)),ROWS(AA$2:AA14)),"") -> 1300 | AB15: =IFERROR(INDEX(INDEX(OFFSET(Pro_2,0,2),MATCH($D$3,Pro_2,0)-1):INDEX(OFFSET(Pro_2,0,2),MATCH(2,1/(Pro_2=$D$3),1)),ROWS(AB$2:AB14)),"") -> 1261 | AC15: =IFERROR(INDEX(INDEX(OFFSET(Pro_2,0,3),MATCH($D$3,Pro_2,0)-1):INDEX(OFFSET(Pro_2,0,3),MATCH(2,1/(Pro_2=$D$3),1)),ROWS(AC$2:AC14)),"") -> 1893.33862 | AI15: =IFERROR(INDEX(INDEX(Pro_3,MATCH($F$3,Pro_3,0)-1):INDEX(Pro_3,MATCH(2,1/(Pro_3=$F$3),1)),ROWS(AI$2:AI14)),"") ->  | AJ15: =IFERROR(INDEX(INDEX(OFFSET(Pro_3,0,1),MATCH($F$3,Pro_3,0)-1):INDEX(OFFSET(Pro_3,0,1),MATCH(2,1/(Pro_3=$F$3),1)),ROWS(AJ$2:AJ14)),"") ->  | AK15: =IFERROR(INDEX(INDEX(OFFSET(Pro_3,0,2),MATCH($F$3,Pro_3,0)-1):INDEX(OFFSET(Pro_3,0,2),MATCH(2,1/(Pro_3=$F$3),1)),ROWS(AK$2:AK14)),"") ->  | AL15: =IFERROR(INDEX(INDEX(OFFSET(Pro_3,0,3),MATCH($F$3,Pro_3,0)-1):INDEX(OFFSET(Pro_3,0,3),MATCH(2,1/(Pro_3=$F$3),1)),ROWS(AL$2:AL14)),"") -> 
N16: 16 | P16: =IFERROR(INDEX(INDEX(Pro_1,MATCH($B$3,Pro_1,0)-1):INDEX(Pro_1,MATCH(2,1/(Pro_1=$B$3),1)),ROWS(P$2:P15)),"") -> 100 | Q16: =IFERROR(INDEX(INDEX(OFFSET(Pro_1,0,1),MATCH($B$3,Pro_1,0)-1):INDEX(OFFSET(Pro_1,0,1),MATCH(2,1/(Pro_1=$B$3),1)),ROWS(Q$2:Q15)),"") -> 800 | R16: =IFERROR(INDEX(INDEX(OFFSET(Pro_1,0,2),MATCH($B$3,Pro_1,0)-1):INDEX(OFFSET(Pro_1,0,2),MATCH(2,1/(Pro_1=$B$3),1)),ROWS(R$2:R15)),"") -> 1224 | S16: =IFERROR(INDEX(INDEX(OFFSET(Pro_1,0,3),MATCH($B$3,Pro_1,0)-1):INDEX(OFFSET(Pro_1,0,3),MATCH(2,1/(Pro_1=$B$3),1)),ROWS(S$2:S15)),"") -> 780.2287582 | X16: 16 | Z16: =IFERROR(INDEX(INDEX(Pro_2,MATCH($D$3,Pro_2,0)-1):INDEX(Pro_2,MATCH(2,1/(Pro_2=$D$3),1)),ROWS(Z$2:Z15)),"") -> 250 | AA16: =IFERROR(INDEX(INDEX(OFFSET(Pro_2,0,1),MATCH($D$3,Pro_2,0)-1):INDEX(OFFSET(Pro_2,0,1),MATCH(2,1/(Pro_2=$D$3),1)),ROWS(AA$2:AA15)),"") -> 1400 | AB16: =IFERROR(INDEX(INDEX(OFFSET(Pro_2,0,2),MATCH($D$3,Pro_2,0)-1):INDEX(OFFSET(Pro_2,0,2),MATCH(2,1/(Pro_2=$D$3),1)),ROWS(AB$2:AB15)),"") -> 1358 | AC16: =IFERROR(INDEX(INDEX(OFFSET(Pro_2,0,3),MATCH($D$3,Pro_2,0)-1):INDEX(OFFSET(Pro_2,0,3),MATCH(2,1/(Pro_2=$D$3),1)),ROWS(AC$2:AC15)),"") -> 1758.100147 | AI16: =IFERROR(INDEX(INDEX(Pro_3,MATCH($F$3,Pro_3,0)-1):INDEX(Pro_3,MATCH(2,1/(Pro_3=$F$3),1)),ROWS(AI$2:AI15)),"") ->  | AJ16: =IFERROR(INDEX(INDEX(OFFSET(Pro_3,0,1),MATCH($F$3,Pro_3,0)-1):INDEX(OFFSET(Pro_3,0,1),MATCH(2,1/(Pro_3=$F$3),1)),ROWS(AJ$2:AJ15)),"") ->  | AK16: =IFERROR(INDEX(INDEX(OFFSET(Pro_3,0,2),MATCH($F$3,Pro_3,0)-1):INDEX(OFFSET(Pro_3,0,2),MATCH(2,1/(Pro_3=$F$3),1)),ROWS(AK$2:AK15)),"") ->  | AL16: =IFERROR(INDEX(INDEX(OFFSET(Pro_3,0,3),MATCH($F$3,Pro_3,0)-1):INDEX(OFFSET(Pro_3,0,3),MATCH(2,1/(Pro_3=$F$3),1)),ROWS(AL$2:AL15)),"") -> 
N17: 17 | P17: =IFERROR(INDEX(INDEX(Pro_1,MATCH($B$3,Pro_1,0)-1):INDEX(Pro_1,MATCH(2,1/(Pro_1=$B$3),1)),ROWS(P$2:P16)),"") -> 100 | Q17: =IFERROR(INDEX(INDEX(OFFSET(Pro_1,0,1),MATCH($B$3,Pro_1,0)-1):INDEX(OFFSET(Pro_1,0,1),MATCH(2,1/(Pro_1=$B$3),1)),ROWS(Q$2:Q16)),"") -> 900 | R17: =IFERROR(INDEX(INDEX(OFFSET(Pro_1,0,2),MATCH($B$3,Pro_1,0)-1):INDEX(OFFSET(Pro_1,0,2),MATCH(2,1/(Pro_1=$B$3),1)),ROWS(R$2:R16)),"") -> 1377 | S17: =IFERROR(INDEX(INDEX(OFFSET(Pro_1,0,3),MATCH($B$3,Pro_1,0)-1):INDEX(OFFSET(Pro_1,0,3),MATCH(2,1/(Pro_1=$B$3),1)),ROWS(S$2:S16)),"") -> 693.5366739 | X17: 17 | Z17: =IFERROR(INDEX(INDEX(Pro_2,MATCH($D$3,Pro_2,0)-1):INDEX(Pro_2,MATCH(2,1/(Pro_2=$D$3),1)),ROWS(Z$2:Z16)),"") -> 250 | AA17: =IFERROR(INDEX(INDEX(OFFSET(Pro_2,0,1),MATCH($D$3,Pro_2,0)-1):INDEX(OFFSET(Pro_2,0,1),MATCH(2,1/(Pro_2=$D$3),1)),ROWS(AA$2:AA16)),"") -> 1500 | AB17: =IFERROR(INDEX(INDEX(OFFSET(Pro_2,0,2),MATCH($D$3,Pro_2,0)-1):INDEX(OFFSET(Pro_2,0,2),MATCH(2,1/(Pro_2=$D$3),1)),ROWS(AB$2:AB16)),"") -> 1455 | AC17: =IFERROR(INDEX(INDEX(OFFSET(Pro_2,0,3),MATCH($D$3,Pro_2,0)-1):INDEX(OFFSET(Pro_2,0,3),MATCH(2,1/(Pro_2=$D$3),1)),ROWS(AC$2:AC16)),"") -> 1640.893471 | AI17: =IFERROR(INDEX(INDEX(Pro_3,MATCH($F$3,Pro_3,0)-1):INDEX(Pro_3,MATCH(2,1/(Pro_3=$F$3),1)),ROWS(AI$2:AI16)),"") ->  | AJ17: =IFERROR(INDEX(INDEX(OFFSET(Pro_3,0,1),MATCH($F$3,Pro_3,0)-1):INDEX(OFFSET(Pro_3,0,1),MATCH(2,1/(Pro_3=$F$3),1)),ROWS(AJ$2:AJ16)),"") ->  | AK17: =IFERROR(INDEX(INDEX(OFFSET(Pro_3,0,2),MATCH($F$3,Pro_3,0)-1):INDEX(OFFSET(Pro_3,0,2),MATCH(2,1/(Pro_3=$F$3),1)),ROWS(AK$2:AK16)),"") ->  | AL17: =IFERROR(INDEX(INDEX(OFFSET(Pro_3,0,3),MATCH($F$3,Pro_3,0)-1):INDEX(OFFSET(Pro_3,0,3),MATCH(2,1/(Pro_3=$F$3),1)),ROWS(AL$2:AL16)),"") -> 
N18: 18 | P18: =IFERROR(INDEX(INDEX(Pro_1,MATCH($B$3,Pro_1,0)-1):INDEX(Pro_1,MATCH(2,1/(Pro_1=$B$3),1)),ROWS(P$2:P17)),"") -> 100 | Q18: =IFERROR(INDEX(INDEX(OFFSET(Pro_1,0,1),MATCH($B$3,Pro_1,0)-1):INDEX(OFFSET(Pro_1,0,1),MATCH(2,1/(Pro_1=$B$3),1)),ROWS(Q$2:Q17)),"") -> 1000 | R18: =IFERROR(INDEX(INDEX(OFFSET(Pro_1,0,2),MATCH($B$3,Pro_1,0)-1):INDEX(OFFSET(Pro_1,0,2),MATCH(2,1/(Pro_1=$B$3),1)),ROWS(R$2:R17)),"") -> 1530 | S18: =IFERROR(INDEX(INDEX(OFFSET(Pro_1,0,3),MATCH($B$3,Pro_1,0)-1):INDEX(OFFSET(Pro_1,0,3),MATCH(2,1/(Pro_1=$B$3),1)),ROWS(S$2:S17)),"") -> 624.1830065 | X18: 18 | Z18: =IFERROR(INDEX(INDEX(Pro_2,MATCH($D$3,Pro_2,0)-1):INDEX(Pro_2,MATCH(2,1/(Pro_2=$D$3),1)),ROWS(Z$2:Z17)),"") -> 250 | AA18: =IFERROR(INDEX(INDEX(OFFSET(Pro_2,0,1),MATCH($D$3,Pro_2,0)-1):INDEX(OFFSET(Pro_2,0,1),MATCH(2,1/(Pro_2=$D$3),1)),ROWS(AA$2:AA17)),"") -> 1600 | AB18: =IFERROR(INDEX(INDEX(OFFSET(Pro_2,0,2),MATCH($D$3,Pro_2,0)-1):INDEX(OFFSET(Pro_2,0,2),MATCH(2,1/(Pro_2=$D$3),1)),ROWS(AB$2:AB17)),"") -> 1552 | AC18: =IFERROR(INDEX(INDEX(OFFSET(Pro_2,0,3),MATCH($D$3,Pro_2,0)-1):INDEX(OFFSET(Pro_2,0,3),MATCH(2,1/(Pro_2=$D$3),1)),ROWS(AC$2:AC17)),"") -> 1538.337629 | AI18: =IFERROR(INDEX(INDEX(Pro_3,MATCH($F$3,Pro_3,0)-1):INDEX(Pro_3,MATCH(2,1/(Pro_3=$F$3),1)),ROWS(AI$2:AI17)),"") ->  | AJ18: =IFERROR(INDEX(INDEX(OFFSET(Pro_3,0,1),MATCH($F$3,Pro_3,0)-1):INDEX(OFFSET(Pro_3,0,1),MATCH(2,1/(Pro_3=$F$3),1)),ROWS(AJ$2:AJ17)),"") ->  | AK18: =IFERROR(INDEX(INDEX(OFFSET(Pro_3,0,2),MATCH($F$3,Pro_3,0)-1):INDEX(OFFSET(Pro_3,0,2),MATCH(2,1/(Pro_3=$F$3),1)),ROWS(AK$2:AK17)),"") ->  | AL18: =IFERROR(INDEX(INDEX(OFFSET(Pro_3,0,3),MATCH($F$3,Pro_3,0)-1):INDEX(OFFSET(Pro_3,0,3),MATCH(2,1/(Pro_3=$F$3),1)),ROWS(AL$2:AL17)),"") -> 
E19: EG15R DCxx | N19: 19 | P19: =IFERROR(INDEX(INDEX(Pro_1,MATCH($B$3,Pro_1,0)-1):INDEX(Pro_1,MATCH(2,1/(Pro_1=$B$3),1)),ROWS(P$2:P18)),"") -> 100 | Q19: =IFERROR(INDEX(INDEX(OFFSET(Pro_1,0,1),MATCH($B$3,Pro_1,0)-1):INDEX(OFFSET(Pro_1,0,1),MATCH(2,1/(Pro_1=$B$3),1)),ROWS(Q$2:Q18)),"") -> 1100 | R19: =IFERROR(INDEX(INDEX(OFFSET(Pro_1,0,2),MATCH($B$3,Pro_1,0)-1):INDEX(OFFSET(Pro_1,0,2),MATCH(2,1/(Pro_1=$B$3),1)),ROWS(R$2:R18)),"") -> 1683 | S19: =IFERROR(INDEX(INDEX(OFFSET(Pro_1,0,3),MATCH($B$3,Pro_1,0)-1):INDEX(OFFSET(Pro_1,0,3),MATCH(2,1/(Pro_1=$B$3),1)),ROWS(S$2:S18)),"") -> 567.4390969 | X19: 19 | Z19: =IFERROR(INDEX(INDEX(Pro_2,MATCH($D$3,Pro_2,0)-1):INDEX(Pro_2,MATCH(2,1/(Pro_2=$D$3),1)),ROWS(Z$2:Z18)),"") -> 250 | AA19: =IFERROR(INDEX(INDEX(OFFSET(Pro_2,0,1),MATCH($D$3,Pro_2,0)-1):INDEX(OFFSET(Pro_2,0,1),MATCH(2,1/(Pro_2=$D$3),1)),ROWS(AA$2:AA18)),"") -> 1700 | AB19: =IFERROR(INDEX(INDEX(OFFSET(Pro_2,0,2),MATCH($D$3,Pro_2,0)-1):INDEX(OFFSET(Pro_2,0,2),MATCH(2,1/(Pro_2=$D$3),1)),ROWS(AB$2:AB18)),"") -> 1649 | AC19: =IFERROR(INDEX(INDEX(OFFSET(Pro_2,0,3),MATCH($D$3,Pro_2,0)-1):INDEX(OFFSET(Pro_2,0,3),MATCH(2,1/(Pro_2=$D$3),1)),ROWS(AC$2:AC18)),"") -> 1447.84718 | AI19: =IFERROR(INDEX(INDEX(Pro_3,MATCH($F$3,Pro_3,0)-1):INDEX(Pro_3,MATCH(2,1/(Pro_3=$F$3),1)),ROWS(AI$2:AI18)),"") ->  | AJ19: =IFERROR(INDEX(INDEX(OFFSET(Pro_3,0,1),MATCH($F$3,Pro_3,0)-1):INDEX(OFFSET(Pro_3,0,1),MATCH(2,1/(Pro_3=$F$3),1)),ROWS(AJ$2:AJ18)),"") ->  | AK19: =IFERROR(INDEX(INDEX(OFFSET(Pro_3,0,2),MATCH($F$3,Pro_3,0)-1):INDEX(OFFSET(Pro_3,0,2),MATCH(2,1/(Pro_3=$F$3),1)),ROWS(AK$2:AK18)),"") ->  | AL19: =IFERROR(INDEX(INDEX(OFFSET(Pro_3,0,3),MATCH($F$3,Pro_3,0)-1):INDEX(OFFSET(Pro_3,0,3),MATCH(2,1/(Pro_3=$F$3),1)),ROWS(AL$2:AL18)),"") -> 
N20: 20 | P20: =IFERROR(INDEX(INDEX(Pro_1,MATCH($B$3,Pro_1,0)-1):INDEX(Pro_1,MATCH(2,1/(Pro_1=$B$3),1)),ROWS(P$2:P19)),"") -> 100 | Q20: =IFERROR(INDEX(INDEX(OFFSET(Pro_1,0,1),MATCH($B$3,Pro_1,0)-1):INDEX(OFFSET(Pro_1,0,1),MATCH(2,1/(Pro_1=$B$3),1)),ROWS(Q$2:Q19)),"") -> 1200 | R20: =IFERROR(INDEX(INDEX(OFFSET(Pro_1,0,2),MATCH($B$3,Pro_1,0)-1):INDEX(OFFSET(Pro_1,0,2),MATCH(2,1/(Pro_1=$B$3),1)),ROWS(R$2:R19)),"") -> 1836 | S20: =IFERROR(INDEX(INDEX(OFFSET(Pro_1,0,3),MATCH($B$3,Pro_1,0)-1):INDEX(OFFSET(Pro_1,0,3),MATCH(2,1/(Pro_1=$B$3),1)),ROWS(S$2:S19)),"") -> 520.1525054 | X20: 20 | Z20: =IFERROR(INDEX(INDEX(Pro_2,MATCH($D$3,Pro_2,0)-1):INDEX(Pro_2,MATCH(2,1/(Pro_2=$D$3),1)),ROWS(Z$2:Z19)),"") -> 250 | AA20: =IFERROR(INDEX(INDEX(OFFSET(Pro_2,0,1),MATCH($D$3,Pro_2,0)-1):INDEX(OFFSET(Pro_2,0,1),MATCH(2,1/(Pro_2=$D$3),1)),ROWS(AA$2:AA19)),"") -> 1800 | AB20: =IFERROR(INDEX(INDEX(OFFSET(Pro_2,0,2),MATCH($D$3,Pro_2,0)-1):INDEX(OFFSET(Pro_2,0,2),MATCH(2,1/(Pro_2=$D$3),1)),ROWS(AB$2:AB19)),"") -> 1746 | AC20: =IFERROR(INDEX(INDEX(OFFSET(Pro_2,0,3),MATCH($D$3,Pro_2,0)-1):INDEX(OFFSET(Pro_2,0,3),MATCH(2,1/(Pro_2=$D$3),1)),ROWS(AC$2:AC19)),"") -> 1367.411226 | AI20: =IFERROR(INDEX(INDEX(Pro_3,MATCH($F$3,Pro_3,0)-1):INDEX(Pro_3,MATCH(2,1/(Pro_3=$F$3),1)),ROWS(AI$2:AI19)),"") ->  | AJ20: =IFERROR(INDEX(INDEX(OFFSET(Pro_3,0,1),MATCH($F$3,Pro_3,0)-1):INDEX(OFFSET(Pro_3,0,1),MATCH(2,1/(Pro_3=$F$3),1)),ROWS(AJ$2:AJ19)),"") ->  | AK20: =IFERROR(INDEX(INDEX(OFFSET(Pro_3,0,2),MATCH($F$3,Pro_3,0)-1):INDEX(OFFSET(Pro_3,0,2),MATCH(2,1/(Pro_3=$F$3),1)),ROWS(AK$2:AK19)),"") ->  | AL20: =IFERROR(INDEX(INDEX(OFFSET(Pro_3,0,3),MATCH($F$3,Pro_3,0)-1):INDEX(OFFSET(Pro_3,0,3),MATCH(2,1/(Pro_3=$F$3),1)),ROWS(AL$2:AL19)),"") -> 
N21: 21 | P21: =IFERROR(INDEX(INDEX(Pro_1,MATCH($B$3,Pro_1,0)-1):INDEX(Pro_1,MATCH(2,1/(Pro_1=$B$3),1)),ROWS(P$2:P20)),"") -> 100 | Q21: =IFERROR(INDEX(INDEX(OFFSET(Pro_1,0,1),MATCH($B$3,Pro_1,0)-1):INDEX(OFFSET(Pro_1,0,1),MATCH(2,1/(Pro_1=$B$3),1)),ROWS(Q$2:Q20)),"") -> 1300 | R21: =IFERROR(INDEX(INDEX(OFFSET(Pro_1,0,2),MATCH($B$3,Pro_1,0)-1):INDEX(OFFSET(Pro_1,0,2),MATCH(2,1/(Pro_1=$B$3),1)),ROWS(R$2:R20)),"") -> 1989 | S21: =IFERROR(INDEX(INDEX(OFFSET(Pro_1,0,3),MATCH($B$3,Pro_1,0)-1):INDEX(OFFSET(Pro_1,0,3),MATCH(2,1/(Pro_1=$B$3),1)),ROWS(S$2:S20)),"") -> 480.1407743 | X21: 21 | Z21: =IFERROR(INDEX(INDEX(Pro_2,MATCH($D$3,Pro_2,0)-1):INDEX(Pro_2,MATCH(2,1/(Pro_2=$D$3),1)),ROWS(Z$2:Z20)),"") -> 250 | AA21: =IFERROR(INDEX(INDEX(OFFSET(Pro_2,0,1),MATCH($D$3,Pro_2,0)-1):INDEX(OFFSET(Pro_2,0,1),MATCH(2,1/(Pro_2=$D$3),1)),ROWS(AA$2:AA20)),"") -> 1900 | AB21: =IFERROR(INDEX(INDEX(OFFSET(Pro_2,0,2),MATCH($D$3,Pro_2,0)-1):INDEX(OFFSET(Pro_2,0,2),MATCH(2,1/(Pro_2=$D$3),1)),ROWS(AB$2:AB20)),"") -> 1843 | AC21: =IFERROR(INDEX(INDEX(OFFSET(Pro_2,0,3),MATCH($D$3,Pro_2,0)-1):INDEX(OFFSET(Pro_2,0,3),MATCH(2,1/(Pro_2=$D$3),1)),ROWS(AC$2:AC20)),"") -> 1295.442214 | AI21: =IFERROR(INDEX(INDEX(Pro_3,MATCH($F$3,Pro_3,0)-1):INDEX(Pro_3,MATCH(2,1/(Pro_3=$F$3),1)),ROWS(AI$2:AI20)),"") ->  | AJ21: =IFERROR(INDEX(INDEX(OFFSET(Pro_3,0,1),MATCH($F$3,Pro_3,0)-1):INDEX(OFFSET(Pro_3,0,1),MATCH(2,1/(Pro_3=$F$3),1)),ROWS(AJ$2:AJ20)),"") ->  | AK21: =IFERROR(INDEX(INDEX(OFFSET(Pro_3,0,2),MATCH($F$3,Pro_3,0)-1):INDEX(OFFSET(Pro_3,0,2),MATCH(2,1/(Pro_3=$F$3),1)),ROWS(AK$2:AK20)),"") ->  | AL21: =IFERROR(INDEX(INDEX(OFFSET(Pro_3,0,3),MATCH($F$3,Pro_3,0)-1):INDEX(OFFSET(Pro_3,0,3),MATCH(2,1/(Pro_3=$F$3),1)),ROWS(AL$2:AL20)),"") -> 
N22: 22 | P22: =IFERROR(INDEX(INDEX(Pro_1,MATCH($B$3,Pro_1,0)-1):INDEX(Pro_1,MATCH(2,1/(Pro_1=$B$3),1)),ROWS(P$2:P21)),"") -> 100 | Q22: =IFERROR(INDEX(INDEX(OFFSET(Pro_1,0,1),MATCH($B$3,Pro_1,0)-1):INDEX(OFFSET(Pro_1,0,1),MATCH(2,1/(Pro_1=$B$3),1)),ROWS(Q$2:Q21)),"") -> 1400 | R22: =IFERROR(INDEX(INDEX(OFFSET(Pro_1,0,2),MATCH($B$3,Pro_1,0)-1):INDEX(OFFSET(Pro_1,0,2),MATCH(2,1/(Pro_1=$B$3),1)),ROWS(R$2:R21)),"") -> 2142 | S22: =IFERROR(INDEX(INDEX(OFFSET(Pro_1,0,3),MATCH($B$3,Pro_1,0)-1):INDEX(OFFSET(Pro_1,0,3),MATCH(2,1/(Pro_1=$B$3),1)),ROWS(S$2:S21)),"") -> 445.8450047 | Z22: =IFERROR(INDEX(INDEX(Pro_2,MATCH($D$3,Pro_2,0)-1):INDEX(Pro_2,MATCH(2,1/(Pro_2=$D$3),1)),ROWS(Z$2:Z21)),"") ->  | AA22: =IFERROR(INDEX(INDEX(OFFSET(Pro_2,0,1),MATCH($D$3,Pro_2,0)-1):INDEX(OFFSET(Pro_2,0,1),MATCH(2,1/(Pro_2=$D$3),1)),ROWS(AA$2:AA21)),"") ->  | AB22: =IFERROR(INDEX(INDEX(OFFSET(Pro_2,0,2),MATCH($D$3,Pro_2,0)-1):INDEX(OFFSET(Pro_2,0,2),MATCH(2,1/(Pro_2=$D$3),1)),ROWS(AB$2:AB21)),"") ->  | AC22: =IFERROR(INDEX(INDEX(OFFSET(Pro_2,0,3),MATCH($D$3,Pro_2,0)-1):INDEX(OFFSET(Pro_2,0,3),MATCH(2,1/(Pro_2=$D$3),1)),ROWS(AC$2:AC21)),"") ->  | AI22: =IFERROR(INDEX(INDEX(Pro_3,MATCH($F$3,Pro_3,0)-1):INDEX(Pro_3,MATCH(2,1/(Pro_3=$F$3),1)),ROWS(AI$2:AI21)),"") ->  | AJ22: =IFERROR(INDEX(INDEX(OFFSET(Pro_3,0,1),MATCH($F$3,Pro_3,0)-1):INDEX(OFFSET(Pro_3,0,1),MATCH(2,1/(Pro_3=$F$3),1)),ROWS(AJ$2:AJ21)),"") ->  | AK22: =IFERROR(INDEX(INDEX(OFFSET(Pro_3,0,2),MATCH($F$3,Pro_3,0)-1):INDEX(OFFSET(Pro_3,0,2),MATCH(2,1/(Pro_3=$F$3),1)),ROWS(AK$2:AK21)),"") ->  | AL22: =IFERROR(INDEX(INDEX(OFFSET(Pro_3,0,3),MATCH($F$3,Pro_3,0)-1):INDEX(OFFSET(Pro_3,0,3),MATCH(2,1/(Pro_3=$F$3),1)),ROWS(AL$2:AL21)),"") -> 
A23: =IF(F2=E19, A24,A22) -> 0 | N23: 23 | P23: =IFERROR(INDEX(INDEX(Pro_1,MATCH($B$3,Pro_1,0)-1):INDEX(Pro_1,MATCH(2,1/(Pro_1=$B$3),1)),ROWS(P$2:P22)),"") -> 100 | Q23: =IFERROR(INDEX(INDEX(OFFSET(Pro_1,0,1),MATCH($B$3,Pro_1,0)-1):INDEX(OFFSET(Pro_1,0,1),MATCH(2,1/(Pro_1=$B$3),1)),ROWS(Q$2:Q22)),"") -> 1500 | R23: =IFERROR(INDEX(INDEX(OFFSET(Pro_1,0,2),MATCH($B$3,Pro_1,0)-1):INDEX(OFFSET(Pro_1,0,2),MATCH(2,1/(Pro_1=$B$3),1)),ROWS(R$2:R22)),"") -> 2295 | S23: =IFERROR(INDEX(INDEX(OFFSET(Pro_1,0,3),MATCH($B$3,Pro_1,0)-1):INDEX(OFFSET(Pro_1,0,3),MATCH(2,1/(Pro_1=$B$3),1)),ROWS(S$2:S22)),"") -> 416.1220044 | Z23: =IFERROR(INDEX(INDEX(Pro_2,MATCH($D$3,Pro_2,0)-1):INDEX(Pro_2,MATCH(2,1/(Pro_2=$D$3),1)),ROWS(Z$2:Z22)),"") ->  | AA23: =IFERROR(INDEX(INDEX(OFFSET(Pro_2,0,1),MATCH($D$3,Pro_2,0)-1):INDEX(OFFSET(Pro_2,0,1),MATCH(2,1/(Pro_2=$D$3),1)),ROWS(AA$2:AA22)),"") ->  | AB23: =IFERROR(INDEX(INDEX(OFFSET(Pro_2,0,2),MATCH($D$3,Pro_2,0)-1):INDEX(OFFSET(Pro_2,0,2),MATCH(2,1/(Pro_2=$D$3),1)),ROWS(AB$2:AB22)),"") ->  | AC23: =IFERROR(INDEX(INDEX(OFFSET(Pro_2,0,3),MATCH($D$3,Pro_2,0)-1):INDEX(OFFSET(Pro_2,0,3),MATCH(2,1/(Pro_2=$D$3),1)),ROWS(AC$2:AC22)),"") ->  | AI23: =IFERROR(INDEX(INDEX(Pro_3,MATCH($F$3,Pro_3,0)-1):INDEX(Pro_3,MATCH(2,1/(Pro_3=$F$3),1)),ROWS(AI$2:AI22)),"") ->  | AJ23: =IFERROR(INDEX(INDEX(OFFSET(Pro_3,0,1),MATCH($F$3,Pro_3,0)-1):INDEX(OFFSET(Pro_3,0,1),MATCH(2,1/(Pro_3=$F$3),1)),ROWS(AJ$2:AJ22)),"") ->  | AK23: =IFERROR(INDEX(INDEX(OFFSET(Pro_3,0,2),MATCH($F$3,Pro_3,0)-1):INDEX(OFFSET(Pro_3,0,2),MATCH(2,1/(Pro_3=$F$3),1)),ROWS(AK$2:AK22)),"") ->  | AL23: =IFERROR(INDEX(INDEX(OFFSET(Pro_3,0,3),MATCH($F$3,Pro_3,0)-1):INDEX(OFFSET(Pro_3,0,3),MATCH(2,1/(Pro_3=$F$3),1)),ROWS(AL$2:AL22)),"") -> 
A24: For power take-off EG15R DCxx, HS means engine speed in gear 3, 6 and LS means engine speed in gear R, N, 1, 2, 4 and 5 | J24: 24 | N24: 24 | P24: =IFERROR(INDEX(INDEX(Pro_1,MATCH($B$3,Pro_1,0)-1):INDEX(Pro_1,MATCH(2,1/(Pro_1=$B$3),1)),ROWS(P$2:P23)),"") -> 100 | Q24: =IFERROR(INDEX(INDEX(OFFSET(Pro_1,0,1),MATCH($B$3,Pro_1,0)-1):INDEX(OFFSET(Pro_1,0,1),MATCH(2,1/(Pro_1=$B$3),1)),ROWS(Q$2:Q23)),"") -> 1600 | R24: =IFERROR(INDEX(INDEX(OFFSET(Pro_1,0,2),MATCH($B$3,Pro_1,0)-1):INDEX(OFFSET(Pro_1,0,2),MATCH(2,1/(Pro_1=$B$3),1)),ROWS(R$2:R23)),"") -> 2448 | S24: =IFERROR(INDEX(INDEX(OFFSET(Pro_1,0,3),MATCH($B$3,Pro_1,0)-1):INDEX(OFFSET(Pro_1,0,3),MATCH(2,1/(Pro_1=$B$3),1)),ROWS(S$2:S23)),"") -> 390.1143791 | Z24: =IFERROR(INDEX(INDEX(Pro_2,MATCH($D$3,Pro_2,0)-1):INDEX(Pro_2,MATCH(2,1/(Pro_2=$D$3),1)),ROWS(Z$2:Z23)),"") ->  | AA24: =IFERROR(INDEX(INDEX(OFFSET(Pro_2,0,1),MATCH($D$3,Pro_2,0)-1):INDEX(OFFSET(Pro_2,0,1),MATCH(2,1/(Pro_2=$D$3),1)),ROWS(AA$2:AA23)),"") ->  | AB24: =IFERROR(INDEX(INDEX(OFFSET(Pro_2,0,2),MATCH($D$3,Pro_2,0)-1):INDEX(OFFSET(Pro_2,0,2),MATCH(2,1/(Pro_2=$D$3),1)),ROWS(AB$2:AB23)),"") ->  | AC24: =IFERROR(INDEX(INDEX(OFFSET(Pro_2,0,3),MATCH($D$3,Pro_2,0)-1):INDEX(OFFSET(Pro_2,0,3),MATCH(2,1/(Pro_2=$D$3),1)),ROWS(AC$2:AC23)),"") ->  | AI24: =IFERROR(INDEX(INDEX(Pro_3,MATCH($F$3,Pro_3,0)-1):INDEX(Pro_3,MATCH(2,1/(Pro_3=$F$3),1)),ROWS(AI$2:AI23)),"") ->  | AJ24: =IFERROR(INDEX(INDEX(OFFSET(Pro_3,0,1),MATCH($F$3,Pro_3,0)-1):INDEX(OFFSET(Pro_3,0,1),MATCH(2,1/(Pro_3=$F$3),1)),ROWS(AJ$2:AJ23)),"") ->  | AK24: =IFERROR(INDEX(INDEX(OFFSET(Pro_3,0,2),MATCH($F$3,Pro_3,0)-1):INDEX(OFFSET(Pro_3,0,2),MATCH(2,1/(Pro_3=$F$3),1)),ROWS(AK$2:AK23)),"") ->  | AL24: =IFERROR(INDEX(INDEX(OFFSET(Pro_3,0,3),MATCH($F$3,Pro_3,0)-1):INDEX(OFFSET(Pro_3,0,3),MATCH(2,1/(Pro_3=$F$3),1)),ROWS(AL$2:AL23)),"") -> 
J25: 25 | N25: 25 | P25: =IFERROR(INDEX(INDEX(Pro_1,MATCH($B$3,Pro_1,0)-1):INDEX(Pro_1,MATCH(2,1/(Pro_1=$B$3),1)),ROWS(P$2:P24)),"") -> 100 | Q25: =IFERROR(INDEX(INDEX(OFFSET(Pro_1,0,1),MATCH($B$3,Pro_1,0)-1):INDEX(OFFSET(Pro_1,0,1),MATCH(2,1/(Pro_1=$B$3),1)),ROWS(Q$2:Q24)),"") -> 1700 | R25: =IFERROR(INDEX(INDEX(OFFSET(Pro_1,0,2),MATCH($B$3,Pro_1,0)-1):INDEX(OFFSET(Pro_1,0,2),MATCH(2,1/(Pro_1=$B$3),1)),ROWS(R$2:R24)),"") -> 2601 | S25: =IFERROR(INDEX(INDEX(OFFSET(Pro_1,0,3),MATCH($B$3,Pro_1,0)-1):INDEX(OFFSET(Pro_1,0,3),MATCH(2,1/(Pro_1=$B$3),1)),ROWS(S$2:S24)),"") -> 367.1664744 | Z25: =IFERROR(INDEX(INDEX(Pro_2,MATCH($D$3,Pro_2,0)-1):INDEX(Pro_2,MATCH(2,1/(Pro_2=$D$3),1)),ROWS(Z$2:Z24)),"") ->  | AA25: =IFERROR(INDEX(INDEX(OFFSET(Pro_2,0,1),MATCH($D$3,Pro_2,0)-1):INDEX(OFFSET(Pro_2,0,1),MATCH(2,1/(Pro_2=$D$3),1)),ROWS(AA$2:AA24)),"") ->  | AB25: =IFERROR(INDEX(INDEX(OFFSET(Pro_2,0,2),MATCH($D$3,Pro_2,0)-1):INDEX(OFFSET(Pro_2,0,2),MATCH(2,1/(Pro_2=$D$3),1)),ROWS(AB$2:AB24)),"") ->  | AC25: =IFERROR(INDEX(INDEX(OFFSET(Pro_2,0,3),MATCH($D$3,Pro_2,0)-1):INDEX(OFFSET(Pro_2,0,3),MATCH(2,1/(Pro_2=$D$3),1)),ROWS(AC$2:AC24)),"") ->  | AI25: =IFERROR(INDEX(INDEX(Pro_3,MATCH($F$3,Pro_3,0)-1):INDEX(Pro_3,MATCH(2,1/(Pro_3=$F$3),1)),ROWS(AI$2:AI24)),"") ->  | AJ25: =IFERROR(INDEX(INDEX(OFFSET(Pro_3,0,1),MATCH($F$3,Pro_3,0)-1):INDEX(OFFSET(Pro_3,0,1),MATCH(2,1/(Pro_3=$F$3),1)),ROWS(AJ$2:AJ24)),"") ->  | AK25: =IFERROR(INDEX(INDEX(OFFSET(Pro_3,0,2),MATCH($F$3,Pro_3,0)-1):INDEX(OFFSET(Pro_3,0,2),MATCH(2,1/(Pro_3=$F$3),1)),ROWS(AK$2:AK24)),"") ->  | AL25: =IFERROR(INDEX(INDEX(OFFSET(Pro_3,0,3),MATCH($F$3,Pro_3,0)-1):INDEX(OFFSET(Pro_3,0,3),MATCH(2,1/(Pro_3=$F$3),1)),ROWS(AL$2:AL24)),"") -> 
J26: 26 | N26: 26 | P26: =IFERROR(INDEX(INDEX(Pro_1,MATCH($B$3,Pro_1,0)-1):INDEX(Pro_1,MATCH(2,1/(Pro_1=$B$3),1)),ROWS(P$2:P25)),"") -> 100 | Q26: =IFERROR(INDEX(INDEX(OFFSET(Pro_1,0,1),MATCH($B$3,Pro_1,0)-1):INDEX(OFFSET(Pro_1,0,1),MATCH(2,1/(Pro_1=$B$3),1)),ROWS(Q$2:Q25)),"") -> 1800 | R26: =IFERROR(INDEX(INDEX(OFFSET(Pro_1,0,2),MATCH($B$3,Pro_1,0)-1):INDEX(OFFSET(Pro_1,0,2),MATCH(2,1/(Pro_1=$B$3),1)),ROWS(R$2:R25)),"") -> 2754 | S26: =IFERROR(INDEX(INDEX(OFFSET(Pro_1,0,3),MATCH($B$3,Pro_1,0)-1):INDEX(OFFSET(Pro_1,0,3),MATCH(2,1/(Pro_1=$B$3),1)),ROWS(S$2:S25)),"") -> 346.768337 | Z26: =IFERROR(INDEX(INDEX(Pro_2,MATCH($D$3,Pro_2,0)-1):INDEX(Pro_2,MATCH(2,1/(Pro_2=$D$3),1)),ROWS(Z$2:Z25)),"") ->  | AA26: =IFERROR(INDEX(INDEX(OFFSET(Pro_2,0,1),MATCH($D$3,Pro_2,0)-1):INDEX(OFFSET(Pro_2,0,1),MATCH(2,1/(Pro_2=$D$3),1)),ROWS(AA$2:AA25)),"") ->  | AB26: =IFERROR(INDEX(INDEX(OFFSET(Pro_2,0,2),MATCH($D$3,Pro_2,0)-1):INDEX(OFFSET(Pro_2,0,2),MATCH(2,1/(Pro_2=$D$3),1)),ROWS(AB$2:AB25)),"") ->  | AC26: =IFERROR(INDEX(INDEX(OFFSET(Pro_2,0,3),MATCH($D$3,Pro_2,0)-1):INDEX(OFFSET(Pro_2,0,3),MATCH(2,1/(Pro_2=$D$3),1)),ROWS(AC$2:AC25)),"") ->  | AI26: =IFERROR(INDEX(INDEX(Pro_3,MATCH($F$3,Pro_3,0)-1):INDEX(Pro_3,MATCH(2,1/(Pro_3=$F$3),1)),ROWS(AI$2:AI25)),"") ->  | AJ26: =IFERROR(INDEX(INDEX(OFFSET(Pro_3,0,1),MATCH($F$3,Pro_3,0)-1):INDEX(OFFSET(Pro_3,0,1),MATCH(2,1/(Pro_3=$F$3),1)),ROWS(AJ$2:AJ25)),"") ->  | AK26: =IFERROR(INDEX(INDEX(OFFSET(Pro_3,0,2),MATCH($F$3,Pro_3,0)-1):INDEX(OFFSET(Pro_3,0,2),MATCH(2,1/(Pro_3=$F$3),1)),ROWS(AK$2:AK25)),"") ->  | AL26: =IFERROR(INDEX(INDEX(OFFSET(Pro_3,0,3),MATCH($F$3,Pro_3,0)-1):INDEX(OFFSET(Pro_3,0,3),MATCH(2,1/(Pro_3=$F$3),1)),ROWS(AL$2:AL25)),"") -> 
J27: 27 | N27: 27 | P27: =IFERROR(INDEX(INDEX(Pro_1,MATCH($B$3,Pro_1,0)-1):INDEX(Pro_1,MATCH(2,1/(Pro_1=$B$3),1)),ROWS(P$2:P26)),"") -> 100 | Q27: =IFERROR(INDEX(INDEX(OFFSET(Pro_1,0,1),MATCH($B$3,Pro_1,0)-1):INDEX(OFFSET(Pro_1,0,1),MATCH(2,1/(Pro_1=$B$3),1)),ROWS(Q$2:Q26)),"") -> 1900 | R27: =IFERROR(INDEX(INDEX(OFFSET(Pro_1,0,2),MATCH($B$3,Pro_1,0)-1):INDEX(OFFSET(Pro_1,0,2),MATCH(2,1/(Pro_1=$B$3),1)),ROWS(R$2:R26)),"") -> 2907 | S27: =IFERROR(INDEX(INDEX(OFFSET(Pro_1,0,3),MATCH($B$3,Pro_1,0)-1):INDEX(OFFSET(Pro_1,0,3),MATCH(2,1/(Pro_1=$B$3),1)),ROWS(S$2:S26)),"") -> 328.5173719 | Z27: =IFERROR(INDEX(INDEX(Pro_2,MATCH($D$3,Pro_2,0)-1):INDEX(Pro_2,MATCH(2,1/(Pro_2=$D$3),1)),ROWS(Z$2:Z26)),"") ->  | AA27: =IFERROR(INDEX(INDEX(OFFSET(Pro_2,0,1),MATCH($D$3,Pro_2,0)-1):INDEX(OFFSET(Pro_2,0,1),MATCH(2,1/(Pro_2=$D$3),1)),ROWS(AA$2:AA26)),"") ->  | AB27: =IFERROR(INDEX(INDEX(OFFSET(Pro_2,0,2),MATCH($D$3,Pro_2,0)-1):INDEX(OFFSET(Pro_2,0,2),MATCH(2,1/(Pro_2=$D$3),1)),ROWS(AB$2:AB26)),"") ->  | AC27: =IFERROR(INDEX(INDEX(OFFSET(Pro_2,0,3),MATCH($D$3,Pro_2,0)-1):INDEX(OFFSET(Pro_2,0,3),MATCH(2,1/(Pro_2=$D$3),1)),ROWS(AC$2:AC26)),"") ->  | AI27: =IFERROR(INDEX(INDEX(Pro_3,MATCH($F$3,Pro_3,0)-1):INDEX(Pro_3,MATCH(2,1/(Pro_3=$F$3),1)),ROWS(AI$2:AI26)),"") ->  | AJ27: =IFERROR(INDEX(INDEX(OFFSET(Pro_3,0,1),MATCH($F$3,Pro_3,0)-1):INDEX(OFFSET(Pro_3,0,1),MATCH(2,1/(Pro_3=$F$3),1)),ROWS(AJ$2:AJ26)),"") ->  | AK27: =IFERROR(INDEX(INDEX(OFFSET(Pro_3,0,2),MATCH($F$3,Pro_3,0)-1):INDEX(OFFSET(Pro_3,0,2),MATCH(2,1/(Pro_3=$F$3),1)),ROWS(AK$2:AK26)),"") ->  | AL27: =IFERROR(INDEX(INDEX(OFFSET(Pro_3,0,3),MATCH($F$3,Pro_3,0)-1):INDEX(OFFSET(Pro_3,0,3),MATCH(2,1/(Pro_3=$F$3),1)),ROWS(AL$2:AL26)),"") -> 
A28: DATALABLE | B28: X | C28: Y | D28: LABLE | P28: =IFERROR(INDEX(INDEX(Pro_1,MATCH($B$3,Pro_1,0)-1):INDEX(Pro_1,MATCH(2,1/(Pro_1=$B$3),1)),ROWS(P$2:P27)),"") ->  | Q28: =IFERROR(INDEX(INDEX(OFFSET(Pro_1,0,1),MATCH($B$3,Pro_1,0)-1):INDEX(OFFSET(Pro_1,0,1),MATCH(2,1/(Pro_1=$B$3),1)),ROWS(Q$2:Q27)),"") ->  | R28: =IFERROR(INDEX(INDEX(OFFSET(Pro_1,0,2),MATCH($B$3,Pro_1,0)-1):INDEX(OFFSET(Pro_1,0,2),MATCH(2,1/(Pro_1=$B$3),1)),ROWS(R$2:R27)),"") ->  | S28: =IFERROR(INDEX(INDEX(OFFSET(Pro_1,0,3),MATCH($B$3,Pro_1,0)-1):INDEX(OFFSET(Pro_1,0,3),MATCH(2,1/(Pro_1=$B$3),1)),ROWS(S$2:S27)),"") ->  | Z28: =IFERROR(INDEX(INDEX(Pro_2,MATCH($D$3,Pro_2,0)-1):INDEX(Pro_2,MATCH(2,1/(Pro_2=$D$3),1)),ROWS(Z$2:Z27)),"") ->  | AA28: =IFERROR(INDEX(INDEX(OFFSET(Pro_2,0,1),MATCH($D$3,Pro_2,0)-1):INDEX(OFFSET(Pro_2,0,1),MATCH(2,1/(Pro_2=$D$3),1)),ROWS(AA$2:AA27)),"") ->  | AB28: =IFERROR(INDEX(INDEX(OFFSET(Pro_2,0,2),MATCH($D$3,Pro_2,0)-1):INDEX(OFFSET(Pro_2,0,2),MATCH(2,1/(Pro_2=$D$3),1)),ROWS(AB$2:AB27)),"") ->  | AC28: =IFERROR(INDEX(INDEX(OFFSET(Pro_2,0,3),MATCH($D$3,Pro_2,0)-1):INDEX(OFFSET(Pro_2,0,3),MATCH(2,1/(Pro_2=$D$3),1)),ROWS(AC$2:AC27)),"") ->  | AI28: =IFERROR(INDEX(INDEX(Pro_3,MATCH($F$3,Pro_3,0)-1):INDEX(Pro_3,MATCH(2,1/(Pro_3=$F$3),1)),ROWS(AI$2:AI27)),"") ->  | AJ28: =IFERROR(INDEX(INDEX(OFFSET(Pro_3,0,1),MATCH($F$3,Pro_3,0)-1):INDEX(OFFSET(Pro_3,0,1),MATCH(2,1/(Pro_3=$F$3),1)),ROWS(AJ$2:AJ27)),"") ->  | AK28: =IFERROR(INDEX(INDEX(OFFSET(Pro_3,0,2),MATCH($F$3,Pro_3,0)-1):INDEX(OFFSET(Pro_3,0,2),MATCH(2,1/(Pro_3=$F$3),1)),ROWS(AK$2:AK27)),"") ->  | AL28: =IFERROR(INDEX(INDEX(OFFSET(Pro_3,0,3),MATCH($F$3,Pro_3,0)-1):INDEX(OFFSET(Pro_3,0,3),MATCH(2,1/(Pro_3=$F$3),1)),ROWS(AL$2:AL27)),"") -> 
A29: UHS1 | B29: =IF(X_MAHS_1=0,"",X_MAHS_1) ->  | C29: =IF(Max_HS_1=0,"",Max_HS_1) ->  | D29: =IF(AND(B29="",C29=""),"",A29&";"&ROUND(B29,0)&";"&ROUND(C29,0)) ->  | P29: =IFERROR(INDEX(INDEX(Pro_1,MATCH($B$3,Pro_1,0)-1):INDEX(Pro_1,MATCH(2,1/(Pro_1=$B$3),1)),ROWS(P$2:P28)),"") ->  | Q29: =IFERROR(INDEX(INDEX(OFFSET(Pro_1,0,1),MATCH($B$3,Pro_1,0)-1):INDEX(OFFSET(Pro_1,0,1),MATCH(2,1/(Pro_1=$B$3),1)),ROWS(Q$2:Q28)),"") ->  | R29: =IFERROR(INDEX(INDEX(OFFSET(Pro_1,0,2),MATCH($B$3,Pro_1,0)-1):INDEX(OFFSET(Pro_1,0,2),MATCH(2,1/(Pro_1=$B$3),1)),ROWS(R$2:R28)),"") ->  | S29: =IFERROR(INDEX(INDEX(OFFSET(Pro_1,0,3),MATCH($B$3,Pro_1,0)-1):INDEX(OFFSET(Pro_1,0,3),MATCH(2,1/(Pro_1=$B$3),1)),ROWS(S$2:S28)),"") ->  | Z29: =IFERROR(INDEX(INDEX(Pro_2,MATCH($D$3,Pro_2,0)-1):INDEX(Pro_2,MATCH(2,1/(Pro_2=$D$3),1)),ROWS(Z$2:Z28)),"") ->  | AA29: =IFERROR(INDEX(INDEX(OFFSET(Pro_2,0,1),MATCH($D$3,Pro_2,0)-1):INDEX(OFFSET(Pro_2,0,1),MATCH(2,1/(Pro_2=$D$3),1)),ROWS(AA$2:AA28)),"") ->  | AB29: =IFERROR(INDEX(INDEX(OFFSET(Pro_2,0,2),MATCH($D$3,Pro_2,0)-1):INDEX(OFFSET(Pro_2,0,2),MATCH(2,1/(Pro_2=$D$3),1)),ROWS(AB$2:AB28)),"") ->  | AC29: =IFERROR(INDEX(INDEX(OFFSET(Pro_2,0,3),MATCH($D$3,Pro_2,0)-1):INDEX(OFFSET(Pro_2,0,3),MATCH(2,1/(Pro_2=$D$3),1)),ROWS(AC$2:AC28)),"") ->  | AI29: =IFERROR(INDEX(INDEX(Pro_3,MATCH($F$3,Pro_3,0)-1):INDEX(Pro_3,MATCH(2,1/(Pro_3=$F$3),1)),ROWS(AI$2:AI28)),"") ->  | AJ29: =IFERROR(INDEX(INDEX(OFFSET(Pro_3,0,1),MATCH($F$3,Pro_3,0)-1):INDEX(OFFSET(Pro_3,0,1),MATCH(2,1/(Pro_3=$F$3),1)),ROWS(AJ$2:AJ28)),"") ->  | AK29: =IFERROR(INDEX(INDEX(OFFSET(Pro_3,0,2),MATCH($F$3,Pro_3,0)-1):INDEX(OFFSET(Pro_3,0,2),MATCH(2,1/(Pro_3=$F$3),1)),ROWS(AK$2:AK28)),"") ->  | AL29: =IFERROR(INDEX(INDEX(OFFSET(Pro_3,0,3),MATCH($F$3,Pro_3,0)-1):INDEX(OFFSET(Pro_3,0,3),MATCH(2,1/(Pro_3=$F$3),1)),ROWS(AL$2:AL28)),"") -> 
A30: LHS1 | B30: =IF(X_MIHS_1=0,"",X_MIHS_1) ->  | C30: =IF(Min_HS_1=0,"",Min_HS_1) ->  | D30: =IF(AND(B30="",C30=""),"",A30&";"&ROUND(B30,0)&";"&ROUND(C30,0)) ->  | P30: =IFERROR(INDEX(INDEX(Pro_1,MATCH($B$3,Pro_1,0)-1):INDEX(Pro_1,MATCH(2,1/(Pro_1=$B$3),1)),ROWS(P$2:P29)),"") ->  | Q30: =IFERROR(INDEX(INDEX(OFFSET(Pro_1,0,1),MATCH($B$3,Pro_1,0)-1):INDEX(OFFSET(Pro_1,0,1),MATCH(2,1/(Pro_1=$B$3),1)),ROWS(Q$2:Q29)),"") ->  | R30: =IFERROR(INDEX(INDEX(OFFSET(Pro_1,0,2),MATCH($B$3,Pro_1,0)-1):INDEX(OFFSET(Pro_1,0,2),MATCH(2,1/(Pro_1=$B$3),1)),ROWS(R$2:R29)),"") ->  | S30: =IFERROR(INDEX(INDEX(OFFSET(Pro_1,0,3),MATCH($B$3,Pro_1,0)-1):INDEX(OFFSET(Pro_1,0,3),MATCH(2,1/(Pro_1=$B$3),1)),ROWS(S$2:S29)),"") ->  | Z30: =IFERROR(INDEX(INDEX(Pro_2,MATCH($D$3,Pro_2,0)-1):INDEX(Pro_2,MATCH(2,1/(Pro_2=$D$3),1)),ROWS(Z$2:Z29)),"") ->  | AA30: =IFERROR(INDEX(INDEX(OFFSET(Pro_2,0,1),MATCH($D$3,Pro_2,0)-1):INDEX(OFFSET(Pro_2,0,1),MATCH(2,1/(Pro_2=$D$3),1)),ROWS(AA$2:AA29)),"") ->  | AB30: =IFERROR(INDEX(INDEX(OFFSET(Pro_2,0,2),MATCH($D$3,Pro_2,0)-1):INDEX(OFFSET(Pro_2,0,2),MATCH(2,1/(Pro_2=$D$3),1)),ROWS(AB$2:AB29)),"") ->  | AC30: =IFERROR(INDEX(INDEX(OFFSET(Pro_2,0,3),MATCH($D$3,Pro_2,0)-1):INDEX(OFFSET(Pro_2,0,3),MATCH(2,1/(Pro_2=$D$3),1)),ROWS(AC$2:AC29)),"") ->  | AI30: =IFERROR(INDEX(INDEX(Pro_3,MATCH($F$3,Pro_3,0)-1):INDEX(Pro_3,MATCH(2,1/(Pro_3=$F$3),1)),ROWS(AI$2:AI29)),"") ->  | AJ30: =IFERROR(INDEX(INDEX(OFFSET(Pro_3,0,1),MATCH($F$3,Pro_3,0)-1):INDEX(OFFSET(Pro_3,0,1),MATCH(2,1/(Pro_3=$F$3),1)),ROWS(AJ$2:AJ29)),"") ->  | AK30: =IFERROR(INDEX(INDEX(OFFSET(Pro_3,0,2),MATCH($F$3,Pro_3,0)-1):INDEX(OFFSET(Pro_3,0,2),MATCH(2,1/(Pro_3=$F$3),1)),ROWS(AK$2:AK29)),"") ->  | AL30: =IFERROR(INDEX(INDEX(OFFSET(Pro_3,0,3),MATCH($F$3,Pro_3,0)-1):INDEX(OFFSET(Pro_3,0,3),MATCH(2,1/(Pro_3=$F$3),1)),ROWS(AL$2:AL29)),"") -> 
A31: ULS1 | B31: =IF(OR(X_MALS_1=0,COUNT(OFFSET(Powr_LS_range_1,0,3))=1),"",X_MALS_1) -> 422.3794781 | C31: =IF(OR(Max_LS_1=0,B31=""),"",Max_LS_1) -> 1900 | D31: =IF(AND(B31="",C31=""),"",A31&";"&ROUND(B31,0)&";"&ROUND(C31,0)) -> ULS1;422;1900 | P31: =IFERROR(INDEX(INDEX(Pro_1,MATCH($B$3,Pro_1,0)-1):INDEX(Pro_1,MATCH(2,1/(Pro_1=$B$3),1)),ROWS(P$2:P30)),"") ->  | Q31: =IFERROR(INDEX(INDEX(OFFSET(Pro_1,0,1),MATCH($B$3,Pro_1,0)-1):INDEX(OFFSET(Pro_1,0,1),MATCH(2,1/(Pro_1=$B$3),1)),ROWS(Q$2:Q30)),"") ->  | R31: =IFERROR(INDEX(INDEX(OFFSET(Pro_1,0,2),MATCH($B$3,Pro_1,0)-1):INDEX(OFFSET(Pro_1,0,2),MATCH(2,1/(Pro_1=$B$3),1)),ROWS(R$2:R30)),"") ->  | S31: =IFERROR(INDEX(INDEX(OFFSET(Pro_1,0,3),MATCH($B$3,Pro_1,0)-1):INDEX(OFFSET(Pro_1,0,3),MATCH(2,1/(Pro_1=$B$3),1)),ROWS(S$2:S30)),"") ->  | Z31: =IFERROR(INDEX(INDEX(Pro_2,MATCH($D$3,Pro_2,0)-1):INDEX(Pro_2,MATCH(2,1/(Pro_2=$D$3),1)),ROWS(Z$2:Z30)),"") ->  | AA31: =IFERROR(INDEX(INDEX(OFFSET(Pro_2,0,1),MATCH($D$3,Pro_2,0)-1):INDEX(OFFSET(Pro_2,0,1),MATCH(2,1/(Pro_2=$D$3),1)),ROWS(AA$2:AA30)),"") ->  | AB31: =IFERROR(INDEX(INDEX(OFFSET(Pro_2,0,2),MATCH($D$3,Pro_2,0)-1):INDEX(OFFSET(Pro_2,0,2),MATCH(2,1/(Pro_2=$D$3),1)),ROWS(AB$2:AB30)),"") ->  | AC31: =IFERROR(INDEX(INDEX(OFFSET(Pro_2,0,3),MATCH($D$3,Pro_2,0)-1):INDEX(OFFSET(Pro_2,0,3),MATCH(2,1/(Pro_2=$D$3),1)),ROWS(AC$2:AC30)),"") ->  | AI31: =IFERROR(INDEX(INDEX(Pro_3,MATCH($F$3,Pro_3,0)-1):INDEX(Pro_3,MATCH(2,1/(Pro_3=$F$3),1)),ROWS(AI$2:AI30)),"") ->  | AJ31: =IFERROR(INDEX(INDEX(OFFSET(Pro_3,0,1),MATCH($F$3,Pro_3,0)-1):INDEX(OFFSET(Pro_3,0,1),MATCH(2,1/(Pro_3=$F$3),1)),ROWS(AJ$2:AJ30)),"") ->  | AK31: =IFERROR(INDEX(INDEX(OFFSET(Pro_3,0,2),MATCH($F$3,Pro_3,0)-1):INDEX(OFFSET(Pro_3,0,2),MATCH(2,1/(Pro_3=$F$3),1)),ROWS(AK$2:AK30)),"") ->  | AL31: =IFERROR(INDEX(INDEX(OFFSET(Pro_3,0,3),MATCH($F$3,Pro_3,0)-1):INDEX(OFFSET(Pro_3,0,3),MATCH(2,1/(Pro_3=$F$3),1)),ROWS(AL$2:AL30)),"") -> 
A32: LLS1 | B32: =IF(OR(X_MILS_1=0,COUNT(OFFSET(Powr_LS_range_1,0,3))=1),"",X_MILS_1) -> 835.9593838 | C32: =IF(OR(B32="",MIN_LS_1=0),"",MIN_LS_1) -> 960 | D32: =IF(AND(B32="",C32=""),"",A32&";"&ROUND(B32,0)&";"&ROUND(C32,0)) -> LLS1;836;960 | P32: =IFERROR(INDEX(INDEX(Pro_1,MATCH($B$3,Pro_1,0)-1):INDEX(Pro_1,MATCH(2,1/(Pro_1=$B$3),1)),ROWS(P$2:P31)),"") ->  | Q32: =IFERROR(INDEX(INDEX(OFFSET(Pro_1,0,1),MATCH($B$3,Pro_1,0)-1):INDEX(OFFSET(Pro_1,0,1),MATCH(2,1/(Pro_1=$B$3),1)),ROWS(Q$2:Q31)),"") ->  | R32: =IFERROR(INDEX(INDEX(OFFSET(Pro_1,0,2),MATCH($B$3,Pro_1,0)-1):INDEX(OFFSET(Pro_1,0,2),MATCH(2,1/(Pro_1=$B$3),1)),ROWS(R$2:R31)),"") ->  | S32: =IFERROR(INDEX(INDEX(OFFSET(Pro_1,0,3),MATCH($B$3,Pro_1,0)-1):INDEX(OFFSET(Pro_1,0,3),MATCH(2,1/(Pro_1=$B$3),1)),ROWS(S$2:S31)),"") ->  | Z32: =IFERROR(INDEX(INDEX(Pro_2,MATCH($D$3,Pro_2,0)-1):INDEX(Pro_2,MATCH(2,1/(Pro_2=$D$3),1)),ROWS(Z$2:Z31)),"") ->  | AA32: =IFERROR(INDEX(INDEX(OFFSET(Pro_2,0,1),MATCH($D$3,Pro_2,0)-1):INDEX(OFFSET(Pro_2,0,1),MATCH(2,1/(Pro_2=$D$3),1)),ROWS(AA$2:AA31)),"") ->  | AB32: =IFERROR(INDEX(INDEX(OFFSET(Pro_2,0,2),MATCH($D$3,Pro_2,0)-1):INDEX(OFFSET(Pro_2,0,2),MATCH(2,1/(Pro_2=$D$3),1)),ROWS(AB$2:AB31)),"") ->  | AC32: =IFERROR(INDEX(INDEX(OFFSET(Pro_2,0,3),MATCH($D$3,Pro_2,0)-1):INDEX(OFFSET(Pro_2,0,3),MATCH(2,1/(Pro_2=$D$3),1)),ROWS(AC$2:AC31)),"") ->  | AI32: =IFERROR(INDEX(INDEX(Pro_3,MATCH($F$3,Pro_3,0)-1):INDEX(Pro_3,MATCH(2,1/(Pro_3=$F$3),1)),ROWS(AI$2:AI31)),"") ->  | AJ32: =IFERROR(INDEX(INDEX(OFFSET(Pro_3,0,1),MATCH($F$3,Pro_3,0)-1):INDEX(OFFSET(Pro_3,0,1),MATCH(2,1/(Pro_3=$F$3),1)),ROWS(AJ$2:AJ31)),"") ->  | AK32: =IFERROR(INDEX(INDEX(OFFSET(Pro_3,0,2),MATCH($F$3,Pro_3,0)-1):INDEX(OFFSET(Pro_3,0,2),MATCH(2,1/(Pro_3=$F$3),1)),ROWS(AK$2:AK31)),"") ->  | AL32: =IFERROR(INDEX(INDEX(OFFSET(Pro_3,0,3),MATCH($F$3,Pro_3,0)-1):INDEX(OFFSET(Pro_3,0,3),MATCH(2,1/(Pro_3=$F$3),1)),ROWS(AL$2:AL31)),"") -> 
P33: =IFERROR(INDEX(INDEX(Pro_1,MATCH($B$3,Pro_1,0)-1):INDEX(Pro_1,MATCH(2,1/(Pro_1=$B$3),1)),ROWS(P$2:P32)),"") ->  | Q33: =IFERROR(INDEX(INDEX(OFFSET(Pro_1,0,1),MATCH($B$3,Pro_1,0)-1):INDEX(OFFSET(Pro_1,0,1),MATCH(2,1/(Pro_1=$B$3),1)),ROWS(Q$2:Q32)),"") ->  | R33: =IFERROR(INDEX(INDEX(OFFSET(Pro_1,0,2),MATCH($B$3,Pro_1,0)-1):INDEX(OFFSET(Pro_1,0,2),MATCH(2,1/(Pro_1=$B$3),1)),ROWS(R$2:R32)),"") ->  | S33: =IFERROR(INDEX(INDEX(OFFSET(Pro_1,0,3),MATCH($B$3,Pro_1,0)-1):INDEX(OFFSET(Pro_1,0,3),MATCH(2,1/(Pro_1=$B$3),1)),ROWS(S$2:S32)),"") ->  | Z33: =IFERROR(INDEX(INDEX(Pro_2,MATCH($D$3,Pro_2,0)-1):INDEX(Pro_2,MATCH(2,1/(Pro_2=$D$3),1)),ROWS(Z$2:Z32)),"") ->  | AA33: =IFERROR(INDEX(INDEX(OFFSET(Pro_2,0,1),MATCH($D$3,Pro_2,0)-1):INDEX(OFFSET(Pro_2,0,1),MATCH(2,1/(Pro_2=$D$3),1)),ROWS(AA$2:AA32)),"") ->  | AB33: =IFERROR(INDEX(INDEX(OFFSET(Pro_2,0,2),MATCH($D$3,Pro_2,0)-1):INDEX(OFFSET(Pro_2,0,2),MATCH(2,1/(Pro_2=$D$3),1)),ROWS(AB$2:AB32)),"") ->  | AC33: =IFERROR(INDEX(INDEX(OFFSET(Pro_2,0,3),MATCH($D$3,Pro_2,0)-1):INDEX(OFFSET(Pro_2,0,3),MATCH(2,1/(Pro_2=$D$3),1)),ROWS(AC$2:AC32)),"") ->  | AI33: =IFERROR(INDEX(INDEX(Pro_3,MATCH($F$3,Pro_3,0)-1):INDEX(Pro_3,MATCH(2,1/(Pro_3=$F$3),1)),ROWS(AI$2:AI32)),"") ->  | AJ33: =IFERROR(INDEX(INDEX(OFFSET(Pro_3,0,1),MATCH($F$3,Pro_3,0)-1):INDEX(OFFSET(Pro_3,0,1),MATCH(2,1/(Pro_3=$F$3),1)),ROWS(AJ$2:AJ32)),"") ->  | AK33: =IFERROR(INDEX(INDEX(OFFSET(Pro_3,0,2),MATCH($F$3,Pro_3,0)-1):INDEX(OFFSET(Pro_3,0,2),MATCH(2,1/(Pro_3=$F$3),1)),ROWS(AK$2:AK32)),"") ->  | AL33: =IFERROR(INDEX(INDEX(OFFSET(Pro_3,0,3),MATCH($F$3,Pro_3,0)-1):INDEX(OFFSET(Pro_3,0,3),MATCH(2,1/(Pro_3=$F$3),1)),ROWS(AL$2:AL32)),"") -> 
A34: DATALABLE | B34: X | C34: Y | D34: LABLE | P34: =IFERROR(INDEX(INDEX(Pro_1,MATCH($B$3,Pro_1,0)-1):INDEX(Pro_1,MATCH(2,1/(Pro_1=$B$3),1)),ROWS(P$2:P33)),"") ->  | Q34: =IFERROR(INDEX(INDEX(OFFSET(Pro_1,0,1),MATCH($B$3,Pro_1,0)-1):INDEX(OFFSET(Pro_1,0,1),MATCH(2,1/(Pro_1=$B$3),1)),ROWS(Q$2:Q33)),"") ->  | R34: =IFERROR(INDEX(INDEX(OFFSET(Pro_1,0,2),MATCH($B$3,Pro_1,0)-1):INDEX(OFFSET(Pro_1,0,2),MATCH(2,1/(Pro_1=$B$3),1)),ROWS(R$2:R33)),"") ->  | S34: =IFERROR(INDEX(INDEX(OFFSET(Pro_1,0,3),MATCH($B$3,Pro_1,0)-1):INDEX(OFFSET(Pro_1,0,3),MATCH(2,1/(Pro_1=$B$3),1)),ROWS(S$2:S33)),"") ->  | Z34: =IFERROR(INDEX(INDEX(Pro_2,MATCH($D$3,Pro_2,0)-1):INDEX(Pro_2,MATCH(2,1/(Pro_2=$D$3),1)),ROWS(Z$2:Z33)),"") ->  | AA34: =IFERROR(INDEX(INDEX(OFFSET(Pro_2,0,1),MATCH($D$3,Pro_2,0)-1):INDEX(OFFSET(Pro_2,0,1),MATCH(2,1/(Pro_2=$D$3),1)),ROWS(AA$2:AA33)),"") ->  | AB34: =IFERROR(INDEX(INDEX(OFFSET(Pro_2,0,2),MATCH($D$3,Pro_2,0)-1):INDEX(OFFSET(Pro_2,0,2),MATCH(2,1/(Pro_2=$D$3),1)),ROWS(AB$2:AB33)),"") ->  | AC34: =IFERROR(INDEX(INDEX(OFFSET(Pro_2,0,3),MATCH($D$3,Pro_2,0)-1):INDEX(OFFSET(Pro_2,0,3),MATCH(2,1/(Pro_2=$D$3),1)),ROWS(AC$2:AC33)),"") ->  | AI34: =IFERROR(INDEX(INDEX(Pro_3,MATCH($F$3,Pro_3,0)-1):INDEX(Pro_3,MATCH(2,1/(Pro_3=$F$3),1)),ROWS(AI$2:AI33)),"") ->  | AJ34: =IFERROR(INDEX(INDEX(OFFSET(Pro_3,0,1),MATCH($F$3,Pro_3,0)-1):INDEX(OFFSET(Pro_3,0,1),MATCH(2,1/(Pro_3=$F$3),1)),ROWS(AJ$2:AJ33)),"") ->  | AK34: =IFERROR(INDEX(INDEX(OFFSET(Pro_3,0,2),MATCH($F$3,Pro_3,0)-1):INDEX(OFFSET(Pro_3,0,2),MATCH(2,1/(Pro_3=$F$3),1)),ROWS(AK$2:AK33)),"") ->  | AL34: =IFERROR(INDEX(INDEX(OFFSET(Pro_3,0,3),MATCH($F$3,Pro_3,0)-1):INDEX(OFFSET(Pro_3,0,3),MATCH(2,1/(Pro_3=$F$3),1)),ROWS(AL$2:AL33)),"") -> 
A35: UHS2 | B35: =IF(X_MAHS_2=0,"",X_MAHS_2) ->  | C35: =IF(MAX_HS_2=0,"",MAX_HS_2) ->  | D35: =IF(AND(B35="",C35=""),"",A35&";"&ROUND(B35,0)&";"&ROUND(C35,0)) ->  | O35: =IF($P35=$C$3,ROW(),"") ->  | P35: =IFERROR(INDEX(INDEX(Pro_1,MATCH($B$3,Pro_1,0)-1):INDEX(Pro_1,MATCH(2,1/(Pro_1=$B$3),1)),ROWS(P$2:P34)),"") ->  | Q35: =IFERROR(INDEX(INDEX(OFFSET(Pro_1,0,1),MATCH($B$3,Pro_1,0)-1):INDEX(OFFSET(Pro_1,0,1),MATCH(2,1/(Pro_1=$B$3),1)),ROWS(Q$2:Q34)),"") ->  | R35: =IFERROR(INDEX(INDEX(OFFSET(Pro_1,0,2),MATCH($B$3,Pro_1,0)-1):INDEX(OFFSET(Pro_1,0,2),MATCH(2,1/(Pro_1=$B$3),1)),ROWS(R$2:R34)),"") ->  | S35: =IFERROR(INDEX(INDEX(OFFSET(Pro_1,0,3),MATCH($B$3,Pro_1,0)-1):INDEX(OFFSET(Pro_1,0,3),MATCH(2,1/(Pro_1=$B$3),1)),ROWS(S$2:S34)),"") ->  | Y35: =IF($Z35=$C$3,ROW(),"") ->  | Z35: =IFERROR(INDEX(INDEX(Pro_2,MATCH($D$3,Pro_2,0)-1):INDEX(Pro_2,MATCH(2,1/(Pro_2=$D$3),1)),ROWS(Z$2:Z34)),"") ->  | AA35: =IFERROR(INDEX(INDEX(OFFSET(Pro_2,0,1),MATCH($D$3,Pro_2,0)-1):INDEX(OFFSET(Pro_2,0,1),MATCH(2,1/(Pro_2=$D$3),1)),ROWS(AA$2:AA34)),"") ->  | AB35: =IFERROR(INDEX(INDEX(OFFSET(Pro_2,0,2),MATCH($D$3,Pro_2,0)-1):INDEX(OFFSET(Pro_2,0,2),MATCH(2,1/(Pro_2=$D$3),1)),ROWS(AB$2:AB34)),"") ->  | AC35: =IFERROR(INDEX(INDEX(OFFSET(Pro_2,0,3),MATCH($D$3,Pro_2,0)-1):INDEX(OFFSET(Pro_2,0,3),MATCH(2,1/(Pro_2=$D$3),1)),ROWS(AC$2:AC34)),"") ->  | AH35: =IF($AI35=$C$3,ROW(),"") ->  | AI35: =IFERROR(INDEX(INDEX(Pro_3,MATCH($F$3,Pro_3,0)-1):INDEX(Pro_3,MATCH(2,1/(Pro_3=$F$3),1)),ROWS(AI$2:AI34)),"") ->  | AJ35: =IFERROR(INDEX(INDEX(OFFSET(Pro_3,0,1),MATCH($F$3,Pro_3,0)-1):INDEX(OFFSET(Pro_3,0,1),MATCH(2,1/(Pro_3=$F$3),1)),ROWS(AJ$2:AJ34)),"") ->  | AK35: =IFERROR(INDEX(INDEX(OFFSET(Pro_3,0,2),MATCH($F$3,Pro_3,0)-1):INDEX(OFFSET(Pro_3,0,2),MATCH(2,1/(Pro_3=$F$3),1)),ROWS(AK$2:AK34)),"") ->  | AL35: =IFERROR(INDEX(INDEX(OFFSET(Pro_3,0,3),MATCH($F$3,Pro_3,0)-1):INDEX(OFFSET(Pro_3,0,3),MATCH(2,1/(Pro_3=$F$3),1)),ROWS(AL$2:AL34)),"") -> 
A36: LHS2 | B36: =IF(X_MIHS_2=0,"",X_MIHS_2) ->  | C36: =IF(MIN_HS_2=0,"",MIN_HS_2) ->  | D36: =IF(AND(B36="",C36=""),"",A36&";"&ROUND(B36,0)&";"&ROUND(C36,0)) ->  | P36: =IFERROR(INDEX(INDEX(Pro_1,MATCH($B$3,Pro_1,0)-1):INDEX(Pro_1,MATCH(2,1/(Pro_1=$B$3),1)),ROWS(P$2:P35)),"") ->  | Q36: =IFERROR(INDEX(INDEX(OFFSET(Pro_1,0,1),MATCH($B$3,Pro_1,0)-1):INDEX(OFFSET(Pro_1,0,1),MATCH(2,1/(Pro_1=$B$3),1)),ROWS(Q$2:Q35)),"") ->  | R36: =IFERROR(INDEX(INDEX(OFFSET(Pro_1,0,2),MATCH($B$3,Pro_1,0)-1):INDEX(OFFSET(Pro_1,0,2),MATCH(2,1/(Pro_1=$B$3),1)),ROWS(R$2:R35)),"") ->  | S36: =IFERROR(INDEX(INDEX(OFFSET(Pro_1,0,3),MATCH($B$3,Pro_1,0)-1):INDEX(OFFSET(Pro_1,0,3),MATCH(2,1/(Pro_1=$B$3),1)),ROWS(S$2:S35)),"") ->  | Z36: =IFERROR(INDEX(INDEX(Pro_2,MATCH($D$3,Pro_2,0)-1):INDEX(Pro_2,MATCH(2,1/(Pro_2=$D$3),1)),ROWS(Z$2:Z35)),"") ->  | AA36: =IFERROR(INDEX(INDEX(OFFSET(Pro_2,0,1),MATCH($D$3,Pro_2,0)-1):INDEX(OFFSET(Pro_2,0,1),MATCH(2,1/(Pro_2=$D$3),1)),ROWS(AA$2:AA35)),"") ->  | AB36: =IFERROR(INDEX(INDEX(OFFSET(Pro_2,0,2),MATCH($D$3,Pro_2,0)-1):INDEX(OFFSET(Pro_2,0,2),MATCH(2,1/(Pro_2=$D$3),1)),ROWS(AB$2:AB35)),"") ->  | AC36: =IFERROR(INDEX(INDEX(OFFSET(Pro_2,0,3),MATCH($D$3,Pro_2,0)-1):INDEX(OFFSET(Pro_2,0,3),MATCH(2,1/(Pro_2=$D$3),1)),ROWS(AC$2:AC35)),"") ->  | AI36: =IFERROR(INDEX(INDEX(Pro_3,MATCH($F$3,Pro_3,0)-1):INDEX(Pro_3,MATCH(2,1/(Pro_3=$F$3),1)),ROWS(AI$2:AI35)),"") ->  | AJ36: =IFERROR(INDEX(INDEX(OFFSET(Pro_3,0,1),MATCH($F$3,Pro_3,0)-1):INDEX(OFFSET(Pro_3,0,1),MATCH(2,1/(Pro_3=$F$3),1)),ROWS(AJ$2:AJ35)),"") ->  | AK36: =IFERROR(INDEX(INDEX(OFFSET(Pro_3,0,2),MATCH($F$3,Pro_3,0)-1):INDEX(OFFSET(Pro_3,0,2),MATCH(2,1/(Pro_3=$F$3),1)),ROWS(AK$2:AK35)),"") ->  | AL36: =IFERROR(INDEX(INDEX(OFFSET(Pro_3,0,3),MATCH($F$3,Pro_3,0)-1):INDEX(OFFSET(Pro_3,0,3),MATCH(2,1/(Pro_3=$F$3),1)),ROWS(AL$2:AL35)),"") -> 
A37: ULS2 | B37: =IF(OR(X_MALS_2=0,COUNT(OFFSET(Powr_LS_range_2,0,3))=1),"",X_MALS_2) -> 1653.393352 | C37: =IF(OR(MAX_LS_2=0,B37=""),"",MAX_LS_2) -> 1900 | D37: =IF(AND(B37="",C37=""),"",A37&";"&ROUND(B37,0)&";"&ROUND(C37,0)) -> ULS2;1653;1900 | P37: =IFERROR(INDEX(INDEX(Pro_1,MATCH($B$3,Pro_1,0)-1):INDEX(Pro_1,MATCH(2,1/(Pro_1=$B$3),1)),ROWS(P$2:P36)),"") ->  | Q37: =IFERROR(INDEX(INDEX(OFFSET(Pro_1,0,1),MATCH($B$3,Pro_1,0)-1):INDEX(OFFSET(Pro_1,0,1),MATCH(2,1/(Pro_1=$B$3),1)),ROWS(Q$2:Q36)),"") ->  | R37: =IFERROR(INDEX(INDEX(OFFSET(Pro_1,0,2),MATCH($B$3,Pro_1,0)-1):INDEX(OFFSET(Pro_1,0,2),MATCH(2,1/(Pro_1=$B$3),1)),ROWS(R$2:R36)),"") ->  | S37: =IFERROR(INDEX(INDEX(OFFSET(Pro_1,0,3),MATCH($B$3,Pro_1,0)-1):INDEX(OFFSET(Pro_1,0,3),MATCH(2,1/(Pro_1=$B$3),1)),ROWS(S$2:S36)),"") ->  | Z37: =IFERROR(INDEX(INDEX(Pro_2,MATCH($D$3,Pro_2,0)-1):INDEX(Pro_2,MATCH(2,1/(Pro_2=$D$3),1)),ROWS(Z$2:Z36)),"") ->  | AA37: =IFERROR(INDEX(INDEX(OFFSET(Pro_2,0,1),MATCH($D$3,Pro_2,0)-1):INDEX(OFFSET(Pro_2,0,1),MATCH(2,1/(Pro_2=$D$3),1)),ROWS(AA$2:AA36)),"") ->  | AB37: =IFERROR(INDEX(INDEX(OFFSET(Pro_2,0,2),MATCH($D$3,Pro_2,0)-1):INDEX(OFFSET(Pro_2,0,2),MATCH(2,1/(Pro_2=$D$3),1)),ROWS(AB$2:AB36)),"") ->  | AC37: =IFERROR(INDEX(INDEX(OFFSET(Pro_2,0,3),MATCH($D$3,Pro_2,0)-1):INDEX(OFFSET(Pro_2,0,3),MATCH(2,1/(Pro_2=$D$3),1)),ROWS(AC$2:AC36)),"") ->  | AI37: =IFERROR(INDEX(INDEX(Pro_3,MATCH($F$3,Pro_3,0)-1):INDEX(Pro_3,MATCH(2,1/(Pro_3=$F$3),1)),ROWS(AI$2:AI36)),"") ->  | AJ37: =IFERROR(INDEX(INDEX(OFFSET(Pro_3,0,1),MATCH($F$3,Pro_3,0)-1):INDEX(OFFSET(Pro_3,0,1),MATCH(2,1/(Pro_3=$F$3),1)),ROWS(AJ$2:AJ36)),"") ->  | AK37: =IFERROR(INDEX(INDEX(OFFSET(Pro_3,0,2),MATCH($F$3,Pro_3,0)-1):INDEX(OFFSET(Pro_3,0,2),MATCH(2,1/(Pro_3=$F$3),1)),ROWS(AK$2:AK36)),"") ->  | AL37: =IFERROR(INDEX(INDEX(OFFSET(Pro_3,0,3),MATCH($F$3,Pro_3,0)-1):INDEX(OFFSET(Pro_3,0,3),MATCH(2,1/(Pro_3=$F$3),1)),ROWS(AL$2:AL36)),"") -> 
A38: LLS2 | B38: =IF(OR(X_MILS_2=0,COUNT(OFFSET(Powr_LS_range_2,0,3))=1),"",X_MILS_2) -> 2416.497976 | C38: =IF(OR(B38="",MIN_LS_2=0),"",MIN_LS_2) -> 1300 | D38: =IF(AND(B38="",C38=""),"",A38&";"&ROUND(B38,0)&";"&ROUND(C38,0)) -> LLS2;2416;1300 | P38: =IFERROR(INDEX(INDEX(Pro_1,MATCH($B$3,Pro_1,0)-1):INDEX(Pro_1,MATCH(2,1/(Pro_1=$B$3),1)),ROWS(P$2:P37)),"") ->  | Q38: =IFERROR(INDEX(INDEX(OFFSET(Pro_1,0,1),MATCH($B$3,Pro_1,0)-1):INDEX(OFFSET(Pro_1,0,1),MATCH(2,1/(Pro_1=$B$3),1)),ROWS(Q$2:Q37)),"") ->  | R38: =IFERROR(INDEX(INDEX(OFFSET(Pro_1,0,2),MATCH($B$3,Pro_1,0)-1):INDEX(OFFSET(Pro_1,0,2),MATCH(2,1/(Pro_1=$B$3),1)),ROWS(R$2:R37)),"") ->  | S38: =IFERROR(INDEX(INDEX(OFFSET(Pro_1,0,3),MATCH($B$3,Pro_1,0)-1):INDEX(OFFSET(Pro_1,0,3),MATCH(2,1/(Pro_1=$B$3),1)),ROWS(S$2:S37)),"") ->  | Z38: =IFERROR(INDEX(INDEX(Pro_2,MATCH($D$3,Pro_2,0)-1):INDEX(Pro_2,MATCH(2,1/(Pro_2=$D$3),1)),ROWS(Z$2:Z37)),"") ->  | AA38: =IFERROR(INDEX(INDEX(OFFSET(Pro_2,0,1),MATCH($D$3,Pro_2,0)-1):INDEX(OFFSET(Pro_2,0,1),MATCH(2,1/(Pro_2=$D$3),1)),ROWS(AA$2:AA37)),"") ->  | AB38: =IFERROR(INDEX(INDEX(OFFSET(Pro_2,0,2),MATCH($D$3,Pro_2,0)-1):INDEX(OFFSET(Pro_2,0,2),MATCH(2,1/(Pro_2=$D$3),1)),ROWS(AB$2:AB37)),"") ->  | AC38: =IFERROR(INDEX(INDEX(OFFSET(Pro_2,0,3),MATCH($D$3,Pro_2,0)-1):INDEX(OFFSET(Pro_2,0,3),MATCH(2,1/(Pro_2=$D$3),1)),ROWS(AC$2:AC37)),"") ->  | AI38: =IFERROR(INDEX(INDEX(Pro_3,MATCH($F$3,Pro_3,0)-1):INDEX(Pro_3,MATCH(2,1/(Pro_3=$F$3),1)),ROWS(AI$2:AI37)),"") ->  | AJ38: =IFERROR(INDEX(INDEX(OFFSET(Pro_3,0,1),MATCH($F$3,Pro_3,0)-1):INDEX(OFFSET(Pro_3,0,1),MATCH(2,1/(Pro_3=$F$3),1)),ROWS(AJ$2:AJ37)),"") ->  | AK38: =IFERROR(INDEX(INDEX(OFFSET(Pro_3,0,2),MATCH($F$3,Pro_3,0)-1):INDEX(OFFSET(Pro_3,0,2),MATCH(2,1/(Pro_3=$F$3),1)),ROWS(AK$2:AK37)),"") ->  | AL38: =IFERROR(INDEX(INDEX(OFFSET(Pro_3,0,3),MATCH($F$3,Pro_3,0)-1):INDEX(OFFSET(Pro_3,0,3),MATCH(2,1/(Pro_3=$F$3),1)),ROWS(AL$2:AL37)),"") -> 
P39: =IFERROR(INDEX(INDEX(Pro_1,MATCH($B$3,Pro_1,0)-1):INDEX(Pro_1,MATCH(2,1/(Pro_1=$B$3),1)),ROWS(P$2:P38)),"") ->  | Q39: =IFERROR(INDEX(INDEX(OFFSET(Pro_1,0,1),MATCH($B$3,Pro_1,0)-1):INDEX(OFFSET(Pro_1,0,1),MATCH(2,1/(Pro_1=$B$3),1)),ROWS(Q$2:Q38)),"") ->  | R39: =IFERROR(INDEX(INDEX(OFFSET(Pro_1,0,2),MATCH($B$3,Pro_1,0)-1):INDEX(OFFSET(Pro_1,0,2),MATCH(2,1/(Pro_1=$B$3),1)),ROWS(R$2:R38)),"") ->  | S39: =IFERROR(INDEX(INDEX(OFFSET(Pro_1,0,3),MATCH($B$3,Pro_1,0)-1):INDEX(OFFSET(Pro_1,0,3),MATCH(2,1/(Pro_1=$B$3),1)),ROWS(S$2:S38)),"") ->  | Z39: =IFERROR(INDEX(INDEX(Pro_2,MATCH($D$3,Pro_2,0)-1):INDEX(Pro_2,MATCH(2,1/(Pro_2=$D$3),1)),ROWS(Z$2:Z38)),"") ->  | AA39: =IFERROR(INDEX(INDEX(OFFSET(Pro_2,0,1),MATCH($D$3,Pro_2,0)-1):INDEX(OFFSET(Pro_2,0,1),MATCH(2,1/(Pro_2=$D$3),1)),ROWS(AA$2:AA38)),"") ->  | AB39: =IFERROR(INDEX(INDEX(OFFSET(Pro_2,0,2),MATCH($D$3,Pro_2,0)-1):INDEX(OFFSET(Pro_2,0,2),MATCH(2,1/(Pro_2=$D$3),1)),ROWS(AB$2:AB38)),"") ->  | AC39: =IFERROR(INDEX(INDEX(OFFSET(Pro_2,0,3),MATCH($D$3,Pro_2,0)-1):INDEX(OFFSET(Pro_2,0,3),MATCH(2,1/(Pro_2=$D$3),1)),ROWS(AC$2:AC38)),"") ->  | AI39: =IFERROR(INDEX(INDEX(Pro_3,MATCH($F$3,Pro_3,0)-1):INDEX(Pro_3,MATCH(2,1/(Pro_3=$F$3),1)),ROWS(AI$2:AI38)),"") ->  | AJ39: =IFERROR(INDEX(INDEX(OFFSET(Pro_3,0,1),MATCH($F$3,Pro_3,0)-1):INDEX(OFFSET(Pro_3,0,1),MATCH(2,1/(Pro_3=$F$3),1)),ROWS(AJ$2:AJ38)),"") ->  | AK39: =IFERROR(INDEX(INDEX(OFFSET(Pro_3,0,2),MATCH($F$3,Pro_3,0)-1):INDEX(OFFSET(Pro_3,0,2),MATCH(2,1/(Pro_3=$F$3),1)),ROWS(AK$2:AK38)),"") ->  | AL39: =IFERROR(INDEX(INDEX(OFFSET(Pro_3,0,3),MATCH($F$3,Pro_3,0)-1):INDEX(OFFSET(Pro_3,0,3),MATCH(2,1/(Pro_3=$F$3),1)),ROWS(AL$2:AL38)),"") -> 
A40: DATALABLE | B40: X | C40: Y | D40: LABLE | P40: =IFERROR(INDEX(INDEX(Pro_1,MATCH($B$3,Pro_1,0)-1):INDEX(Pro_1,MATCH(2,1/(Pro_1=$B$3),1)),ROWS(P$2:P39)),"") ->  | Q40: =IFERROR(INDEX(INDEX(OFFSET(Pro_1,0,1),MATCH($B$3,Pro_1,0)-1):INDEX(OFFSET(Pro_1,0,1),MATCH(2,1/(Pro_1=$B$3),1)),ROWS(Q$2:Q39)),"") ->  | R40: =IFERROR(INDEX(INDEX(OFFSET(Pro_1,0,2),MATCH($B$3,Pro_1,0)-1):INDEX(OFFSET(Pro_1,0,2),MATCH(2,1/(Pro_1=$B$3),1)),ROWS(R$2:R39)),"") ->  | S40: =IFERROR(INDEX(INDEX(OFFSET(Pro_1,0,3),MATCH($B$3,Pro_1,0)-1):INDEX(OFFSET(Pro_1,0,3),MATCH(2,1/(Pro_1=$B$3),1)),ROWS(S$2:S39)),"") ->  | Z40: =IFERROR(INDEX(INDEX(Pro_2,MATCH($D$3,Pro_2,0)-1):INDEX(Pro_2,MATCH(2,1/(Pro_2=$D$3),1)),ROWS(Z$2:Z39)),"") ->  | AA40: =IFERROR(INDEX(INDEX(OFFSET(Pro_2,0,1),MATCH($D$3,Pro_2,0)-1):INDEX(OFFSET(Pro_2,0,1),MATCH(2,1/(Pro_2=$D$3),1)),ROWS(AA$2:AA39)),"") ->  | AB40: =IFERROR(INDEX(INDEX(OFFSET(Pro_2,0,2),MATCH($D$3,Pro_2,0)-1):INDEX(OFFSET(Pro_2,0,2),MATCH(2,1/(Pro_2=$D$3),1)),ROWS(AB$2:AB39)),"") ->  | AC40: =IFERROR(INDEX(INDEX(OFFSET(Pro_2,0,3),MATCH($D$3,Pro_2,0)-1):INDEX(OFFSET(Pro_2,0,3),MATCH(2,1/(Pro_2=$D$3),1)),ROWS(AC$2:AC39)),"") ->  | AI40: =IFERROR(INDEX(INDEX(Pro_3,MATCH($F$3,Pro_3,0)-1):INDEX(Pro_3,MATCH(2,1/(Pro_3=$F$3),1)),ROWS(AI$2:AI39)),"") ->  | AJ40: =IFERROR(INDEX(INDEX(OFFSET(Pro_3,0,1),MATCH($F$3,Pro_3,0)-1):INDEX(OFFSET(Pro_3,0,1),MATCH(2,1/(Pro_3=$F$3),1)),ROWS(AJ$2:AJ39)),"") ->  | AK40: =IFERROR(INDEX(INDEX(OFFSET(Pro_3,0,2),MATCH($F$3,Pro_3,0)-1):INDEX(OFFSET(Pro_3,0,2),MATCH(2,1/(Pro_3=$F$3),1)),ROWS(AK$2:AK39)),"") ->  | AL40: =IFERROR(INDEX(INDEX(OFFSET(Pro_3,0,3),MATCH($F$3,Pro_3,0)-1):INDEX(OFFSET(Pro_3,0,3),MATCH(2,1/(Pro_3=$F$3),1)),ROWS(AL$2:AL39)),"") -> 
A41: UHS3 | B41: =IF(X_MAHS_3=0,"",X_MAHS_3) ->  | C41: =IF(MAX_HS_3=0,"",MAX_HS_3) ->  | D41: =IF(AND(B41="",C41=""),"",A41&";"&ROUND(B41,0)&";"&ROUND(C41,0)) ->  | P41: =IFERROR(INDEX(INDEX(Pro_1,MATCH($B$3,Pro_1,0)-1):INDEX(Pro_1,MATCH(2,1/(Pro_1=$B$3),1)),ROWS(P$2:P40)),"") ->  | Q41: =IFERROR(INDEX(INDEX(OFFSET(Pro_1,0,1),MATCH($B$3,Pro_1,0)-1):INDEX(OFFSET(Pro_1,0,1),MATCH(2,1/(Pro_1=$B$3),1)),ROWS(Q$2:Q40)),"") ->  | R41: =IFERROR(INDEX(INDEX(OFFSET(Pro_1,0,2),MATCH($B$3,Pro_1,0)-1):INDEX(OFFSET(Pro_1,0,2),MATCH(2,1/(Pro_1=$B$3),1)),ROWS(R$2:R40)),"") ->  | S41: =IFERROR(INDEX(INDEX(OFFSET(Pro_1,0,3),MATCH($B$3,Pro_1,0)-1):INDEX(OFFSET(Pro_1,0,3),MATCH(2,1/(Pro_1=$B$3),1)),ROWS(S$2:S40)),"") ->  | Z41: =IFERROR(INDEX(INDEX(Pro_2,MATCH($D$3,Pro_2,0)-1):INDEX(Pro_2,MATCH(2,1/(Pro_2=$D$3),1)),ROWS(Z$2:Z40)),"") ->  | AA41: =IFERROR(INDEX(INDEX(OFFSET(Pro_2,0,1),MATCH($D$3,Pro_2,0)-1):INDEX(OFFSET(Pro_2,0,1),MATCH(2,1/(Pro_2=$D$3),1)),ROWS(AA$2:AA40)),"") ->  | AB41: =IFERROR(INDEX(INDEX(OFFSET(Pro_2,0,2),MATCH($D$3,Pro_2,0)-1):INDEX(OFFSET(Pro_2,0,2),MATCH(2,1/(Pro_2=$D$3),1)),ROWS(AB$2:AB40)),"") ->  | AC41: =IFERROR(INDEX(INDEX(OFFSET(Pro_2,0,3),MATCH($D$3,Pro_2,0)-1):INDEX(OFFSET(Pro_2,0,3),MATCH(2,1/(Pro_2=$D$3),1)),ROWS(AC$2:AC40)),"") ->  | AI41: =IFERROR(INDEX(INDEX(Pro_3,MATCH($F$3,Pro_3,0)-1):INDEX(Pro_3,MATCH(2,1/(Pro_3=$F$3),1)),ROWS(AI$2:AI40)),"") ->  | AJ41: =IFERROR(INDEX(INDEX(OFFSET(Pro_3,0,1),MATCH($F$3,Pro_3,0)-1):INDEX(OFFSET(Pro_3,0,1),MATCH(2,1/(Pro_3=$F$3),1)),ROWS(AJ$2:AJ40)),"") ->  | AK41: =IFERROR(INDEX(INDEX(OFFSET(Pro_3,0,2),MATCH($F$3,Pro_3,0)-1):INDEX(OFFSET(Pro_3,0,2),MATCH(2,1/(Pro_3=$F$3),1)),ROWS(AK$2:AK40)),"") ->  | AL41: =IFERROR(INDEX(INDEX(OFFSET(Pro_3,0,3),MATCH($F$3,Pro_3,0)-1):INDEX(OFFSET(Pro_3,0,3),MATCH(2,1/(Pro_3=$F$3),1)),ROWS(AL$2:AL40)),"") -> 
A42: LHS3 | B42: =IF(X_MIHS_3=0,"",X_MIHS_3) ->  | C42: =IF(MIN_HS_3=0,"",MIN_HS_3) ->  | D42: =IF(AND(B42="",C42=""),"",A42&";"&ROUND(B42,0)&";"&ROUND(C42,0)) ->  | P42: =IFERROR(INDEX(INDEX(Pro_1,MATCH($B$3,Pro_1,0)-1):INDEX(Pro_1,MATCH(2,1/(Pro_1=$B$3),1)),ROWS(P$2:P41)),"") ->  | Q42: =IFERROR(INDEX(INDEX(OFFSET(Pro_1,0,1),MATCH($B$3,Pro_1,0)-1):INDEX(OFFSET(Pro_1,0,1),MATCH(2,1/(Pro_1=$B$3),1)),ROWS(Q$2:Q41)),"") ->  | R42: =IFERROR(INDEX(INDEX(OFFSET(Pro_1,0,2),MATCH($B$3,Pro_1,0)-1):INDEX(OFFSET(Pro_1,0,2),MATCH(2,1/(Pro_1=$B$3),1)),ROWS(R$2:R41)),"") ->  | S42: =IFERROR(INDEX(INDEX(OFFSET(Pro_1,0,3),MATCH($B$3,Pro_1,0)-1):INDEX(OFFSET(Pro_1,0,3),MATCH(2,1/(Pro_1=$B$3),1)),ROWS(S$2:S41)),"") ->  | Z42: =IFERROR(INDEX(INDEX(Pro_2,MATCH($D$3,Pro_2,0)-1):INDEX(Pro_2,MATCH(2,1/(Pro_2=$D$3),1)),ROWS(Z$2:Z41)),"") ->  | AA42: =IFERROR(INDEX(INDEX(OFFSET(Pro_2,0,1),MATCH($D$3,Pro_2,0)-1):INDEX(OFFSET(Pro_2,0,1),MATCH(2,1/(Pro_2=$D$3),1)),ROWS(AA$2:AA41)),"") ->  | AB42: =IFERROR(INDEX(INDEX(OFFSET(Pro_2,0,2),MATCH($D$3,Pro_2,0)-1):INDEX(OFFSET(Pro_2,0,2),MATCH(2,1/(Pro_2=$D$3),1)),ROWS(AB$2:AB41)),"") ->  | AC42: =IFERROR(INDEX(INDEX(OFFSET(Pro_2,0,3),MATCH($D$3,Pro_2,0)-1):INDEX(OFFSET(Pro_2,0,3),MATCH(2,1/(Pro_2=$D$3),1)),ROWS(AC$2:AC41)),"") ->  | AI42: =IFERROR(INDEX(INDEX(Pro_3,MATCH($F$3,Pro_3,0)-1):INDEX(Pro_3,MATCH(2,1/(Pro_3=$F$3),1)),ROWS(AI$2:AI41)),"") ->  | AJ42: =IFERROR(INDEX(INDEX(OFFSET(Pro_3,0,1),MATCH($F$3,Pro_3,0)-1):INDEX(OFFSET(Pro_3,0,1),MATCH(2,1/(Pro_3=$F$3),1)),ROWS(AJ$2:AJ41)),"") ->  | AK42: =IFERROR(INDEX(INDEX(OFFSET(Pro_3,0,2),MATCH($F$3,Pro_3,0)-1):INDEX(OFFSET(Pro_3,0,2),MATCH(2,1/(Pro_3=$F$3),1)),ROWS(AK$2:AK41)),"") ->  | AL42: =IFERROR(INDEX(INDEX(OFFSET(Pro_3,0,3),MATCH($F$3,Pro_3,0)-1):INDEX(OFFSET(Pro_3,0,3),MATCH(2,1/(Pro_3=$F$3),1)),ROWS(AL$2:AL41)),"") -> 
A43: ULS3 | B43: =IF(OR(X_MALS_3=0,COUNT(OFFSET(Powr_LS_range_3,0,3))=1),"",X_MALS_3) -> 996.8859649 | C43: =IF(OR(Max_LS_3=0,B43=""),"",Max_LS_3) -> 1900 | D43: =IF(AND(B43="",C43=""),"",A43&";"&ROUND(B43,0)&";"&ROUND(C43,0)) -> ULS3;997;1900 | P43: =IFERROR(INDEX(INDEX(Pro_1,MATCH($B$3,Pro_1,0)-1):INDEX(Pro_1,MATCH(2,1/(Pro_1=$B$3),1)),ROWS(P$2:P42)),"") ->  | Q43: =IFERROR(INDEX(INDEX(OFFSET(Pro_1,0,1),MATCH($B$3,Pro_1,0)-1):INDEX(OFFSET(Pro_1,0,1),MATCH(2,1/(Pro_1=$B$3),1)),ROWS(Q$2:Q42)),"") ->  | R43: =IFERROR(INDEX(INDEX(OFFSET(Pro_1,0,2),MATCH($B$3,Pro_1,0)-1):INDEX(OFFSET(Pro_1,0,2),MATCH(2,1/(Pro_1=$B$3),1)),ROWS(R$2:R42)),"") ->  | S43: =IFERROR(INDEX(INDEX(OFFSET(Pro_1,0,3),MATCH($B$3,Pro_1,0)-1):INDEX(OFFSET(Pro_1,0,3),MATCH(2,1/(Pro_1=$B$3),1)),ROWS(S$2:S42)),"") ->  | Z43: =IFERROR(INDEX(INDEX(Pro_2,MATCH($D$3,Pro_2,0)-1):INDEX(Pro_2,MATCH(2,1/(Pro_2=$D$3),1)),ROWS(Z$2:Z42)),"") ->  | AA43: =IFERROR(INDEX(INDEX(OFFSET(Pro_2,0,1),MATCH($D$3,Pro_2,0)-1):INDEX(OFFSET(Pro_2,0,1),MATCH(2,1/(Pro_2=$D$3),1)),ROWS(AA$2:AA42)),"") ->  | AB43: =IFERROR(INDEX(INDEX(OFFSET(Pro_2,0,2),MATCH($D$3,Pro_2,0)-1):INDEX(OFFSET(Pro_2,0,2),MATCH(2,1/(Pro_2=$D$3),1)),ROWS(AB$2:AB42)),"") ->  | AC43: =IFERROR(INDEX(INDEX(OFFSET(Pro_2,0,3),MATCH($D$3,Pro_2,0)-1):INDEX(OFFSET(Pro_2,0,3),MATCH(2,1/(Pro_2=$D$3),1)),ROWS(AC$2:AC42)),"") ->  | AI43: =IFERROR(INDEX(INDEX(Pro_3,MATCH($F$3,Pro_3,0)-1):INDEX(Pro_3,MATCH(2,1/(Pro_3=$F$3),1)),ROWS(AI$2:AI42)),"") ->  | AJ43: =IFERROR(INDEX(INDEX(OFFSET(Pro_3,0,1),MATCH($F$3,Pro_3,0)-1):INDEX(OFFSET(Pro_3,0,1),MATCH(2,1/(Pro_3=$F$3),1)),ROWS(AJ$2:AJ42)),"") ->  | AK43: =IFERROR(INDEX(INDEX(OFFSET(Pro_3,0,2),MATCH($F$3,Pro_3,0)-1):INDEX(OFFSET(Pro_3,0,2),MATCH(2,1/(Pro_3=$F$3),1)),ROWS(AK$2:AK42)),"") ->  | AL43: =IFERROR(INDEX(INDEX(OFFSET(Pro_3,0,3),MATCH($F$3,Pro_3,0)-1):INDEX(OFFSET(Pro_3,0,3),MATCH(2,1/(Pro_3=$F$3),1)),ROWS(AL$2:AL42)),"") -> 
A44: LLS3 | B44: =IF(OR(X_MILS_3=0,COUNT(OFFSET(Powr_LS_range_3,0,3))=1),"",X_MILS_3) -> 1052.268519 | C44: =IF(OR(B44="",MIN_LS_3=0),"",MIN_LS_3) -> 1800 | D44: =IF(AND(B44="",C44=""),"",A44&";"&ROUND(B44,0)&";"&ROUND(C44,0)) -> LLS3;1052;1800 | P44: =IFERROR(INDEX(INDEX(Pro_1,MATCH($B$3,Pro_1,0)-1):INDEX(Pro_1,MATCH(2,1/(Pro_1=$B$3),1)),ROWS(P$2:P43)),"") ->  | Q44: =IFERROR(INDEX(INDEX(OFFSET(Pro_1,0,1),MATCH($B$3,Pro_1,0)-1):INDEX(OFFSET(Pro_1,0,1),MATCH(2,1/(Pro_1=$B$3),1)),ROWS(Q$2:Q43)),"") ->  | R44: =IFERROR(INDEX(INDEX(OFFSET(Pro_1,0,2),MATCH($B$3,Pro_1,0)-1):INDEX(OFFSET(Pro_1,0,2),MATCH(2,1/(Pro_1=$B$3),1)),ROWS(R$2:R43)),"") ->  | S44: =IFERROR(INDEX(INDEX(OFFSET(Pro_1,0,3),MATCH($B$3,Pro_1,0)-1):INDEX(OFFSET(Pro_1,0,3),MATCH(2,1/(Pro_1=$B$3),1)),ROWS(S$2:S43)),"") ->  | Z44: =IFERROR(INDEX(INDEX(Pro_2,MATCH($D$3,Pro_2,0)-1):INDEX(Pro_2,MATCH(2,1/(Pro_2=$D$3),1)),ROWS(Z$2:Z43)),"") ->  | AA44: =IFERROR(INDEX(INDEX(OFFSET(Pro_2,0,1),MATCH($D$3,Pro_2,0)-1):INDEX(OFFSET(Pro_2,0,1),MATCH(2,1/(Pro_2=$D$3),1)),ROWS(AA$2:AA43)),"") ->  | AB44: =IFERROR(INDEX(INDEX(OFFSET(Pro_2,0,2),MATCH($D$3,Pro_2,0)-1):INDEX(OFFSET(Pro_2,0,2),MATCH(2,1/(Pro_2=$D$3),1)),ROWS(AB$2:AB43)),"") ->  | AC44: =IFERROR(INDEX(INDEX(OFFSET(Pro_2,0,3),MATCH($D$3,Pro_2,0)-1):INDEX(OFFSET(Pro_2,0,3),MATCH(2,1/(Pro_2=$D$3),1)),ROWS(AC$2:AC43)),"") ->  | AI44: =IFERROR(INDEX(INDEX(Pro_3,MATCH($F$3,Pro_3,0)-1):INDEX(Pro_3,MATCH(2,1/(Pro_3=$F$3),1)),ROWS(AI$2:AI43)),"") ->  | AJ44: =IFERROR(INDEX(INDEX(OFFSET(Pro_3,0,1),MATCH($F$3,Pro_3,0)-1):INDEX(OFFSET(Pro_3,0,1),MATCH(2,1/(Pro_3=$F$3),1)),ROWS(AJ$2:AJ43)),"") ->  | AK44: =IFERROR(INDEX(INDEX(OFFSET(Pro_3,0,2),MATCH($F$3,Pro_3,0)-1):INDEX(OFFSET(Pro_3,0,2),MATCH(2,1/(Pro_3=$F$3),1)),ROWS(AK$2:AK43)),"") ->  | AL44: =IFERROR(INDEX(INDEX(OFFSET(Pro_3,0,3),MATCH($F$3,Pro_3,0)-1):INDEX(OFFSET(Pro_3,0,3),MATCH(2,1/(Pro_3=$F$3),1)),ROWS(AL$2:AL43)),"") -> 
P45: =IFERROR(INDEX(INDEX(Pro_1,MATCH($B$3,Pro_1,0)-1):INDEX(Pro_1,MATCH(2,1/(Pro_1=$B$3),1)),ROWS(P$2:P44)),"") ->  | Q45: =IFERROR(INDEX(INDEX(OFFSET(Pro_1,0,1),MATCH($B$3,Pro_1,0)-1):INDEX(OFFSET(Pro_1,0,1),MATCH(2,1/(Pro_1=$B$3),1)),ROWS(Q$2:Q44)),"") ->  | R45: =IFERROR(INDEX(INDEX(OFFSET(Pro_1,0,2),MATCH($B$3,Pro_1,0)-1):INDEX(OFFSET(Pro_1,0,2),MATCH(2,1/(Pro_1=$B$3),1)),ROWS(R$2:R44)),"") ->  | S45: =IFERROR(INDEX(INDEX(OFFSET(Pro_1,0,3),MATCH($B$3,Pro_1,0)-1):INDEX(OFFSET(Pro_1,0,3),MATCH(2,1/(Pro_1=$B$3),1)),ROWS(S$2:S44)),"") ->  | Z45: =IFERROR(INDEX(INDEX(Pro_2,MATCH($D$3,Pro_2,0)-1):INDEX(Pro_2,MATCH(2,1/(Pro_2=$D$3),1)),ROWS(Z$2:Z44)),"") ->  | AA45: =IFERROR(INDEX(INDEX(OFFSET(Pro_2,0,1),MATCH($D$3,Pro_2,0)-1):INDEX(OFFSET(Pro_2,0,1),MATCH(2,1/(Pro_2=$D$3),1)),ROWS(AA$2:AA44)),"") ->  | AB45: =IFERROR(INDEX(INDEX(OFFSET(Pro_2,0,2),MATCH($D$3,Pro_2,0)-1):INDEX(OFFSET(Pro_2,0,2),MATCH(2,1/(Pro_2=$D$3),1)),ROWS(AB$2:AB44)),"") ->  | AC45: =IFERROR(INDEX(INDEX(OFFSET(Pro_2,0,3),MATCH($D$3,Pro_2,0)-1):INDEX(OFFSET(Pro_2,0,3),MATCH(2,1/(Pro_2=$D$3),1)),ROWS(AC$2:AC44)),"") ->  | AI45: =IFERROR(INDEX(INDEX(Pro_3,MATCH($F$3,Pro_3,0)-1):INDEX(Pro_3,MATCH(2,1/(Pro_3=$F$3),1)),ROWS(AI$2:AI44)),"") ->  | AJ45: =IFERROR(INDEX(INDEX(OFFSET(Pro_3,0,1),MATCH($F$3,Pro_3,0)-1):INDEX(OFFSET(Pro_3,0,1),MATCH(2,1/(Pro_3=$F$3),1)),ROWS(AJ$2:AJ44)),"") ->  | AK45: =IFERROR(INDEX(INDEX(OFFSET(Pro_3,0,2),MATCH($F$3,Pro_3,0)-1):INDEX(OFFSET(Pro_3,0,2),MATCH(2,1/(Pro_3=$F$3),1)),ROWS(AK$2:AK44)),"") ->  | AL45: =IFERROR(INDEX(INDEX(OFFSET(Pro_3,0,3),MATCH($F$3,Pro_3,0)-1):INDEX(OFFSET(Pro_3,0,3),MATCH(2,1/(Pro_3=$F$3),1)),ROWS(AL$2:AL44)),"") -> 
P46: =IFERROR(INDEX(INDEX(Pro_1,MATCH($B$3,Pro_1,0)-1):INDEX(Pro_1,MATCH(2,1/(Pro_1=$B$3),1)),ROWS(P$2:P45)),"") ->  | Q46: =IFERROR(INDEX(INDEX(OFFSET(Pro_1,0,1),MATCH($B$3,Pro_1,0)-1):INDEX(OFFSET(Pro_1,0,1),MATCH(2,1/(Pro_1=$B$3),1)),ROWS(Q$2:Q45)),"") ->  | R46: =IFERROR(INDEX(INDEX(OFFSET(Pro_1,0,2),MATCH($B$3,Pro_1,0)-1):INDEX(OFFSET(Pro_1,0,2),MATCH(2,1/(Pro_1=$B$3),1)),ROWS(R$2:R45)),"") ->  | S46: =IFERROR(INDEX(INDEX(OFFSET(Pro_1,0,3),MATCH($B$3,Pro_1,0)-1):INDEX(OFFSET(Pro_1,0,3),MATCH(2,1/(Pro_1=$B$3),1)),ROWS(S$2:S45)),"") ->  | Z46: =IFERROR(INDEX(INDEX(Pro_2,MATCH($D$3,Pro_2,0)-1):INDEX(Pro_2,MATCH(2,1/(Pro_2=$D$3),1)),ROWS(Z$2:Z45)),"") ->  | AA46: =IFERROR(INDEX(INDEX(OFFSET(Pro_2,0,1),MATCH($D$3,Pro_2,0)-1):INDEX(OFFSET(Pro_2,0,1),MATCH(2,1/(Pro_2=$D$3),1)),ROWS(AA$2:AA45)),"") ->  | AB46: =IFERROR(INDEX(INDEX(OFFSET(Pro_2,0,2),MATCH($D$3,Pro_2,0)-1):INDEX(OFFSET(Pro_2,0,2),MATCH(2,1/(Pro_2=$D$3),1)),ROWS(AB$2:AB45)),"") ->  | AC46: =IFERROR(INDEX(INDEX(OFFSET(Pro_2,0,3),MATCH($D$3,Pro_2,0)-1):INDEX(OFFSET(Pro_2,0,3),MATCH(2,1/(Pro_2=$D$3),1)),ROWS(AC$2:AC45)),"") ->  | AI46: =IFERROR(INDEX(INDEX(Pro_3,MATCH($F$3,Pro_3,0)-1):INDEX(Pro_3,MATCH(2,1/(Pro_3=$F$3),1)),ROWS(AI$2:AI45)),"") ->  | AJ46: =IFERROR(INDEX(INDEX(OFFSET(Pro_3,0,1),MATCH($F$3,Pro_3,0)-1):INDEX(OFFSET(Pro_3,0,1),MATCH(2,1/(Pro_3=$F$3),1)),ROWS(AJ$2:AJ45)),"") ->  | AK46: =IFERROR(INDEX(INDEX(OFFSET(Pro_3,0,2),MATCH($F$3,Pro_3,0)-1):INDEX(OFFSET(Pro_3,0,2),MATCH(2,1/(Pro_3=$F$3),1)),ROWS(AK$2:AK45)),"") ->  | AL46: =IFERROR(INDEX(INDEX(OFFSET(Pro_3,0,3),MATCH($F$3,Pro_3,0)-1):INDEX(OFFSET(Pro_3,0,3),MATCH(2,1/(Pro_3=$F$3),1)),ROWS(AL$2:AL45)),"") -> 
P47: =IFERROR(INDEX(INDEX(Pro_1,MATCH($B$3,Pro_1,0)-1):INDEX(Pro_1,MATCH(2,1/(Pro_1=$B$3),1)),ROWS(P$2:P46)),"") ->  | Q47: =IFERROR(INDEX(INDEX(OFFSET(Pro_1,0,1),MATCH($B$3,Pro_1,0)-1):INDEX(OFFSET(Pro_1,0,1),MATCH(2,1/(Pro_1=$B$3),1)),ROWS(Q$2:Q46)),"") ->  | R47: =IFERROR(INDEX(INDEX(OFFSET(Pro_1,0,2),MATCH($B$3,Pro_1,0)-1):INDEX(OFFSET(Pro_1,0,2),MATCH(2,1/(Pro_1=$B$3),1)),ROWS(R$2:R46)),"") ->  | S47: =IFERROR(INDEX(INDEX(OFFSET(Pro_1,0,3),MATCH($B$3,Pro_1,0)-1):INDEX(OFFSET(Pro_1,0,3),MATCH(2,1/(Pro_1=$B$3),1)),ROWS(S$2:S46)),"") ->  | Z47: =IFERROR(INDEX(INDEX(Pro_2,MATCH($D$3,Pro_2,0)-1):INDEX(Pro_2,MATCH(2,1/(Pro_2=$D$3),1)),ROWS(Z$2:Z46)),"") ->  | AA47: =IFERROR(INDEX(INDEX(OFFSET(Pro_2,0,1),MATCH($D$3,Pro_2,0)-1):INDEX(OFFSET(Pro_2,0,1),MATCH(2,1/(Pro_2=$D$3),1)),ROWS(AA$2:AA46)),"") ->  | AB47: =IFERROR(INDEX(INDEX(OFFSET(Pro_2,0,2),MATCH($D$3,Pro_2,0)-1):INDEX(OFFSET(Pro_2,0,2),MATCH(2,1/(Pro_2=$D$3),1)),ROWS(AB$2:AB46)),"") ->  | AC47: =IFERROR(INDEX(INDEX(OFFSET(Pro_2,0,3),MATCH($D$3,Pro_2,0)-1):INDEX(OFFSET(Pro_2,0,3),MATCH(2,1/(Pro_2=$D$3),1)),ROWS(AC$2:AC46)),"") ->  | AI47: =IFERROR(INDEX(INDEX(Pro_3,MATCH($F$3,Pro_3,0)-1):INDEX(Pro_3,MATCH(2,1/(Pro_3=$F$3),1)),ROWS(AI$2:AI46)),"") ->  | AJ47: =IFERROR(INDEX(INDEX(OFFSET(Pro_3,0,1),MATCH($F$3,Pro_3,0)-1):INDEX(OFFSET(Pro_3,0,1),MATCH(2,1/(Pro_3=$F$3),1)),ROWS(AJ$2:AJ46)),"") ->  | AK47: =IFERROR(INDEX(INDEX(OFFSET(Pro_3,0,2),MATCH($F$3,Pro_3,0)-1):INDEX(OFFSET(Pro_3,0,2),MATCH(2,1/(Pro_3=$F$3),1)),ROWS(AK$2:AK46)),"") ->  | AL47: =IFERROR(INDEX(INDEX(OFFSET(Pro_3,0,3),MATCH($F$3,Pro_3,0)-1):INDEX(OFFSET(Pro_3,0,3),MATCH(2,1/(Pro_3=$F$3),1)),ROWS(AL$2:AL46)),"") -> 
P48: =IFERROR(INDEX(INDEX(Pro_1,MATCH($B$3,Pro_1,0)-1):INDEX(Pro_1,MATCH(2,1/(Pro_1=$B$3),1)),ROWS(P$2:P47)),"") ->  | Q48: =IFERROR(INDEX(INDEX(OFFSET(Pro_1,0,1),MATCH($B$3,Pro_1,0)-1):INDEX(OFFSET(Pro_1,0,1),MATCH(2,1/(Pro_1=$B$3),1)),ROWS(Q$2:Q47)),"") ->  | R48: =IFERROR(INDEX(INDEX(OFFSET(Pro_1,0,2),MATCH($B$3,Pro_1,0)-1):INDEX(OFFSET(Pro_1,0,2),MATCH(2,1/(Pro_1=$B$3),1)),ROWS(R$2:R47)),"") ->  | S48: =IFERROR(INDEX(INDEX(OFFSET(Pro_1,0,3),MATCH($B$3,Pro_1,0)-1):INDEX(OFFSET(Pro_1,0,3),MATCH(2,1/(Pro_1=$B$3),1)),ROWS(S$2:S47)),"") ->  | Z48: =IFERROR(INDEX(INDEX(Pro_2,MATCH($D$3,Pro_2,0)-1):INDEX(Pro_2,MATCH(2,1/(Pro_2=$D$3),1)),ROWS(Z$2:Z47)),"") ->  | AA48: =IFERROR(INDEX(INDEX(OFFSET(Pro_2,0,1),MATCH($D$3,Pro_2,0)-1):INDEX(OFFSET(Pro_2,0,1),MATCH(2,1/(Pro_2=$D$3),1)),ROWS(AA$2:AA47)),"") ->  | AB48: =IFERROR(INDEX(INDEX(OFFSET(Pro_2,0,2),MATCH($D$3,Pro_2,0)-1):INDEX(OFFSET(Pro_2,0,2),MATCH(2,1/(Pro_2=$D$3),1)),ROWS(AB$2:AB47)),"") ->  | AC48: =IFERROR(INDEX(INDEX(OFFSET(Pro_2,0,3),MATCH($D$3,Pro_2,0)-1):INDEX(OFFSET(Pro_2,0,3),MATCH(2,1/(Pro_2=$D$3),1)),ROWS(AC$2:AC47)),"") ->  | AI48: =IFERROR(INDEX(INDEX(Pro_3,MATCH($F$3,Pro_3,0)-1):INDEX(Pro_3,MATCH(2,1/(Pro_3=$F$3),1)),ROWS(AI$2:AI47)),"") ->  | AJ48: =IFERROR(INDEX(INDEX(OFFSET(Pro_3,0,1),MATCH($F$3,Pro_3,0)-1):INDEX(OFFSET(Pro_3,0,1),MATCH(2,1/(Pro_3=$F$3),1)),ROWS(AJ$2:AJ47)),"") ->  | AK48: =IFERROR(INDEX(INDEX(OFFSET(Pro_3,0,2),MATCH($F$3,Pro_3,0)-1):INDEX(OFFSET(Pro_3,0,2),MATCH(2,1/(Pro_3=$F$3),1)),ROWS(AK$2:AK47)),"") ->  | AL48: =IFERROR(INDEX(INDEX(OFFSET(Pro_3,0,3),MATCH($F$3,Pro_3,0)-1):INDEX(OFFSET(Pro_3,0,3),MATCH(2,1/(Pro_3=$F$3),1)),ROWS(AL$2:AL47)),"") -> 
P49: =IFERROR(INDEX(INDEX(Pro_1,MATCH($B$3,Pro_1,0)-1):INDEX(Pro_1,MATCH(2,1/(Pro_1=$B$3),1)),ROWS(P$2:P48)),"") ->  | Q49: =IFERROR(INDEX(INDEX(OFFSET(Pro_1,0,1),MATCH($B$3,Pro_1,0)-1):INDEX(OFFSET(Pro_1,0,1),MATCH(2,1/(Pro_1=$B$3),1)),ROWS(Q$2:Q48)),"") ->  | R49: =IFERROR(INDEX(INDEX(OFFSET(Pro_1,0,2),MATCH($B$3,Pro_1,0)-1):INDEX(OFFSET(Pro_1,0,2),MATCH(2,1/(Pro_1=$B$3),1)),ROWS(R$2:R48)),"") ->  | S49: =IFERROR(INDEX(INDEX(OFFSET(Pro_1,0,3),MATCH($B$3,Pro_1,0)-1):INDEX(OFFSET(Pro_1,0,3),MATCH(2,1/(Pro_1=$B$3),1)),ROWS(S$2:S48)),"") ->  | Z49: =IFERROR(INDEX(INDEX(Pro_2,MATCH($D$3,Pro_2,0)-1):INDEX(Pro_2,MATCH(2,1/(Pro_2=$D$3),1)),ROWS(Z$2:Z48)),"") ->  | AA49: =IFERROR(INDEX(INDEX(OFFSET(Pro_2,0,1),MATCH($D$3,Pro_2,0)-1):INDEX(OFFSET(Pro_2,0,1),MATCH(2,1/(Pro_2=$D$3),1)),ROWS(AA$2:AA48)),"") ->  | AB49: =IFERROR(INDEX(INDEX(OFFSET(Pro_2,0,2),MATCH($D$3,Pro_2,0)-1):INDEX(OFFSET(Pro_2,0,2),MATCH(2,1/(Pro_2=$D$3),1)),ROWS(AB$2:AB48)),"") ->  | AC49: =IFERROR(INDEX(INDEX(OFFSET(Pro_2,0,3),MATCH($D$3,Pro_2,0)-1):INDEX(OFFSET(Pro_2,0,3),MATCH(2,1/(Pro_2=$D$3),1)),ROWS(AC$2:AC48)),"") ->  | AI49: =IFERROR(INDEX(INDEX(Pro_3,MATCH($F$3,Pro_3,0)-1):INDEX(Pro_3,MATCH(2,1/(Pro_3=$F$3),1)),ROWS(AI$2:AI48)),"") ->  | AJ49: =IFERROR(INDEX(INDEX(OFFSET(Pro_3,0,1),MATCH($F$3,Pro_3,0)-1):INDEX(OFFSET(Pro_3,0,1),MATCH(2,1/(Pro_3=$F$3),1)),ROWS(AJ$2:AJ48)),"") ->  | AK49: =IFERROR(INDEX(INDEX(OFFSET(Pro_3,0,2),MATCH($F$3,Pro_3,0)-1):INDEX(OFFSET(Pro_3,0,2),MATCH(2,1/(Pro_3=$F$3),1)),ROWS(AK$2:AK48)),"") ->  | AL49: =IFERROR(INDEX(INDEX(OFFSET(Pro_3,0,3),MATCH($F$3,Pro_3,0)-1):INDEX(OFFSET(Pro_3,0,3),MATCH(2,1/(Pro_3=$F$3),1)),ROWS(AL$2:AL48)),"") -> 
P50: =IFERROR(INDEX(INDEX(Pro_1,MATCH($B$3,Pro_1,0)-1):INDEX(Pro_1,MATCH(2,1/(Pro_1=$B$3),1)),ROWS(P$2:P49)),"") ->  | Q50: =IFERROR(INDEX(INDEX(OFFSET(Pro_1,0,1),MATCH($B$3,Pro_1,0)-1):INDEX(OFFSET(Pro_1,0,1),MATCH(2,1/(Pro_1=$B$3),1)),ROWS(Q$2:Q49)),"") ->  | R50: =IFERROR(INDEX(INDEX(OFFSET(Pro_1,0,2),MATCH($B$3,Pro_1,0)-1):INDEX(OFFSET(Pro_1,0,2),MATCH(2,1/(Pro_1=$B$3),1)),ROWS(R$2:R49)),"") ->  | S50: =IFERROR(INDEX(INDEX(OFFSET(Pro_1,0,3),MATCH($B$3,Pro_1,0)-1):INDEX(OFFSET(Pro_1,0,3),MATCH(2,1/(Pro_1=$B$3),1)),ROWS(S$2:S49)),"") ->  | Z50: =IFERROR(INDEX(INDEX(Pro_2,MATCH($D$3,Pro_2,0)-1):INDEX(Pro_2,MATCH(2,1/(Pro_2=$D$3),1)),ROWS(Z$2:Z49)),"") ->  | AA50: =IFERROR(INDEX(INDEX(OFFSET(Pro_2,0,1),MATCH($D$3,Pro_2,0)-1):INDEX(OFFSET(Pro_2,0,1),MATCH(2,1/(Pro_2=$D$3),1)),ROWS(AA$2:AA49)),"") ->  | AB50: =IFERROR(INDEX(INDEX(OFFSET(Pro_2,0,2),MATCH($D$3,Pro_2,0)-1):INDEX(OFFSET(Pro_2,0,2),MATCH(2,1/(Pro_2=$D$3),1)),ROWS(AB$2:AB49)),"") ->  | AC50: =IFERROR(INDEX(INDEX(OFFSET(Pro_2,0,3),MATCH($D$3,Pro_2,0)-1):INDEX(OFFSET(Pro_2,0,3),MATCH(2,1/(Pro_2=$D$3),1)),ROWS(AC$2:AC49)),"") ->  | AI50: =IFERROR(INDEX(INDEX(Pro_3,MATCH($F$3,Pro_3,0)-1):INDEX(Pro_3,MATCH(2,1/(Pro_3=$F$3),1)),ROWS(AI$2:AI49)),"") ->  | AJ50: =IFERROR(INDEX(INDEX(OFFSET(Pro_3,0,1),MATCH($F$3,Pro_3,0)-1):INDEX(OFFSET(Pro_3,0,1),MATCH(2,1/(Pro_3=$F$3),1)),ROWS(AJ$2:AJ49)),"") ->  | AK50: =IFERROR(INDEX(INDEX(OFFSET(Pro_3,0,2),MATCH($F$3,Pro_3,0)-1):INDEX(OFFSET(Pro_3,0,2),MATCH(2,1/(Pro_3=$F$3),1)),ROWS(AK$2:AK49)),"") ->  | AL50: =IFERROR(INDEX(INDEX(OFFSET(Pro_3,0,3),MATCH($F$3,Pro_3,0)-1):INDEX(OFFSET(Pro_3,0,3),MATCH(2,1/(Pro_3=$F$3),1)),ROWS(AL$2:AL49)),"") -> 
P51: =IFERROR(INDEX(INDEX(Pro_1,MATCH($B$3,Pro_1,0)-1):INDEX(Pro_1,MATCH(2,1/(Pro_1=$B$3),1)),ROWS(P$2:P50)),"") ->  | Q51: =IFERROR(INDEX(INDEX(OFFSET(Pro_1,0,1),MATCH($B$3,Pro_1,0)-1):INDEX(OFFSET(Pro_1,0,1),MATCH(2,1/(Pro_1=$B$3),1)),ROWS(Q$2:Q50)),"") ->  | R51: =IFERROR(INDEX(INDEX(OFFSET(Pro_1,0,2),MATCH($B$3,Pro_1,0)-1):INDEX(OFFSET(Pro_1,0,2),MATCH(2,1/(Pro_1=$B$3),1)),ROWS(R$2:R50)),"") ->  | S51: =IFERROR(INDEX(INDEX(OFFSET(Pro_1,0,3),MATCH($B$3,Pro_1,0)-1):INDEX(OFFSET(Pro_1,0,3),MATCH(2,1/(Pro_1=$B$3),1)),ROWS(S$2:S50)),"") ->  | Z51: =IFERROR(INDEX(INDEX(Pro_2,MATCH($D$3,Pro_2,0)-1):INDEX(Pro_2,MATCH(2,1/(Pro_2=$D$3),1)),ROWS(Z$2:Z50)),"") ->  | AA51: =IFERROR(INDEX(INDEX(OFFSET(Pro_2,0,1),MATCH($D$3,Pro_2,0)-1):INDEX(OFFSET(Pro_2,0,1),MATCH(2,1/(Pro_2=$D$3),1)),ROWS(AA$2:AA50)),"") ->  | AB51: =IFERROR(INDEX(INDEX(OFFSET(Pro_2,0,2),MATCH($D$3,Pro_2,0)-1):INDEX(OFFSET(Pro_2,0,2),MATCH(2,1/(Pro_2=$D$3),1)),ROWS(AB$2:AB50)),"") ->  | AC51: =IFERROR(INDEX(INDEX(OFFSET(Pro_2,0,3),MATCH($D$3,Pro_2,0)-1):INDEX(OFFSET(Pro_2,0,3),MATCH(2,1/(Pro_2=$D$3),1)),ROWS(AC$2:AC50)),"") ->  | AI51: =IFERROR(INDEX(INDEX(Pro_3,MATCH($F$3,Pro_3,0)-1):INDEX(Pro_3,MATCH(2,1/(Pro_3=$F$3),1)),ROWS(AI$2:AI50)),"") ->  | AJ51: =IFERROR(INDEX(INDEX(OFFSET(Pro_3,0,1),MATCH($F$3,Pro_3,0)-1):INDEX(OFFSET(Pro_3,0,1),MATCH(2,1/(Pro_3=$F$3),1)),ROWS(AJ$2:AJ50)),"") ->  | AK51: =IFERROR(INDEX(INDEX(OFFSET(Pro_3,0,2),MATCH($F$3,Pro_3,0)-1):INDEX(OFFSET(Pro_3,0,2),MATCH(2,1/(Pro_3=$F$3),1)),ROWS(AK$2:AK50)),"") ->  | AL51: =IFERROR(INDEX(INDEX(OFFSET(Pro_3,0,3),MATCH($F$3,Pro_3,0)-1):INDEX(OFFSET(Pro_3,0,3),MATCH(2,1/(Pro_3=$F$3),1)),ROWS(AL$2:AL50)),"") -> 
P52: =IFERROR(INDEX(INDEX(Pro_1,MATCH($B$3,Pro_1,0)-1):INDEX(Pro_1,MATCH(2,1/(Pro_1=$B$3),1)),ROWS(P$2:P51)),"") ->  | Q52: =IFERROR(INDEX(INDEX(OFFSET(Pro_1,0,1),MATCH($B$3,Pro_1,0)-1):INDEX(OFFSET(Pro_1,0,1),MATCH(2,1/(Pro_1=$B$3),1)),ROWS(Q$2:Q51)),"") ->  | R52: =IFERROR(INDEX(INDEX(OFFSET(Pro_1,0,2),MATCH($B$3,Pro_1,0)-1):INDEX(OFFSET(Pro_1,0,2),MATCH(2,1/(Pro_1=$B$3),1)),ROWS(R$2:R51)),"") ->  | S52: =IFERROR(INDEX(INDEX(OFFSET(Pro_1,0,3),MATCH($B$3,Pro_1,0)-1):INDEX(OFFSET(Pro_1,0,3),MATCH(2,1/(Pro_1=$B$3),1)),ROWS(S$2:S51)),"") ->  | Z52: =IFERROR(INDEX(INDEX(Pro_2,MATCH($D$3,Pro_2,0)-1):INDEX(Pro_2,MATCH(2,1/(Pro_2=$D$3),1)),ROWS(Z$2:Z51)),"") ->  | AA52: =IFERROR(INDEX(INDEX(OFFSET(Pro_2,0,1),MATCH($D$3,Pro_2,0)-1):INDEX(OFFSET(Pro_2,0,1),MATCH(2,1/(Pro_2=$D$3),1)),ROWS(AA$2:AA51)),"") ->  | AB52: =IFERROR(INDEX(INDEX(OFFSET(Pro_2,0,2),MATCH($D$3,Pro_2,0)-1):INDEX(OFFSET(Pro_2,0,2),MATCH(2,1/(Pro_2=$D$3),1)),ROWS(AB$2:AB51)),"") ->  | AC52: =IFERROR(INDEX(INDEX(OFFSET(Pro_2,0,3),MATCH($D$3,Pro_2,0)-1):INDEX(OFFSET(Pro_2,0,3),MATCH(2,1/(Pro_2=$D$3),1)),ROWS(AC$2:AC51)),"") ->  | AI52: =IFERROR(INDEX(INDEX(Pro_3,MATCH($F$3,Pro_3,0)-1):INDEX(Pro_3,MATCH(2,1/(Pro_3=$F$3),1)),ROWS(AI$2:AI51)),"") ->  | AJ52: =IFERROR(INDEX(INDEX(OFFSET(Pro_3,0,1),MATCH($F$3,Pro_3,0)-1):INDEX(OFFSET(Pro_3,0,1),MATCH(2,1/(Pro_3=$F$3),1)),ROWS(AJ$2:AJ51)),"") ->  | AK52: =IFERROR(INDEX(INDEX(OFFSET(Pro_3,0,2),MATCH($F$3,Pro_3,0)-1):INDEX(OFFSET(Pro_3,0,2),MATCH(2,1/(Pro_3=$F$3),1)),ROWS(AK$2:AK51)),"") ->  | AL52: =IFERROR(INDEX(INDEX(OFFSET(Pro_3,0,3),MATCH($F$3,Pro_3,0)-1):INDEX(OFFSET(Pro_3,0,3),MATCH(2,1/(Pro_3=$F$3),1)),ROWS(AL$2:AL51)),"") -> 
P53: =IFERROR(INDEX(INDEX(Pro_1,MATCH($B$3,Pro_1,0)-1):INDEX(Pro_1,MATCH(2,1/(Pro_1=$B$3),1)),ROWS(P$2:P52)),"") ->  | Q53: =IFERROR(INDEX(INDEX(OFFSET(Pro_1,0,1),MATCH($B$3,Pro_1,0)-1):INDEX(OFFSET(Pro_1,0,1),MATCH(2,1/(Pro_1=$B$3),1)),ROWS(Q$2:Q52)),"") ->  | R53: =IFERROR(INDEX(INDEX(OFFSET(Pro_1,0,2),MATCH($B$3,Pro_1,0)-1):INDEX(OFFSET(Pro_1,0,2),MATCH(2,1/(Pro_1=$B$3),1)),ROWS(R$2:R52)),"") ->  | S53: =IFERROR(INDEX(INDEX(OFFSET(Pro_1,0,3),MATCH($B$3,Pro_1,0)-1):INDEX(OFFSET(Pro_1,0,3),MATCH(2,1/(Pro_1=$B$3),1)),ROWS(S$2:S52)),"") ->  | Z53: =IFERROR(INDEX(INDEX(Pro_2,MATCH($D$3,Pro_2,0)-1):INDEX(Pro_2,MATCH(2,1/(Pro_2=$D$3),1)),ROWS(Z$2:Z52)),"") ->  | AA53: =IFERROR(INDEX(INDEX(OFFSET(Pro_2,0,1),MATCH($D$3,Pro_2,0)-1):INDEX(OFFSET(Pro_2,0,1),MATCH(2,1/(Pro_2=$D$3),1)),ROWS(AA$2:AA52)),"") ->  | AB53: =IFERROR(INDEX(INDEX(OFFSET(Pro_2,0,2),MATCH($D$3,Pro_2,0)-1):INDEX(OFFSET(Pro_2,0,2),MATCH(2,1/(Pro_2=$D$3),1)),ROWS(AB$2:AB52)),"") ->  | AC53: =IFERROR(INDEX(INDEX(OFFSET(Pro_2,0,3),MATCH($D$3,Pro_2,0)-1):INDEX(OFFSET(Pro_2,0,3),MATCH(2,1/(Pro_2=$D$3),1)),ROWS(AC$2:AC52)),"") ->  | AI53: =IFERROR(INDEX(INDEX(Pro_3,MATCH($F$3,Pro_3,0)-1):INDEX(Pro_3,MATCH(2,1/(Pro_3=$F$3),1)),ROWS(AI$2:AI52)),"") ->  | AJ53: =IFERROR(INDEX(INDEX(OFFSET(Pro_3,0,1),MATCH($F$3,Pro_3,0)-1):INDEX(OFFSET(Pro_3,0,1),MATCH(2,1/(Pro_3=$F$3),1)),ROWS(AJ$2:AJ52)),"") ->  | AK53: =IFERROR(INDEX(INDEX(OFFSET(Pro_3,0,2),MATCH($F$3,Pro_3,0)-1):INDEX(OFFSET(Pro_3,0,2),MATCH(2,1/(Pro_3=$F$3),1)),ROWS(AK$2:AK52)),"") ->  | AL53: =IFERROR(INDEX(INDEX(OFFSET(Pro_3,0,3),MATCH($F$3,Pro_3,0)-1):INDEX(OFFSET(Pro_3,0,3),MATCH(2,1/(Pro_3=$F$3),1)),ROWS(AL$2:AL52)),"") -> 
P54: =IFERROR(INDEX(INDEX(Pro_1,MATCH($B$3,Pro_1,0)-1):INDEX(Pro_1,MATCH(2,1/(Pro_1=$B$3),1)),ROWS(P$2:P53)),"") ->  | Q54: =IFERROR(INDEX(INDEX(OFFSET(Pro_1,0,1),MATCH($B$3,Pro_1,0)-1):INDEX(OFFSET(Pro_1,0,1),MATCH(2,1/(Pro_1=$B$3),1)),ROWS(Q$2:Q53)),"") ->  | R54: =IFERROR(INDEX(INDEX(OFFSET(Pro_1,0,2),MATCH($B$3,Pro_1,0)-1):INDEX(OFFSET(Pro_1,0,2),MATCH(2,1/(Pro_1=$B$3),1)),ROWS(R$2:R53)),"") ->  | S54: =IFERROR(INDEX(INDEX(OFFSET(Pro_1,0,3),MATCH($B$3,Pro_1,0)-1):INDEX(OFFSET(Pro_1,0,3),MATCH(2,1/(Pro_1=$B$3),1)),ROWS(S$2:S53)),"") ->  | Z54: =IFERROR(INDEX(INDEX(Pro_2,MATCH($D$3,Pro_2,0)-1):INDEX(Pro_2,MATCH(2,1/(Pro_2=$D$3),1)),ROWS(Z$2:Z53)),"") ->  | AA54: =IFERROR(INDEX(INDEX(OFFSET(Pro_2,0,1),MATCH($D$3,Pro_2,0)-1):INDEX(OFFSET(Pro_2,0,1),MATCH(2,1/(Pro_2=$D$3),1)),ROWS(AA$2:AA53)),"") ->  | AB54: =IFERROR(INDEX(INDEX(OFFSET(Pro_2,0,2),MATCH($D$3,Pro_2,0)-1):INDEX(OFFSET(Pro_2,0,2),MATCH(2,1/(Pro_2=$D$3),1)),ROWS(AB$2:AB53)),"") ->  | AC54: =IFERROR(INDEX(INDEX(OFFSET(Pro_2,0,3),MATCH($D$3,Pro_2,0)-1):INDEX(OFFSET(Pro_2,0,3),MATCH(2,1/(Pro_2=$D$3),1)),ROWS(AC$2:AC53)),"") ->  | AI54: =IFERROR(INDEX(INDEX(Pro_3,MATCH($F$3,Pro_3,0)-1):INDEX(Pro_3,MATCH(2,1/(Pro_3=$F$3),1)),ROWS(AI$2:AI53)),"") ->  | AJ54: =IFERROR(INDEX(INDEX(OFFSET(Pro_3,0,1),MATCH($F$3,Pro_3,0)-1):INDEX(OFFSET(Pro_3,0,1),MATCH(2,1/(Pro_3=$F$3),1)),ROWS(AJ$2:AJ53)),"") ->  | AK54: =IFERROR(INDEX(INDEX(OFFSET(Pro_3,0,2),MATCH($F$3,Pro_3,0)-1):INDEX(OFFSET(Pro_3,0,2),MATCH(2,1/(Pro_3=$F$3),1)),ROWS(AK$2:AK53)),"") ->  | AL54: =IFERROR(INDEX(INDEX(OFFSET(Pro_3,0,3),MATCH($F$3,Pro_3,0)-1):INDEX(OFFSET(Pro_3,0,3),MATCH(2,1/(Pro_3=$F$3),1)),ROWS(AL$2:AL53)),"") -> 
P55: =IFERROR(INDEX(INDEX(Pro_1,MATCH($B$3,Pro_1,0)-1):INDEX(Pro_1,MATCH(2,1/(Pro_1=$B$3),1)),ROWS(P$2:P54)),"") ->  | Q55: =IFERROR(INDEX(INDEX(OFFSET(Pro_1,0,1),MATCH($B$3,Pro_1,0)-1):INDEX(OFFSET(Pro_1,0,1),MATCH(2,1/(Pro_1=$B$3),1)),ROWS(Q$2:Q54)),"") ->  | R55: =IFERROR(INDEX(INDEX(OFFSET(Pro_1,0,2),MATCH($B$3,Pro_1,0)-1):INDEX(OFFSET(Pro_1,0,2),MATCH(2,1/(Pro_1=$B$3),1)),ROWS(R$2:R54)),"") ->  | S55: =IFERROR(INDEX(INDEX(OFFSET(Pro_1,0,3),MATCH($B$3,Pro_1,0)-1):INDEX(OFFSET(Pro_1,0,3),MATCH(2,1/(Pro_1=$B$3),1)),ROWS(S$2:S54)),"") ->  | Z55: =IFERROR(INDEX(INDEX(Pro_2,MATCH($D$3,Pro_2,0)-1):INDEX(Pro_2,MATCH(2,1/(Pro_2=$D$3),1)),ROWS(Z$2:Z54)),"") ->  | AA55: =IFERROR(INDEX(INDEX(OFFSET(Pro_2,0,1),MATCH($D$3,Pro_2,0)-1):INDEX(OFFSET(Pro_2,0,1),MATCH(2,1/(Pro_2=$D$3),1)),ROWS(AA$2:AA54)),"") ->  | AB55: =IFERROR(INDEX(INDEX(OFFSET(Pro_2,0,2),MATCH($D$3,Pro_2,0)-1):INDEX(OFFSET(Pro_2,0,2),MATCH(2,1/(Pro_2=$D$3),1)),ROWS(AB$2:AB54)),"") ->  | AC55: =IFERROR(INDEX(INDEX(OFFSET(Pro_2,0,3),MATCH($D$3,Pro_2,0)-1):INDEX(OFFSET(Pro_2,0,3),MATCH(2,1/(Pro_2=$D$3),1)),ROWS(AC$2:AC54)),"") ->  | AI55: =IFERROR(INDEX(INDEX(Pro_3,MATCH($F$3,Pro_3,0)-1):INDEX(Pro_3,MATCH(2,1/(Pro_3=$F$3),1)),ROWS(AI$2:AI54)),"") ->  | AJ55: =IFERROR(INDEX(INDEX(OFFSET(Pro_3,0,1),MATCH($F$3,Pro_3,0)-1):INDEX(OFFSET(Pro_3,0,1),MATCH(2,1/(Pro_3=$F$3),1)),ROWS(AJ$2:AJ54)),"") ->  | AK55: =IFERROR(INDEX(INDEX(OFFSET(Pro_3,0,2),MATCH($F$3,Pro_3,0)-1):INDEX(OFFSET(Pro_3,0,2),MATCH(2,1/(Pro_3=$F$3),1)),ROWS(AK$2:AK54)),"") ->  | AL55: =IFERROR(INDEX(INDEX(OFFSET(Pro_3,0,3),MATCH($F$3,Pro_3,0)-1):INDEX(OFFSET(Pro_3,0,3),MATCH(2,1/(Pro_3=$F$3),1)),ROWS(AL$2:AL54)),"") -> 
P56: =IFERROR(INDEX(INDEX(Pro_1,MATCH($B$3,Pro_1,0)-1):INDEX(Pro_1,MATCH(2,1/(Pro_1=$B$3),1)),ROWS(P$2:P55)),"") ->  | Q56: =IFERROR(INDEX(INDEX(OFFSET(Pro_1,0,1),MATCH($B$3,Pro_1,0)-1):INDEX(OFFSET(Pro_1,0,1),MATCH(2,1/(Pro_1=$B$3),1)),ROWS(Q$2:Q55)),"") ->  | R56: =IFERROR(INDEX(INDEX(OFFSET(Pro_1,0,2),MATCH($B$3,Pro_1,0)-1):INDEX(OFFSET(Pro_1,0,2),MATCH(2,1/(Pro_1=$B$3),1)),ROWS(R$2:R55)),"") ->  | S56: =IFERROR(INDEX(INDEX(OFFSET(Pro_1,0,3),MATCH($B$3,Pro_1,0)-1):INDEX(OFFSET(Pro_1,0,3),MATCH(2,1/(Pro_1=$B$3),1)),ROWS(S$2:S55)),"") ->  | Z56: =IFERROR(INDEX(INDEX(Pro_2,MATCH($D$3,Pro_2,0)-1):INDEX(Pro_2,MATCH(2,1/(Pro_2=$D$3),1)),ROWS(Z$2:Z55)),"") ->  | AA56: =IFERROR(INDEX(INDEX(OFFSET(Pro_2,0,1),MATCH($D$3,Pro_2,0)-1):INDEX(OFFSET(Pro_2,0,1),MATCH(2,1/(Pro_2=$D$3),1)),ROWS(AA$2:AA55)),"") ->  | AB56: =IFERROR(INDEX(INDEX(OFFSET(Pro_2,0,2),MATCH($D$3,Pro_2,0)-1):INDEX(OFFSET(Pro_2,0,2),MATCH(2,1/(Pro_2=$D$3),1)),ROWS(AB$2:AB55)),"") ->  | AC56: =IFERROR(INDEX(INDEX(OFFSET(Pro_2,0,3),MATCH($D$3,Pro_2,0)-1):INDEX(OFFSET(Pro_2,0,3),MATCH(2,1/(Pro_2=$D$3),1)),ROWS(AC$2:AC55)),"") ->  | AI56: =IFERROR(INDEX(INDEX(Pro_3,MATCH($F$3,Pro_3,0)-1):INDEX(Pro_3,MATCH(2,1/(Pro_3=$F$3),1)),ROWS(AI$2:AI55)),"") ->  | AJ56: =IFERROR(INDEX(INDEX(OFFSET(Pro_3,0,1),MATCH($F$3,Pro_3,0)-1):INDEX(OFFSET(Pro_3,0,1),MATCH(2,1/(Pro_3=$F$3),1)),ROWS(AJ$2:AJ55)),"") ->  | AK56: =IFERROR(INDEX(INDEX(OFFSET(Pro_3,0,2),MATCH($F$3,Pro_3,0)-1):INDEX(OFFSET(Pro_3,0,2),MATCH(2,1/(Pro_3=$F$3),1)),ROWS(AK$2:AK55)),"") ->  | AL56: =IFERROR(INDEX(INDEX(OFFSET(Pro_3,0,3),MATCH($F$3,Pro_3,0)-1):INDEX(OFFSET(Pro_3,0,3),MATCH(2,1/(Pro_3=$F$3),1)),ROWS(AL$2:AL55)),"") -> 
P57: =IFERROR(INDEX(INDEX(Pro_1,MATCH($B$3,Pro_1,0)-1):INDEX(Pro_1,MATCH(2,1/(Pro_1=$B$3),1)),ROWS(P$2:P56)),"") ->  | Q57: =IFERROR(INDEX(INDEX(OFFSET(Pro_1,0,1),MATCH($B$3,Pro_1,0)-1):INDEX(OFFSET(Pro_1,0,1),MATCH(2,1/(Pro_1=$B$3),1)),ROWS(Q$2:Q56)),"") ->  | R57: =IFERROR(INDEX(INDEX(OFFSET(Pro_1,0,2),MATCH($B$3,Pro_1,0)-1):INDEX(OFFSET(Pro_1,0,2),MATCH(2,1/(Pro_1=$B$3),1)),ROWS(R$2:R56)),"") ->  | S57: =IFERROR(INDEX(INDEX(OFFSET(Pro_1,0,3),MATCH($B$3,Pro_1,0)-1):INDEX(OFFSET(Pro_1,0,3),MATCH(2,1/(Pro_1=$B$3),1)),ROWS(S$2:S56)),"") ->  | Z57: =IFERROR(INDEX(INDEX(Pro_2,MATCH($D$3,Pro_2,0)-1):INDEX(Pro_2,MATCH(2,1/(Pro_2=$D$3),1)),ROWS(Z$2:Z56)),"") ->  | AA57: =IFERROR(INDEX(INDEX(OFFSET(Pro_2,0,1),MATCH($D$3,Pro_2,0)-1):INDEX(OFFSET(Pro_2,0,1),MATCH(2,1/(Pro_2=$D$3),1)),ROWS(AA$2:AA56)),"") ->  | AB57: =IFERROR(INDEX(INDEX(OFFSET(Pro_2,0,2),MATCH($D$3,Pro_2,0)-1):INDEX(OFFSET(Pro_2,0,2),MATCH(2,1/(Pro_2=$D$3),1)),ROWS(AB$2:AB56)),"") ->  | AC57: =IFERROR(INDEX(INDEX(OFFSET(Pro_2,0,3),MATCH($D$3,Pro_2,0)-1):INDEX(OFFSET(Pro_2,0,3),MATCH(2,1/(Pro_2=$D$3),1)),ROWS(AC$2:AC56)),"") ->  | AI57: =IFERROR(INDEX(INDEX(Pro_3,MATCH($F$3,Pro_3,0)-1):INDEX(Pro_3,MATCH(2,1/(Pro_3=$F$3),1)),ROWS(AI$2:AI56)),"") ->  | AJ57: =IFERROR(INDEX(INDEX(OFFSET(Pro_3,0,1),MATCH($F$3,Pro_3,0)-1):INDEX(OFFSET(Pro_3,0,1),MATCH(2,1/(Pro_3=$F$3),1)),ROWS(AJ$2:AJ56)),"") ->  | AK57: =IFERROR(INDEX(INDEX(OFFSET(Pro_3,0,2),MATCH($F$3,Pro_3,0)-1):INDEX(OFFSET(Pro_3,0,2),MATCH(2,1/(Pro_3=$F$3),1)),ROWS(AK$2:AK56)),"") ->  | AL57: =IFERROR(INDEX(INDEX(OFFSET(Pro_3,0,3),MATCH($F$3,Pro_3,0)-1):INDEX(OFFSET(Pro_3,0,3),MATCH(2,1/(Pro_3=$F$3),1)),ROWS(AL$2:AL56)),"") -> 
P58: =IFERROR(INDEX(INDEX(Pro_1,MATCH($B$3,Pro_1,0)-1):INDEX(Pro_1,MATCH(2,1/(Pro_1=$B$3),1)),ROWS(P$2:P57)),"") ->  | Q58: =IFERROR(INDEX(INDEX(OFFSET(Pro_1,0,1),MATCH($B$3,Pro_1,0)-1):INDEX(OFFSET(Pro_1,0,1),MATCH(2,1/(Pro_1=$B$3),1)),ROWS(Q$2:Q57)),"") ->  | R58: =IFERROR(INDEX(INDEX(OFFSET(Pro_1,0,2),MATCH($B$3,Pro_1,0)-1):INDEX(OFFSET(Pro_1,0,2),MATCH(2,1/(Pro_1=$B$3),1)),ROWS(R$2:R57)),"") ->  | S58: =IFERROR(INDEX(INDEX(OFFSET(Pro_1,0,3),MATCH($B$3,Pro_1,0)-1):INDEX(OFFSET(Pro_1,0,3),MATCH(2,1/(Pro_1=$B$3),1)),ROWS(S$2:S57)),"") ->  | Z58: =IFERROR(INDEX(INDEX(Pro_2,MATCH($D$3,Pro_2,0)-1):INDEX(Pro_2,MATCH(2,1/(Pro_2=$D$3),1)),ROWS(Z$2:Z57)),"") ->  | AA58: =IFERROR(INDEX(INDEX(OFFSET(Pro_2,0,1),MATCH($D$3,Pro_2,0)-1):INDEX(OFFSET(Pro_2,0,1),MATCH(2,1/(Pro_2=$D$3),1)),ROWS(AA$2:AA57)),"") ->  | AB58: =IFERROR(INDEX(INDEX(OFFSET(Pro_2,0,2),MATCH($D$3,Pro_2,0)-1):INDEX(OFFSET(Pro_2,0,2),MATCH(2,1/(Pro_2=$D$3),1)),ROWS(AB$2:AB57)),"") ->  | AC58: =IFERROR(INDEX(INDEX(OFFSET(Pro_2,0,3),MATCH($D$3,Pro_2,0)-1):INDEX(OFFSET(Pro_2,0,3),MATCH(2,1/(Pro_2=$D$3),1)),ROWS(AC$2:AC57)),"") ->  | AI58: =IFERROR(INDEX(INDEX(Pro_3,MATCH($F$3,Pro_3,0)-1):INDEX(Pro_3,MATCH(2,1/(Pro_3=$F$3),1)),ROWS(AI$2:AI57)),"") ->  | AJ58: =IFERROR(INDEX(INDEX(OFFSET(Pro_3,0,1),MATCH($F$3,Pro_3,0)-1):INDEX(OFFSET(Pro_3,0,1),MATCH(2,1/(Pro_3=$F$3),1)),ROWS(AJ$2:AJ57)),"") ->  | AK58: =IFERROR(INDEX(INDEX(OFFSET(Pro_3,0,2),MATCH($F$3,Pro_3,0)-1):INDEX(OFFSET(Pro_3,0,2),MATCH(2,1/(Pro_3=$F$3),1)),ROWS(AK$2:AK57)),"") ->  | AL58: =IFERROR(INDEX(INDEX(OFFSET(Pro_3,0,3),MATCH($F$3,Pro_3,0)-1):INDEX(OFFSET(Pro_3,0,3),MATCH(2,1/(Pro_3=$F$3),1)),ROWS(AL$2:AL57)),"") -> 
P59: =IFERROR(INDEX(INDEX(Pro_1,MATCH($B$3,Pro_1,0)-1):INDEX(Pro_1,MATCH(2,1/(Pro_1=$B$3),1)),ROWS(P$2:P58)),"") ->  | Q59: =IFERROR(INDEX(INDEX(OFFSET(Pro_1,0,1),MATCH($B$3,Pro_1,0)-1):INDEX(OFFSET(Pro_1,0,1),MATCH(2,1/(Pro_1=$B$3),1)),ROWS(Q$2:Q58)),"") ->  | R59: =IFERROR(INDEX(INDEX(OFFSET(Pro_1,0,2),MATCH($B$3,Pro_1,0)-1):INDEX(OFFSET(Pro_1,0,2),MATCH(2,1/(Pro_1=$B$3),1)),ROWS(R$2:R58)),"") ->  | S59: =IFERROR(INDEX(INDEX(OFFSET(Pro_1,0,3),MATCH($B$3,Pro_1,0)-1):INDEX(OFFSET(Pro_1,0,3),MATCH(2,1/(Pro_1=$B$3),1)),ROWS(S$2:S58)),"") ->  | Z59: =IFERROR(INDEX(INDEX(Pro_2,MATCH($D$3,Pro_2,0)-1):INDEX(Pro_2,MATCH(2,1/(Pro_2=$D$3),1)),ROWS(Z$2:Z58)),"") ->  | AA59: =IFERROR(INDEX(INDEX(OFFSET(Pro_2,0,1),MATCH($D$3,Pro_2,0)-1):INDEX(OFFSET(Pro_2,0,1),MATCH(2,1/(Pro_2=$D$3),1)),ROWS(AA$2:AA58)),"") ->  | AB59: =IFERROR(INDEX(INDEX(OFFSET(Pro_2,0,2),MATCH($D$3,Pro_2,0)-1):INDEX(OFFSET(Pro_2,0,2),MATCH(2,1/(Pro_2=$D$3),1)),ROWS(AB$2:AB58)),"") ->  | AC59: =IFERROR(INDEX(INDEX(OFFSET(Pro_2,0,3),MATCH($D$3,Pro_2,0)-1):INDEX(OFFSET(Pro_2,0,3),MATCH(2,1/(Pro_2=$D$3),1)),ROWS(AC$2:AC58)),"") ->  | AI59: =IFERROR(INDEX(INDEX(Pro_3,MATCH($F$3,Pro_3,0)-1):INDEX(Pro_3,MATCH(2,1/(Pro_3=$F$3),1)),ROWS(AI$2:AI58)),"") ->  | AJ59: =IFERROR(INDEX(INDEX(OFFSET(Pro_3,0,1),MATCH($F$3,Pro_3,0)-1):INDEX(OFFSET(Pro_3,0,1),MATCH(2,1/(Pro_3=$F$3),1)),ROWS(AJ$2:AJ58)),"") ->  | AK59: =IFERROR(INDEX(INDEX(OFFSET(Pro_3,0,2),MATCH($F$3,Pro_3,0)-1):INDEX(OFFSET(Pro_3,0,2),MATCH(2,1/(Pro_3=$F$3),1)),ROWS(AK$2:AK58)),"") ->  | AL59: =IFERROR(INDEX(INDEX(OFFSET(Pro_3,0,3),MATCH($F$3,Pro_3,0)-1):INDEX(OFFSET(Pro_3,0,3),MATCH(2,1/(Pro_3=$F$3),1)),ROWS(AL$2:AL58)),"") -> 
P60: =IFERROR(INDEX(INDEX(Pro_1,MATCH($B$3,Pro_1,0)-1):INDEX(Pro_1,MATCH(2,1/(Pro_1=$B$3),1)),ROWS(P$2:P59)),"") ->  | Q60: =IFERROR(INDEX(INDEX(OFFSET(Pro_1,0,1),MATCH($B$3,Pro_1,0)-1):INDEX(OFFSET(Pro_1,0,1),MATCH(2,1/(Pro_1=$B$3),1)),ROWS(Q$2:Q59)),"") ->  | R60: =IFERROR(INDEX(INDEX(OFFSET(Pro_1,0,2),MATCH($B$3,Pro_1,0)-1):INDEX(OFFSET(Pro_1,0,2),MATCH(2,1/(Pro_1=$B$3),1)),ROWS(R$2:R59)),"") ->  | S60: =IFERROR(INDEX(INDEX(OFFSET(Pro_1,0,3),MATCH($B$3,Pro_1,0)-1):INDEX(OFFSET(Pro_1,0,3),MATCH(2,1/(Pro_1=$B$3),1)),ROWS(S$2:S59)),"") ->  | Z60: =IFERROR(INDEX(INDEX(Pro_2,MATCH($D$3,Pro_2,0)-1):INDEX(Pro_2,MATCH(2,1/(Pro_2=$D$3),1)),ROWS(Z$2:Z59)),"") ->  | AA60: =IFERROR(INDEX(INDEX(OFFSET(Pro_2,0,1),MATCH($D$3,Pro_2,0)-1):INDEX(OFFSET(Pro_2,0,1),MATCH(2,1/(Pro_2=$D$3),1)),ROWS(AA$2:AA59)),"") ->  | AB60: =IFERROR(INDEX(INDEX(OFFSET(Pro_2,0,2),MATCH($D$3,Pro_2,0)-1):INDEX(OFFSET(Pro_2,0,2),MATCH(2,1/(Pro_2=$D$3),1)),ROWS(AB$2:AB59)),"") ->  | AC60: =IFERROR(INDEX(INDEX(OFFSET(Pro_2,0,3),MATCH($D$3,Pro_2,0)-1):INDEX(OFFSET(Pro_2,0,3),MATCH(2,1/(Pro_2=$D$3),1)),ROWS(AC$2:AC59)),"") ->  | AI60: =IFERROR(INDEX(INDEX(Pro_3,MATCH($F$3,Pro_3,0)-1):INDEX(Pro_3,MATCH(2,1/(Pro_3=$F$3),1)),ROWS(AI$2:AI59)),"") ->  | AJ60: =IFERROR(INDEX(INDEX(OFFSET(Pro_3,0,1),MATCH($F$3,Pro_3,0)-1):INDEX(OFFSET(Pro_3,0,1),MATCH(2,1/(Pro_3=$F$3),1)),ROWS(AJ$2:AJ59)),"") ->  | AK60: =IFERROR(INDEX(INDEX(OFFSET(Pro_3,0,2),MATCH($F$3,Pro_3,0)-1):INDEX(OFFSET(Pro_3,0,2),MATCH(2,1/(Pro_3=$F$3),1)),ROWS(AK$2:AK59)),"") ->  | AL60: =IFERROR(INDEX(INDEX(OFFSET(Pro_3,0,3),MATCH($F$3,Pro_3,0)-1):INDEX(OFFSET(Pro_3,0,3),MATCH(2,1/(Pro_3=$F$3),1)),ROWS(AL$2:AL59)),"") -> 
P61: =IFERROR(INDEX(INDEX(Pro_1,MATCH($B$3,Pro_1,0)-1):INDEX(Pro_1,MATCH(2,1/(Pro_1=$B$3),1)),ROWS(P$2:P60)),"") ->  | Q61: =IFERROR(INDEX(INDEX(OFFSET(Pro_1,0,1),MATCH($B$3,Pro_1,0)-1):INDEX(OFFSET(Pro_1,0,1),MATCH(2,1/(Pro_1=$B$3),1)),ROWS(Q$2:Q60)),"") ->  | R61: =IFERROR(INDEX(INDEX(OFFSET(Pro_1,0,2),MATCH($B$3,Pro_1,0)-1):INDEX(OFFSET(Pro_1,0,2),MATCH(2,1/(Pro_1=$B$3),1)),ROWS(R$2:R60)),"") ->  | S61: =IFERROR(INDEX(INDEX(OFFSET(Pro_1,0,3),MATCH($B$3,Pro_1,0)-1):INDEX(OFFSET(Pro_1,0,3),MATCH(2,1/(Pro_1=$B$3),1)),ROWS(S$2:S60)),"") ->  | Z61: =IFERROR(INDEX(INDEX(Pro_2,MATCH($D$3,Pro_2,0)-1):INDEX(Pro_2,MATCH(2,1/(Pro_2=$D$3),1)),ROWS(Z$2:Z60)),"") ->  | AA61: =IFERROR(INDEX(INDEX(OFFSET(Pro_2,0,1),MATCH($D$3,Pro_2,0)-1):INDEX(OFFSET(Pro_2,0,1),MATCH(2,1/(Pro_2=$D$3),1)),ROWS(AA$2:AA60)),"") ->  | AB61: =IFERROR(INDEX(INDEX(OFFSET(Pro_2,0,2),MATCH($D$3,Pro_2,0)-1):INDEX(OFFSET(Pro_2,0,2),MATCH(2,1/(Pro_2=$D$3),1)),ROWS(AB$2:AB60)),"") ->  | AC61: =IFERROR(INDEX(INDEX(OFFSET(Pro_2,0,3),MATCH($D$3,Pro_2,0)-1):INDEX(OFFSET(Pro_2,0,3),MATCH(2,1/(Pro_2=$D$3),1)),ROWS(AC$2:AC60)),"") ->  | AI61: =IFERROR(INDEX(INDEX(Pro_3,MATCH($F$3,Pro_3,0)-1):INDEX(Pro_3,MATCH(2,1/(Pro_3=$F$3),1)),ROWS(AI$2:AI60)),"") ->  | AJ61: =IFERROR(INDEX(INDEX(OFFSET(Pro_3,0,1),MATCH($F$3,Pro_3,0)-1):INDEX(OFFSET(Pro_3,0,1),MATCH(2,1/(Pro_3=$F$3),1)),ROWS(AJ$2:AJ60)),"") ->  | AK61: =IFERROR(INDEX(INDEX(OFFSET(Pro_3,0,2),MATCH($F$3,Pro_3,0)-1):INDEX(OFFSET(Pro_3,0,2),MATCH(2,1/(Pro_3=$F$3),1)),ROWS(AK$2:AK60)),"") ->  | AL61: =IFERROR(INDEX(INDEX(OFFSET(Pro_3,0,3),MATCH($F$3,Pro_3,0)-1):INDEX(OFFSET(Pro_3,0,3),MATCH(2,1/(Pro_3=$F$3),1)),ROWS(AL$2:AL60)),"") -> 
P62: =IFERROR(INDEX(INDEX(Pro_1,MATCH($B$3,Pro_1,0)-1):INDEX(Pro_1,MATCH(2,1/(Pro_1=$B$3),1)),ROWS(P$2:P61)),"") ->  | Q62: =IFERROR(INDEX(INDEX(OFFSET(Pro_1,0,1),MATCH($B$3,Pro_1,0)-1):INDEX(OFFSET(Pro_1,0,1),MATCH(2,1/(Pro_1=$B$3),1)),ROWS(Q$2:Q61)),"") ->  | R62: =IFERROR(INDEX(INDEX(OFFSET(Pro_1,0,2),MATCH($B$3,Pro_1,0)-1):INDEX(OFFSET(Pro_1,0,2),MATCH(2,1/(Pro_1=$B$3),1)),ROWS(R$2:R61)),"") ->  | S62: =IFERROR(INDEX(INDEX(OFFSET(Pro_1,0,3),MATCH($B$3,Pro_1,0)-1):INDEX(OFFSET(Pro_1,0,3),MATCH(2,1/(Pro_1=$B$3),1)),ROWS(S$2:S61)),"") ->  | Z62: =IFERROR(INDEX(INDEX(Pro_2,MATCH($D$3,Pro_2,0)-1):INDEX(Pro_2,MATCH(2,1/(Pro_2=$D$3),1)),ROWS(Z$2:Z61)),"") ->  | AA62: =IFERROR(INDEX(INDEX(OFFSET(Pro_2,0,1),MATCH($D$3,Pro_2,0)-1):INDEX(OFFSET(Pro_2,0,1),MATCH(2,1/(Pro_2=$D$3),1)),ROWS(AA$2:AA61)),"") ->  | AB62: =IFERROR(INDEX(INDEX(OFFSET(Pro_2,0,2),MATCH($D$3,Pro_2,0)-1):INDEX(OFFSET(Pro_2,0,2),MATCH(2,1/(Pro_2=$D$3),1)),ROWS(AB$2:AB61)),"") ->  | AC62: =IFERROR(INDEX(INDEX(OFFSET(Pro_2,0,3),MATCH($D$3,Pro_2,0)-1):INDEX(OFFSET(Pro_2,0,3),MATCH(2,1/(Pro_2=$D$3),1)),ROWS(AC$2:AC61)),"") ->  | AI62: =IFERROR(INDEX(INDEX(Pro_3,MATCH($F$3,Pro_3,0)-1):INDEX(Pro_3,MATCH(2,1/(Pro_3=$F$3),1)),ROWS(AI$2:AI61)),"") ->  | AJ62: =IFERROR(INDEX(INDEX(OFFSET(Pro_3,0,1),MATCH($F$3,Pro_3,0)-1):INDEX(OFFSET(Pro_3,0,1),MATCH(2,1/(Pro_3=$F$3),1)),ROWS(AJ$2:AJ61)),"") ->  | AK62: =IFERROR(INDEX(INDEX(OFFSET(Pro_3,0,2),MATCH($F$3,Pro_3,0)-1):INDEX(OFFSET(Pro_3,0,2),MATCH(2,1/(Pro_3=$F$3),1)),ROWS(AK$2:AK61)),"") ->  | AL62: =IFERROR(INDEX(INDEX(OFFSET(Pro_3,0,3),MATCH($F$3,Pro_3,0)-1):INDEX(OFFSET(Pro_3,0,3),MATCH(2,1/(Pro_3=$F$3),1)),ROWS(AL$2:AL61)),"") -> 
P63: =IFERROR(INDEX(INDEX(Pro_1,MATCH($B$3,Pro_1,0)-1):INDEX(Pro_1,MATCH(2,1/(Pro_1=$B$3),1)),ROWS(P$2:P62)),"") ->  | Q63: =IFERROR(INDEX(INDEX(OFFSET(Pro_1,0,1),MATCH($B$3,Pro_1,0)-1):INDEX(OFFSET(Pro_1,0,1),MATCH(2,1/(Pro_1=$B$3),1)),ROWS(Q$2:Q62)),"") ->  | R63: =IFERROR(INDEX(INDEX(OFFSET(Pro_1,0,2),MATCH($B$3,Pro_1,0)-1):INDEX(OFFSET(Pro_1,0,2),MATCH(2,1/(Pro_1=$B$3),1)),ROWS(R$2:R62)),"") ->  | S63: =IFERROR(INDEX(INDEX(OFFSET(Pro_1,0,3),MATCH($B$3,Pro_1,0)-1):INDEX(OFFSET(Pro_1,0,3),MATCH(2,1/(Pro_1=$B$3),1)),ROWS(S$2:S62)),"") ->  | Z63: =IFERROR(INDEX(INDEX(Pro_2,MATCH($D$3,Pro_2,0)-1):INDEX(Pro_2,MATCH(2,1/(Pro_2=$D$3),1)),ROWS(Z$2:Z62)),"") ->  | AA63: =IFERROR(INDEX(INDEX(OFFSET(Pro_2,0,1),MATCH($D$3,Pro_2,0)-1):INDEX(OFFSET(Pro_2,0,1),MATCH(2,1/(Pro_2=$D$3),1)),ROWS(AA$2:AA62)),"") ->  | AB63: =IFERROR(INDEX(INDEX(OFFSET(Pro_2,0,2),MATCH($D$3,Pro_2,0)-1):INDEX(OFFSET(Pro_2,0,2),MATCH(2,1/(Pro_2=$D$3),1)),ROWS(AB$2:AB62)),"") ->  | AC63: =IFERROR(INDEX(INDEX(OFFSET(Pro_2,0,3),MATCH($D$3,Pro_2,0)-1):INDEX(OFFSET(Pro_2,0,3),MATCH(2,1/(Pro_2=$D$3),1)),ROWS(AC$2:AC62)),"") ->  | AI63: =IFERROR(INDEX(INDEX(Pro_3,MATCH($F$3,Pro_3,0)-1):INDEX(Pro_3,MATCH(2,1/(Pro_3=$F$3),1)),ROWS(AI$2:AI62)),"") ->  | AJ63: =IFERROR(INDEX(INDEX(OFFSET(Pro_3,0,1),MATCH($F$3,Pro_3,0)-1):INDEX(OFFSET(Pro_3,0,1),MATCH(2,1/(Pro_3=$F$3),1)),ROWS(AJ$2:AJ62)),"") ->  | AK63: =IFERROR(INDEX(INDEX(OFFSET(Pro_3,0,2),MATCH($F$3,Pro_3,0)-1):INDEX(OFFSET(Pro_3,0,2),MATCH(2,1/(Pro_3=$F$3),1)),ROWS(AK$2:AK62)),"") ->  | AL63: =IFERROR(INDEX(INDEX(OFFSET(Pro_3,0,3),MATCH($F$3,Pro_3,0)-1):INDEX(OFFSET(Pro_3,0,3),MATCH(2,1/(Pro_3=$F$3),1)),ROWS(AL$2:AL62)),"") -> 
P64: =IFERROR(INDEX(INDEX(Pro_1,MATCH($B$3,Pro_1,0)-1):INDEX(Pro_1,MATCH(2,1/(Pro_1=$B$3),1)),ROWS(P$2:P63)),"") ->  | Q64: =IFERROR(INDEX(INDEX(OFFSET(Pro_1,0,1),MATCH($B$3,Pro_1,0)-1):INDEX(OFFSET(Pro_1,0,1),MATCH(2,1/(Pro_1=$B$3),1)),ROWS(Q$2:Q63)),"") ->  | R64: =IFERROR(INDEX(INDEX(OFFSET(Pro_1,0,2),MATCH($B$3,Pro_1,0)-1):INDEX(OFFSET(Pro_1,0,2),MATCH(2,1/(Pro_1=$B$3),1)),ROWS(R$2:R63)),"") ->  | S64: =IFERROR(INDEX(INDEX(OFFSET(Pro_1,0,3),MATCH($B$3,Pro_1,0)-1):INDEX(OFFSET(Pro_1,0,3),MATCH(2,1/(Pro_1=$B$3),1)),ROWS(S$2:S63)),"") ->  | Z64: =IFERROR(INDEX(INDEX(Pro_2,MATCH($D$3,Pro_2,0)-1):INDEX(Pro_2,MATCH(2,1/(Pro_2=$D$3),1)),ROWS(Z$2:Z63)),"") ->  | AA64: =IFERROR(INDEX(INDEX(OFFSET(Pro_2,0,1),MATCH($D$3,Pro_2,0)-1):INDEX(OFFSET(Pro_2,0,1),MATCH(2,1/(Pro_2=$D$3),1)),ROWS(AA$2:AA63)),"") ->  | AB64: =IFERROR(INDEX(INDEX(OFFSET(Pro_2,0,2),MATCH($D$3,Pro_2,0)-1):INDEX(OFFSET(Pro_2,0,2),MATCH(2,1/(Pro_2=$D$3),1)),ROWS(AB$2:AB63)),"") ->  | AC64: =IFERROR(INDEX(INDEX(OFFSET(Pro_2,0,3),MATCH($D$3,Pro_2,0)-1):INDEX(OFFSET(Pro_2,0,3),MATCH(2,1/(Pro_2=$D$3),1)),ROWS(AC$2:AC63)),"") ->  | AI64: =IFERROR(INDEX(INDEX(Pro_3,MATCH($F$3,Pro_3,0)-1):INDEX(Pro_3,MATCH(2,1/(Pro_3=$F$3),1)),ROWS(AI$2:AI63)),"") ->  | AJ64: =IFERROR(INDEX(INDEX(OFFSET(Pro_3,0,1),MATCH($F$3,Pro_3,0)-1):INDEX(OFFSET(Pro_3,0,1),MATCH(2,1/(Pro_3=$F$3),1)),ROWS(AJ$2:AJ63)),"") ->  | AK64: =IFERROR(INDEX(INDEX(OFFSET(Pro_3,0,2),MATCH($F$3,Pro_3,0)-1):INDEX(OFFSET(Pro_3,0,2),MATCH(2,1/(Pro_3=$F$3),1)),ROWS(AK$2:AK63)),"") ->  | AL64: =IFERROR(INDEX(INDEX(OFFSET(Pro_3,0,3),MATCH($F$3,Pro_3,0)-1):INDEX(OFFSET(Pro_3,0,3),MATCH(2,1/(Pro_3=$F$3),1)),ROWS(AL$2:AL63)),"") -> 
P65: =IFERROR(INDEX(INDEX(Pro_1,MATCH($B$3,Pro_1,0)-1):INDEX(Pro_1,MATCH(2,1/(Pro_1=$B$3),1)),ROWS(P$2:P64)),"") ->  | Q65: =IFERROR(INDEX(INDEX(OFFSET(Pro_1,0,1),MATCH($B$3,Pro_1,0)-1):INDEX(OFFSET(Pro_1,0,1),MATCH(2,1/(Pro_1=$B$3),1)),ROWS(Q$2:Q64)),"") ->  | R65: =IFERROR(INDEX(INDEX(OFFSET(Pro_1,0,2),MATCH($B$3,Pro_1,0)-1):INDEX(OFFSET(Pro_1,0,2),MATCH(2,1/(Pro_1=$B$3),1)),ROWS(R$2:R64)),"") ->  | S65: =IFERROR(INDEX(INDEX(OFFSET(Pro_1,0,3),MATCH($B$3,Pro_1,0)-1):INDEX(OFFSET(Pro_1,0,3),MATCH(2,1/(Pro_1=$B$3),1)),ROWS(S$2:S64)),"") ->  | Z65: =IFERROR(INDEX(INDEX(Pro_2,MATCH($D$3,Pro_2,0)-1):INDEX(Pro_2,MATCH(2,1/(Pro_2=$D$3),1)),ROWS(Z$2:Z64)),"") ->  | AA65: =IFERROR(INDEX(INDEX(OFFSET(Pro_2,0,1),MATCH($D$3,Pro_2,0)-1):INDEX(OFFSET(Pro_2,0,1),MATCH(2,1/(Pro_2=$D$3),1)),ROWS(AA$2:AA64)),"") ->  | AB65: =IFERROR(INDEX(INDEX(OFFSET(Pro_2,0,2),MATCH($D$3,Pro_2,0)-1):INDEX(OFFSET(Pro_2,0,2),MATCH(2,1/(Pro_2=$D$3),1)),ROWS(AB$2:AB64)),"") ->  | AC65: =IFERROR(INDEX(INDEX(OFFSET(Pro_2,0,3),MATCH($D$3,Pro_2,0)-1):INDEX(OFFSET(Pro_2,0,3),MATCH(2,1/(Pro_2=$D$3),1)),ROWS(AC$2:AC64)),"") ->  | AI65: =IFERROR(INDEX(INDEX(Pro_3,MATCH($F$3,Pro_3,0)-1):INDEX(Pro_3,MATCH(2,1/(Pro_3=$F$3),1)),ROWS(AI$2:AI64)),"") ->  | AJ65: =IFERROR(INDEX(INDEX(OFFSET(Pro_3,0,1),MATCH($F$3,Pro_3,0)-1):INDEX(OFFSET(Pro_3,0,1),MATCH(2,1/(Pro_3=$F$3),1)),ROWS(AJ$2:AJ64)),"") ->  | AK65: =IFERROR(INDEX(INDEX(OFFSET(Pro_3,0,2),MATCH($F$3,Pro_3,0)-1):INDEX(OFFSET(Pro_3,0,2),MATCH(2,1/(Pro_3=$F$3),1)),ROWS(AK$2:AK64)),"") ->  | AL65: =IFERROR(INDEX(INDEX(OFFSET(Pro_3,0,3),MATCH($F$3,Pro_3,0)-1):INDEX(OFFSET(Pro_3,0,3),MATCH(2,1/(Pro_3=$F$3),1)),ROWS(AL$2:AL64)),"") -> 
P66: =IFERROR(INDEX(INDEX(Pro_1,MATCH($B$3,Pro_1,0)-1):INDEX(Pro_1,MATCH(2,1/(Pro_1=$B$3),1)),ROWS(P$2:P65)),"") ->  | Q66: =IFERROR(INDEX(INDEX(OFFSET(Pro_1,0,1),MATCH($B$3,Pro_1,0)-1):INDEX(OFFSET(Pro_1,0,1),MATCH(2,1/(Pro_1=$B$3),1)),ROWS(Q$2:Q65)),"") ->  | R66: =IFERROR(INDEX(INDEX(OFFSET(Pro_1,0,2),MATCH($B$3,Pro_1,0)-1):INDEX(OFFSET(Pro_1,0,2),MATCH(2,1/(Pro_1=$B$3),1)),ROWS(R$2:R65)),"") ->  | S66: =IFERROR(INDEX(INDEX(OFFSET(Pro_1,0,3),MATCH($B$3,Pro_1,0)-1):INDEX(OFFSET(Pro_1,0,3),MATCH(2,1/(Pro_1=$B$3),1)),ROWS(S$2:S65)),"") ->  | Z66: =IFERROR(INDEX(INDEX(Pro_2,MATCH($D$3,Pro_2,0)-1):INDEX(Pro_2,MATCH(2,1/(Pro_2=$D$3),1)),ROWS(Z$2:Z65)),"") ->  | AA66: =IFERROR(INDEX(INDEX(OFFSET(Pro_2,0,1),MATCH($D$3,Pro_2,0)-1):INDEX(OFFSET(Pro_2,0,1),MATCH(2,1/(Pro_2=$D$3),1)),ROWS(AA$2:AA65)),"") ->  | AB66: =IFERROR(INDEX(INDEX(OFFSET(Pro_2,0,2),MATCH($D$3,Pro_2,0)-1):INDEX(OFFSET(Pro_2,0,2),MATCH(2,1/(Pro_2=$D$3),1)),ROWS(AB$2:AB65)),"") ->  | AC66: =IFERROR(INDEX(INDEX(OFFSET(Pro_2,0,3),MATCH($D$3,Pro_2,0)-1):INDEX(OFFSET(Pro_2,0,3),MATCH(2,1/(Pro_2=$D$3),1)),ROWS(AC$2:AC65)),"") ->  | AI66: =IFERROR(INDEX(INDEX(Pro_3,MATCH($F$3,Pro_3,0)-1):INDEX(Pro_3,MATCH(2,1/(Pro_3=$F$3),1)),ROWS(AI$2:AI65)),"") ->  | AJ66: =IFERROR(INDEX(INDEX(OFFSET(Pro_3,0,1),MATCH($F$3,Pro_3,0)-1):INDEX(OFFSET(Pro_3,0,1),MATCH(2,1/(Pro_3=$F$3),1)),ROWS(AJ$2:AJ65)),"") ->  | AK66: =IFERROR(INDEX(INDEX(OFFSET(Pro_3,0,2),MATCH($F$3,Pro_3,0)-1):INDEX(OFFSET(Pro_3,0,2),MATCH(2,1/(Pro_3=$F$3),1)),ROWS(AK$2:AK65)),"") ->  | AL66: =IFERROR(INDEX(INDEX(OFFSET(Pro_3,0,3),MATCH($F$3,Pro_3,0)-1):INDEX(OFFSET(Pro_3,0,3),MATCH(2,1/(Pro_3=$F$3),1)),ROWS(AL$2:AL65)),"") -> 
P67: =IFERROR(INDEX(INDEX(Pro_1,MATCH($B$3,Pro_1,0)-1):INDEX(Pro_1,MATCH(2,1/(Pro_1=$B$3),1)),ROWS(P$2:P66)),"") ->  | Q67: =IFERROR(INDEX(INDEX(OFFSET(Pro_1,0,1),MATCH($B$3,Pro_1,0)-1):INDEX(OFFSET(Pro_1,0,1),MATCH(2,1/(Pro_1=$B$3),1)),ROWS(Q$2:Q66)),"") ->  | R67: =IFERROR(INDEX(INDEX(OFFSET(Pro_1,0,2),MATCH($B$3,Pro_1,0)-1):INDEX(OFFSET(Pro_1,0,2),MATCH(2,1/(Pro_1=$B$3),1)),ROWS(R$2:R66)),"") ->  | S67: =IFERROR(INDEX(INDEX(OFFSET(Pro_1,0,3),MATCH($B$3,Pro_1,0)-1):INDEX(OFFSET(Pro_1,0,3),MATCH(2,1/(Pro_1=$B$3),1)),ROWS(S$2:S66)),"") ->  | Z67: =IFERROR(INDEX(INDEX(Pro_2,MATCH($D$3,Pro_2,0)-1):INDEX(Pro_2,MATCH(2,1/(Pro_2=$D$3),1)),ROWS(Z$2:Z66)),"") ->  | AA67: =IFERROR(INDEX(INDEX(OFFSET(Pro_2,0,1),MATCH($D$3,Pro_2,0)-1):INDEX(OFFSET(Pro_2,0,1),MATCH(2,1/(Pro_2=$D$3),1)),ROWS(AA$2:AA66)),"") ->  | AB67: =IFERROR(INDEX(INDEX(OFFSET(Pro_2,0,2),MATCH($D$3,Pro_2,0)-1):INDEX(OFFSET(Pro_2,0,2),MATCH(2,1/(Pro_2=$D$3),1)),ROWS(AB$2:AB66)),"") ->  | AC67: =IFERROR(INDEX(INDEX(OFFSET(Pro_2,0,3),MATCH($D$3,Pro_2,0)-1):INDEX(OFFSET(Pro_2,0,3),MATCH(2,1/(Pro_2=$D$3),1)),ROWS(AC$2:AC66)),"") ->  | AI67: =IFERROR(INDEX(INDEX(Pro_3,MATCH($F$3,Pro_3,0)-1):INDEX(Pro_3,MATCH(2,1/(Pro_3=$F$3),1)),ROWS(AI$2:AI66)),"") ->  | AJ67: =IFERROR(INDEX(INDEX(OFFSET(Pro_3,0,1),MATCH($F$3,Pro_3,0)-1):INDEX(OFFSET(Pro_3,0,1),MATCH(2,1/(Pro_3=$F$3),1)),ROWS(AJ$2:AJ66)),"") ->  | AK67: =IFERROR(INDEX(INDEX(OFFSET(Pro_3,0,2),MATCH($F$3,Pro_3,0)-1):INDEX(OFFSET(Pro_3,0,2),MATCH(2,1/(Pro_3=$F$3),1)),ROWS(AK$2:AK66)),"") ->  | AL67: =IFERROR(INDEX(INDEX(OFFSET(Pro_3,0,3),MATCH($F$3,Pro_3,0)-1):INDEX(OFFSET(Pro_3,0,3),MATCH(2,1/(Pro_3=$F$3),1)),ROWS(AL$2:AL66)),"") -> 
J68: =IF(ISNUMBER(P68),ROW(),"") ->  | P68: =IFERROR(INDEX(INDEX(Pro_1,MATCH($B$3,Pro_1,0)-1):INDEX(Pro_1,MATCH(2,1/(Pro_1=$B$3),1)),ROWS(P$2:P67)),"") ->  | Q68: =IFERROR(INDEX(INDEX(OFFSET(Pro_1,0,1),MATCH($B$3,Pro_1,0)-1):INDEX(OFFSET(Pro_1,0,1),MATCH(2,1/(Pro_1=$B$3),1)),ROWS(Q$2:Q67)),"") ->  | R68: =IFERROR(INDEX(INDEX(OFFSET(Pro_1,0,2),MATCH($B$3,Pro_1,0)-1):INDEX(OFFSET(Pro_1,0,2),MATCH(2,1/(Pro_1=$B$3),1)),ROWS(R$2:R67)),"") ->  | S68: =IFERROR(INDEX(INDEX(OFFSET(Pro_1,0,3),MATCH($B$3,Pro_1,0)-1):INDEX(OFFSET(Pro_1,0,3),MATCH(2,1/(Pro_1=$B$3),1)),ROWS(S$2:S67)),"") ->  | X68: =IF(ISNUMBER($Z68),ROW(),"") ->  | Z68: =IFERROR(INDEX(INDEX(Pro_2,MATCH($D$3,Pro_2,0)-1):INDEX(Pro_2,MATCH(2,1/(Pro_2=$D$3),1)),ROWS(Z$2:Z67)),"") ->  | AA68: =IFERROR(INDEX(INDEX(OFFSET(Pro_2,0,1),MATCH($D$3,Pro_2,0)-1):INDEX(OFFSET(Pro_2,0,1),MATCH(2,1/(Pro_2=$D$3),1)),ROWS(AA$2:AA67)),"") ->  | AB68: =IFERROR(INDEX(INDEX(OFFSET(Pro_2,0,2),MATCH($D$3,Pro_2,0)-1):INDEX(OFFSET(Pro_2,0,2),MATCH(2,1/(Pro_2=$D$3),1)),ROWS(AB$2:AB67)),"") ->  | AC68: =IFERROR(INDEX(INDEX(OFFSET(Pro_2,0,3),MATCH($D$3,Pro_2,0)-1):INDEX(OFFSET(Pro_2,0,3),MATCH(2,1/(Pro_2=$D$3),1)),ROWS(AC$2:AC67)),"") ->  | AG68: =IF(ISNUMBER($AI68),ROW(),"") ->  | AI68: =IFERROR(INDEX(INDEX(Pro_3,MATCH($F$3,Pro_3,0)-1):INDEX(Pro_3,MATCH(2,1/(Pro_3=$F$3),1)),ROWS(AI$2:AI67)),"") ->  | AJ68: =IFERROR(INDEX(INDEX(OFFSET(Pro_3,0,1),MATCH($F$3,Pro_3,0)-1):INDEX(OFFSET(Pro_3,0,1),MATCH(2,1/(Pro_3=$F$3),1)),ROWS(AJ$2:AJ67)),"") ->  | AK68: =IFERROR(INDEX(INDEX(OFFSET(Pro_3,0,2),MATCH($F$3,Pro_3,0)-1):INDEX(OFFSET(Pro_3,0,2),MATCH(2,1/(Pro_3=$F$3),1)),ROWS(AK$2:AK67)),"") ->  | AL68: =IFERROR(INDEX(INDEX(OFFSET(Pro_3,0,3),MATCH($F$3,Pro_3,0)-1):INDEX(OFFSET(Pro_3,0,3),MATCH(2,1/(Pro_3=$F$3),1)),ROWS(AL$2:AL67)),"") -> 
P69: =IFERROR(INDEX(INDEX(Pro_1,MATCH($B$3,Pro_1,0)-1):INDEX(Pro_1,MATCH(2,1/(Pro_1=$B$3),1)),ROWS(P$2:P68)),"") ->  | Q69: =IFERROR(INDEX(INDEX(OFFSET(Pro_1,0,1),MATCH($B$3,Pro_1,0)-1):INDEX(OFFSET(Pro_1,0,1),MATCH(2,1/(Pro_1=$B$3),1)),ROWS(Q$2:Q68)),"") ->  | R69: =IFERROR(INDEX(INDEX(OFFSET(Pro_1,0,2),MATCH($B$3,Pro_1,0)-1):INDEX(OFFSET(Pro_1,0,2),MATCH(2,1/(Pro_1=$B$3),1)),ROWS(R$2:R68)),"") ->  | S69: =IFERROR(INDEX(INDEX(OFFSET(Pro_1,0,3),MATCH($B$3,Pro_1,0)-1):INDEX(OFFSET(Pro_1,0,3),MATCH(2,1/(Pro_1=$B$3),1)),ROWS(S$2:S68)),"") ->  | Z69: =IFERROR(INDEX(INDEX(Pro_2,MATCH($D$3,Pro_2,0)-1):INDEX(Pro_2,MATCH(2,1/(Pro_2=$D$3),1)),ROWS(Z$2:Z68)),"") ->  | AA69: =IFERROR(INDEX(INDEX(OFFSET(Pro_2,0,1),MATCH($D$3,Pro_2,0)-1):INDEX(OFFSET(Pro_2,0,1),MATCH(2,1/(Pro_2=$D$3),1)),ROWS(AA$2:AA68)),"") ->  | AB69: =IFERROR(INDEX(INDEX(OFFSET(Pro_2,0,2),MATCH($D$3,Pro_2,0)-1):INDEX(OFFSET(Pro_2,0,2),MATCH(2,1/(Pro_2=$D$3),1)),ROWS(AB$2:AB68)),"") ->  | AC69: =IFERROR(INDEX(INDEX(OFFSET(Pro_2,0,3),MATCH($D$3,Pro_2,0)-1):INDEX(OFFSET(Pro_2,0,3),MATCH(2,1/(Pro_2=$D$3),1)),ROWS(AC$2:AC68)),"") ->  | AI69: =IFERROR(INDEX(INDEX(Pro_3,MATCH($F$3,Pro_3,0)-1):INDEX(Pro_3,MATCH(2,1/(Pro_3=$F$3),1)),ROWS(AI$2:AI68)),"") ->  | AJ69: =IFERROR(INDEX(INDEX(OFFSET(Pro_3,0,1),MATCH($F$3,Pro_3,0)-1):INDEX(OFFSET(Pro_3,0,1),MATCH(2,1/(Pro_3=$F$3),1)),ROWS(AJ$2:AJ68)),"") ->  | AK69: =IFERROR(INDEX(INDEX(OFFSET(Pro_3,0,2),MATCH($F$3,Pro_3,0)-1):INDEX(OFFSET(Pro_3,0,2),MATCH(2,1/(Pro_3=$F$3),1)),ROWS(AK$2:AK68)),"") ->  | AL69: =IFERROR(INDEX(INDEX(OFFSET(Pro_3,0,3),MATCH($F$3,Pro_3,0)-1):INDEX(OFFSET(Pro_3,0,3),MATCH(2,1/(Pro_3=$F$3),1)),ROWS(AL$2:AL68)),"") -> 
P70: =IFERROR(INDEX(INDEX(Pro_1,MATCH($B$3,Pro_1,0)-1):INDEX(Pro_1,MATCH(2,1/(Pro_1=$B$3),1)),ROWS(P$2:P69)),"") ->  | Q70: =IFERROR(INDEX(INDEX(OFFSET(Pro_1,0,1),MATCH($B$3,Pro_1,0)-1):INDEX(OFFSET(Pro_1,0,1),MATCH(2,1/(Pro_1=$B$3),1)),ROWS(Q$2:Q69)),"") ->  | R70: =IFERROR(INDEX(INDEX(OFFSET(Pro_1,0,2),MATCH($B$3,Pro_1,0)-1):INDEX(OFFSET(Pro_1,0,2),MATCH(2,1/(Pro_1=$B$3),1)),ROWS(R$2:R69)),"") ->  | S70: =IFERROR(INDEX(INDEX(OFFSET(Pro_1,0,3),MATCH($B$3,Pro_1,0)-1):INDEX(OFFSET(Pro_1,0,3),MATCH(2,1/(Pro_1=$B$3),1)),ROWS(S$2:S69)),"") ->  | Z70: =IFERROR(INDEX(INDEX(Pro_2,MATCH($D$3,Pro_2,0)-1):INDEX(Pro_2,MATCH(2,1/(Pro_2=$D$3),1)),ROWS(Z$2:Z69)),"") ->  | AA70: =IFERROR(INDEX(INDEX(OFFSET(Pro_2,0,1),MATCH($D$3,Pro_2,0)-1):INDEX(OFFSET(Pro_2,0,1),MATCH(2,1/(Pro_2=$D$3),1)),ROWS(AA$2:AA69)),"") ->  | AB70: =IFERROR(INDEX(INDEX(OFFSET(Pro_2,0,2),MATCH($D$3,Pro_2,0)-1):INDEX(OFFSET(Pro_2,0,2),MATCH(2,1/(Pro_2=$D$3),1)),ROWS(AB$2:AB69)),"") ->  | AC70: =IFERROR(INDEX(INDEX(OFFSET(Pro_2,0,3),MATCH($D$3,Pro_2,0)-1):INDEX(OFFSET(Pro_2,0,3),MATCH(2,1/(Pro_2=$D$3),1)),ROWS(AC$2:AC69)),"") ->  | AI70: =IFERROR(INDEX(INDEX(Pro_3,MATCH($F$3,Pro_3,0)-1):INDEX(Pro_3,MATCH(2,1/(Pro_3=$F$3),1)),ROWS(AI$2:AI69)),"") ->  | AJ70: =IFERROR(INDEX(INDEX(OFFSET(Pro_3,0,1),MATCH($F$3,Pro_3,0)-1):INDEX(OFFSET(Pro_3,0,1),MATCH(2,1/(Pro_3=$F$3),1)),ROWS(AJ$2:AJ69)),"") ->  | AK70: =IFERROR(INDEX(INDEX(OFFSET(Pro_3,0,2),MATCH($F$3,Pro_3,0)-1):INDEX(OFFSET(Pro_3,0,2),MATCH(2,1/(Pro_3=$F$3),1)),ROWS(AK$2:AK69)),"") ->  | AL70: =IFERROR(INDEX(INDEX(OFFSET(Pro_3,0,3),MATCH($F$3,Pro_3,0)-1):INDEX(OFFSET(Pro_3,0,3),MATCH(2,1/(Pro_3=$F$3),1)),ROWS(AL$2:AL69)),"") -> 

Sheet Gearbox oil cooler
A1: PTO type | B1: Power line (kW) | C1: Operation Type | D1: PIC
A2: ED70P | B2: 50 | C2: Continuous
A3: ED70P | B3: 113 | C3: Periodic
A4: ED120P | B4: 75 | C4: Continuous
A5: ED120P | B5: 142 | C5: Periodic
A6: ED160P | B6: 85 | C6: Continuous
A7: ED160P | B7: 189 | C7: Periodic
A8: EK730P | B8: 120 | C8: Continuous
A9: EK730P | B9: 170 | C9: Periodic (without oil cooler for gearbox), Continuous (with water cooling for gearbox oil)
A10: EK730P | B10: 200 | C10: Periodic(with water cooling for gearbox oil), Continuous (with air cooling for gearbox oil)
A11: EK730P | B11: 250 | C11: Continuous with cooling capacity with at least 13 kW
A12: EK740F | B12: 120 | C12: Continuous
A13: EK740F | B13: 170 | C13: Periodic(without oil cooler for gearbox), Continuous (with water cooling for gearbox oil)
A14: EK740F | B14: 200 | C14: Periodic(with water cooling for gearbox oil), Continuous (with air cooling for gearbox oil)
A15: EK740F | B15: 250 | C15: Continuous with cooling capacity with at least 13 kW
A16: EK750F | B16: 120 | C16: Continuous
A17: EK750F | B17: 170 | C17: Periodic(without oil cooler for gearbox), Continuous (with water cooling for gearbox oil)
A18: EG730P | B18: 120 | C18: Continuous
A19: EG730P | B19: 170 | C19: Periodic (without oil cooler for gearbox), Continuous (with water cooling for gearbox oil)
A20: EG730P | B20: 200 | C20: Periodic (with water cooling for gearbox oil), Continuous (with air cooling for gearbox oil)
A21: EG730P | B21: 250 | C21: Continuous with cooling capacity with at least 13 kW
A22: EG740F | B22: 120 | C22: Continuous
A23: EG740F | B23: 170 | C23: Periodic (without oil cooler for gearbox), Continuous (with water cooling for gearbox oil)
A24: EG740F | B24: 200 | C24: Periodic (with water cooling for gearbox oil), Continuous (with air cooling for gearbox oil)
A25: EG740F | B25: 250 | C25: Continuous with cooling capacity with at least 13 kW
A26: EG500P | B26: 60 | C26: Continuous
A27: EG500P | B27: 90 | C27: Periodic(without oil cooler for gearbox), Continuous(with oil cooler for gearbox)
A28: EG500F | B28: 60 | C28: Continuous
A29: EG500F | B29: 90 | C29: Periodic (without oil cooler for gearbox), Continuous (with oil cooler for gearbox)
A30: EG502P | B30: 60 | C30: Continuous
A31: EG502P | B31: 90 | C31: Periodic (without oil cooler for gearbox), Continuous (with oil cooler for gearbox)
A32: EG502F | B32: 60 | C32: Continuous
A33: EG502F | B33: 90 | C33: Periodic (without oil cooler for gearbox), Continuous (with oil cooler for gearbox)
A34: EG501P | B34: 60 | C34: Continuous
A35: EG501P | B35: 90 | C35: Periodic (without oil cooler for gearbox), Continuous (with oil cooler for gearbox)
A36: EG501F | B36: 60 | C36: Continuous
A37: EG501F | B37: 90 | C37: Periodic (without oil cooler for gearbox), Continuous (with oil cooler for gearbox)
A38: EG503P | B38: 60 | C38: Continuous
A39: EG503P | B39: 90 | C39: Periodic (without oil cooler for gearbox), Continuous (with oil cooler for gearbox)
A40: EG503F | B40: 60 | C40: Continuous
A41: EG503F | B41: 90 | C41: Periodic (without oil cooler for gearbox), Continuous (with oil cooler for gearbox)
A42: EG640F | B42: 70 | C42: Continuous
